Workbook

Sheet GL COA (hidden)
A1: GL Acct-Ext | B1: Description
A2: 70000 | B2: Salaries & Wages - Regular
A3: 70050 | B3: Salaries & Wages - Overtime
A4: 70100 | B4: Payroll Taxes
A5: 70250 | B5: Bonus
A6: 70370 | B6: 401(k) Match | D6: Sample: | E6: DIV-DEPT-GLacct-Ext
A7: 70500 | B7: Temporary Help
A8: 70600 | B8: Employee Training & Development
B9: Director of IT | D9: DIV | E9: DIVISION NAME | G9: DEPT | H9: DEPARTMENT NAME
B10: Database Administrator | D10: 100 | E10: Storm Industries, Inc. | G10: 10 | H10: Administration (Family)
B11: Network Administrator | D11: 110 | E11: Storm Management | G11: 00 | H11: Corporate
B12: IT Administrative Assistant | D12: 200 | E12: IPD-Torrance | G12: 02 | H12: Accounting & Administration
B13: Helpdesk | D13: 205 | E13: IPD-Houston | G13: 05 | H13: Human Resources
B14: Employee Training Program | D14: 210 | E14: IPD-Cleveland | G14: 07 | H14: Information Technology
D15: 215 | E15: IPD-Portland
A16: 70700 | B16: Automobile / Transportation Expense | D16: 260 | E16: IPD-Denmark
D17: 265 | E17: IPD-Australia
A18: 70750 | B18: Travel-Airfare & Lodging | D18: 300 | E18: SMG
D19: 400 | E19: Storm Investments
A20: 70800 | B20: Meals & Entertainment | D20: 410 | E20: The Strand
D21: 420 | E21: Reed Valley Ranch
A22: 72300 | B22: IT Consulting Fees | D22: 500 | E22: SP
B23: Great Plains VAR - Incident System Support | D23: 800 | E23: SWD
B24: Network and Telecom Infrastructure
B25: Data Transformation/Archiving/Warehousing
B26: Great Plains and Business Portal
B27: Miscellaneous
B28: Website Development
C29: IPD Only
A30: 72500 | B30: Recruitment Fees | C30: 74100 | D30: ADT
C31: 25900 | D31: Canon Lease
A32: 72700 | B32: Professional Fees - Other | C32: 74100-00 | D32: Canon Copy Usage
B33: Microsoft Incedent Support | C33: 77100 | D33: Canon Property Tax
B34: Great Plains and Business Portal | C34: 20-10-6260-00 | D34: Late Fees
B35: Miscellaneous | C35: 25900 | D35: Avaya Lease Portion
B36: Website Development | C36: 77100 | D36: Avaya Propery Tax Portion
C37: 300-02-7440-00 | D37: SMG ADT
A38: 73100 | B38: IT - Hardware | C38: 110-00-25100-00 | D38: De Lage Landen
B39: Lease Payments to Dell Computers | C39: 110-00-25100-00 | D39: Microsoft Annual Support
B40: PC / Monitor, Laptops
B41: Peripherals
B42: Security hardware and devices
B43: Test/Staging Server Environment
B44: Cisco Maintenance
B45: Servers Maintenance
B46: Other
B47: DPSI - Fire Suppression System
A49: 73200 | B49: IT - Software
B50: Citrix
B51: Diagnostics
B52: Network Management
B53: Programming Tools
B54: SQL server 2005 Enterprise
B55: Web and Domain
B56: Great Plains
B57: Sprint Spam Filtering
B58: WebSense
B59: Great Plains Annual Support
B60: Veritas
B61: Solar Winds Monitoring
B62: Sprint SPAM filter
B63: TrackIT
B64: WebSense
A66: 73300 | B66: IT - Data Storage
B67: Offsite Data Storage and Recovery
A69: 73400 | B69: IT - Other
B70: Hosting and Registrations
B71: eWaste
B72: Computer Supplies
A74: 73500 | B74: Telephone
B75: MRC
B76: Conferencing Calls
A78: 73600 | B78: Cell Phone
B79: SMI
B80: IPD
B81: SMG
B82: SP/SWD
A84: 73700 | B84: Data Line
B85: SMI
B86: IPD Torrance
B87: IPD - Houston
B88: IPD - Cleveland
B89: IPD - Portland
B90: SMG Torrance
B91: SMG Valencia
A93: 73800 | B93: Telecom Equipment & Supplies
A95: 73900 | B95: Telecom Repairs & Maintenance
A97: 74100 | B97: Office Supplies
B98: Books
B99: Reference and Training CDs/Materials
B100: Masc. Supply
A102: 74800 | B102: Postage
A104: 77400 | B104: Sales & Use Tax
A106: 78400 | B106: Dues & Subscriptions
B107: Professional Dues
B108: Professional Conferences
B109: MSDN
B110: TechNet Plus
B111: Periodicals
A113: 84100 | B113: Other Income (Expense)

Sheet Salaries (hidden)
A1: Salaries
A2: ="In House Labor "&'IT Budget'!F176 -> In House Labor 2008
A3: Back To Budget
A4: Description | C4: 2007 | D4: Rate | E4: Total | F4: Actual | G4: SMI | H4: IPD | I4: SMG | J4: SWD/SP | K4: SINV | L4: RVR
A5: Brett Schwab | B5: W | E5: =SUM(E6:E10) -> 165632.6615 | F5: =+E5/2080 -> 79.63108725 | G5: =IF(AND($B5<>"", $E5<>""),VLOOKUP($B5,Allocations!$A$5:$K$30,3,0)*$E5,"") -> 0 | H5: =IF(AND($B5<>"", $E5<>""),VLOOKUP($B5,Allocations!$A$5:$K$30,4,0)*$E5,"") -> 0 | I5: =IF(AND($B5<>"", $E5<>""),VLOOKUP($B5,Allocations!$A$5:$K$30,5,0)*$E5,"") -> 0 | J5: =IF(AND($B5<>"", $E5<>""),VLOOKUP($B5,Allocations!$A$5:$K$30,6,0)*$E5,"") -> 0 | K5: =IF(AND($B5<>"", $E5<>""),VLOOKUP($B5,Allocations!$A$5:$K$30,7,0)*$E5,"") -> 0 | L5: =IF(AND($B5<>"", $E5<>""),VLOOKUP($B5,Allocations!$A$5:$K$30,8,0)*$E5,"") -> 0
A6: Salary | C6: 116724.92 | D6: 0.06 | E6: =C6+(+C6*D6) -> 123728.4152 | F6: =(E6+(E6/2)+E7+E8+(E8/2)+E9+E10)/2080 -> 111.7528874 | G6: =IF(AND($B6<>"", $E6<>""),VLOOKUP($B6,Allocations!$A$5:$K$30,3,0)*$E6,"") ->  | H6: =IF(AND($B6<>"", $E6<>""),VLOOKUP($B6,Allocations!$A$5:$K$30,4,0)*$E6,"") ->  | I6: =IF(AND($B6<>"", $E6<>""),VLOOKUP($B6,Allocations!$A$5:$K$30,5,0)*$E6,"") ->  | J6: =IF(AND($B6<>"", $E6<>""),VLOOKUP($B6,Allocations!$A$5:$K$30,6,0)*$E6,"") ->  | K6: =IF(AND($B6<>"", $E6<>""),VLOOKUP($B6,Allocations!$A$5:$K$30,7,0)*$E6,"") ->  | L6: =IF(AND($B6<>"", $E6<>""),VLOOKUP($B6,Allocations!$A$5:$K$30,8,0)*$E6,"") -> 
A7: Overtime | C7: 0 | E7: 0 | G7: =IF(AND($B7<>"", $E7<>""),VLOOKUP($B7,Allocations!$A$5:$K$30,3,0)*$E7,"") ->  | H7: =IF(AND($B7<>"", $E7<>""),VLOOKUP($B7,Allocations!$A$5:$K$30,4,0)*$E7,"") ->  | I7: =IF(AND($B7<>"", $E7<>""),VLOOKUP($B7,Allocations!$A$5:$K$30,5,0)*$E7,"") ->  | J7: =IF(AND($B7<>"", $E7<>""),VLOOKUP($B7,Allocations!$A$5:$K$30,6,0)*$E7,"") ->  | K7: =IF(AND($B7<>"", $E7<>""),VLOOKUP($B7,Allocations!$A$5:$K$30,7,0)*$E7,"") ->  | L7: =IF(AND($B7<>"", $E7<>""),VLOOKUP($B7,Allocations!$A$5:$K$30,8,0)*$E7,"") -> 
A8: Taxes | C8: =+C6*D8 -> 9337.9936 | D8: 0.08 | E8: =+E6*D8 -> 9898.273216 | G8: =IF(AND($B8<>"", $E8<>""),VLOOKUP($B8,Allocations!$A$5:$K$30,3,0)*$E8,"") ->  | H8: =IF(AND($B8<>"", $E8<>""),VLOOKUP($B8,Allocations!$A$5:$K$30,4,0)*$E8,"") ->  | I8: =IF(AND($B8<>"", $E8<>""),VLOOKUP($B8,Allocations!$A$5:$K$30,5,0)*$E8,"") ->  | J8: =IF(AND($B8<>"", $E8<>""),VLOOKUP($B8,Allocations!$A$5:$K$30,6,0)*$E8,"") ->  | K8: =IF(AND($B8<>"", $E8<>""),VLOOKUP($B8,Allocations!$A$5:$K$30,7,0)*$E8,"") ->  | L8: =IF(AND($B8<>"", $E8<>""),VLOOKUP($B8,Allocations!$A$5:$K$30,8,0)*$E8,"") -> 
A9: Bonus | C9: =(+C6*0.2)/4 -> 5836.246 | D9: 0.2 | E9: =+C6*D9 -> 23344.984 | G9: =IF(AND($B9<>"", $E9<>""),VLOOKUP($B9,Allocations!$A$5:$K$30,3,0)*$E9,"") ->  | H9: =IF(AND($B9<>"", $E9<>""),VLOOKUP($B9,Allocations!$A$5:$K$30,4,0)*$E9,"") ->  | I9: =IF(AND($B9<>"", $E9<>""),VLOOKUP($B9,Allocations!$A$5:$K$30,5,0)*$E9,"") ->  | J9: =IF(AND($B9<>"", $E9<>""),VLOOKUP($B9,Allocations!$A$5:$K$30,6,0)*$E9,"") ->  | K9: =IF(AND($B9<>"", $E9<>""),VLOOKUP($B9,Allocations!$A$5:$K$30,7,0)*$E9,"") ->  | L9: =IF(AND($B9<>"", $E9<>""),VLOOKUP($B9,Allocations!$A$5:$K$30,8,0)*$E9,"") -> 
A10: Benefits | C10: =+C6*D10 -> 8170.7444 | D10: 0.07 | E10: =+E6*D10 -> 8660.989064 | G10: =IF(AND($B10<>"", $E10<>""),VLOOKUP($B10,Allocations!$A$5:$K$30,3,0)*$E10,"") ->  | H10: =IF(AND($B10<>"", $E10<>""),VLOOKUP($B10,Allocations!$A$5:$K$30,4,0)*$E10,"") ->  | I10: =IF(AND($B10<>"", $E10<>""),VLOOKUP($B10,Allocations!$A$5:$K$30,5,0)*$E10,"") ->  | J10: =IF(AND($B10<>"", $E10<>""),VLOOKUP($B10,Allocations!$A$5:$K$30,6,0)*$E10,"") ->  | K10: =IF(AND($B10<>"", $E10<>""),VLOOKUP($B10,Allocations!$A$5:$K$30,7,0)*$E10,"") ->  | L10: =IF(AND($B10<>"", $E10<>""),VLOOKUP($B10,Allocations!$A$5:$K$30,8,0)*$E10,"") -> 
A11: Michelle Allen | B11: W | E11: =SUM(E12:E16) -> 56859.01 | F11: =+E11/2080 -> 27.3360625 | G11: =IF(AND($B11<>"", $E11<>""),VLOOKUP($B11,Allocations!$A$5:$K$30,3,0)*$E11,"") -> 0 | H11: =IF(AND($B11<>"", $E11<>""),VLOOKUP($B11,Allocations!$A$5:$K$30,4,0)*$E11,"") -> 0 | I11: =IF(AND($B11<>"", $E11<>""),VLOOKUP($B11,Allocations!$A$5:$K$30,5,0)*$E11,"") -> 0 | J11: =IF(AND($B11<>"", $E11<>""),VLOOKUP($B11,Allocations!$A$5:$K$30,6,0)*$E11,"") -> 0 | K11: =IF(AND($B11<>"", $E11<>""),VLOOKUP($B11,Allocations!$A$5:$K$30,7,0)*$E11,"") -> 0 | L11: =IF(AND($B11<>"", $E11<>""),VLOOKUP($B11,Allocations!$A$5:$K$30,8,0)*$E11,"") -> 0
A12: Salary | C12: 43180 | D12: 0.06 | E12: =C12+(+C12*D12) -> 45770.8 | F12: =(E12+(E12/2)+E13+E14+(E14/2)+E15+E16)/2080 -> 39.26203942 | G12: =IF(AND($B12<>"", $E12<>""),VLOOKUP($B12,Allocations!$A$5:$K$30,3,0)*$E12,"") ->  | H12: =IF(AND($B12<>"", $E12<>""),VLOOKUP($B12,Allocations!$A$5:$K$30,4,0)*$E12,"") ->  | I12: =IF(AND($B12<>"", $E12<>""),VLOOKUP($B12,Allocations!$A$5:$K$30,5,0)*$E12,"") ->  | J12: =IF(AND($B12<>"", $E12<>""),VLOOKUP($B12,Allocations!$A$5:$K$30,6,0)*$E12,"") ->  | K12: =IF(AND($B12<>"", $E12<>""),VLOOKUP($B12,Allocations!$A$5:$K$30,7,0)*$E12,"") ->  | L12: =IF(AND($B12<>"", $E12<>""),VLOOKUP($B12,Allocations!$A$5:$K$30,8,0)*$E12,"") -> 
A13: Overtime | C13: 2159 | E13: 2245 | G13: =IF(AND($B13<>"", $E13<>""),VLOOKUP($B13,Allocations!$A$5:$K$30,3,0)*$E13,"") ->  | H13: =IF(AND($B13<>"", $E13<>""),VLOOKUP($B13,Allocations!$A$5:$K$30,4,0)*$E13,"") ->  | I13: =IF(AND($B13<>"", $E13<>""),VLOOKUP($B13,Allocations!$A$5:$K$30,5,0)*$E13,"") ->  | J13: =IF(AND($B13<>"", $E13<>""),VLOOKUP($B13,Allocations!$A$5:$K$30,6,0)*$E13,"") ->  | K13: =IF(AND($B13<>"", $E13<>""),VLOOKUP($B13,Allocations!$A$5:$K$30,7,0)*$E13,"") ->  | L13: =IF(AND($B13<>"", $E13<>""),VLOOKUP($B13,Allocations!$A$5:$K$30,8,0)*$E13,"") -> 
A14: Taxes | C14: =(+C12+C13)*D14 -> 3627.12 | D14: 0.08 | E14: =(+E12+E13)*D14 -> 3841.264 | G14: =IF(AND($B14<>"", $E14<>""),VLOOKUP($B14,Allocations!$A$5:$K$30,3,0)*$E14,"") ->  | H14: =IF(AND($B14<>"", $E14<>""),VLOOKUP($B14,Allocations!$A$5:$K$30,4,0)*$E14,"") ->  | I14: =IF(AND($B14<>"", $E14<>""),VLOOKUP($B14,Allocations!$A$5:$K$30,5,0)*$E14,"") ->  | J14: =IF(AND($B14<>"", $E14<>""),VLOOKUP($B14,Allocations!$A$5:$K$30,6,0)*$E14,"") ->  | K14: =IF(AND($B14<>"", $E14<>""),VLOOKUP($B14,Allocations!$A$5:$K$30,7,0)*$E14,"") ->  | L14: =IF(AND($B14<>"", $E14<>""),VLOOKUP($B14,Allocations!$A$5:$K$30,8,0)*$E14,"") -> 
A15: Bonus | C15: =+C12*D15 -> 1640.84 | D15: 0.038 | E15: =+C12*D15 -> 1640.84 | G15: =IF(AND($B15<>"", $E15<>""),VLOOKUP($B15,Allocations!$A$5:$K$30,3,0)*$E15,"") ->  | H15: =IF(AND($B15<>"", $E15<>""),VLOOKUP($B15,Allocations!$A$5:$K$30,4,0)*$E15,"") ->  | I15: =IF(AND($B15<>"", $E15<>""),VLOOKUP($B15,Allocations!$A$5:$K$30,5,0)*$E15,"") ->  | J15: =IF(AND($B15<>"", $E15<>""),VLOOKUP($B15,Allocations!$A$5:$K$30,6,0)*$E15,"") ->  | K15: =IF(AND($B15<>"", $E15<>""),VLOOKUP($B15,Allocations!$A$5:$K$30,7,0)*$E15,"") ->  | L15: =IF(AND($B15<>"", $E15<>""),VLOOKUP($B15,Allocations!$A$5:$K$30,8,0)*$E15,"") -> 
A16: Benefits | C16: =(+C12+C13)*D16 -> 3173.73 | D16: 0.07 | E16: =(+E12+E13)*D16 -> 3361.106 | G16: =IF(AND($B16<>"", $E16<>""),VLOOKUP($B16,Allocations!$A$5:$K$30,3,0)*$E16,"") ->  | H16: =IF(AND($B16<>"", $E16<>""),VLOOKUP($B16,Allocations!$A$5:$K$30,4,0)*$E16,"") ->  | I16: =IF(AND($B16<>"", $E16<>""),VLOOKUP($B16,Allocations!$A$5:$K$30,5,0)*$E16,"") ->  | J16: =IF(AND($B16<>"", $E16<>""),VLOOKUP($B16,Allocations!$A$5:$K$30,6,0)*$E16,"") ->  | K16: =IF(AND($B16<>"", $E16<>""),VLOOKUP($B16,Allocations!$A$5:$K$30,7,0)*$E16,"") ->  | L16: =IF(AND($B16<>"", $E16<>""),VLOOKUP($B16,Allocations!$A$5:$K$30,8,0)*$E16,"") -> 
A17: Administrator | B17: W | E17: =SUM(E18:E22) -> 0.075 | F17: =+E17/2080 -> 3.605769231e-05 | G17: =IF(AND($B17<>"", $E17<>""),VLOOKUP($B17,Allocations!$A$5:$K$30,3,0)*$E17,"") -> 0 | H17: =IF(AND($B17<>"", $E17<>""),VLOOKUP($B17,Allocations!$A$5:$K$30,4,0)*$E17,"") -> 0 | I17: =IF(AND($B17<>"", $E17<>""),VLOOKUP($B17,Allocations!$A$5:$K$30,5,0)*$E17,"") -> 0 | J17: =IF(AND($B17<>"", $E17<>""),VLOOKUP($B17,Allocations!$A$5:$K$30,6,0)*$E17,"") -> 0 | K17: =IF(AND($B17<>"", $E17<>""),VLOOKUP($B17,Allocations!$A$5:$K$30,7,0)*$E17,"") -> 0 | L17: =IF(AND($B17<>"", $E17<>""),VLOOKUP($B17,Allocations!$A$5:$K$30,8,0)*$E17,"") -> 0
A18: Salary | C18: 0 | D18: 0 | E18: =C18+(+C18*D18) -> 0 | F18: =(E18+(E18/2)+E19+E20+(E20/2)+E21+E22)/2080 -> -0.2460120192 | G18: =IF(AND($B18<>"", $E18<>""),VLOOKUP($B18,Allocations!$A$5:$K$30,3,0)*$E18,"") ->  | H18: =IF(AND($B18<>"", $E18<>""),VLOOKUP($B18,Allocations!$A$5:$K$30,4,0)*$E18,"") ->  | I18: =IF(AND($B18<>"", $E18<>""),VLOOKUP($B18,Allocations!$A$5:$K$30,5,0)*$E18,"") ->  | J18: =IF(AND($B18<>"", $E18<>""),VLOOKUP($B18,Allocations!$A$5:$K$30,6,0)*$E18,"") ->  | K18: =IF(AND($B18<>"", $E18<>""),VLOOKUP($B18,Allocations!$A$5:$K$30,7,0)*$E18,"") ->  | L18: =IF(AND($B18<>"", $E18<>""),VLOOKUP($B18,Allocations!$A$5:$K$30,8,0)*$E18,"") -> 
A19: Overtime | C19: 0 | E19: 1430.5 | G19: =IF(AND($B19<>"", $E19<>""),VLOOKUP($B19,Allocations!$A$5:$K$30,3,0)*$E19,"") ->  | H19: =IF(AND($B19<>"", $E19<>""),VLOOKUP($B19,Allocations!$A$5:$K$30,4,0)*$E19,"") ->  | I19: =IF(AND($B19<>"", $E19<>""),VLOOKUP($B19,Allocations!$A$5:$K$30,5,0)*$E19,"") ->  | J19: =IF(AND($B19<>"", $E19<>""),VLOOKUP($B19,Allocations!$A$5:$K$30,6,0)*$E19,"") ->  | K19: =IF(AND($B19<>"", $E19<>""),VLOOKUP($B19,Allocations!$A$5:$K$30,7,0)*$E19,"") ->  | L19: =IF(AND($B19<>"", $E19<>""),VLOOKUP($B19,Allocations!$A$5:$K$30,8,0)*$E19,"") -> 
A20: Taxes | C20: =(+C18+C19)*D20 -> 0 | D20: 0.08 | E20: =(+E18+E19)*D20-1138 -> -1023.56 | G20: =IF(AND($B20<>"", $E20<>""),VLOOKUP($B20,Allocations!$A$5:$K$30,3,0)*$E20,"") ->  | H20: =IF(AND($B20<>"", $E20<>""),VLOOKUP($B20,Allocations!$A$5:$K$30,4,0)*$E20,"") ->  | I20: =IF(AND($B20<>"", $E20<>""),VLOOKUP($B20,Allocations!$A$5:$K$30,5,0)*$E20,"") ->  | J20: =IF(AND($B20<>"", $E20<>""),VLOOKUP($B20,Allocations!$A$5:$K$30,6,0)*$E20,"") ->  | K20: =IF(AND($B20<>"", $E20<>""),VLOOKUP($B20,Allocations!$A$5:$K$30,7,0)*$E20,"") ->  | L20: =IF(AND($B20<>"", $E20<>""),VLOOKUP($B20,Allocations!$A$5:$K$30,8,0)*$E20,"") -> 
A21: Bonus | C21: =+C18*D21 -> 0 | D21: 0.038 | E21: =+C18*D21+489 -> 489 | G21: =IF(AND($B21<>"", $E21<>""),VLOOKUP($B21,Allocations!$A$5:$K$30,3,0)*$E21,"") ->  | H21: =IF(AND($B21<>"", $E21<>""),VLOOKUP($B21,Allocations!$A$5:$K$30,4,0)*$E21,"") ->  | I21: =IF(AND($B21<>"", $E21<>""),VLOOKUP($B21,Allocations!$A$5:$K$30,5,0)*$E21,"") ->  | J21: =IF(AND($B21<>"", $E21<>""),VLOOKUP($B21,Allocations!$A$5:$K$30,6,0)*$E21,"") ->  | K21: =IF(AND($B21<>"", $E21<>""),VLOOKUP($B21,Allocations!$A$5:$K$30,7,0)*$E21,"") ->  | L21: =IF(AND($B21<>"", $E21<>""),VLOOKUP($B21,Allocations!$A$5:$K$30,8,0)*$E21,"") -> 
A22: Benefits | C22: =(+C18+C19)*D22 -> 0 | D22: 0.07 | E22: =(+E18+E19)*D22-996 -> -895.865 | G22: =IF(AND($B22<>"", $E22<>""),VLOOKUP($B22,Allocations!$A$5:$K$30,3,0)*$E22,"") ->  | H22: =IF(AND($B22<>"", $E22<>""),VLOOKUP($B22,Allocations!$A$5:$K$30,4,0)*$E22,"") ->  | I22: =IF(AND($B22<>"", $E22<>""),VLOOKUP($B22,Allocations!$A$5:$K$30,5,0)*$E22,"") ->  | J22: =IF(AND($B22<>"", $E22<>""),VLOOKUP($B22,Allocations!$A$5:$K$30,6,0)*$E22,"") ->  | K22: =IF(AND($B22<>"", $E22<>""),VLOOKUP($B22,Allocations!$A$5:$K$30,7,0)*$E22,"") ->  | L22: =IF(AND($B22<>"", $E22<>""),VLOOKUP($B22,Allocations!$A$5:$K$30,8,0)*$E22,"") -> 
A23: Elliot Zino | B23: W | E23: =SUM(E24:E28) -> 109571.28 | F23: =+E23/2080 -> 52.6785 | G23: =IF(AND($B23<>"", $E23<>""),VLOOKUP($B23,Allocations!$A$5:$K$30,3,0)*$E23,"") -> 0 | H23: =IF(AND($B23<>"", $E23<>""),VLOOKUP($B23,Allocations!$A$5:$K$30,4,0)*$E23,"") -> 0 | I23: =IF(AND($B23<>"", $E23<>""),VLOOKUP($B23,Allocations!$A$5:$K$30,5,0)*$E23,"") -> 0 | J23: =IF(AND($B23<>"", $E23<>""),VLOOKUP($B23,Allocations!$A$5:$K$30,6,0)*$E23,"") -> 0 | K23: =IF(AND($B23<>"", $E23<>""),VLOOKUP($B23,Allocations!$A$5:$K$30,7,0)*$E23,"") -> 0 | L23: =IF(AND($B23<>"", $E23<>""),VLOOKUP($B23,Allocations!$A$5:$K$30,8,0)*$E23,"") -> 0
A24: Salary | C24: 90480 | D24: 0.02 | E24: =C24+(+C24*D24) -> 92289.6 | F24: =(E24+(E24/2)+E25+E26+(E26/2)+E27+E28)/2080 -> 76.6383 | G24: =IF(AND($B24<>"", $E24<>""),VLOOKUP($B24,Allocations!$A$5:$K$30,3,0)*$E24,"") ->  | H24: =IF(AND($B24<>"", $E24<>""),VLOOKUP($B24,Allocations!$A$5:$K$30,4,0)*$E24,"") ->  | I24: =IF(AND($B24<>"", $E24<>""),VLOOKUP($B24,Allocations!$A$5:$K$30,5,0)*$E24,"") ->  | J24: =IF(AND($B24<>"", $E24<>""),VLOOKUP($B24,Allocations!$A$5:$K$30,6,0)*$E24,"") ->  | K24: =IF(AND($B24<>"", $E24<>""),VLOOKUP($B24,Allocations!$A$5:$K$30,7,0)*$E24,"") ->  | L24: =IF(AND($B24<>"", $E24<>""),VLOOKUP($B24,Allocations!$A$5:$K$30,8,0)*$E24,"") -> 
A25: Overtime | C25: 0 | E25: 0 | G25: =IF(AND($B25<>"", $E25<>""),VLOOKUP($B25,Allocations!$A$5:$K$30,3,0)*$E25,"") ->  | H25: =IF(AND($B25<>"", $E25<>""),VLOOKUP($B25,Allocations!$A$5:$K$30,4,0)*$E25,"") ->  | I25: =IF(AND($B25<>"", $E25<>""),VLOOKUP($B25,Allocations!$A$5:$K$30,5,0)*$E25,"") ->  | J25: =IF(AND($B25<>"", $E25<>""),VLOOKUP($B25,Allocations!$A$5:$K$30,6,0)*$E25,"") ->  | K25: =IF(AND($B25<>"", $E25<>""),VLOOKUP($B25,Allocations!$A$5:$K$30,7,0)*$E25,"") ->  | L25: =IF(AND($B25<>"", $E25<>""),VLOOKUP($B25,Allocations!$A$5:$K$30,8,0)*$E25,"") -> 
A26: Taxes | C26: =(+C24+C25)*D26 -> 7238.4 | D26: 0.08 | E26: =(+E24+E25)*D26 -> 7383.168 | G26: =IF(AND($B26<>"", $E26<>""),VLOOKUP($B26,Allocations!$A$5:$K$30,3,0)*$E26,"") ->  | H26: =IF(AND($B26<>"", $E26<>""),VLOOKUP($B26,Allocations!$A$5:$K$30,4,0)*$E26,"") ->  | I26: =IF(AND($B26<>"", $E26<>""),VLOOKUP($B26,Allocations!$A$5:$K$30,5,0)*$E26,"") ->  | J26: =IF(AND($B26<>"", $E26<>""),VLOOKUP($B26,Allocations!$A$5:$K$30,6,0)*$E26,"") ->  | K26: =IF(AND($B26<>"", $E26<>""),VLOOKUP($B26,Allocations!$A$5:$K$30,7,0)*$E26,"") ->  | L26: =IF(AND($B26<>"", $E26<>""),VLOOKUP($B26,Allocations!$A$5:$K$30,8,0)*$E26,"") -> 
A27: Bonus | C27: =+C24*D27 -> 3438.24 | D27: 0.038 | E27: =+C24*D27 -> 3438.24 | G27: =IF(AND($B27<>"", $E27<>""),VLOOKUP($B27,Allocations!$A$5:$K$30,3,0)*$E27,"") ->  | H27: =IF(AND($B27<>"", $E27<>""),VLOOKUP($B27,Allocations!$A$5:$K$30,4,0)*$E27,"") ->  | I27: =IF(AND($B27<>"", $E27<>""),VLOOKUP($B27,Allocations!$A$5:$K$30,5,0)*$E27,"") ->  | J27: =IF(AND($B27<>"", $E27<>""),VLOOKUP($B27,Allocations!$A$5:$K$30,6,0)*$E27,"") ->  | K27: =IF(AND($B27<>"", $E27<>""),VLOOKUP($B27,Allocations!$A$5:$K$30,7,0)*$E27,"") ->  | L27: =IF(AND($B27<>"", $E27<>""),VLOOKUP($B27,Allocations!$A$5:$K$30,8,0)*$E27,"") -> 
A28: Benefits | C28: =(+C24+C25)*D28 -> 6333.6 | D28: 0.07 | E28: =(+E24+E25)*D28 -> 6460.272 | G28: =IF(AND($B28<>"", $E28<>""),VLOOKUP($B28,Allocations!$A$5:$K$30,3,0)*$E28,"") ->  | H28: =IF(AND($B28<>"", $E28<>""),VLOOKUP($B28,Allocations!$A$5:$K$30,4,0)*$E28,"") ->  | I28: =IF(AND($B28<>"", $E28<>""),VLOOKUP($B28,Allocations!$A$5:$K$30,5,0)*$E28,"") ->  | J28: =IF(AND($B28<>"", $E28<>""),VLOOKUP($B28,Allocations!$A$5:$K$30,6,0)*$E28,"") ->  | K28: =IF(AND($B28<>"", $E28<>""),VLOOKUP($B28,Allocations!$A$5:$K$30,7,0)*$E28,"") ->  | L28: =IF(AND($B28<>"", $E28<>""),VLOOKUP($B28,Allocations!$A$5:$K$30,8,0)*$E28,"") -> 
A29: Manny Lopez | B29: W | E29: =SUM(E30:E34) -> 61737.906 | F29: =+E29/2080 -> 29.68168558 | G29: =IF(AND($B29<>"", $E29<>""),VLOOKUP($B29,Allocations!$A$5:$K$30,3,0)*$E29,"") -> 0 | H29: =IF(AND($B29<>"", $E29<>""),VLOOKUP($B29,Allocations!$A$5:$K$30,4,0)*$E29,"") -> 0 | I29: =IF(AND($B29<>"", $E29<>""),VLOOKUP($B29,Allocations!$A$5:$K$30,5,0)*$E29,"") -> 0 | J29: =IF(AND($B29<>"", $E29<>""),VLOOKUP($B29,Allocations!$A$5:$K$30,6,0)*$E29,"") -> 0 | K29: =IF(AND($B29<>"", $E29<>""),VLOOKUP($B29,Allocations!$A$5:$K$30,7,0)*$E29,"") -> 0 | L29: =IF(AND($B29<>"", $E29<>""),VLOOKUP($B29,Allocations!$A$5:$K$30,8,0)*$E29,"") -> 0
A30: Salary | C30: 45302 | D30: 0.1 | E30: =C30+(+C30*D30) -> 49832.2 | F30: =(E30+(E30/2)+E31+E32+(E32/2)+E33+E34)/2080 -> 42.66419904 | G30: =IF(AND($B30<>"", $E30<>""),VLOOKUP($B30,Allocations!$A$5:$K$30,3,0)*$E30,"") ->  | H30: =IF(AND($B30<>"", $E30<>""),VLOOKUP($B30,Allocations!$A$5:$K$30,4,0)*$E30,"") ->  | I30: =IF(AND($B30<>"", $E30<>""),VLOOKUP($B30,Allocations!$A$5:$K$30,5,0)*$E30,"") ->  | J30: =IF(AND($B30<>"", $E30<>""),VLOOKUP($B30,Allocations!$A$5:$K$30,6,0)*$E30,"") ->  | K30: =IF(AND($B30<>"", $E30<>""),VLOOKUP($B30,Allocations!$A$5:$K$30,7,0)*$E30,"") ->  | L30: =IF(AND($B30<>"", $E30<>""),VLOOKUP($B30,Allocations!$A$5:$K$30,8,0)*$E30,"") -> 
A31: Overtime | C31: 2265 | E31: 2356 | G31: =IF(AND($B31<>"", $E31<>""),VLOOKUP($B31,Allocations!$A$5:$K$30,3,0)*$E31,"") ->  | H31: =IF(AND($B31<>"", $E31<>""),VLOOKUP($B31,Allocations!$A$5:$K$30,4,0)*$E31,"") ->  | I31: =IF(AND($B31<>"", $E31<>""),VLOOKUP($B31,Allocations!$A$5:$K$30,5,0)*$E31,"") ->  | J31: =IF(AND($B31<>"", $E31<>""),VLOOKUP($B31,Allocations!$A$5:$K$30,6,0)*$E31,"") ->  | K31: =IF(AND($B31<>"", $E31<>""),VLOOKUP($B31,Allocations!$A$5:$K$30,7,0)*$E31,"") ->  | L31: =IF(AND($B31<>"", $E31<>""),VLOOKUP($B31,Allocations!$A$5:$K$30,8,0)*$E31,"") -> 
A32: Taxes | C32: =(+C30+C31)*D32 -> 3805.36 | D32: 0.08 | E32: =(+E30+E31)*D32 -> 4175.056 | G32: =IF(AND($B32<>"", $E32<>""),VLOOKUP($B32,Allocations!$A$5:$K$30,3,0)*$E32,"") ->  | H32: =IF(AND($B32<>"", $E32<>""),VLOOKUP($B32,Allocations!$A$5:$K$30,4,0)*$E32,"") ->  | I32: =IF(AND($B32<>"", $E32<>""),VLOOKUP($B32,Allocations!$A$5:$K$30,5,0)*$E32,"") ->  | J32: =IF(AND($B32<>"", $E32<>""),VLOOKUP($B32,Allocations!$A$5:$K$30,6,0)*$E32,"") ->  | K32: =IF(AND($B32<>"", $E32<>""),VLOOKUP($B32,Allocations!$A$5:$K$30,7,0)*$E32,"") ->  | L32: =IF(AND($B32<>"", $E32<>""),VLOOKUP($B32,Allocations!$A$5:$K$30,8,0)*$E32,"") -> 
A33: Bonus | C33: =+C30*D33 -> 1721.476 | D33: 0.038 | E33: =+C30*D33 -> 1721.476 | G33: =IF(AND($B33<>"", $E33<>""),VLOOKUP($B33,Allocations!$A$5:$K$30,3,0)*$E33,"") ->  | H33: =IF(AND($B33<>"", $E33<>""),VLOOKUP($B33,Allocations!$A$5:$K$30,4,0)*$E33,"") ->  | I33: =IF(AND($B33<>"", $E33<>""),VLOOKUP($B33,Allocations!$A$5:$K$30,5,0)*$E33,"") ->  | J33: =IF(AND($B33<>"", $E33<>""),VLOOKUP($B33,Allocations!$A$5:$K$30,6,0)*$E33,"") ->  | K33: =IF(AND($B33<>"", $E33<>""),VLOOKUP($B33,Allocations!$A$5:$K$30,7,0)*$E33,"") ->  | L33: =IF(AND($B33<>"", $E33<>""),VLOOKUP($B33,Allocations!$A$5:$K$30,8,0)*$E33,"") -> 
A34: Benefits | C34: =(+C30+C31)*D34 -> 3329.69 | D34: 0.07 | E34: =(+E30+E31)*D34 -> 3653.174 | G34: =IF(AND($B34<>"", $E34<>""),VLOOKUP($B34,Allocations!$A$5:$K$30,3,0)*$E34,"") ->  | H34: =IF(AND($B34<>"", $E34<>""),VLOOKUP($B34,Allocations!$A$5:$K$30,4,0)*$E34,"") ->  | I34: =IF(AND($B34<>"", $E34<>""),VLOOKUP($B34,Allocations!$A$5:$K$30,5,0)*$E34,"") ->  | J34: =IF(AND($B34<>"", $E34<>""),VLOOKUP($B34,Allocations!$A$5:$K$30,6,0)*$E34,"") ->  | K34: =IF(AND($B34<>"", $E34<>""),VLOOKUP($B34,Allocations!$A$5:$K$30,7,0)*$E34,"") ->  | L34: =IF(AND($B34<>"", $E34<>""),VLOOKUP($B34,Allocations!$A$5:$K$30,8,0)*$E34,"") -> 
A35: 401k $10,800 | B35: W | E35: 0 | G35: =IF(AND($B35<>"", $E35<>""),VLOOKUP($B35,Allocations!$A$5:$K$30,3,0)*$E35,"") -> 0 | H35: =IF(AND($B35<>"", $E35<>""),VLOOKUP($B35,Allocations!$A$5:$K$30,4,0)*$E35,"") -> 0 | I35: =IF(AND($B35<>"", $E35<>""),VLOOKUP($B35,Allocations!$A$5:$K$30,5,0)*$E35,"") -> 0 | J35: =IF(AND($B35<>"", $E35<>""),VLOOKUP($B35,Allocations!$A$5:$K$30,6,0)*$E35,"") -> 0 | K35: =IF(AND($B35<>"", $E35<>""),VLOOKUP($B35,Allocations!$A$5:$K$30,7,0)*$E35,"") -> 0 | L35: =IF(AND($B35<>"", $E35<>""),VLOOKUP($B35,Allocations!$A$5:$K$30,8,0)*$E35,"") -> 0
A36: Total | E36: =+E5+E11+E17+E23+E29+E35 -> 393800.9325 | F36: =SUM(F5:F35) -> 459.3987852 | G36: 0 | H36: 0 | I36: 0 | J36: 0 | K36: 0 | L36: 0
A37: Base Salary Increase | D37: =((E6+E12+E18+E24+E30)-(C6+C12+C18+C24+C30))/(C6+C12+C18+C24+C30) -> 0.05388840061
A38: Salary | C38: =+C6+C12+C18+C24+C30 -> 295686.92 | D38: =(+E38-C38)/C38 -> 0.05388840061 | E38: =+E6+E12+E18+E24+E30 -> 311621.0152
A39: Overtime | C39: =+C7+C13+C19+C25+C31 -> 4424 | D39: =(+E39-C39)/C39 -> 0.3633589512 | E39: =+E7+E13+E19+E25+E31 -> 6031.5
A40: Taxes | C40: =+C8+C14+C20+C26+C32 -> 24008.8736 | D40: =(+E40-C40)/C40 -> 0.01105123132 | E40: =+E8+E14+E20+E26+E32 -> 24274.20122
A41: Bonus | C41: =+C9+C15+C21+C27+C33 -> 12636.802 | D41: =(+E41-C41)/C41 -> 1.424232017 | E41: =+E9+E15+E21+E27+E33 -> 30634.54
A42: Benefits | C42: =+C10+C16+C22+C28+C34 -> 21007.7644 | D42: =(+E42-C42)/C42 -> 0.01103933096 | E42: =+E10+E16+E22+E28+E34 -> 21239.67606

Sheet IT Budget
C1: =$F$3&" INFORMATION SYSTEMS AND TECHNOLOGY BUDGET" -> 2008 INFORMATION SYSTEMS AND TECHNOLOGY BUDGET
D2: Date of Next | E2: Original Budget | F2: Ratified Budget | I2: Actual | M2: +--------------- SMI ---------------+ | Q2: +--------------- IPD ---------------+ | U2: +--------------- SMG ---------------+ | Y2: +------------ SWD/SP ------------+ | AC2: +--------------- SINV ---------------+ | AG2: +--------------- RVR ---------------+
D3: Renewal | E3: 2008 | F3: 2008 | G3: =$F$3-1 -> 2007 | H3: Change | I3: =$F$3 -> 2008 | J3: AA | L3: Allocated | M3: =$F$3 -> 2008 | N3: =M3+1 -> 2009 | O3: =N3+1 -> 2010 | Q3: =$F$3 -> 2008 | R3: =Q3+1 -> 2009 | S3: =R3+1 -> 2010 | U3: =$F$3 -> 2008 | V3: =U3+1 -> 2009 | W3: =V3+1 -> 2010 | Y3: =$F$3 -> 2008 | Z3: =Y3+1 -> 2009 | AA3: =Z3+1 -> 2010 | AC3: =$F$3 -> 2008 | AD3: =AC3+1 -> 2009 | AE3: =AD3+1 -> 2010 | AG3: =$F$3 -> 2008 | AH3: =AG3+1 -> 2009 | AI3: =AH3+1 -> 2010
A5: 70000 | C5: Salaries, Wages, Taxes, Benefits, 401(k) Match | E5: 518221 | F5: =+L5 -> 393800.9325 | G5: =(240000/7)*12 -> 411428.5714 | H5: =IF(F5<>0,IF(G5<>0,(+F5-G5)/G5,"▲"),"") -> -0.04284495578 | J5: A | K5: W | L5: =+Salaries!E36 -> 393800.9325 | M5: =+Salaries!G36 -> 0 | N5: =IF(K5<>"",IF(M5<>"",+M5+(M5*0.05),""),"") -> 0 | O5: =IF(K5<>"",IF(N5<>"",+N5+(N5*0.05),""),"") -> 0 | Q5: =+Salaries!H36 -> 0 | R5: =IF(K5<>"",IF(Q5<>"",+Q5+(Q5*0.05),""),"") -> 0 | S5: =IF($K5<>"",IF(R5<>"",+R5+(R5*0.05),""),"") -> 0 | U5: =+Salaries!I36 -> 0 | V5: =IF($K5<>"",IF($U5<>"",+U5+(U5*0.05),""),"") -> 0 | W5: =IF($K5<>"",IF($V5<>"",+V5+(V5*0.05),""),"") -> 0 | Y5: =+Salaries!J36 -> 0 | Z5: =IF($K5<>"",IF($Y5<>"",+Y5+(Y5*0.05),""),"") -> 0 | AA5: =IF($K5<>"",IF($Z5<>"",+Z5+(Z5*0.05),""),"") -> 0 | AC5: =+Salaries!K36 -> 0 | AD5: =+AC5+(AC5*0.05) -> 0 | AE5: =+AD5+(AD5*0.05) -> 0 | AG5: =+Salaries!L36 -> 0 | AH5: =IF($K5<>"",IF($AG5<>"",+AG5+(AG5*0.05),""),"") -> 0 | AI5: =IF($K5<>"",IF($AH5<>"",+AH5+(AH5*0.05),""),"") -> 0
A6: 70550 | C6: Temporary Help | E6: 27673 | F6: =SUM(L7:L14) -> 68832.32456 | G6: =(10000/7)*12 -> 17142.85714 | H6: =IF(F6<>0,IF(G6<>0,(+F6-G6)/G6,"▲"),"") -> 3.015218933 | M6: =SUM(M7:M14) -> -24559.82674 | N6: =SUM(N7:N14) -> -25787.81808 | O6: =SUM(O7:O14) -> -27077.20898 | Q6: =SUM(Q7:Q14) -> 44419.00084 | R6: =SUM(R7:R14) -> 46639.95089 | S6: =SUM(S7:S14) -> 48971.94843 | U6: =SUM(U7:U14) -> 38383.78578 | V6: =SUM(V7:V14) -> 40302.97507 | W6: =SUM(W7:W14) -> 42318.12383 | Y6: =SUM(Y7:Y14) -> 9799.27996 | Z6: =SUM(Z7:Z14) -> 10289.24396 | AA6: =SUM(AA7:AA14) -> 10803.70616 | AC6: =SUM(AC7:AC14) -> 790.0847129 | AD6: =SUM(AD7:AD14) -> 829.5889485 | AE6: =SUM(AE7:AE14) -> 871.0683959 | AG6: =SUM(AG7:AG14) -> 0 | AH6: =SUM(AH7:AH14) -> 0 | AI6: =SUM(AI7:AI14) -> 0
C7: SMI | K7: K | L7: =+'Manpower Utilization'!F34+'Manpower Utilization'!G34 -> 9700.173259 | M7: =IF($K7<>"",IF($L7<>"",VLOOKUP($K7,Allocations!$A$5:$K$20,3,0)*$L7,""),"") -> 9700.173259 | N7: =IF(K7<>"",IF(M7<>"",+M7+(M7*0.05),""),"") -> 10185.18192 | O7: =IF(K7<>"",IF(N7<>"",+N7+(N7*0.05),""),"") -> 10694.44102 | Q7: =IF($K7<>"",IF($L7<>"",VLOOKUP($K7,Allocations!$A$5:$K$20,4,0)*$L7,""),"") -> 0 | R7: =IF(K7<>"",IF(Q7<>"",+Q7+(Q7*0.05),""),"") -> 0 | S7: 0 | U7: =IF($K7<>"",IF($L7<>"",VLOOKUP($K7,Allocations!$A$5:$K$20,5,0)*$L7,""),"") -> 0 | V7: 0 | W7: 0 | Y7: =IF($K7<>"",IF($L7<>"",VLOOKUP($K7,Allocations!$A$5:$K$20,6,0)*$L7,""),"") -> 0 | Z7: 0 | AA7: 0 | AC7: =IF($K7<>"",IF($L7<>"",VLOOKUP($K7,Allocations!$A$5:$K$20,7,0)*$L7,""),"") -> 0 | AD7: =IF($K7<>"",IF($AC7<>"",+AC7+(AC7*0.05),""),"") -> 0 | AE7: =IF($K7<>"",IF($AD7<>"",+AD7+(AD7*0.05),""),"") -> 0 | AG7: =IF($K7<>"",IF($L7<>"",VLOOKUP($K7,Allocations!$A$5:$K$20,8,0)*$L7,""),"") -> 0 | AH7: 0 | AI7: 0
C8: IPD | K8: L | L8: =+'Manpower Utilization'!H34+'Manpower Utilization'!I34 -> 44419.00084 | M8: =IF($K8<>"",IF($L8<>"",VLOOKUP($K8,Allocations!$A$5:$K$20,3,0)*$L8,""),"") -> 0 | N8: =IF(K8<>"",IF(M8<>"",+M8+(M8*0.05),""),"") -> 0 | O8: =IF(K8<>"",IF(N8<>"",+N8+(N8*0.05),""),"") -> 0 | Q8: =IF($K8<>"",IF($L8<>"",VLOOKUP($K8,Allocations!$A$5:$K$20,4,0)*$L8,""),"") -> 44419.00084 | R8: =IF(K8<>"",IF(Q8<>"",+Q8+(Q8*0.05),""),"") -> 46639.95089 | S8: 48971.94843 | U8: =IF($K8<>"",IF($L8<>"",VLOOKUP($K8,Allocations!$A$5:$K$20,5,0)*$L8,""),"") -> 0 | V8: 0 | W8: 0 | Y8: =IF($K8<>"",IF($L8<>"",VLOOKUP($K8,Allocations!$A$5:$K$20,6,0)*$L8,""),"") -> 0 | Z8: 0 | AA8: 0 | AC8: =IF($K8<>"",IF($L8<>"",VLOOKUP($K8,Allocations!$A$5:$K$20,7,0)*$L8,""),"") -> 0 | AD8: 0 | AE8: 0 | AG8: =IF($K8<>"",IF($L8<>"",VLOOKUP($K8,Allocations!$A$5:$K$20,8,0)*$L8,""),"") -> 0 | AH8: 0 | AI8: 0
C9: SMG | K9: M | L9: =+'Manpower Utilization'!J34+'Manpower Utilization'!K34 -> 38383.78578 | M9: =IF($K9<>"",IF($L9<>"",VLOOKUP($K9,Allocations!$A$5:$K$20,3,0)*$L9,""),"") -> 0 | N9: =IF(K9<>"",IF(M9<>"",+M9+(M9*0.05),""),"") -> 0 | O9: =IF(K9<>"",IF(N9<>"",+N9+(N9*0.05),""),"") -> 0 | Q9: =IF($K9<>"",IF($L9<>"",VLOOKUP($K9,Allocations!$A$5:$K$20,4,0)*$L9,""),"") -> 0 | R9: =IF(K9<>"",IF(Q9<>"",+Q9+(Q9*0.05),""),"") -> 0 | S9: 0 | U9: =IF($K9<>"",IF($L9<>"",VLOOKUP($K9,Allocations!$A$5:$K$20,5,0)*$L9,""),"") -> 38383.78578 | V9: 40302.97507 | W9: 42318.12383 | Y9: =IF($K9<>"",IF($L9<>"",VLOOKUP($K9,Allocations!$A$5:$K$20,6,0)*$L9,""),"") -> 0 | Z9: 0 | AA9: 0 | AC9: =IF($K9<>"",IF($L9<>"",VLOOKUP($K9,Allocations!$A$5:$K$20,7,0)*$L9,""),"") -> 0 | AD9: 0 | AE9: 0 | AG9: =IF($K9<>"",IF($L9<>"",VLOOKUP($K9,Allocations!$A$5:$K$20,8,0)*$L9,""),"") -> 0 | AH9: 0 | AI9: 0
C10: SP/SWD | K10: N | L10: =+'Manpower Utilization'!L34+'Manpower Utilization'!M34 -> 9799.27996 | M10: =IF($K10<>"",IF($L10<>"",VLOOKUP($K10,Allocations!$A$5:$K$20,3,0)*$L10,""),"") -> 0 | N10: 0 | O10: 0 | Q10: =IF($K10<>"",IF($L10<>"",VLOOKUP($K10,Allocations!$A$5:$K$20,4,0)*$L10,""),"") -> 0 | R10: 0 | S10: 0 | U10: =IF($K10<>"",IF($L10<>"",VLOOKUP($K10,Allocations!$A$5:$K$20,5,0)*$L10,""),"") -> 0 | V10: 0 | W10: 0 | Y10: =IF($K10<>"",IF($L10<>"",VLOOKUP($K10,Allocations!$A$5:$K$20,6,0)*$L10,""),"") -> 9799.27996 | Z10: 10289.24396 | AA10: 10803.70616 | AC10: =IF($K10<>"",IF($L10<>"",VLOOKUP($K10,Allocations!$A$5:$K$20,7,0)*$L10,""),"") -> 0 | AD10: 0 | AE10: 0 | AG10: =IF($K10<>"",IF($L10<>"",VLOOKUP($K10,Allocations!$A$5:$K$20,8,0)*$L10,""),"") -> 0 | AH10: 0 | AI10: 0
C11: Sinv | K11: O | L11: =+'Manpower Utilization'!N34+'Manpower Utilization'!O34 -> 790.0847129 | M11: =IF($K11<>"",IF($L11<>"",VLOOKUP($K11,Allocations!$A$5:$K$20,3,0)*$L11,""),"") -> 0 | N11: 0 | O11: 0 | Q11: =IF($K11<>"",IF($L11<>"",VLOOKUP($K11,Allocations!$A$5:$K$20,4,0)*$L11,""),"") -> 0 | R11: 0 | S11: 0 | U11: =IF($K11<>"",IF($L11<>"",VLOOKUP($K11,Allocations!$A$5:$K$20,5,0)*$L11,""),"") -> 0 | V11: 0 | W11: 0 | Y11: =IF($K11<>"",IF($L11<>"",VLOOKUP($K11,Allocations!$A$5:$K$20,6,0)*$L11,""),"") -> 0 | Z11: 0 | AA11: 0 | AC11: =IF($K11<>"",IF($L11<>"",VLOOKUP($K11,Allocations!$A$5:$K$20,7,0)*$L11,""),"") -> 790.0847129 | AD11: 829.5889485 | AE11: 871.0683959 | AG11: =IF($K11<>"",IF($L11<>"",VLOOKUP($K11,Allocations!$A$5:$K$20,8,0)*$L11,""),"") -> 0 | AH11: 0 | AI11: 0
C12: RVR | K12: P | L12: =+'Manpower Utilization'!P34+'Manpower Utilization'!Q34 -> 0 | M12: =IF($K12<>"",IF($L12<>"",VLOOKUP($K12,Allocations!$A$5:$K$20,3,0)*$L12,""),"") -> 0 | N12: =IF(K12<>"",IF(M12<>"",+M12+(M12*0.05),""),"") -> 0 | O12: =IF(K12<>"",IF(N12<>"",+N12+(N12*0.05),""),"") -> 0 | Q12: =IF($K12<>"",IF($L12<>"",VLOOKUP($K12,Allocations!$A$5:$K$20,4,0)*$L12,""),"") -> 0 | R12: =IF(K12<>"",IF(Q12<>"",+Q12+(Q12*0.05),""),"") -> 0 | S12: 0 | U12: =IF($K12<>"",IF($L12<>"",VLOOKUP($K12,Allocations!$A$5:$K$20,5,0)*$L12,""),"") -> 0 | V12: 0 | W12: 0 | Y12: =IF($K12<>"",IF($L12<>"",VLOOKUP($K12,Allocations!$A$5:$K$20,6,0)*$L12,""),"") -> 0 | Z12: 0 | AA12: 0 | AC12: =IF($K12<>"",IF($L12<>"",VLOOKUP($K12,Allocations!$A$5:$K$20,7,0)*$L12,""),"") -> 0 | AD12: 0 | AE12: 0 | AG12: =IF($K12<>"",IF($L12<>"",VLOOKUP($K12,Allocations!$A$5:$K$20,8,0)*$L12,""),"") -> 0 | AH12: 0 | AI12: 0
C13: Ratification Adjustment | K13: K | L13: -34260 | M13: =IF($K13<>"",IF($L13<>"",VLOOKUP($K13,Allocations!$A$5:$K$20,3,0)*$L13,""),"") -> -34260 | N13: =IF(K13<>"",IF(M13<>"",+M13+(M13*0.05),""),"") -> -35973 | O13: =IF(K13<>"",IF(N13<>"",+N13+(N13*0.05),""),"") -> -37771.65 | Q13: =IF($K13<>"",IF($L13<>"",VLOOKUP($K13,Allocations!$A$5:$K$20,4,0)*$L13,""),"") -> 0 | R13: =IF(K13<>"",IF(Q13<>"",+Q13+(Q13*0.05),""),"") -> 0 | S13: 0 | U13: =IF($K13<>"",IF($L13<>"",VLOOKUP($K13,Allocations!$A$5:$K$20,5,0)*$L13,""),"") -> 0 | V13: 0 | W13: 0 | Y13: =IF($K13<>"",IF($L13<>"",VLOOKUP($K13,Allocations!$A$5:$K$20,6,0)*$L13,""),"") -> 0 | Z13: 0 | AA13: 0 | AC13: =IF($K13<>"",IF($L13<>"",VLOOKUP($K13,Allocations!$A$5:$K$20,7,0)*$L13,""),"") -> 0 | AD13: 0 | AE13: 0 | AG13: =IF($K13<>"",IF($L13<>"",VLOOKUP($K13,Allocations!$A$5:$K$20,8,0)*$L13,""),"") -> 0 | AH13: 0 | AI13: 0
M14: =IF($K14<>"",IF($L14<>"",VLOOKUP($K14,Allocations!$A$5:$K$20,3,0)*$L14,""),"") ->  | Q14: =IF($K14<>"",IF($L14<>"",VLOOKUP($K14,Allocations!$A$5:$K$20,4,0)*$L14,""),"") ->  | U14: =IF($K14<>"",IF($L14<>"",VLOOKUP($K14,Allocations!$A$5:$K$20,5,0)*$L14,""),"") ->  | Y14: =IF($K14<>"",IF($L14<>"",VLOOKUP($K14,Allocations!$A$5:$K$20,6,0)*$L14,""),"") ->  | AC14: =IF($K14<>"",IF($L14<>"",VLOOKUP($K14,Allocations!$A$5:$K$20,7,0)*$L14,""),"") ->  | AG14: =IF($K14<>"",IF($L14<>"",VLOOKUP($K14,Allocations!$A$5:$K$20,8,0)*$L14,""),"") -> 
A15: 70600 | C15: Employee Training & Development | E15: 95680 | F15: =SUM(L16:L29) -> 83177.78947 | G15: =(1200/7)*12 -> 2057.142857 | H15: =IF(F15<>0,IF(G15<>0,(+F15-G15)/G15,"▲"),"") -> 39.43364766 | M15: =SUM(M16:M29) -> 6090.513932 | N15: =SUM(N16:N29) -> 6395.039628 | O15: =SUM(O16:O29) -> 6714.79161 | Q15: =SUM(Q16:Q29) -> 32546.87307 | R15: =SUM(R16:R29) -> 34174.21672 | S15: =SUM(S16:S29) -> 35882.92755 | U15: =SUM(U16:U29) -> 40541.74407 | V15: =SUM(V16:V29) -> 42568.83127 | W15: =SUM(W16:W29) -> 44697.27283 | Y15: =SUM(Y16:Y29) -> 3621.599587 | Z15: =SUM(Z16:Z29) -> 3802.679567 | AA15: =SUM(AA16:AA29) -> 3992.813545 | AC15: =SUM(AC16:AC29) -> 377.0588235 | AD15: =SUM(AD16:AD29) -> 395.9117647 | AE15: =SUM(AE16:AE29) -> 415.7073529 | AG15: =SUM(AG16:AG29) -> 0 | AH15: =SUM(AH16:AH29) -> 0 | AI15: =SUM(AI16:AI29) -> 0
C16: Director of IT | H16: =IF(F16<>0,IF(G16<>0,(+F16-G16)/G16,""),"") ->  | K16: B | L16: =SUM('IT Training'!E6:E13) -> 13640 | M16: =IF($K16<>"",IF($L16<>"",VLOOKUP($K16,Allocations!$A$5:$K$20,3,0)*$L16,""),"") -> 1504.411765 | N16: 1579.632353 | O16: 1658.613971 | Q16: =IF($K16<>"",IF($L16<>"",VLOOKUP($K16,Allocations!$A$5:$K$20,4,0)*$L16,""),"") -> 5616.470588 | R16: 5897.294118 | S16: 6192.158824 | U16: =IF($K16<>"",IF($L16<>"",VLOOKUP($K16,Allocations!$A$5:$K$20,5,0)*$L16,""),"") -> 5516.176471 | V16: 5791.985294 | W16: 6081.584559 | Y16: =IF($K16<>"",IF($L16<>"",VLOOKUP($K16,Allocations!$A$5:$K$20,6,0)*$L16,""),"") -> 902.6470588 | Z16: 947.7794118 | AA16: 995.1683824 | AC16: =IF($K16<>"",IF($L16<>"",VLOOKUP($K16,Allocations!$A$5:$K$20,7,0)*$L16,""),"") -> 100.2941176 | AD16: 105.3088235 | AE16: 110.5742647 | AG16: =IF($K16<>"",IF($L16<>"",VLOOKUP($K16,Allocations!$A$5:$K$20,8,0)*$L16,""),"") -> 0 | AH16: 0 | AI16: 0
C17: Database Administrator | K17: B | L17: =SUM('IT Training'!E15:E22) -> 17065 | M17: =IF($K17<>"",IF($L17<>"",VLOOKUP($K17,Allocations!$A$5:$K$20,3,0)*$L17,""),"") -> 1882.169118 | N17: 1976.277574 | O17: 2075.091452 | Q17: =IF($K17<>"",IF($L17<>"",VLOOKUP($K17,Allocations!$A$5:$K$20,4,0)*$L17,""),"") -> 7026.764706 | R17: 7378.102941 | S17: 7747.008088 | U17: =IF($K17<>"",IF($L17<>"",VLOOKUP($K17,Allocations!$A$5:$K$20,5,0)*$L17,""),"") -> 6901.286765 | V17: 7246.351103 | W17: 7608.668658 | Y17: =IF($K17<>"",IF($L17<>"",VLOOKUP($K17,Allocations!$A$5:$K$20,6,0)*$L17,""),"") -> 1129.301471 | Z17: 1185.766544 | AA17: 1245.054871 | AC17: =IF($K17<>"",IF($L17<>"",VLOOKUP($K17,Allocations!$A$5:$K$20,7,0)*$L17,""),"") -> 125.4779412 | AD17: 131.7518382 | AE17: 138.3394301 | AG17: =IF($K17<>"",IF($L17<>"",VLOOKUP($K17,Allocations!$A$5:$K$20,8,0)*$L17,""),"") -> 0 | AH17: 0 | AI17: 0
C18: Network Administrator | K18: B | L18: =SUM('IT Training'!E23:E25) -> 0 | M18: =IF($K18<>"",IF($L18<>"",VLOOKUP($K18,Allocations!$A$5:$K$20,3,0)*$L18,""),"") -> 0 | N18: 0 | O18: 0 | Q18: =IF($K18<>"",IF($L18<>"",VLOOKUP($K18,Allocations!$A$5:$K$20,4,0)*$L18,""),"") -> 0 | R18: 0 | S18: 0 | U18: =IF($K18<>"",IF($L18<>"",VLOOKUP($K18,Allocations!$A$5:$K$20,5,0)*$L18,""),"") -> 0 | V18: 0 | W18: 0 | Y18: =IF($K18<>"",IF($L18<>"",VLOOKUP($K18,Allocations!$A$5:$K$20,6,0)*$L18,""),"") -> 0 | Z18: 0 | AA18: 0 | AC18: =IF($K18<>"",IF($L18<>"",VLOOKUP($K18,Allocations!$A$5:$K$20,7,0)*$L18,""),"") -> 0 | AD18: 0 | AE18: 0 | AG18: =IF($K18<>"",IF($L18<>"",VLOOKUP($K18,Allocations!$A$5:$K$20,8,0)*$L18,""),"") -> 0 | AH18: 0 | AI18: 0
C19: IT Administrative Assistant | K19: B | L19: =SUM('IT Training'!E26:E29) -> 0 | M19: =IF($K19<>"",IF($L19<>"",VLOOKUP($K19,Allocations!$A$5:$K$20,3,0)*$L19,""),"") -> 0 | N19: 0 | O19: 0 | Q19: =IF($K19<>"",IF($L19<>"",VLOOKUP($K19,Allocations!$A$5:$K$20,4,0)*$L19,""),"") -> 0 | R19: 0 | S19: 0 | U19: =IF($K19<>"",IF($L19<>"",VLOOKUP($K19,Allocations!$A$5:$K$20,5,0)*$L19,""),"") -> 0 | V19: 0 | W19: 0 | Y19: =IF($K19<>"",IF($L19<>"",VLOOKUP($K19,Allocations!$A$5:$K$20,6,0)*$L19,""),"") -> 0 | Z19: 0 | AA19: 0 | AC19: =IF($K19<>"",IF($L19<>"",VLOOKUP($K19,Allocations!$A$5:$K$20,7,0)*$L19,""),"") -> 0 | AD19: 0 | AE19: 0 | AG19: =IF($K19<>"",IF($L19<>"",VLOOKUP($K19,Allocations!$A$5:$K$20,8,0)*$L19,""),"") -> 0 | AH19: 0 | AI19: 0
C20: Helpdesk | K20: B | L20: =SUM('IT Training'!E30:E36) -> 3895 | M20: =IF($K20<>"",IF($L20<>"",VLOOKUP($K20,Allocations!$A$5:$K$20,3,0)*$L20,""),"") -> 429.5955882 | N20: 451.0753676 | O20: 473.629136 | Q20: =IF($K20<>"",IF($L20<>"",VLOOKUP($K20,Allocations!$A$5:$K$20,4,0)*$L20,""),"") -> 1603.823529 | R20: 1684.014706 | S20: 1768.215441 | U20: =IF($K20<>"",IF($L20<>"",VLOOKUP($K20,Allocations!$A$5:$K$20,5,0)*$L20,""),"") -> 1575.183824 | V20: 1653.943015 | W20: 1736.640165 | Y20: =IF($K20<>"",IF($L20<>"",VLOOKUP($K20,Allocations!$A$5:$K$20,6,0)*$L20,""),"") -> 257.7573529 | Z20: 270.6452206 | AA20: 284.1774816 | AC20: =IF($K20<>"",IF($L20<>"",VLOOKUP($K20,Allocations!$A$5:$K$20,7,0)*$L20,""),"") -> 28.63970588 | AD20: 30.07169118 | AE20: 31.57527574 | AG20: =IF($K20<>"",IF($L20<>"",VLOOKUP($K20,Allocations!$A$5:$K$20,8,0)*$L20,""),"") -> 0 | AH20: 0 | AI20: 0
C21: Professional Conferences | D21: 2008-02-08 | K21: K | L21: 2200 | M21: =IF($K21<>"",IF($L21<>"",VLOOKUP($K21,Allocations!$A$5:$K$20,3,0)*$L21,""),"") -> 2200 | N21: 2310 | O21: 2425.5 | Q21: =IF($K21<>"",IF($L21<>"",VLOOKUP($K21,Allocations!$A$5:$K$20,4,0)*$L21,""),"") -> 0 | R21: 0 | S21: 0 | U21: =IF($K21<>"",IF($L21<>"",VLOOKUP($K21,Allocations!$A$5:$K$20,5,0)*$L21,""),"") -> 0 | V21: 0 | W21: 0 | Y21: =IF($K21<>"",IF($L21<>"",VLOOKUP($K21,Allocations!$A$5:$K$20,6,0)*$L21,""),"") -> 0 | Z21: 0 | AA21: 0 | AC21: =IF($K21<>"",IF($L21<>"",VLOOKUP($K21,Allocations!$A$5:$K$20,7,0)*$L21,""),"") -> 0 | AD21: 0 | AE21: 0 | AG21: =IF($K21<>"",IF($L21<>"",VLOOKUP($K21,Allocations!$A$5:$K$20,8,0)*$L21,""),"") -> 0 | AH21: 0 | AI21: 0
C22: Employee Training Program | D22: 2007-10-01 | K22: B | L22: =+'Employee Training Program'!E36 -> 16680 | M22: =IF($K22<>"",IF($L22<>"",VLOOKUP($K22,Allocations!$A$5:$K$20,3,0)*$L22,""),"") -> 1839.705882 | N22: 1931.691176 | O22: 2028.275735 | Q22: =IF($K22<>"",IF($L22<>"",VLOOKUP($K22,Allocations!$A$5:$K$20,4,0)*$L22,""),"") -> 6868.235294 | R22: 7211.647059 | S22: 7572.229412 | U22: =IF($K22<>"",IF($L22<>"",VLOOKUP($K22,Allocations!$A$5:$K$20,5,0)*$L22,""),"") -> 6745.588235 | V22: 7082.867647 | W22: 7437.011029 | Y22: =IF($K22<>"",IF($L22<>"",VLOOKUP($K22,Allocations!$A$5:$K$20,6,0)*$L22,""),"") -> 1103.823529 | Z22: 1159.014706 | AA22: 1216.965441 | AC22: =IF($K22<>"",IF($L22<>"",VLOOKUP($K22,Allocations!$A$5:$K$20,7,0)*$L22,""),"") -> 122.6470588 | AD22: 128.7794118 | AE22: 135.2183824 | AG22: =IF($K22<>"",IF($L22<>"",VLOOKUP($K22,Allocations!$A$5:$K$20,8,0)*$L22,""),"") -> 0 | AH22: 0 | AI22: 0
C23: Great Plains Training | M23: =IF($K23<>"",IF($L23<>"",VLOOKUP($K23,Allocations!$A$5:$K$20,3,0)*$L23,""),"") ->  | Q23: =IF($K23<>"",IF($L23<>"",VLOOKUP($K23,Allocations!$A$5:$K$20,4,0)*$L23,""),"") ->  | U23: =IF($K23<>"",IF($L23<>"",VLOOKUP($K23,Allocations!$A$5:$K$20,5,0)*$L23,""),"") ->  | Y23: =IF($K23<>"",IF($L23<>"",VLOOKUP($K23,Allocations!$A$5:$K$20,6,0)*$L23,""),"") ->  | AC23: =IF($K23<>"",IF($L23<>"",VLOOKUP($K23,Allocations!$A$5:$K$20,7,0)*$L23,""),"") ->  | AG23: =IF($K23<>"",IF($L23<>"",VLOOKUP($K23,Allocations!$A$5:$K$20,8,0)*$L23,""),"") -> 
C24: SMI | K24: K | L24: =+'Great Plains Training'!G36 -> 10652.63158 | M24: =IF($K24<>"",IF($L24<>"",VLOOKUP($K24,Allocations!$A$5:$K$20,3,0)*$L24,""),"") -> 10652.63158 | N24: 11185.26316 | O24: 11744.52632 | Q24: =IF($K24<>"",IF($L24<>"",VLOOKUP($K24,Allocations!$A$5:$K$20,4,0)*$L24,""),"") -> 0 | R24: 0 | S24: 0 | U24: =IF($K24<>"",IF($L24<>"",VLOOKUP($K24,Allocations!$A$5:$K$20,5,0)*$L24,""),"") -> 0 | V24: 0 | W24: 0 | Y24: =IF($K24<>"",IF($L24<>"",VLOOKUP($K24,Allocations!$A$5:$K$20,6,0)*$L24,""),"") -> 0 | Z24: 0 | AA24: 0 | AC24: =IF($K24<>"",IF($L24<>"",VLOOKUP($K24,Allocations!$A$5:$K$20,7,0)*$L24,""),"") -> 0 | AD24: 0 | AE24: 0 | AG24: =IF($K24<>"",IF($L24<>"",VLOOKUP($K24,Allocations!$A$5:$K$20,8,0)*$L24,""),"") -> 0 | AH24: 0 | AI24: 0
C25: IPD | K25: L | L25: =+'Great Plains Training'!H36 -> 11431.57895 | M25: =IF($K25<>"",IF($L25<>"",VLOOKUP($K25,Allocations!$A$5:$K$20,3,0)*$L25,""),"") -> 0 | N25: 0 | O25: 0 | Q25: =IF($K25<>"",IF($L25<>"",VLOOKUP($K25,Allocations!$A$5:$K$20,4,0)*$L25,""),"") -> 11431.57895 | R25: 12003.15789 | S25: 12603.31579 | U25: =IF($K25<>"",IF($L25<>"",VLOOKUP($K25,Allocations!$A$5:$K$20,5,0)*$L25,""),"") -> 0 | V25: 0 | W25: 0 | Y25: =IF($K25<>"",IF($L25<>"",VLOOKUP($K25,Allocations!$A$5:$K$20,6,0)*$L25,""),"") -> 0 | Z25: 0 | AA25: 0 | AC25: =IF($K25<>"",IF($L25<>"",VLOOKUP($K25,Allocations!$A$5:$K$20,7,0)*$L25,""),"") -> 0 | AD25: 0 | AE25: 0 | AG25: =IF($K25<>"",IF($L25<>"",VLOOKUP($K25,Allocations!$A$5:$K$20,8,0)*$L25,""),"") -> 0 | AH25: 0 | AI25: 0
C26: SMG | K26: M | L26: =+'Great Plains Training'!I36 -> 19803.50877 | M26: =IF($K26<>"",IF($L26<>"",VLOOKUP($K26,Allocations!$A$5:$K$20,3,0)*$L26,""),"") -> 0 | N26: 0 | O26: 0 | Q26: =IF($K26<>"",IF($L26<>"",VLOOKUP($K26,Allocations!$A$5:$K$20,4,0)*$L26,""),"") -> 0 | R26: 0 | S26: 0 | U26: =IF($K26<>"",IF($L26<>"",VLOOKUP($K26,Allocations!$A$5:$K$20,5,0)*$L26,""),"") -> 19803.50877 | V26: 20793.68421 | W26: 21833.36842 | Y26: =IF($K26<>"",IF($L26<>"",VLOOKUP($K26,Allocations!$A$5:$K$20,6,0)*$L26,""),"") -> 0 | Z26: 0 | AA26: 0 | AC26: =IF($K26<>"",IF($L26<>"",VLOOKUP($K26,Allocations!$A$5:$K$20,7,0)*$L26,""),"") -> 0 | AD26: 0 | AE26: 0 | AG26: =IF($K26<>"",IF($L26<>"",VLOOKUP($K26,Allocations!$A$5:$K$20,8,0)*$L26,""),"") -> 0 | AH26: 0 | AI26: 0
C27: SP/SWD | K27: N | L27: =+'Great Plains Training'!J36 -> 228.0701754 | M27: =IF($K27<>"",IF($L27<>"",VLOOKUP($K27,Allocations!$A$5:$K$20,3,0)*$L27,""),"") -> 0 | N27: 0 | O27: 0 | Q27: =IF($K27<>"",IF($L27<>"",VLOOKUP($K27,Allocations!$A$5:$K$20,4,0)*$L27,""),"") -> 0 | R27: 0 | S27: 0 | U27: =IF($K27<>"",IF($L27<>"",VLOOKUP($K27,Allocations!$A$5:$K$20,5,0)*$L27,""),"") -> 0 | V27: 0 | W27: 0 | Y27: =IF($K27<>"",IF($L27<>"",VLOOKUP($K27,Allocations!$A$5:$K$20,6,0)*$L27,""),"") -> 228.0701754 | Z27: 239.4736842 | AA27: 251.4473684 | AC27: =IF($K27<>"",IF($L27<>"",VLOOKUP($K27,Allocations!$A$5:$K$20,7,0)*$L27,""),"") -> 0 | AD27: 0 | AE27: 0 | AG27: =IF($K27<>"",IF($L27<>"",VLOOKUP($K27,Allocations!$A$5:$K$20,8,0)*$L27,""),"") -> 0 | AH27: 0 | AI27: 0
C28: Ratification Adjustment | K28: K | L28: -12418 | M28: =IF($K28<>"",IF($L28<>"",VLOOKUP($K28,Allocations!$A$5:$K$20,3,0)*$L28,""),"") -> -12418 | N28: =IF(K28<>"",IF(M28<>"",+M28+(M28*0.05),""),"") -> -13038.9 | O28: =IF(K28<>"",IF(N28<>"",+N28+(N28*0.05),""),"") -> -13690.845 | Q28: =IF($K28<>"",IF($L28<>"",VLOOKUP($K28,Allocations!$A$5:$K$20,4,0)*$L28,""),"") -> 0 | R28: =IF(K28<>"",IF(Q28<>"",+Q28+(Q28*0.05),""),"") -> 0 | S28: =IF($K28<>"",IF(R28<>"",+R28+(R28*0.05),""),"") -> 0 | U28: =IF($K28<>"",IF($L28<>"",VLOOKUP($K28,Allocations!$A$5:$K$20,5,0)*$L28,""),"") -> 0 | V28: =IF($K28<>"",IF($U28<>"",+U28+(U28*0.05),""),"") -> 0 | W28: =IF($K28<>"",IF($V28<>"",+V28+(V28*0.05),""),"") -> 0 | Y28: =IF($K28<>"",IF($L28<>"",VLOOKUP($K28,Allocations!$A$5:$K$20,6,0)*$L28,""),"") -> 0 | Z28: =IF($K28<>"",IF($Y28<>"",+Y28+(Y28*0.05),""),"") -> 0 | AA28: =IF($K28<>"",IF($Z28<>"",+Z28+(Z28*0.05),""),"") -> 0 | AC28: =IF($K28<>"",IF($L28<>"",VLOOKUP($K28,Allocations!$A$5:$K$20,7,0)*$L28,""),"") -> 0 | AD28: =IF($K28<>"",IF($AC28<>"",+AC28+(AC28*0.05),""),"") -> 0 | AE28: =IF($K28<>"",IF($AD28<>"",+AD28+(AD28*0.05),""),"") -> 0 | AG28: =IF($K28<>"",IF($L28<>"",VLOOKUP($K28,Allocations!$A$5:$K$20,8,0)*$L28,""),"") -> 0
H29: =IF(F29<>0,IF(G29<>0,(+F29-G29)/G29,""),"") ->  | M29: =IF($K29<>"",IF($L29<>"",VLOOKUP($K29,Allocations!$A$5:$K$20,3,0)*$L29,""),"") ->  | Q29: =IF($K29<>"",IF($L29<>"",VLOOKUP($K29,Allocations!$A$5:$K$20,4,0)*$L29,""),"") ->  | U29: =IF($K29<>"",IF($L29<>"",VLOOKUP($K29,Allocations!$A$5:$K$20,5,0)*$L29,""),"") ->  | Y29: =IF($K29<>"",IF($L29<>"",VLOOKUP($K29,Allocations!$A$5:$K$20,6,0)*$L29,""),"") ->  | AC29: =IF($K29<>"",IF($L29<>"",VLOOKUP($K29,Allocations!$A$5:$K$20,7,0)*$L29,""),"") ->  | AG29: =IF($K29<>"",IF($L29<>"",VLOOKUP($K29,Allocations!$A$5:$K$20,8,0)*$L29,""),"") -> 
A30: 70700 | C30: Automobile / Transportation Expense | E30: 1500 | F30: =SUM(L30:L33) -> 1000 | G30: =(1000/7)*12 -> 1714.285714 | H30: =IF(F30<>0,IF(G30<>0,(+F30-G30)/G30,"▲"),"") -> -0.4166666667 | M30: =SUM(M31:M33) -> 1000 | N30: =SUM(N31:N33) -> 1575 | O30: =SUM(O31:O33) -> 1653.75 | Q30: =SUM(Q31:Q33) -> 0 | R30: =SUM(R31:R33) -> 0 | S30: =SUM(S31:S33) -> 0 | U30: =SUM(U31:U33) -> 0 | V30: =SUM(V31:V33) -> 0 | W30: =SUM(W31:W33) -> 0 | Y30: =SUM(Y31:Y33) -> 0 | Z30: =SUM(Z31:Z33) -> 0 | AA30: =SUM(AA31:AA33) -> 0 | AC30: =SUM(AC31:AC33) -> 0 | AD30: =SUM(AD31:AD33) -> 0 | AE30: =SUM(AE31:AE33) -> 0 | AG30: =SUM(AG31:AG33) -> 0 | AH30: =SUM(AH31:AH33) -> 0 | AI30: =SUM(AI31:AI33) -> 0
C31: Transportation | K31: K | L31: 1500 | M31: =IF($K31<>"",IF($L31<>"",VLOOKUP($K31,Allocations!$A$5:$K$20,3,0)*$L31,""),"") -> 1500 | N31: 1575 | O31: 1653.75 | Q31: =IF($K31<>"",IF($L31<>"",VLOOKUP($K31,Allocations!$A$5:$K$20,4,0)*$L31,""),"") -> 0 | R31: 0 | S31: 0 | U31: =IF($K31<>"",IF($L31<>"",VLOOKUP($K31,Allocations!$A$5:$K$20,5,0)*$L31,""),"") -> 0 | V31: 0 | W31: 0 | Y31: =IF($K31<>"",IF($L31<>"",VLOOKUP($K31,Allocations!$A$5:$K$20,6,0)*$L31,""),"") -> 0 | Z31: 0 | AA31: 0 | AC31: =IF($K31<>"",IF($L31<>"",VLOOKUP($K31,Allocations!$A$5:$K$20,7,0)*$L31,""),"") -> 0 | AD31: 0 | AE31: 0 | AG31: =IF($K31<>"",IF($L31<>"",VLOOKUP($K31,Allocations!$A$5:$K$20,8,0)*$L31,""),"") -> 0 | AH31: 0 | AI31: 0
C32: Ratification Adjustment | K32: K | L32: -500 | M32: =IF($K32<>"",IF($L32<>"",VLOOKUP($K32,Allocations!$A$5:$K$20,3,0)*$L32,""),"") -> -500 | Q32: =IF($K32<>"",IF($L32<>"",VLOOKUP($K32,Allocations!$A$5:$K$20,4,0)*$L32,""),"") -> 0 | R32: =IF(K32<>"",IF(Q32<>"",+Q32+(Q32*0.05),""),"") -> 0 | S32: =IF($K32<>"",IF(R32<>"",+R32+(R32*0.05),""),"") -> 0 | U32: =IF($K32<>"",IF($L32<>"",VLOOKUP($K32,Allocations!$A$5:$K$20,5,0)*$L32,""),"") -> 0 | V32: =IF($K32<>"",IF($U32<>"",+U32+(U32*0.05),""),"") -> 0 | W32: =IF($K32<>"",IF($V32<>"",+V32+(V32*0.05),""),"") -> 0 | Y32: =IF($K32<>"",IF($L32<>"",VLOOKUP($K32,Allocations!$A$5:$K$20,6,0)*$L32,""),"") -> 0 | Z32: =IF($K32<>"",IF($Y32<>"",+Y32+(Y32*0.05),""),"") -> 0 | AA32: =IF($K32<>"",IF($Z32<>"",+Z32+(Z32*0.05),""),"") -> 0 | AC32: =IF($K32<>"",IF($L32<>"",VLOOKUP($K32,Allocations!$A$5:$K$20,7,0)*$L32,""),"") -> 0 | AD32: =IF($K32<>"",IF($AC32<>"",+AC32+(AC32*0.05),""),"") -> 0 | AE32: =IF($K32<>"",IF($AD32<>"",+AD32+(AD32*0.05),""),"") -> 0 | AG32: =IF($K32<>"",IF($L32<>"",VLOOKUP($K32,Allocations!$A$5:$K$20,8,0)*$L32,""),"") -> 0 | AH32: =IF($K32<>"",IF($AG32<>"",+AG32+(AG32*0.05),""),"") -> 0 | AI32: =IF($K32<>"",IF($AH32<>"",+AH32+(AH32*0.05),""),"") -> 0
H33: =IF(F33<>0,IF(G33<>0,(+F33-G33)/G33,""),"") ->  | M33: =IF($K33<>"",IF($L33<>"",VLOOKUP($K33,Allocations!$A$5:$K$20,3,0)*$L33,""),"") ->  | Q33: =IF($K33<>"",IF($L33<>"",VLOOKUP($K33,Allocations!$A$5:$K$20,4,0)*$L33,""),"") ->  | U33: =IF($K33<>"",IF($L33<>"",VLOOKUP($K33,Allocations!$A$5:$K$20,5,0)*$L33,""),"") ->  | Y33: =IF($K33<>"",IF($L33<>"",VLOOKUP($K33,Allocations!$A$5:$K$20,6,0)*$L33,""),"") ->  | AC33: =IF($K33<>"",IF($L33<>"",VLOOKUP($K33,Allocations!$A$5:$K$20,7,0)*$L33,""),"") ->  | AG33: =IF($K33<>"",IF($L33<>"",VLOOKUP($K33,Allocations!$A$5:$K$20,8,0)*$L33,""),"") -> 
A34: 70750 | C34: Travel-Airfare & Lodging | E34: 4000 | F34: =SUM(L34:L37) -> 2000 | G34: =(2000/7)*12 -> 3428.571429 | H34: =IF(F34<>0,IF(G34<>0,(+F34-G34)/G34,"▲"),"") -> -0.4166666667 | M34: =SUM(M35:M37) -> 2000 | N34: =SUM(N35:N37) -> 3150 | O34: =SUM(O35:O37) -> 3307.5 | Q34: =SUM(Q35:Q37) -> 0 | R34: =SUM(R35:R37) -> 0 | S34: =SUM(S35:S37) -> 0 | U34: =SUM(U35:U37) -> 0 | V34: =SUM(V35:V37) -> 0 | W34: =SUM(W35:W37) -> 0 | Y34: =SUM(Y35:Y37) -> 0 | Z34: =SUM(Z35:Z37) -> 0 | AA34: =SUM(AA35:AA37) -> 0 | AC34: =SUM(AC35:AC37) -> 0 | AD34: =SUM(AD35:AD37) -> 0 | AE34: =SUM(AE35:AE37) -> 0 | AG34: =SUM(AG35:AG37) -> 0 | AH34: =SUM(AH35:AH37) -> 0 | AI34: =SUM(AI35:AI37) -> 0
C35: Airfare & Hotel | D35: 2008-02-08 | K35: K | L35: 3000 | M35: =IF($K35<>"",IF($L35<>"",VLOOKUP($K35,Allocations!$A$5:$K$20,3,0)*$L35,""),"") -> 3000 | N35: 3150 | O35: 3307.5 | Q35: =IF($K35<>"",IF($L35<>"",VLOOKUP($K35,Allocations!$A$5:$K$20,4,0)*$L35,""),"") -> 0 | R35: 0 | S35: 0 | U35: =IF($K35<>"",IF($L35<>"",VLOOKUP($K35,Allocations!$A$5:$K$20,5,0)*$L35,""),"") -> 0 | V35: 0 | W35: 0 | Y35: =IF($K35<>"",IF($L35<>"",VLOOKUP($K35,Allocations!$A$5:$K$20,6,0)*$L35,""),"") -> 0 | Z35: 0 | AA35: 0 | AC35: =IF($K35<>"",IF($L35<>"",VLOOKUP($K35,Allocations!$A$5:$K$20,7,0)*$L35,""),"") -> 0 | AD35: 0 | AE35: 0 | AG35: =IF($K35<>"",IF($L35<>"",VLOOKUP($K35,Allocations!$A$5:$K$20,8,0)*$L35,""),"") -> 0 | AH35: 0 | AI35: 0
C36: Ratification Adjustment | K36: K | L36: -1000 | M36: =IF($K36<>"",IF($L36<>"",VLOOKUP($K36,Allocations!$A$5:$K$20,3,0)*$L36,""),"") -> -1000 | Q36: =IF($K36<>"",IF($L36<>"",VLOOKUP($K36,Allocations!$A$5:$K$20,4,0)*$L36,""),"") -> 0 | R36: =IF(K36<>"",IF(Q36<>"",+Q36+(Q36*0.05),""),"") -> 0 | S36: =IF($K36<>"",IF(R36<>"",+R36+(R36*0.05),""),"") -> 0 | U36: =IF($K36<>"",IF($L36<>"",VLOOKUP($K36,Allocations!$A$5:$K$20,5,0)*$L36,""),"") -> 0 | V36: =IF($K36<>"",IF($U36<>"",+U36+(U36*0.05),""),"") -> 0 | W36: =IF($K36<>"",IF($V36<>"",+V36+(V36*0.05),""),"") -> 0 | Y36: =IF($K36<>"",IF($L36<>"",VLOOKUP($K36,Allocations!$A$5:$K$20,6,0)*$L36,""),"") -> 0 | Z36: =IF($K36<>"",IF($Y36<>"",+Y36+(Y36*0.05),""),"") -> 0 | AA36: =IF($K36<>"",IF($Z36<>"",+Z36+(Z36*0.05),""),"") -> 0 | AC36: =IF($K36<>"",IF($L36<>"",VLOOKUP($K36,Allocations!$A$5:$K$20,7,0)*$L36,""),"") -> 0 | AD36: =IF($K36<>"",IF($AC36<>"",+AC36+(AC36*0.05),""),"") -> 0 | AE36: =IF($K36<>"",IF($AD36<>"",+AD36+(AD36*0.05),""),"") -> 0 | AG36: =IF($K36<>"",IF($L36<>"",VLOOKUP($K36,Allocations!$A$5:$K$20,8,0)*$L36,""),"") -> 0 | AH36: =IF($K36<>"",IF($AG36<>"",+AG36+(AG36*0.05),""),"") -> 0 | AI36: =IF($K36<>"",IF($AH36<>"",+AH36+(AH36*0.05),""),"") -> 0
H37: =IF(F37<>0,IF(G37<>0,(+F37-G37)/G37,""),"") ->  | M37: =IF($K37<>"",IF($L37<>"",VLOOKUP($K37,Allocations!$A$5:$K$20,3,0)*$L37,""),"") ->  | Q37: =IF($K37<>"",IF($L37<>"",VLOOKUP($K37,Allocations!$A$5:$K$20,4,0)*$L37,""),"") ->  | U37: =IF($K37<>"",IF($L37<>"",VLOOKUP($K37,Allocations!$A$5:$K$20,5,0)*$L37,""),"") ->  | Y37: =IF($K37<>"",IF($L37<>"",VLOOKUP($K37,Allocations!$A$5:$K$20,6,0)*$L37,""),"") ->  | AC37: =IF($K37<>"",IF($L37<>"",VLOOKUP($K37,Allocations!$A$5:$K$20,7,0)*$L37,""),"") ->  | AG37: =IF($K37<>"",IF($L37<>"",VLOOKUP($K37,Allocations!$A$5:$K$20,8,0)*$L37,""),"") -> 
A38: 70800 | C38: Meals & Entertainment | E38: 3000 | F38: =SUM(L38:L41) -> 2000 | G38: =(2000/7)*12 -> 3428.571429 | H38: =IF(F38<>0,IF(G38<>0,(+F38-G38)/G38,"▲"),"") -> -0.4166666667 | M38: =SUM(M39:M41) -> 2000 | N38: =SUM(N39:N41) -> 2940 | O38: =SUM(O39:O41) -> 3087 | Q38: =SUM(Q39:Q41) -> 0 | R38: =SUM(R39:R41) -> 0 | S38: =SUM(S39:S41) -> 0 | U38: =SUM(U39:U41) -> 0 | V38: =SUM(V39:V41) -> 0 | W38: =SUM(W39:W41) -> 0 | Y38: =SUM(Y39:Y41) -> 0 | Z38: =SUM(Z39:Z41) -> 0 | AA38: =SUM(AA39:AA41) -> 0 | AC38: =SUM(AC39:AC41) -> 0 | AD38: =SUM(AD39:AD41) -> 0 | AE38: =SUM(AE39:AE41) -> 0 | AG38: =SUM(AG39:AG41) -> 0 | AH38: =SUM(AH39:AH41) -> 0 | AI38: =SUM(AI39:AI41) -> 0
C39: Meals | K39: K | L39: 2800 | M39: =IF($K39<>"",IF($L39<>"",VLOOKUP($K39,Allocations!$A$5:$K$20,3,0)*$L39,""),"") -> 2800 | N39: 2940 | O39: 3087 | Q39: =IF($K39<>"",IF($L39<>"",VLOOKUP($K39,Allocations!$A$5:$K$20,4,0)*$L39,""),"") -> 0 | R39: 0 | S39: 0 | U39: =IF($K39<>"",IF($L39<>"",VLOOKUP($K39,Allocations!$A$5:$K$20,5,0)*$L39,""),"") -> 0 | V39: 0 | W39: 0 | Y39: =IF($K39<>"",IF($L39<>"",VLOOKUP($K39,Allocations!$A$5:$K$20,6,0)*$L39,""),"") -> 0 | Z39: 0 | AA39: 0 | AC39: =IF($K39<>"",IF($L39<>"",VLOOKUP($K39,Allocations!$A$5:$K$20,7,0)*$L39,""),"") -> 0 | AD39: 0 | AE39: 0 | AG39: =IF($K39<>"",IF($L39<>"",VLOOKUP($K39,Allocations!$A$5:$K$20,8,0)*$L39,""),"") -> 0 | AH39: 0 | AI39: 0
C40: Ratification Adjustment | K40: K | L40: -800 | M40: =IF($K40<>"",IF($L40<>"",VLOOKUP($K40,Allocations!$A$5:$K$20,3,0)*$L40,""),"") -> -800 | Q40: =IF($K40<>"",IF($L40<>"",VLOOKUP($K40,Allocations!$A$5:$K$20,4,0)*$L40,""),"") -> 0 | R40: 0 | S40: 0 | U40: =IF($K40<>"",IF($L40<>"",VLOOKUP($K40,Allocations!$A$5:$K$20,5,0)*$L40,""),"") -> 0 | V40: 0 | W40: 0 | Y40: =IF($K40<>"",IF($L40<>"",VLOOKUP($K40,Allocations!$A$5:$K$20,6,0)*$L40,""),"") -> 0 | Z40: 0 | AA40: 0 | AC40: =IF($K40<>"",IF($L40<>"",VLOOKUP($K40,Allocations!$A$5:$K$20,7,0)*$L40,""),"") -> 0 | AD40: 0 | AE40: 0 | AG40: =IF($K40<>"",IF($L40<>"",VLOOKUP($K40,Allocations!$A$5:$K$20,8,0)*$L40,""),"") -> 0 | AH40: 0 | AI40: 0
H41: =IF(F41<>0,IF(G41<>0,(+F41-G41)/G41,""),"") ->  | M41: =IF($K41<>"",IF($L41<>"",VLOOKUP($K41,Allocations!$A$5:$K$20,3,0)*$L41,""),"") ->  | Q41: =IF($K41<>"",IF($L41<>"",VLOOKUP($K41,Allocations!$A$5:$K$20,4,0)*$L41,""),"") ->  | U41: =IF($K41<>"",IF($L41<>"",VLOOKUP($K41,Allocations!$A$5:$K$20,5,0)*$L41,""),"") ->  | Y41: =IF($K41<>"",IF($L41<>"",VLOOKUP($K41,Allocations!$A$5:$K$20,6,0)*$L41,""),"") ->  | AC41: =IF($K41<>"",IF($L41<>"",VLOOKUP($K41,Allocations!$A$5:$K$20,7,0)*$L41,""),"") ->  | AG41: =IF($K41<>"",IF($L41<>"",VLOOKUP($K41,Allocations!$A$5:$K$20,8,0)*$L41,""),"") -> 
A42: 72300 | C42: IT Consulting Fees | E42: 50000 | F42: =SUM(L42:L49) -> 45409.09 | H42: =IF(F42<>0,IF(G42<>0,(+F42-G42)/G42,"▲"),"") -> ▲ | M42: =SUM(M43:M49) -> -1367.225789 | N42: =SUM(N43:N49) -> 8109.868421 | O42: =SUM(O43:O49) -> 8515.361842 | Q42: =SUM(Q43:Q49) -> 30434.21053 | R42: =SUM(R43:R49) -> 31955.92105 | S42: =SUM(S43:S49) -> 33553.71711 | U42: =SUM(U43:U49) -> 15131.57895 | V42: =SUM(V43:V49) -> 15888.15789 | W42: =SUM(W43:W49) -> 16682.56579 | Y42: =SUM(Y43:Y49) -> 302.6315789 | Z42: =SUM(Z43:Z49) -> 317.7631579 | AA42: =SUM(AA43:AA49) -> 333.6513158 | AC42: =SUM(AC43:AC49) -> 605.2631579 | AD42: =SUM(AD43:AD49) -> 635.5263158 | AE42: =SUM(AE43:AE49) -> 667.3026316 | AG42: =SUM(AG43:AG49) -> 302.6315789 | AH42: =SUM(AH43:AH49) -> 276.3157895 | AI42: =SUM(AI43:AI49) -> 290.1315789
C43: Great Plains and Business Portal | H43: =IF(F43<>0,IF(G43<>0,(+F43-G43)/G43,""),"") ->  | K43: B | L43: 0 | M43: =IF($K43<>"",IF($L43<>"",VLOOKUP($K43,Allocations!$A$5:$K$20,3,0)*$L43,""),"") -> 0 | N43: 0 | O43: 0 | Q43: =IF($K43<>"",IF($L43<>"",VLOOKUP($K43,Allocations!$A$5:$K$20,4,0)*$L43,""),"") -> 0 | R43: 0 | S43: 0 | U43: =IF($K43<>"",IF($L43<>"",VLOOKUP($K43,Allocations!$A$5:$K$20,5,0)*$L43,""),"") -> 0 | V43: 0 | W43: 0 | Y43: =IF($K43<>"",IF($L43<>"",VLOOKUP($K43,Allocations!$A$5:$K$20,6,0)*$L43,""),"") -> 0 | Z43: 0 | AA43: 0 | AC43: =IF($K43<>"",IF($L43<>"",VLOOKUP($K43,Allocations!$A$5:$K$20,7,0)*$L43,""),"") -> 0 | AD43: 0 | AE43: 0 | AG43: =IF($K43<>"",IF($L43<>"",VLOOKUP($K43,Allocations!$A$5:$K$20,8,0)*$L43,""),"") -> 0 | AH43: 0 | AI43: 0
C44: Great Plains Modifications Enhancements | H44: =IF(F44<>0,IF(G44<>0,(+F44-G44)/G44,""),"") ->  | K44: L | L44: 15000 | M44: =IF($K44<>"",IF($L44<>"",VLOOKUP($K44,Allocations!$A$5:$K$20,3,0)*$L44,""),"") -> 0 | N44: 0 | O44: 0 | Q44: =IF($K44<>"",IF($L44<>"",VLOOKUP($K44,Allocations!$A$5:$K$20,4,0)*$L44,""),"") -> 15000 | R44: 15750 | S44: 16537.5 | U44: =IF($K44<>"",IF($L44<>"",VLOOKUP($K44,Allocations!$A$5:$K$20,5,0)*$L44,""),"") -> 0 | V44: 0 | W44: 0 | Y44: =IF($K44<>"",IF($L44<>"",VLOOKUP($K44,Allocations!$A$5:$K$20,6,0)*$L44,""),"") -> 0 | Z44: 0 | AA44: 0 | AC44: =IF($K44<>"",IF($L44<>"",VLOOKUP($K44,Allocations!$A$5:$K$20,7,0)*$L44,""),"") -> 0 | AD44: 0 | AE44: 0 | AG44: =IF($K44<>"",IF($L44<>"",VLOOKUP($K44,Allocations!$A$5:$K$20,8,0)*$L44,""),"") -> 0 | AH44: 0 | AI44: 0
C45: Great Plains Consulting and Support | H45: =IF(F45<>0,IF(G45<>0,(+F45-G45)/G45,""),"") ->  | K45: A | L45: 30000 | M45: =IF($K45<>"",IF($L45<>"",VLOOKUP($K45,Allocations!$A$5:$K$20,3,0)*$L45,""),"") -> 2368.421053 | N45: 2486.842105 | O45: 2611.184211 | Q45: =IF($K45<>"",IF($L45<>"",VLOOKUP($K45,Allocations!$A$5:$K$20,4,0)*$L45,""),"") -> 13421.05263 | R45: 14092.10526 | S45: 14796.71053 | U45: =IF($K45<>"",IF($L45<>"",VLOOKUP($K45,Allocations!$A$5:$K$20,5,0)*$L45,""),"") -> 13157.89474 | V45: 13815.78947 | W45: 14506.57895 | Y45: =IF($K45<>"",IF($L45<>"",VLOOKUP($K45,Allocations!$A$5:$K$20,6,0)*$L45,""),"") -> 263.1578947 | Z45: 276.3157895 | AA45: 290.1315789 | AC45: =IF($K45<>"",IF($L45<>"",VLOOKUP($K45,Allocations!$A$5:$K$20,7,0)*$L45,""),"") -> 526.3157895 | AD45: 552.6315789 | AE45: 580.2631579 | AG45: =IF($K45<>"",IF($L45<>"",VLOOKUP($K45,Allocations!$A$5:$K$20,8,0)*$L45,""),"") -> 263.1578947 | AH45: 276.3157895 | AI45: 290.1315789
C46: Collins Computing Suppport Agreement | D46: 2009-04-01 | H46: =IF(F46<>0,IF(G46<>0,(+F46-G46)/G46,""),"") ->  | K46: A | L46: 4500 | M46: =IF($K46<>"",IF($L46<>"",VLOOKUP($K46,Allocations!$A$5:$K$20,3,0)*$L46,""),"") -> 355.2631579 | N46: =IF(K46<>"",IF(M46<>"",+M46+(M46*0.05),""),"") -> 373.0263158 | O46: =IF(K46<>"",IF(N46<>"",+N46+(N46*0.05),""),"") -> 391.6776316 | Q46: =IF($K46<>"",IF($L46<>"",VLOOKUP($K46,Allocations!$A$5:$K$20,4,0)*$L46,""),"") -> 2013.157895 | R46: =IF(K46<>"",IF(Q46<>"",+Q46+(Q46*0.05),""),"") -> 2113.815789 | S46: =IF($K46<>"",IF(R46<>"",+R46+(R46*0.05),""),"") -> 2219.506579 | U46: =IF($K46<>"",IF($L46<>"",VLOOKUP($K46,Allocations!$A$5:$K$20,5,0)*$L46,""),"") -> 1973.684211 | V46: =IF($K46<>"",IF($U46<>"",+U46+(U46*0.05),""),"") -> 2072.368421 | W46: =IF($K46<>"",IF($V46<>"",+V46+(V46*0.05),""),"") -> 2175.986842 | Y46: =IF($K46<>"",IF($L46<>"",VLOOKUP($K46,Allocations!$A$5:$K$20,6,0)*$L46,""),"") -> 39.47368421 | Z46: =IF($K46<>"",IF($Y46<>"",+Y46+(Y46*0.05),""),"") -> 41.44736842 | AA46: =IF($K46<>"",IF($Z46<>"",+Z46+(Z46*0.05),""),"") -> 43.51973684 | AC46: =IF($K46<>"",IF($L46<>"",VLOOKUP($K46,Allocations!$A$5:$K$20,7,0)*$L46,""),"") -> 78.94736842 | AD46: =IF($K46<>"",IF($AC46<>"",+AC46+(AC46*0.05),""),"") -> 82.89473684 | AE46: =IF($K46<>"",IF($AD46<>"",+AD46+(AD46*0.05),""),"") -> 87.03947368 | AG46: =IF($K46<>"",IF($L46<>"",VLOOKUP($K46,Allocations!$A$5:$K$20,8,0)*$L46,""),"") -> 39.47368421
C47: Miscellaneous | H47: =IF(F47<>0,IF(G47<>0,(+F47-G47)/G47,""),"") ->  | K47: K | L47: 5000 | M47: =IF($K47<>"",IF($L47<>"",VLOOKUP($K47,Allocations!$A$5:$K$20,3,0)*$L47,""),"") -> 5000 | N47: 5250 | O47: 5512.5 | Q47: =IF($K47<>"",IF($L47<>"",VLOOKUP($K47,Allocations!$A$5:$K$20,4,0)*$L47,""),"") -> 0 | R47: 0 | S47: 0 | U47: =IF($K47<>"",IF($L47<>"",VLOOKUP($K47,Allocations!$A$5:$K$20,5,0)*$L47,""),"") -> 0 | V47: 0 | W47: 0 | Y47: =IF($K47<>"",IF($L47<>"",VLOOKUP($K47,Allocations!$A$5:$K$20,6,0)*$L47,""),"") -> 0 | Z47: 0 | AA47: 0 | AC47: =IF($K47<>"",IF($L47<>"",VLOOKUP($K47,Allocations!$A$5:$K$20,7,0)*$L47,""),"") -> 0 | AD47: 0 | AE47: 0 | AG47: =IF($K47<>"",IF($L47<>"",VLOOKUP($K47,Allocations!$A$5:$K$20,8,0)*$L47,""),"") -> 0 | AH47: 0 | AI47: 0
C48: Ratification Adjustment | K48: K | L48: -9090.91 | M48: =IF($K48<>"",IF($L48<>"",VLOOKUP($K48,Allocations!$A$5:$K$20,3,0)*$L48,""),"") -> -9090.91 | Q48: =IF($K48<>"",IF($L48<>"",VLOOKUP($K48,Allocations!$A$5:$K$20,4,0)*$L48,""),"") -> 0 | R48: =IF(K48<>"",IF(Q48<>"",+Q48+(Q48*0.05),""),"") -> 0 | S48: =IF($K48<>"",IF(R48<>"",+R48+(R48*0.05),""),"") -> 0 | U48: =IF($K48<>"",IF($L48<>"",VLOOKUP($K48,Allocations!$A$5:$K$20,5,0)*$L48,""),"") -> 0 | V48: =IF($K48<>"",IF($U48<>"",+U48+(U48*0.05),""),"") -> 0 | W48: =IF($K48<>"",IF($V48<>"",+V48+(V48*0.05),""),"") -> 0 | Y48: =IF($K48<>"",IF($L48<>"",VLOOKUP($K48,Allocations!$A$5:$K$20,6,0)*$L48,""),"") -> 0 | Z48: =IF($K48<>"",IF($Y48<>"",+Y48+(Y48*0.05),""),"") -> 0 | AA48: =IF($K48<>"",IF($Z48<>"",+Z48+(Z48*0.05),""),"") -> 0 | AC48: =IF($K48<>"",IF($L48<>"",VLOOKUP($K48,Allocations!$A$5:$K$20,7,0)*$L48,""),"") -> 0 | AD48: =IF($K48<>"",IF($AC48<>"",+AC48+(AC48*0.05),""),"") -> 0 | AE48: =IF($K48<>"",IF($AD48<>"",+AD48+(AD48*0.05),""),"") -> 0 | AG48: =IF($K48<>"",IF($L48<>"",VLOOKUP($K48,Allocations!$A$5:$K$20,8,0)*$L48,""),"") -> 0 | AH48: =IF($K48<>"",IF($AG48<>"",+AG48+(AG48*0.05),""),"") -> 0 | AI48: =IF($K48<>"",IF($AH48<>"",+AH48+(AH48*0.05),""),"") -> 0
H49: =IF(F49<>0,IF(G49<>0,(+F49-G49)/G49,""),"") ->  | M49: =IF($K49<>"",IF($L49<>"",VLOOKUP($K49,Allocations!$A$5:$K$20,3,0)*$L49,""),"") ->  | Q49: =IF($K49<>"",IF($L49<>"",VLOOKUP($K49,Allocations!$A$5:$K$20,4,0)*$L49,""),"") ->  | U49: =IF($K49<>"",IF($L49<>"",VLOOKUP($K49,Allocations!$A$5:$K$20,5,0)*$L49,""),"") ->  | Y49: =IF($K49<>"",IF($L49<>"",VLOOKUP($K49,Allocations!$A$5:$K$20,6,0)*$L49,""),"") ->  | AC49: =IF($K49<>"",IF($L49<>"",VLOOKUP($K49,Allocations!$A$5:$K$20,7,0)*$L49,""),"") ->  | AG49: =IF($K49<>"",IF($L49<>"",VLOOKUP($K49,Allocations!$A$5:$K$20,8,0)*$L49,""),"") -> 
A50: 72500 | C50: Recruitment Fees | E50: 18000 | F50: =SUM(L50:L53) -> 0.001 | G50: 15000 | H50: =IF(F50<>0,IF(G50<>0,(+F50-G50)/G50,"▲"),"") -> -0.9999999333 | M50: =SUM(M51:M53) -> 0.001 | N50: =SUM(N51:N53) -> 18900 | O50: =SUM(O51:O53) -> 19845 | Q50: =SUM(Q51:Q53) -> 0 | R50: =SUM(R51:R53) -> 0 | S50: =SUM(S51:S53) -> 0 | U50: =SUM(U51:U53) -> 0 | V50: =SUM(V51:V53) -> 0 | W50: =SUM(W51:W53) -> 0 | Y50: =SUM(Y51:Y53) -> 0 | Z50: =SUM(Z51:Z53) -> 0 | AA50: =SUM(AA51:AA53) -> 0 | AC50: =SUM(AC51:AC53) -> 0 | AD50: =SUM(AD51:AD53) -> 0 | AE50: =SUM(AE51:AE53) -> 0 | AG50: =SUM(AG51:AG53) -> 0 | AH50: =SUM(AH51:AH53) -> 0 | AI50: =SUM(AI51:AI53) -> 0
C51: Recruiting Fees | D51: 2008-04-08 | K51: K | L51: 18000 | M51: =IF($K51<>"",IF($L51<>"",VLOOKUP($K51,Allocations!$A$5:$K$20,3,0)*$L51,""),"") -> 18000 | N51: 18900 | O51: 19845 | Q51: =IF($K51<>"",IF($L51<>"",VLOOKUP($K51,Allocations!$A$5:$K$20,4,0)*$L51,""),"") -> 0 | R51: 0 | S51: 0 | U51: =IF($K51<>"",IF($L51<>"",VLOOKUP($K51,Allocations!$A$5:$K$20,5,0)*$L51,""),"") -> 0 | V51: 0 | W51: 0 | Y51: =IF($K51<>"",IF($L51<>"",VLOOKUP($K51,Allocations!$A$5:$K$20,6,0)*$L51,""),"") -> 0 | Z51: 0 | AA51: 0 | AC51: =IF($K51<>"",IF($L51<>"",VLOOKUP($K51,Allocations!$A$5:$K$20,7,0)*$L51,""),"") -> 0 | AD51: 0 | AE51: 0 | AG51: =IF($K51<>"",IF($L51<>"",VLOOKUP($K51,Allocations!$A$5:$K$20,8,0)*$L51,""),"") -> 0 | AH51: 0 | AI51: 0
C52: Ratification Adjustment | K52: K | L52: -17999.999 | M52: =IF($K52<>"",IF($L52<>"",VLOOKUP($K52,Allocations!$A$5:$K$20,3,0)*$L52,""),"") -> -17999.999 | Q52: =IF($K52<>"",IF($L52<>"",VLOOKUP($K52,Allocations!$A$5:$K$20,4,0)*$L52,""),"") -> 0 | R52: 0 | S52: 0 | U52: =IF($K52<>"",IF($L52<>"",VLOOKUP($K52,Allocations!$A$5:$K$20,5,0)*$L52,""),"") -> 0 | V52: 0 | W52: 0 | Y52: =IF($K52<>"",IF($L52<>"",VLOOKUP($K52,Allocations!$A$5:$K$20,6,0)*$L52,""),"") -> 0 | Z52: 0 | AA52: 0 | AC52: =IF($K52<>"",IF($L52<>"",VLOOKUP($K52,Allocations!$A$5:$K$20,7,0)*$L52,""),"") -> 0 | AD52: 0 | AE52: 0 | AG52: =IF($K52<>"",IF($L52<>"",VLOOKUP($K52,Allocations!$A$5:$K$20,8,0)*$L52,""),"") -> 0 | AH52: 0 | AI52: 0
A54: 72700 | C54: Professional Fees - Other | E54: 0 | F54: =SUM(L54:L56) -> 2000 | H54: =IF(F54<>0,IF(G54<>0,(+F54-G54)/G54,"▲"),"") -> ▲ | M54: =SUM(M55:M56) -> 2000 | N54: =SUM(N55:N56) -> 2100 | O54: =SUM(O55:O56) -> 2205 | Q54: =SUM(Q55:Q56) -> 0 | R54: =SUM(R55:R56) -> 0 | S54: =SUM(S55:S56) -> 0 | U54: =SUM(U55:U56) -> 0 | V54: =SUM(V55:V56) -> 0 | W54: =SUM(W55:W56) -> 0 | Y54: =SUM(Y55:Y56) -> 0 | Z54: =SUM(Z55:Z56) -> 0 | AA54: =SUM(AA55:AA56) -> 0 | AC54: =SUM(AC55:AC56) -> 0 | AD54: =SUM(AD55:AD56) -> 0 | AE54: =SUM(AE55:AE56) -> 0 | AG54: =SUM(AG55:AG56) -> 0 | AH54: =SUM(AH55:AH56) -> 0 | AI54: =SUM(AI55:AI56) -> 0
C55: Professional fees | K55: K | L55: 2000 | M55: =IF($K55<>"",IF($L55<>"",VLOOKUP($K55,Allocations!$A$5:$K$20,3,0)*$L55,""),"") -> 2000 | N55: =IF(K55<>"",IF(M55<>"",+M55+(M55*0.05),""),"") -> 2100 | O55: =IF(K55<>"",IF(N55<>"",+N55+(N55*0.05),""),"") -> 2205 | Q55: =IF($K55<>"",IF($L55<>"",VLOOKUP($K55,Allocations!$A$5:$K$20,4,0)*$L55,""),"") -> 0 | R55: =IF(K55<>"",IF(Q55<>"",+Q55+(Q55*0.05),""),"") -> 0 | S55: 0 | U55: =IF($K55<>"",IF($L55<>"",VLOOKUP($K55,Allocations!$A$5:$K$20,5,0)*$L55,""),"") -> 0 | V55: 0 | W55: 0 | Y55: =IF($K55<>"",IF($L55<>"",VLOOKUP($K55,Allocations!$A$5:$K$20,6,0)*$L55,""),"") -> 0 | Z55: 0 | AA55: 0 | AC55: =IF($K55<>"",IF($L55<>"",VLOOKUP($K55,Allocations!$A$5:$K$20,7,0)*$L55,""),"") -> 0 | AD55: 0 | AE55: 0 | AG55: =IF($K55<>"",IF($L55<>"",VLOOKUP($K55,Allocations!$A$5:$K$20,8,0)*$L55,""),"") -> 0 | AH55: 0 | AI55: 0
H56: =IF(F56<>0,IF(G56<>0,(+F56-G56)/G56,""),"") ->  | M56: =IF($K56<>"",IF($L56<>"",VLOOKUP($K56,Allocations!$A$5:$K$20,3,0)*$L56,""),"") ->  | Q56: =IF($K56<>"",IF($L56<>"",VLOOKUP($K56,Allocations!$A$5:$K$20,4,0)*$L56,""),"") ->  | U56: =IF($K56<>"",IF($L56<>"",VLOOKUP($K56,Allocations!$A$5:$K$20,5,0)*$L56,""),"") ->  | Y56: =IF($K56<>"",IF($L56<>"",VLOOKUP($K56,Allocations!$A$5:$K$20,6,0)*$L56,""),"") ->  | AC56: =IF($K56<>"",IF($L56<>"",VLOOKUP($K56,Allocations!$A$5:$K$20,7,0)*$L56,""),"") ->  | AG56: =IF($K56<>"",IF($L56<>"",VLOOKUP($K56,Allocations!$A$5:$K$20,8,0)*$L56,""),"") -> 
A57: 73100 | C57: IT - Hardware | E57: 75899.12 | F57: =SUM(L57:L66) -> 76803.12 | G57: 0 | H57: =IF(F57<>0,IF(G57<>0,(+F57-G57)/G57,"▲"),"") -> ▲ | M57: =SUM(M58:M66) -> 9453.167647 | N57: =SUM(N58:N66) -> 9925.826029 | O57: =SUM(O58:O66) -> 10422.11733 | Q57: =SUM(Q58:Q66) -> 31170.22588 | R57: =SUM(R58:R66) -> 32728.73718 | S57: =SUM(S58:S66) -> 34365.17404 | U57: =SUM(U58:U66) -> 30613.61471 | V57: =SUM(V58:V66) -> 32144.29544 | W57: =SUM(W58:W66) -> 33751.51021 | Y57: =SUM(Y58:Y66) -> 5009.500588 | Z57: =SUM(Z58:Z66) -> 5259.975618 | AA57: =SUM(AA58:AA66) -> 5522.974399 | AC57: =SUM(AC58:AC66) -> 556.6111765 | AD57: =SUM(AD58:AD66) -> 584.4417353 | AE57: =SUM(AE58:AE66) -> 613.6638221 | AG57: =SUM(AG58:AG66) -> 0 | AH57: =SUM(AH58:AH66) -> 0 | AI57: =SUM(AI58:AI66) -> 0
C58: Cisco Maintenance | D58: 2008-03-01 | H58: =IF(F58<>0,IF(G58<>0,(+F58-G58)/G58,""),"") ->  | K58: B | L58: 13500 | M58: =IF($K58<>"",IF($L58<>"",VLOOKUP($K58,Allocations!$A$5:$K$20,3,0)*$L58,""),"") -> 1488.970588 | N58: 1563.419118 | O58: 1641.590074 | Q58: =IF($K58<>"",IF($L58<>"",VLOOKUP($K58,Allocations!$A$5:$K$20,4,0)*$L58,""),"") -> 5558.823529 | R58: 5836.764706 | S58: 6128.602941 | U58: =IF($K58<>"",IF($L58<>"",VLOOKUP($K58,Allocations!$A$5:$K$20,5,0)*$L58,""),"") -> 5459.558824 | V58: 5732.536765 | W58: 6019.163603 | Y58: =IF($K58<>"",IF($L58<>"",VLOOKUP($K58,Allocations!$A$5:$K$20,6,0)*$L58,""),"") -> 893.3823529 | Z58: 938.0514706 | AA58: 984.9540441 | AC58: =IF($K58<>"",IF($L58<>"",VLOOKUP($K58,Allocations!$A$5:$K$20,7,0)*$L58,""),"") -> 99.26470588 | AD58: 104.2279412 | AE58: 109.4393382 | AG58: =IF($K58<>"",IF($L58<>"",VLOOKUP($K58,Allocations!$A$5:$K$20,8,0)*$L58,""),"") -> 0 | AH58: 0 | AI58: 0
C59: Dell Server Lease Payments | K59: B | L59: =4433.26*12 -> 53199.12 | M59: =IF($K59<>"",IF($L59<>"",VLOOKUP($K59,Allocations!$A$5:$K$20,3,0)*$L59,""),"") -> 5867.55 | N59: 6160.9275 | O59: 6468.973875 | Q59: =IF($K59<>"",IF($L59<>"",VLOOKUP($K59,Allocations!$A$5:$K$20,4,0)*$L59,""),"") -> 21905.52 | R59: 23000.796 | S59: 24150.8358 | U59: =IF($K59<>"",IF($L59<>"",VLOOKUP($K59,Allocations!$A$5:$K$20,5,0)*$L59,""),"") -> 21514.35 | V59: 22590.0675 | W59: 23719.57088 | Y59: =IF($K59<>"",IF($L59<>"",VLOOKUP($K59,Allocations!$A$5:$K$20,6,0)*$L59,""),"") -> 3520.53 | Z59: 3696.5565 | AA59: 3881.384325 | AC59: =IF($K59<>"",IF($L59<>"",VLOOKUP($K59,Allocations!$A$5:$K$20,7,0)*$L59,""),"") -> 391.17 | AD59: 410.7285 | AE59: 431.264925 | AG59: =IF($K59<>"",IF($L59<>"",VLOOKUP($K59,Allocations!$A$5:$K$20,8,0)*$L59,""),"") -> 0 | AH59: 0 | AI59: 0
C60: DPSI - Fire Suppression System | K60: B | L60: 1000 | M60: =IF($K60<>"",IF($L60<>"",VLOOKUP($K60,Allocations!$A$5:$K$20,3,0)*$L60,""),"") -> 110.2941176 | N60: 115.8088235 | O60: 121.5992647 | Q60: =IF($K60<>"",IF($L60<>"",VLOOKUP($K60,Allocations!$A$5:$K$20,4,0)*$L60,""),"") -> 411.7647059 | R60: 432.3529412 | S60: 453.9705882 | U60: =IF($K60<>"",IF($L60<>"",VLOOKUP($K60,Allocations!$A$5:$K$20,5,0)*$L60,""),"") -> 404.4117647 | V60: 424.6323529 | W60: 445.8639706 | Y60: =IF($K60<>"",IF($L60<>"",VLOOKUP($K60,Allocations!$A$5:$K$20,6,0)*$L60,""),"") -> 66.17647059 | Z60: 69.48529412 | AA60: 72.95955882 | AC60: =IF($K60<>"",IF($L60<>"",VLOOKUP($K60,Allocations!$A$5:$K$20,7,0)*$L60,""),"") -> 7.352941176 | AD60: 7.720588235 | AE60: 8.106617647 | AG60: =IF($K60<>"",IF($L60<>"",VLOOKUP($K60,Allocations!$A$5:$K$20,8,0)*$L60,""),"") -> 0 | AH60: 0 | AI60: 0
C61: Miscellaneous | K61: B | L61: 3000 | M61: =IF($K61<>"",IF($L61<>"",VLOOKUP($K61,Allocations!$A$5:$K$20,3,0)*$L61,""),"") -> 330.8823529 | N61: 347.4264706 | O61: 364.7977941 | Q61: =IF($K61<>"",IF($L61<>"",VLOOKUP($K61,Allocations!$A$5:$K$20,4,0)*$L61,""),"") -> 1235.294118 | R61: 1297.058824 | S61: 1361.911765 | U61: =IF($K61<>"",IF($L61<>"",VLOOKUP($K61,Allocations!$A$5:$K$20,5,0)*$L61,""),"") -> 1213.235294 | V61: 1273.897059 | W61: 1337.591912 | Y61: =IF($K61<>"",IF($L61<>"",VLOOKUP($K61,Allocations!$A$5:$K$20,6,0)*$L61,""),"") -> 198.5294118 | Z61: 208.4558824 | AA61: 218.8786765 | AC61: =IF($K61<>"",IF($L61<>"",VLOOKUP($K61,Allocations!$A$5:$K$20,7,0)*$L61,""),"") -> 22.05882353 | AD61: 23.16176471 | AE61: 24.31985294 | AG61: =IF($K61<>"",IF($L61<>"",VLOOKUP($K61,Allocations!$A$5:$K$20,8,0)*$L61,""),"") -> 0 | AH61: 0 | AI61: 0
C62: Peripherals | K62: B | L62: 3000 | M62: =IF($K62<>"",IF($L62<>"",VLOOKUP($K62,Allocations!$A$5:$K$20,3,0)*$L62,""),"") -> 330.8823529 | N62: 347.4264706 | O62: 364.7977941 | Q62: =IF($K62<>"",IF($L62<>"",VLOOKUP($K62,Allocations!$A$5:$K$20,4,0)*$L62,""),"") -> 1235.294118 | R62: 1297.058824 | S62: 1361.911765 | U62: =IF($K62<>"",IF($L62<>"",VLOOKUP($K62,Allocations!$A$5:$K$20,5,0)*$L62,""),"") -> 1213.235294 | V62: 1273.897059 | W62: 1337.591912 | Y62: =IF($K62<>"",IF($L62<>"",VLOOKUP($K62,Allocations!$A$5:$K$20,6,0)*$L62,""),"") -> 198.5294118 | Z62: 208.4558824 | AA62: 218.8786765 | AC62: =IF($K62<>"",IF($L62<>"",VLOOKUP($K62,Allocations!$A$5:$K$20,7,0)*$L62,""),"") -> 22.05882353 | AD62: 23.16176471 | AE62: 24.31985294 | AG62: =IF($K62<>"",IF($L62<>"",VLOOKUP($K62,Allocations!$A$5:$K$20,8,0)*$L62,""),"") -> 0 | AH62: 0 | AI62: 0
C63: Security hardware and devices | K63: K | L63: 200 | M63: =IF($K63<>"",IF($L63<>"",VLOOKUP($K63,Allocations!$A$5:$K$20,3,0)*$L63,""),"") -> 200 | N63: 210 | O63: 220.5 | Q63: =IF($K63<>"",IF($L63<>"",VLOOKUP($K63,Allocations!$A$5:$K$20,4,0)*$L63,""),"") -> 0 | R63: 0 | S63: 0 | U63: =IF($K63<>"",IF($L63<>"",VLOOKUP($K63,Allocations!$A$5:$K$20,5,0)*$L63,""),"") -> 0 | V63: 0 | W63: 0 | Y63: =IF($K63<>"",IF($L63<>"",VLOOKUP($K63,Allocations!$A$5:$K$20,6,0)*$L63,""),"") -> 0 | Z63: 0 | AA63: 0 | AC63: =IF($K63<>"",IF($L63<>"",VLOOKUP($K63,Allocations!$A$5:$K$20,7,0)*$L63,""),"") -> 0 | AD63: 0 | AE63: 0 | AG63: =IF($K63<>"",IF($L63<>"",VLOOKUP($K63,Allocations!$A$5:$K$20,8,0)*$L63,""),"") -> 0 | AH63: 0 | AI63: 0
C64: Server Repair and Maintenance | K64: B | L64: 2000 | M64: =IF($K64<>"",IF($L64<>"",VLOOKUP($K64,Allocations!$A$5:$K$20,3,0)*$L64,""),"") -> 220.5882353 | N64: 231.6176471 | O64: 243.1985294 | Q64: =IF($K64<>"",IF($L64<>"",VLOOKUP($K64,Allocations!$A$5:$K$20,4,0)*$L64,""),"") -> 823.5294118 | R64: 864.7058824 | S64: 907.9411765 | U64: =IF($K64<>"",IF($L64<>"",VLOOKUP($K64,Allocations!$A$5:$K$20,5,0)*$L64,""),"") -> 808.8235294 | V64: 849.2647059 | W64: 891.7279412 | Y64: =IF($K64<>"",IF($L64<>"",VLOOKUP($K64,Allocations!$A$5:$K$20,6,0)*$L64,""),"") -> 132.3529412 | Z64: 138.9705882 | AA64: 145.9191176 | AC64: =IF($K64<>"",IF($L64<>"",VLOOKUP($K64,Allocations!$A$5:$K$20,7,0)*$L64,""),"") -> 14.70588235 | AD64: 15.44117647 | AE64: 16.21323529 | AG64: =IF($K64<>"",IF($L64<>"",VLOOKUP($K64,Allocations!$A$5:$K$20,8,0)*$L64,""),"") -> 0 | AH64: 0 | AI64: 0
C65: Ratification Adjustment | K65: K | L65: 904 | M65: =IF($K65<>"",IF($L65<>"",VLOOKUP($K65,Allocations!$A$5:$K$20,3,0)*$L65,""),"") -> 904 | N65: =IF(K65<>"",IF(M65<>"",+M65+(M65*0.05),""),"") -> 949.2 | O65: =IF(K65<>"",IF(N65<>"",+N65+(N65*0.05),""),"") -> 996.66 | Q65: =IF($K65<>"",IF($L65<>"",VLOOKUP($K65,Allocations!$A$5:$K$20,4,0)*$L65,""),"") -> 0 | R65: =IF(K65<>"",IF(Q65<>"",+Q65+(Q65*0.05),""),"") -> 0 | S65: 0 | U65: =IF($K65<>"",IF($L65<>"",VLOOKUP($K65,Allocations!$A$5:$K$20,5,0)*$L65,""),"") -> 0 | V65: 0 | W65: 0 | Y65: =IF($K65<>"",IF($L65<>"",VLOOKUP($K65,Allocations!$A$5:$K$20,6,0)*$L65,""),"") -> 0 | Z65: 0 | AA65: 0 | AC65: =IF($K65<>"",IF($L65<>"",VLOOKUP($K65,Allocations!$A$5:$K$20,7,0)*$L65,""),"") -> 0 | AD65: 0 | AE65: 0 | AG65: =IF($K65<>"",IF($L65<>"",VLOOKUP($K65,Allocations!$A$5:$K$20,8,0)*$L65,""),"") -> 0 | AH65: 0 | AI65: 0
H66: =IF(F66<>0,IF(G66<>0,(+F66-G66)/G66,""),"") ->  | M66: =IF($K66<>"",IF($L66<>"",VLOOKUP($K66,Allocations!$A$5:$K$20,3,0)*$L66,""),"") ->  | Q66: =IF($K66<>"",IF($L66<>"",VLOOKUP($K66,Allocations!$A$5:$K$20,4,0)*$L66,""),"") ->  | U66: =IF($K66<>"",IF($L66<>"",VLOOKUP($K66,Allocations!$A$5:$K$20,5,0)*$L66,""),"") ->  | Y66: =IF($K66<>"",IF($L66<>"",VLOOKUP($K66,Allocations!$A$5:$K$20,6,0)*$L66,""),"") ->  | AC66: =IF($K66<>"",IF($L66<>"",VLOOKUP($K66,Allocations!$A$5:$K$20,7,0)*$L66,""),"") ->  | AG66: =IF($K66<>"",IF($L66<>"",VLOOKUP($K66,Allocations!$A$5:$K$20,8,0)*$L66,""),"") -> 
A67: 73200 | C67: IT - Software | E67: 127120 | F67: =SUM(L67:L89) -> 124424 | G67: =(3000/7)*12 -> 5142.857143 | H67: =IF(F67<>0,IF(G67<>0,(+F67-G67)/G67,"▲"),"") -> 23.19355556 | M67: =SUM(M68:M89) -> 10689.09237 | N67: =SUM(N68:N89) -> 11223.54699 | O67: =SUM(O68:O89) -> 11784.72434 | Q67: =SUM(Q68:Q89) -> 52567.16578 | R67: =SUM(R68:R89) -> 55195.52406 | S67: =SUM(S68:S89) -> 57955.30027 | U67: =SUM(U68:U89) -> 52036.82628 | V67: =SUM(V68:V89) -> 54638.6676 | W67: =SUM(W68:W89) -> 57370.60098 | Y67: =SUM(Y68:Y89) -> 5537.490682 | Z67: =SUM(Z68:Z89) -> 5814.365216 | AA67: =SUM(AA68:AA89) -> 6105.083477 | AC67: =SUM(AC68:AC89) -> 1526.758224 | AD67: =SUM(AD68:AD89) -> 1603.096135 | AE67: =SUM(AE68:AE89) -> 1683.250942 | AG67: =SUM(AG68:AG89) -> 566.6666667 | AH67: =SUM(AH68:AH89) -> 595 | AI67: =SUM(AI68:AI89) -> 624.75
C68: Antivirus - Computer Associates | H68: =IF(F68<>0,IF(G68<>0,(+F68-G68)/G68,""),"") ->  | K68: B | L68: 2000 | M68: =IF($K68<>"",IF($L68<>"",VLOOKUP($K68,Allocations!$A$5:$K$20,3,0)*$L68,""),"") -> 220.5882353 | N68: 231.6176471 | O68: 243.1985294 | Q68: =IF($K68<>"",IF($L68<>"",VLOOKUP($K68,Allocations!$A$5:$K$20,4,0)*$L68,""),"") -> 823.5294118 | R68: 864.7058824 | S68: 907.9411765 | U68: =IF($K68<>"",IF($L68<>"",VLOOKUP($K68,Allocations!$A$5:$K$20,5,0)*$L68,""),"") -> 808.8235294 | V68: 849.2647059 | W68: 891.7279412 | Y68: =IF($K68<>"",IF($L68<>"",VLOOKUP($K68,Allocations!$A$5:$K$20,6,0)*$L68,""),"") -> 132.3529412 | Z68: 138.9705882 | AA68: 145.9191176 | AC68: =IF($K68<>"",IF($L68<>"",VLOOKUP($K68,Allocations!$A$5:$K$20,7,0)*$L68,""),"") -> 14.70588235 | AD68: 15.44117647 | AE68: 16.21323529 | AG68: =IF($K68<>"",IF($L68<>"",VLOOKUP($K68,Allocations!$A$5:$K$20,8,0)*$L68,""),"") -> 0 | AH68: 0 | AI68: 0
C69: Citrix License Renewal | D69: 2008-02-01 | I69: 1500 | K69: G | L69: 1500 | M69: =IF($K69<>"",IF($L69<>"",VLOOKUP($K69,Allocations!$A$5:$K$20,3,0)*$L69,""),"") -> 0 | N69: =IF(K69<>"",IF(M69<>"",+M69+(M69*0.05),""),"") -> 0 | O69: =IF(K69<>"",IF(N69<>"",+N69+(N69*0.05),""),"") -> 0 | Q69: =IF($K69<>"",IF($L69<>"",VLOOKUP($K69,Allocations!$A$5:$K$20,4,0)*$L69,""),"") -> 0 | R69: =IF(K69<>"",IF(Q69<>"",+Q69+(Q69*0.05),""),"") -> 0 | S69: 0 | U69: =IF($K69<>"",IF($L69<>"",VLOOKUP($K69,Allocations!$A$5:$K$20,5,0)*$L69,""),"") -> 0 | V69: 0 | W69: 0 | Y69: =IF($K69<>"",IF($L69<>"",VLOOKUP($K69,Allocations!$A$5:$K$20,6,0)*$L69,""),"") -> 0 | Z69: 0 | AA69: 0 | AC69: =IF($K69<>"",IF($L69<>"",VLOOKUP($K69,Allocations!$A$5:$K$20,7,0)*$L69,""),"") -> 0 | AD69: 0 | AE69: 0 | AG69: =IF($K69<>"",IF($L69<>"",VLOOKUP($K69,Allocations!$A$5:$K$20,8,0)*$L69,""),"") -> 0 | AH69: 0 | AI69: 0
C70: Decisioneering (Crystal Ball) | K70: B | L70: 600 | M70: =IF($K70<>"",IF($L70<>"",VLOOKUP($K70,Allocations!$A$5:$K$20,3,0)*$L70,""),"") -> 66.17647059 | N70: 69.48529412 | O70: 72.95955882 | Q70: =IF($K70<>"",IF($L70<>"",VLOOKUP($K70,Allocations!$A$5:$K$20,4,0)*$L70,""),"") -> 247.0588235 | R70: 259.4117647 | S70: 272.3823529 | U70: =IF($K70<>"",IF($L70<>"",VLOOKUP($K70,Allocations!$A$5:$K$20,5,0)*$L70,""),"") -> 242.6470588 | V70: 254.7794118 | W70: 267.5183824 | Y70: =IF($K70<>"",IF($L70<>"",VLOOKUP($K70,Allocations!$A$5:$K$20,6,0)*$L70,""),"") -> 39.70588235 | Z70: 41.69117647 | AA70: 43.77573529 | AC70: =IF($K70<>"",IF($L70<>"",VLOOKUP($K70,Allocations!$A$5:$K$20,7,0)*$L70,""),"") -> 4.411764706 | AD70: 4.632352941 | AE70: 4.863970588 | AG70: =IF($K70<>"",IF($L70<>"",VLOOKUP($K70,Allocations!$A$5:$K$20,8,0)*$L70,""),"") -> 0 | AH70: 0 | AI70: 0
C71: Diagnostics | H71: =IF(F71<>0,IF(G71<>0,(+F71-G71)/G71,""),"") ->  | K71: B | L71: 0 | M71: =IF($K71<>"",IF($L71<>"",VLOOKUP($K71,Allocations!$A$5:$K$20,3,0)*$L71,""),"") -> 0 | N71: 0 | O71: 0 | Q71: =IF($K71<>"",IF($L71<>"",VLOOKUP($K71,Allocations!$A$5:$K$20,4,0)*$L71,""),"") -> 0 | R71: 0 | S71: 0 | U71: =IF($K71<>"",IF($L71<>"",VLOOKUP($K71,Allocations!$A$5:$K$20,5,0)*$L71,""),"") -> 0 | V71: 0 | W71: 0 | Y71: =IF($K71<>"",IF($L71<>"",VLOOKUP($K71,Allocations!$A$5:$K$20,6,0)*$L71,""),"") -> 0 | Z71: 0 | AA71: 0 | AC71: =IF($K71<>"",IF($L71<>"",VLOOKUP($K71,Allocations!$A$5:$K$20,7,0)*$L71,""),"") -> 0 | AD71: 0 | AE71: 0 | AG71: =IF($K71<>"",IF($L71<>"",VLOOKUP($K71,Allocations!$A$5:$K$20,8,0)*$L71,""),"") -> 0 | AH71: 0 | AI71: 0
C72: Double-Take (Cleveland Co-Location) | D72: 2008-03-01 | I72: 8000 | K72: B | L72: 20000 | M72: =IF($K72<>"",IF($L72<>"",VLOOKUP($K72,Allocations!$A$5:$K$20,3,0)*$L72,""),"") -> 2205.882353 | N72: 2316.176471 | O72: 2431.985294 | Q72: =IF($K72<>"",IF($L72<>"",VLOOKUP($K72,Allocations!$A$5:$K$20,4,0)*$L72,""),"") -> 8235.294118 | R72: 8647.058824 | S72: 9079.411765 | U72: =IF($K72<>"",IF($L72<>"",VLOOKUP($K72,Allocations!$A$5:$K$20,5,0)*$L72,""),"") -> 8088.235294 | V72: 8492.647059 | W72: 8917.279412 | Y72: =IF($K72<>"",IF($L72<>"",VLOOKUP($K72,Allocations!$A$5:$K$20,6,0)*$L72,""),"") -> 1323.529412 | Z72: 1389.705882 | AA72: 1459.191176 | AC72: =IF($K72<>"",IF($L72<>"",VLOOKUP($K72,Allocations!$A$5:$K$20,7,0)*$L72,""),"") -> 147.0588235 | AD72: 154.4117647 | AE72: 162.1323529 | AG72: =IF($K72<>"",IF($L72<>"",VLOOKUP($K72,Allocations!$A$5:$K$20,8,0)*$L72,""),"") -> 0 | AH72: 0 | AI72: 0
C73: eXtender Enterprise Enhancement | D73: 2008-03-01 | I73: 1610 | K73: J | L73: 1700 | M73: =IF($K73<>"",IF($L73<>"",VLOOKUP($K73,Allocations!$A$5:$K$20,3,0)*$L73,""),"") -> 0 | N73: 0 | O73: 0 | Q73: =IF($K73<>"",IF($L73<>"",VLOOKUP($K73,Allocations!$A$5:$K$20,4,0)*$L73,""),"") -> 850 | R73: 892.5 | S73: 937.125 | U73: =IF($K73<>"",IF($L73<>"",VLOOKUP($K73,Allocations!$A$5:$K$20,5,0)*$L73,""),"") -> 850 | V73: 892.5 | W73: 937.125 | Y73: =IF($K73<>"",IF($L73<>"",VLOOKUP($K73,Allocations!$A$5:$K$20,6,0)*$L73,""),"") -> 0 | Z73: 0 | AA73: 0 | AC73: =IF($K73<>"",IF($L73<>"",VLOOKUP($K73,Allocations!$A$5:$K$20,7,0)*$L73,""),"") -> 0 | AD73: 0 | AE73: 0 | AG73: =IF($K73<>"",IF($L73<>"",VLOOKUP($K73,Allocations!$A$5:$K$20,8,0)*$L73,""),"") -> 0 | AH73: 0 | AI73: 0
C74: Great Plains Annual Support | D74: 2008-05-01 | H74: =IF(F74<>0,IF(G74<>0,(+F74-G74)/G74,""),"") ->  | K74: A | L74: 44000 | M74: =IF($K74<>"",IF($L74<>"",VLOOKUP($K74,Allocations!$A$5:$K$20,3,0)*$L74,""),"") -> 3473.684211 | N74: 3647.368421 | O74: 3829.736842 | Q74: =IF($K74<>"",IF($L74<>"",VLOOKUP($K74,Allocations!$A$5:$K$20,4,0)*$L74,""),"") -> 19684.21053 | R74: 20668.42105 | S74: 21701.84211 | U74: =IF($K74<>"",IF($L74<>"",VLOOKUP($K74,Allocations!$A$5:$K$20,5,0)*$L74,""),"") -> 19298.24561 | V74: 20263.15789 | W74: 21276.31579 | Y74: =IF($K74<>"",IF($L74<>"",VLOOKUP($K74,Allocations!$A$5:$K$20,6,0)*$L74,""),"") -> 385.9649123 | Z74: 405.2631579 | AA74: 425.5263158 | AC74: =IF($K74<>"",IF($L74<>"",VLOOKUP($K74,Allocations!$A$5:$K$20,7,0)*$L74,""),"") -> 771.9298246 | AD74: 810.5263158 | AE74: 851.0526316 | AG74: =IF($K74<>"",IF($L74<>"",VLOOKUP($K74,Allocations!$A$5:$K$20,8,0)*$L74,""),"") -> 385.9649123 | AH74: 405.2631579 | AI74: 425.5263158
C75: MICR | K75: A | L75: 500 | M75: =IF($K75<>"",IF($L75<>"",VLOOKUP($K75,Allocations!$A$5:$K$20,3,0)*$L75,""),"") -> 39.47368421 | N75: 41.44736842 | O75: 43.51973684 | Q75: =IF($K75<>"",IF($L75<>"",VLOOKUP($K75,Allocations!$A$5:$K$20,4,0)*$L75,""),"") -> 223.6842105 | R75: 234.8684211 | S75: 246.6118421 | U75: =IF($K75<>"",IF($L75<>"",VLOOKUP($K75,Allocations!$A$5:$K$20,5,0)*$L75,""),"") -> 219.2982456 | V75: 230.2631579 | W75: 241.7763158 | Y75: =IF($K75<>"",IF($L75<>"",VLOOKUP($K75,Allocations!$A$5:$K$20,6,0)*$L75,""),"") -> 4.385964912 | Z75: 4.605263158 | AA75: 4.835526316 | AC75: =IF($K75<>"",IF($L75<>"",VLOOKUP($K75,Allocations!$A$5:$K$20,7,0)*$L75,""),"") -> 8.771929825 | AD75: 9.210526316 | AE75: 9.671052632 | AG75: =IF($K75<>"",IF($L75<>"",VLOOKUP($K75,Allocations!$A$5:$K$20,8,0)*$L75,""),"") -> 4.385964912 | AH75: 4.605263158 | AI75: 4.835526316
C76: Myrides | K76: A | L76: 2500 | M76: =IF($K76<>"",IF($L76<>"",VLOOKUP($K76,Allocations!$A$5:$K$20,3,0)*$L76,""),"") -> 197.3684211 | N76: 207.2368421 | O76: 217.5986842 | Q76: =IF($K76<>"",IF($L76<>"",VLOOKUP($K76,Allocations!$A$5:$K$20,4,0)*$L76,""),"") -> 1118.421053 | R76: 1174.342105 | S76: 1233.059211 | U76: =IF($K76<>"",IF($L76<>"",VLOOKUP($K76,Allocations!$A$5:$K$20,5,0)*$L76,""),"") -> 1096.491228 | V76: 1151.315789 | W76: 1208.881579 | Y76: =IF($K76<>"",IF($L76<>"",VLOOKUP($K76,Allocations!$A$5:$K$20,6,0)*$L76,""),"") -> 21.92982456 | Z76: 23.02631579 | AA76: 24.17763158 | AC76: =IF($K76<>"",IF($L76<>"",VLOOKUP($K76,Allocations!$A$5:$K$20,7,0)*$L76,""),"") -> 43.85964912 | AD76: 46.05263158 | AE76: 48.35526316 | AG76: =IF($K76<>"",IF($L76<>"",VLOOKUP($K76,Allocations!$A$5:$K$20,8,0)*$L76,""),"") -> 21.92982456 | AH76: 23.02631579 | AI76: 24.17763158
C77: MSDN | H77: =IF(F77<>0,IF(G77<>0,(+F77-G77)/G77,""),"") ->  | K77: B | L77: 2800 | M77: =IF($K77<>"",IF($L77<>"",VLOOKUP($K77,Allocations!$A$5:$K$20,3,0)*$L77,""),"") -> 308.8235294 | N77: 324.2647059 | O77: 340.4779412 | Q77: =IF($K77<>"",IF($L77<>"",VLOOKUP($K77,Allocations!$A$5:$K$20,4,0)*$L77,""),"") -> 1152.941176 | R77: 1210.588235 | S77: 1271.117647 | U77: =IF($K77<>"",IF($L77<>"",VLOOKUP($K77,Allocations!$A$5:$K$20,5,0)*$L77,""),"") -> 1132.352941 | V77: 1188.970588 | W77: 1248.419118 | Y77: =IF($K77<>"",IF($L77<>"",VLOOKUP($K77,Allocations!$A$5:$K$20,6,0)*$L77,""),"") -> 185.2941176 | Z77: 194.5588235 | AA77: 204.2867647 | AC77: =IF($K77<>"",IF($L77<>"",VLOOKUP($K77,Allocations!$A$5:$K$20,7,0)*$L77,""),"") -> 20.58823529 | AD77: 21.61764706 | AE77: 22.69852941 | AG77: =IF($K77<>"",IF($L77<>"",VLOOKUP($K77,Allocations!$A$5:$K$20,8,0)*$L77,""),"") -> 0 | AH77: 0 | AI77: 0
C78: Programming Tools | K78: B | L78: 0 | M78: =IF($K78<>"",IF($L78<>"",VLOOKUP($K78,Allocations!$A$5:$K$20,3,0)*$L78,""),"") -> 0 | N78: 0 | O78: 0 | Q78: =IF($K78<>"",IF($L78<>"",VLOOKUP($K78,Allocations!$A$5:$K$20,4,0)*$L78,""),"") -> 0 | R78: 0 | S78: =IF($K78<>"",IF(R78<>"",+R78+(R78*0.05),""),"") -> 0 | U78: =IF($K78<>"",IF($L78<>"",VLOOKUP($K78,Allocations!$A$5:$K$20,5,0)*$L78,""),"") -> 0 | V78: =IF($K78<>"",IF($U78<>"",+U78+(U78*0.05),""),"") -> 0 | W78: =IF($K78<>"",IF($V78<>"",+V78+(V78*0.05),""),"") -> 0 | Y78: =IF($K78<>"",IF($L78<>"",VLOOKUP($K78,Allocations!$A$5:$K$20,6,0)*$L78,""),"") -> 0 | Z78: =IF($K78<>"",IF($Y78<>"",+Y78+(Y78*0.05),""),"") -> 0 | AA78: =IF($K78<>"",IF($Z78<>"",+Z78+(Z78*0.05),""),"") -> 0 | AC78: =IF($K78<>"",IF($L78<>"",VLOOKUP($K78,Allocations!$A$5:$K$20,7,0)*$L78,""),"") -> 0 | AD78: 0 | AE78: 0 | AG78: =IF($K78<>"",IF($L78<>"",VLOOKUP($K78,Allocations!$A$5:$K$20,8,0)*$L78,""),"") -> 0 | AH78: =IF($K78<>"",IF($AG78<>"",+AG78+(AG78*0.05),""),"") -> 0 | AI78: =IF($K78<>"",IF($AH78<>"",+AH78+(AH78*0.05),""),"") -> 0
C79: Rapid SSL Certificate | D79: 2008-01-01 | F79: =+L79 -> 100 | K79: B | L79: 100 | M79: =IF($K79<>"",IF($L79<>"",VLOOKUP($K79,Allocations!$A$5:$K$20,3,0)*$L79,""),"") -> 11.02941176 | N79: =IF(K79<>"",IF(M79<>"",+M79+(M79*0.05),""),"") -> 11.58088235 | O79: =IF(K79<>"",IF(N79<>"",+N79+(N79*0.05),""),"") -> 12.15992647 | Q79: =IF($K79<>"",IF($L79<>"",VLOOKUP($K79,Allocations!$A$5:$K$20,4,0)*$L79,""),"") -> 41.17647059 | R79: =IF(K79<>"",IF(Q79<>"",+Q79+(Q79*0.05),""),"") -> 43.23529412 | S79: =IF($K79<>"",IF(R79<>"",+R79+(R79*0.05),""),"") -> 45.39705882 | U79: =IF($K79<>"",IF($L79<>"",VLOOKUP($K79,Allocations!$A$5:$K$20,5,0)*$L79,""),"") -> 40.44117647 | V79: =IF($K79<>"",IF($U79<>"",+U79+(U79*0.05),""),"") -> 42.46323529 | W79: =IF($K79<>"",IF($V79<>"",+V79+(V79*0.05),""),"") -> 44.58639706 | Y79: =IF($K79<>"",IF($L79<>"",VLOOKUP($K79,Allocations!$A$5:$K$20,6,0)*$L79,""),"") -> 6.617647059 | Z79: =IF($K79<>"",IF($Y79<>"",+Y79+(Y79*0.05),""),"") -> 6.948529412 | AA79: =IF($K79<>"",IF($Z79<>"",+Z79+(Z79*0.05),""),"") -> 7.295955882 | AC79: =IF($K79<>"",IF($L79<>"",VLOOKUP($K79,Allocations!$A$5:$K$20,7,0)*$L79,""),"") -> 0.7352941176 | AD79: =IF($K79<>"",IF($AC79<>"",+AC79+(AC79*0.05),""),"") -> 0.7720588235 | AE79: =IF($K79<>"",IF($AD79<>"",+AD79+(AD79*0.05),""),"") -> 0.8106617647 | AG79: =IF($K79<>"",IF($L79<>"",VLOOKUP($K79,Allocations!$A$5:$K$20,8,0)*$L79,""),"") -> 0 | AH79: =IF($K79<>"",IF($AG79<>"",+AG79+(AG79*0.05),""),"") -> 0 | AI79: =IF($K79<>"",IF($AH79<>"",+AH79+(AH79*0.05),""),"") -> 0
C80: Solar Winds Network Monitoring | D80: 2007-12-01 | K80: B | L80: 500 | M80: =IF($K80<>"",IF($L80<>"",VLOOKUP($K80,Allocations!$A$5:$K$20,3,0)*$L80,""),"") -> 55.14705882 | N80: 57.90441176 | O80: 60.79963235 | Q80: =IF($K80<>"",IF($L80<>"",VLOOKUP($K80,Allocations!$A$5:$K$20,4,0)*$L80,""),"") -> 205.8823529 | R80: 216.1764706 | S80: 226.9852941 | U80: =IF($K80<>"",IF($L80<>"",VLOOKUP($K80,Allocations!$A$5:$K$20,5,0)*$L80,""),"") -> 202.2058824 | V80: 212.3161765 | W80: 222.9319853 | Y80: =IF($K80<>"",IF($L80<>"",VLOOKUP($K80,Allocations!$A$5:$K$20,6,0)*$L80,""),"") -> 33.08823529 | Z80: 34.74264706 | AA80: 36.47977941 | AC80: =IF($K80<>"",IF($L80<>"",VLOOKUP($K80,Allocations!$A$5:$K$20,7,0)*$L80,""),"") -> 3.676470588 | AD80: 3.860294118 | AE80: 4.053308824 | AG80: =IF($K80<>"",IF($L80<>"",VLOOKUP($K80,Allocations!$A$5:$K$20,8,0)*$L80,""),"") -> 0 | AH80: 0 | AI80: 0
C81: Sprint SPAM filter | K81: C | L81: 6500 | M81: =IF($K81<>"",IF($L81<>"",VLOOKUP($K81,Allocations!$A$5:$K$20,3,0)*$L81,""),"") -> 859.5041322 | N81: 902.4793388 | O81: 947.6033058 | Q81: =IF($K81<>"",IF($L81<>"",VLOOKUP($K81,Allocations!$A$5:$K$20,4,0)*$L81,""),"") -> 2363.636364 | R81: 2481.818182 | S81: 2605.909091 | U81: =IF($K81<>"",IF($L81<>"",VLOOKUP($K81,Allocations!$A$5:$K$20,5,0)*$L81,""),"") -> 2739.669421 | V81: 2876.652893 | W81: 3020.485537 | Y81: =IF($K81<>"",IF($L81<>"",VLOOKUP($K81,Allocations!$A$5:$K$20,6,0)*$L81,""),"") -> 483.4710744 | Z81: 507.6446281 | AA81: 533.0268595 | AC81: =IF($K81<>"",IF($L81<>"",VLOOKUP($K81,Allocations!$A$5:$K$20,7,0)*$L81,""),"") -> 53.71900826 | AD81: =IF($K81<>"",IF($AC81<>"",+AC81+(AC81*0.05),""),"") -> 56.40495868 | AE81: =IF($K81<>"",IF($AD81<>"",+AD81+(AD81*0.05),""),"") -> 59.22520661 | AG81: =IF($K81<>"",IF($L81<>"",VLOOKUP($K81,Allocations!$A$5:$K$20,8,0)*$L81,""),"") -> 0 | AH81: 0 | AI81: 0
C82: SQL Server 2005 Enterprise | K82: A | L82: =8000*2.2 -> 17600 | M82: =IF($K82<>"",IF($L82<>"",VLOOKUP($K82,Allocations!$A$5:$K$20,3,0)*$L82,""),"") -> 1389.473684 | N82: 1458.947368 | O82: 1531.894737 | Q82: =IF($K82<>"",IF($L82<>"",VLOOKUP($K82,Allocations!$A$5:$K$20,4,0)*$L82,""),"") -> 7873.684211 | R82: 8267.368421 | S82: 8680.736842 | U82: =IF($K82<>"",IF($L82<>"",VLOOKUP($K82,Allocations!$A$5:$K$20,5,0)*$L82,""),"") -> 7719.298246 | V82: 8105.263158 | W82: 8510.526316 | Y82: =IF($K82<>"",IF($L82<>"",VLOOKUP($K82,Allocations!$A$5:$K$20,6,0)*$L82,""),"") -> 154.3859649 | Z82: 162.1052632 | AA82: 170.2105263 | AC82: =IF($K82<>"",IF($L82<>"",VLOOKUP($K82,Allocations!$A$5:$K$20,7,0)*$L82,""),"") -> 308.7719298 | AD82: 324.2105263 | AE82: 340.4210526 | AG82: =IF($K82<>"",IF($L82<>"",VLOOKUP($K82,Allocations!$A$5:$K$20,8,0)*$L82,""),"") -> 154.3859649 | AH82: 162.1052632 | AI82: 170.2105263
C83: TrackIT | K83: B | L83: 1200 | M83: =IF($K83<>"",IF($L83<>"",VLOOKUP($K83,Allocations!$A$5:$K$20,3,0)*$L83,""),"") -> 132.3529412 | N83: 138.9705882 | O83: 145.9191176 | Q83: =IF($K83<>"",IF($L83<>"",VLOOKUP($K83,Allocations!$A$5:$K$20,4,0)*$L83,""),"") -> 494.1176471 | R83: 518.8235294 | S83: 544.7647059 | U83: =IF($K83<>"",IF($L83<>"",VLOOKUP($K83,Allocations!$A$5:$K$20,5,0)*$L83,""),"") -> 485.2941176 | V83: 509.5588235 | W83: 535.0367647 | Y83: =IF($K83<>"",IF($L83<>"",VLOOKUP($K83,Allocations!$A$5:$K$20,6,0)*$L83,""),"") -> 79.41176471 | Z83: 83.38235294 | AA83: 87.55147059 | AC83: =IF($K83<>"",IF($L83<>"",VLOOKUP($K83,Allocations!$A$5:$K$20,7,0)*$L83,""),"") -> 8.823529412 | AD83: 9.264705882 | AE83: 9.727941176 | AG83: =IF($K83<>"",IF($L83<>"",VLOOKUP($K83,Allocations!$A$5:$K$20,8,0)*$L83,""),"") -> 0 | AH83: 0 | AI83: 0
C84: Symantec | D84: 2008-02-01 | K84: B | L84: 8200 | M84: =IF($K84<>"",IF($L84<>"",VLOOKUP($K84,Allocations!$A$5:$K$20,3,0)*$L84,""),"") -> 904.4117647 | N84: 949.6323529 | O84: 997.1139706 | Q84: =IF($K84<>"",IF($L84<>"",VLOOKUP($K84,Allocations!$A$5:$K$20,4,0)*$L84,""),"") -> 3376.470588 | R84: 3545.294118 | S84: 3722.558824 | U84: =IF($K84<>"",IF($L84<>"",VLOOKUP($K84,Allocations!$A$5:$K$20,5,0)*$L84,""),"") -> 3316.176471 | V84: 3481.985294 | W84: 3656.084559 | Y84: =IF($K84<>"",IF($L84<>"",VLOOKUP($K84,Allocations!$A$5:$K$20,6,0)*$L84,""),"") -> 542.6470588 | Z84: 569.7794118 | AA84: 598.2683824 | AC84: =IF($K84<>"",IF($L84<>"",VLOOKUP($K84,Allocations!$A$5:$K$20,7,0)*$L84,""),"") -> 60.29411765 | AD84: 63.30882353 | AE84: 66.47426471 | AG84: =IF($K84<>"",IF($L84<>"",VLOOKUP($K84,Allocations!$A$5:$K$20,8,0)*$L84,""),"") -> 0 | AH84: 0 | AI84: 0
C85: Web and Domain | K85: B | L85: 2500 | M85: =IF($K85<>"",IF($L85<>"",VLOOKUP($K85,Allocations!$A$5:$K$20,3,0)*$L85,""),"") -> 275.7352941 | N85: 289.5220588 | O85: 303.9981618 | Q85: =IF($K85<>"",IF($L85<>"",VLOOKUP($K85,Allocations!$A$5:$K$20,4,0)*$L85,""),"") -> 1029.411765 | R85: 1080.882353 | S85: 1134.926471 | U85: =IF($K85<>"",IF($L85<>"",VLOOKUP($K85,Allocations!$A$5:$K$20,5,0)*$L85,""),"") -> 1011.029412 | V85: 1061.580882 | W85: 1114.659926 | Y85: =IF($K85<>"",IF($L85<>"",VLOOKUP($K85,Allocations!$A$5:$K$20,6,0)*$L85,""),"") -> 165.4411765 | Z85: 173.7132353 | AA85: 182.3988971 | AC85: =IF($K85<>"",IF($L85<>"",VLOOKUP($K85,Allocations!$A$5:$K$20,7,0)*$L85,""),"") -> 18.38235294 | AD85: 19.30147059 | AE85: 20.26654412 | AG85: =IF($K85<>"",IF($L85<>"",VLOOKUP($K85,Allocations!$A$5:$K$20,8,0)*$L85,""),"") -> 0 | AH85: 0 | AI85: 0
C86: Web Sense | K86: B | L86: 8300 | M86: =IF($K86<>"",IF($L86<>"",VLOOKUP($K86,Allocations!$A$5:$K$20,3,0)*$L86,""),"") -> 915.4411765 | N86: 961.2132353 | O86: 1009.273897 | Q86: =IF($K86<>"",IF($L86<>"",VLOOKUP($K86,Allocations!$A$5:$K$20,4,0)*$L86,""),"") -> 3417.647059 | R86: 3588.529412 | S86: 3767.955882 | U86: =IF($K86<>"",IF($L86<>"",VLOOKUP($K86,Allocations!$A$5:$K$20,5,0)*$L86,""),"") -> 3356.617647 | V86: 3524.448529 | W86: 3700.670956 | Y86: =IF($K86<>"",IF($L86<>"",VLOOKUP($K86,Allocations!$A$5:$K$20,6,0)*$L86,""),"") -> 549.2647059 | Z86: 576.7279412 | AA86: 605.5643382 | AC86: =IF($K86<>"",IF($L86<>"",VLOOKUP($K86,Allocations!$A$5:$K$20,7,0)*$L86,""),"") -> 61.02941176 | AD86: 64.08088235 | AE86: 67.28492647 | AG86: =IF($K86<>"",IF($L86<>"",VLOOKUP($K86,Allocations!$A$5:$K$20,8,0)*$L86,""),"") -> 0 | AH86: 0 | AI86: 0
C87: XL Reporter | K87: I | L87: =5200+(5200*0.1) -> 5720 | M87: =IF($K87<>"",IF($L87<>"",VLOOKUP($K87,Allocations!$A$5:$K$20,3,0)*$L87,""),"") -> 1430 | N87: =IF(K87<>"",IF(M87<>"",+M87+(M87*0.05),""),"") -> 1501.5 | O87: =IF(K87<>"",IF(N87<>"",+N87+(N87*0.05),""),"") -> 1576.575 | Q87: =IF($K87<>"",IF($L87<>"",VLOOKUP($K87,Allocations!$A$5:$K$20,4,0)*$L87,""),"") -> 1430 | R87: =IF(K87<>"",IF(Q87<>"",+Q87+(Q87*0.05),""),"") -> 1501.5 | S87: 1576.575 | U87: =IF($K87<>"",IF($L87<>"",VLOOKUP($K87,Allocations!$A$5:$K$20,5,0)*$L87,""),"") -> 1430 | V87: 1501.5 | W87: 1576.575 | Y87: =IF($K87<>"",IF($L87<>"",VLOOKUP($K87,Allocations!$A$5:$K$20,6,0)*$L87,""),"") -> 1430 | Z87: 1501.5 | AA87: 1576.575 | AC87: =IF($K87<>"",IF($L87<>"",VLOOKUP($K87,Allocations!$A$5:$K$20,7,0)*$L87,""),"") -> 0 | AD87: 0 | AE87: 0 | AG87: =IF($K87<>"",IF($L87<>"",VLOOKUP($K87,Allocations!$A$5:$K$20,8,0)*$L87,""),"") -> 0 | AH87: 0 | AI87: 0
C88: Ratification Adjustment | K88: K | L88: -1796 | M88: =IF($K88<>"",IF($L88<>"",VLOOKUP($K88,Allocations!$A$5:$K$20,3,0)*$L88,""),"") -> -1796 | N88: =IF(K88<>"",IF(M88<>"",+M88+(M88*0.05),""),"") -> -1885.8 | O88: =IF(K88<>"",IF(N88<>"",+N88+(N88*0.05),""),"") -> -1980.09 | Q88: =IF($K88<>"",IF($L88<>"",VLOOKUP($K88,Allocations!$A$5:$K$20,4,0)*$L88,""),"") -> 0 | R88: =IF(K88<>"",IF(Q88<>"",+Q88+(Q88*0.05),""),"") -> 0 | S88: 0 | U88: =IF($K88<>"",IF($L88<>"",VLOOKUP($K88,Allocations!$A$5:$K$20,5,0)*$L88,""),"") -> 0 | V88: 0 | W88: 0 | Y88: =IF($K88<>"",IF($L88<>"",VLOOKUP($K88,Allocations!$A$5:$K$20,6,0)*$L88,""),"") -> 0 | Z88: 0 | AA88: 0 | AC88: =IF($K88<>"",IF($L88<>"",VLOOKUP($K88,Allocations!$A$5:$K$20,7,0)*$L88,""),"") -> 0 | AD88: 0 | AE88: 0 | AG88: =IF($K88<>"",IF($L88<>"",VLOOKUP($K88,Allocations!$A$5:$K$20,8,0)*$L88,""),"") -> 0 | AH88: 0 | AI88: 0
H89: =IF(F89<>0,IF(G89<>0,(+F89-G89)/G89,""),"") ->  | M89: =IF($K89<>"",IF($L89<>"",VLOOKUP($K89,Allocations!$A$5:$K$20,3,0)*$L89,""),"") ->  | Q89: =IF($K89<>"",IF($L89<>"",VLOOKUP($K89,Allocations!$A$5:$K$20,4,0)*$L89,""),"") ->  | U89: =IF($K89<>"",IF($L89<>"",VLOOKUP($K89,Allocations!$A$5:$K$20,5,0)*$L89,""),"") ->  | Y89: =IF($K89<>"",IF($L89<>"",VLOOKUP($K89,Allocations!$A$5:$K$20,6,0)*$L89,""),"") ->  | AC89: =IF($K89<>"",IF($L89<>"",VLOOKUP($K89,Allocations!$A$5:$K$20,7,0)*$L89,""),"") ->  | AG89: =IF($K89<>"",IF($L89<>"",VLOOKUP($K89,Allocations!$A$5:$K$20,8,0)*$L89,""),"") -> 
A90: 73300 | C90: IT - Data Storage | E90: 5040 | F90: =SUM(L90:L93) -> 4315 | H90: =IF(F90<>0,IF(G90<>0,(+F90-G90)/G90,"▲"),"") -> ▲ | M90: =SUM(M91:M93) -> -169.1176471 | N90: =SUM(N91:N93) -> -177.5735294 | O90: =SUM(O91:O93) -> -186.4522059 | Q90: =SUM(Q91:Q93) -> 2075.294118 | R90: =SUM(R91:R93) -> 2179.058824 | S90: =SUM(S91:S93) -> 2288.011765 | U90: =SUM(U91:U93) -> 2038.235294 | V90: =SUM(V91:V93) -> 2140.147059 | W90: =SUM(W91:W93) -> 2247.154412 | Y90: =SUM(Y91:Y93) -> 333.5294118 | Z90: =SUM(Z91:Z93) -> 350.2058824 | AA90: =SUM(AA91:AA93) -> 367.7161765 | AC90: =SUM(AC91:AC93) -> 37.05882353 | AD90: =SUM(AD91:AD93) -> 38.91176471 | AE90: =SUM(AE91:AE93) -> 40.85735294 | AG90: =SUM(AG91:AG93) -> 0 | AH90: =SUM(AH91:AH93) -> 0 | AI90: =SUM(AI91:AI93) -> 0
C91: Offsite Data Storage and Recovery | H91: =IF(F91<>0,IF(G91<>0,(+F91-G91)/G91,""),"") ->  | K91: B | L91: =420*12 -> 5040 | M91: =IF($K91<>"",IF($L91<>"",VLOOKUP($K91,Allocations!$A$5:$K$20,3,0)*$L91,""),"") -> 555.8823529 | N91: 583.6764706 | O91: 612.8602941 | Q91: =IF($K91<>"",IF($L91<>"",VLOOKUP($K91,Allocations!$A$5:$K$20,4,0)*$L91,""),"") -> 2075.294118 | R91: 2179.058824 | S91: 2288.011765 | U91: =IF($K91<>"",IF($L91<>"",VLOOKUP($K91,Allocations!$A$5:$K$20,5,0)*$L91,""),"") -> 2038.235294 | V91: 2140.147059 | W91: 2247.154412 | Y91: =IF($K91<>"",IF($L91<>"",VLOOKUP($K91,Allocations!$A$5:$K$20,6,0)*$L91,""),"") -> 333.5294118 | Z91: 350.2058824 | AA91: 367.7161765 | AC91: =IF($K91<>"",IF($L91<>"",VLOOKUP($K91,Allocations!$A$5:$K$20,7,0)*$L91,""),"") -> 37.05882353 | AD91: 38.91176471 | AE91: 40.85735294 | AG91: =IF($K91<>"",IF($L91<>"",VLOOKUP($K91,Allocations!$A$5:$K$20,8,0)*$L91,""),"") -> 0 | AH91: 0 | AI91: 0
C92: Ratification Adjustment | K92: K | L92: -725 | M92: =IF($K92<>"",IF($L92<>"",VLOOKUP($K92,Allocations!$A$5:$K$20,3,0)*$L92,""),"") -> -725 | N92: =IF(K92<>"",IF(M92<>"",+M92+(M92*0.05),""),"") -> -761.25 | O92: =IF(K92<>"",IF(N92<>"",+N92+(N92*0.05),""),"") -> -799.3125 | Q92: =IF($K92<>"",IF($L92<>"",VLOOKUP($K92,Allocations!$A$5:$K$20,4,0)*$L92,""),"") -> 0 | R92: =IF(K92<>"",IF(Q92<>"",+Q92+(Q92*0.05),""),"") -> 0 | S92: =IF($K92<>"",IF(R92<>"",+R92+(R92*0.05),""),"") -> 0 | U92: =IF($K92<>"",IF($L92<>"",VLOOKUP($K92,Allocations!$A$5:$K$20,5,0)*$L92,""),"") -> 0 | V92: =IF($K92<>"",IF($U92<>"",+U92+(U92*0.05),""),"") -> 0 | W92: =IF($K92<>"",IF($V92<>"",+V92+(V92*0.05),""),"") -> 0 | Y92: =IF($K92<>"",IF($L92<>"",VLOOKUP($K92,Allocations!$A$5:$K$20,6,0)*$L92,""),"") -> 0 | Z92: =IF($K92<>"",IF($Y92<>"",+Y92+(Y92*0.05),""),"") -> 0 | AA92: =IF($K92<>"",IF($Z92<>"",+Z92+(Z92*0.05),""),"") -> 0 | AC92: =IF($K92<>"",IF($L92<>"",VLOOKUP($K92,Allocations!$A$5:$K$20,7,0)*$L92,""),"") -> 0 | AD92: =IF($K92<>"",IF($AC92<>"",+AC92+(AC92*0.05),""),"") -> 0 | AE92: =IF($K92<>"",IF($AD92<>"",+AD92+(AD92*0.05),""),"") -> 0 | AG92: =IF($K92<>"",IF($L92<>"",VLOOKUP($K92,Allocations!$A$5:$K$20,8,0)*$L92,""),"") -> 0 | AH92: =IF($K92<>"",IF($AG92<>"",+AG92+(AG92*0.05),""),"") -> 0 | AI92: =IF($K92<>"",IF($AH92<>"",+AH92+(AH92*0.05),""),"") -> 0
H93: =IF(F93<>0,IF(G93<>0,(+F93-G93)/G93,""),"") ->  | M93: =IF($K93<>"",IF($L93<>"",VLOOKUP($K93,Allocations!$A$5:$K$20,3,0)*$L93,""),"") ->  | Q93: =IF($K93<>"",IF($L93<>"",VLOOKUP($K93,Allocations!$A$5:$K$20,4,0)*$L93,""),"") ->  | U93: =IF($K93<>"",IF($L93<>"",VLOOKUP($K93,Allocations!$A$5:$K$20,5,0)*$L93,""),"") ->  | Y93: =IF($K93<>"",IF($L93<>"",VLOOKUP($K93,Allocations!$A$5:$K$20,6,0)*$L93,""),"") ->  | AC93: =IF($K93<>"",IF($L93<>"",VLOOKUP($K93,Allocations!$A$5:$K$20,7,0)*$L93,""),"") ->  | AG93: =IF($K93<>"",IF($L93<>"",VLOOKUP($K93,Allocations!$A$5:$K$20,8,0)*$L93,""),"") -> 
A94: 73400 | C94: IT - Other | E94: 11228 | F94: =SUM(L94:L105) -> 23514 | G94: =(17000/7)*12 -> 29142.85714 | H94: =IF(F94<>0,IF(G94<>0,(+F94-G94)/G94,"▲"),"") -> -0.1931470588 | M94: =SUM(M95:M105) -> 14683.65944 | N94: =SUM(N95:N105) -> 15417.84241 | O94: =SUM(O95:O105) -> 16188.73454 | Q94: =SUM(Q95:Q105) -> 4015.325077 | R94: =SUM(R95:R105) -> 4216.091331 | S94: =SUM(S95:S105) -> 4426.895898 | U94: =SUM(U95:U105) -> 3753.663571 | V94: =SUM(V95:V105) -> 3941.346749 | W94: =SUM(W95:W105) -> 4138.414087 | Y94: =SUM(Y95:Y105) -> 864.6026832 | Z94: =SUM(Z95:Z105) -> 907.8328173 | AA94: =SUM(AA95:AA105) -> 953.2244582 | AC94: =SUM(AC95:AC105) -> 79.20536636 | AD94: =SUM(AD95:AD105) -> 83.16563467 | AE94: =SUM(AE95:AE105) -> 87.32391641 | AG94: =SUM(AG95:AG105) -> 117.5438596 | AH94: =SUM(AH95:AH105) -> 123.4210526 | AI94: =SUM(AI95:AI105) -> 129.5921053
C95: eWaste | D95: 2008-03-08 | H95: =IF(F95<>0,IF(G95<>0,(+F95-G95)/G95,""),"") ->  | I95: 1000 | K95: B | L95: 5000 | M95: =IF($K95<>"",IF($L95<>"",VLOOKUP($K95,Allocations!$A$5:$K$20,3,0)*$L95,""),"") -> 551.4705882 | N95: 579.0441176 | O95: 607.9963235 | Q95: =IF($K95<>"",IF($L95<>"",VLOOKUP($K95,Allocations!$A$5:$K$20,4,0)*$L95,""),"") -> 2058.823529 | R95: 2161.764706 | S95: 2269.852941 | U95: =IF($K95<>"",IF($L95<>"",VLOOKUP($K95,Allocations!$A$5:$K$20,5,0)*$L95,""),"") -> 2022.058824 | V95: 2123.161765 | W95: 2229.319853 | Y95: =IF($K95<>"",IF($L95<>"",VLOOKUP($K95,Allocations!$A$5:$K$20,6,0)*$L95,""),"") -> 330.8823529 | Z95: 347.4264706 | AA95: 364.7977941 | AC95: =IF($K95<>"",IF($L95<>"",VLOOKUP($K95,Allocations!$A$5:$K$20,7,0)*$L95,""),"") -> 36.76470588 | AD95: 38.60294118 | AE95: 40.53308824 | AG95: =IF($K95<>"",IF($L95<>"",VLOOKUP($K95,Allocations!$A$5:$K$20,8,0)*$L95,""),"") -> 0 | AH95: 0 | AI95: 0
C96: Microsoft Incident Support | H96: =IF(F96<>0,IF(G96<>0,(+F96-G96)/G96,""),"") ->  | K96: A | L96: 2000 | M96: =IF($K96<>"",IF($L96<>"",VLOOKUP($K96,Allocations!$A$5:$K$20,3,0)*$L96,""),"") -> 157.8947368 | N96: 165.7894737 | O96: 174.0789474 | Q96: =IF($K96<>"",IF($L96<>"",VLOOKUP($K96,Allocations!$A$5:$K$20,4,0)*$L96,""),"") -> 894.7368421 | R96: 939.4736842 | S96: 986.4473684 | U96: =IF($K96<>"",IF($L96<>"",VLOOKUP($K96,Allocations!$A$5:$K$20,5,0)*$L96,""),"") -> 877.1929825 | V96: 921.0526316 | W96: 967.1052632 | Y96: =IF($K96<>"",IF($L96<>"",VLOOKUP($K96,Allocations!$A$5:$K$20,6,0)*$L96,""),"") -> 17.54385965 | Z96: 18.42105263 | AA96: 19.34210526 | AC96: =IF($K96<>"",IF($L96<>"",VLOOKUP($K96,Allocations!$A$5:$K$20,7,0)*$L96,""),"") -> 35.0877193 | AD96: 36.84210526 | AE96: 38.68421053 | AG96: =IF($K96<>"",IF($L96<>"",VLOOKUP($K96,Allocations!$A$5:$K$20,8,0)*$L96,""),"") -> 17.54385965 | AH96: 18.42105263 | AI96: 19.34210526
C97: Miscellaneous | H97: =IF(F97<>0,IF(G97<>0,(+F97-G97)/G97,""),"") ->  | K97: B | L97: 1000 | M97: =IF($K97<>"",IF($L97<>"",VLOOKUP($K97,Allocations!$A$5:$K$20,3,0)*$L97,""),"") -> 110.2941176 | N97: 115.8088235 | O97: 121.5992647 | Q97: =IF($K97<>"",IF($L97<>"",VLOOKUP($K97,Allocations!$A$5:$K$20,4,0)*$L97,""),"") -> 411.7647059 | R97: 432.3529412 | S97: 453.9705882 | U97: =IF($K97<>"",IF($L97<>"",VLOOKUP($K97,Allocations!$A$5:$K$20,5,0)*$L97,""),"") -> 404.4117647 | V97: 424.6323529 | W97: 445.8639706 | Y97: =IF($K97<>"",IF($L97<>"",VLOOKUP($K97,Allocations!$A$5:$K$20,6,0)*$L97,""),"") -> 66.17647059 | Z97: 69.48529412 | AA97: 72.95955882 | AC97: =IF($K97<>"",IF($L97<>"",VLOOKUP($K97,Allocations!$A$5:$K$20,7,0)*$L97,""),"") -> 7.352941176 | AD97: 7.720588235 | AE97: 8.106617647 | AG97: =IF($K97<>"",IF($L97<>"",VLOOKUP($K97,Allocations!$A$5:$K$20,8,0)*$L97,""),"") -> 0 | AH97: 0 | AI97: 0
C98: Website Development | H98: =IF(F98<>0,IF(G98<>0,(+F98-G98)/G98,""),"") ->  | K98: K | L98: 1000 | M98: =IF($K98<>"",IF($L98<>"",VLOOKUP($K98,Allocations!$A$5:$K$20,3,0)*$L98,""),"") -> 1000 | N98: 1050 | O98: 1102.5 | Q98: =IF($K98<>"",IF($L98<>"",VLOOKUP($K98,Allocations!$A$5:$K$20,4,0)*$L98,""),"") -> 0 | R98: 0 | S98: 0 | U98: =IF($K98<>"",IF($L98<>"",VLOOKUP($K98,Allocations!$A$5:$K$20,5,0)*$L98,""),"") -> 0 | V98: 0 | W98: 0 | Y98: =IF($K98<>"",IF($L98<>"",VLOOKUP($K98,Allocations!$A$5:$K$20,6,0)*$L98,""),"") -> 0 | Z98: 0 | AA98: 0 | AC98: =IF($K98<>"",IF($L98<>"",VLOOKUP($K98,Allocations!$A$5:$K$20,7,0)*$L98,""),"") -> 0 | AD98: 0 | AE98: 0 | AG98: =IF($K98<>"",IF($L98<>"",VLOOKUP($K98,Allocations!$A$5:$K$20,8,0)*$L98,""),"") -> 0 | AH98: 0 | AI98: 0
C99: Hosting and Registrations (SMI) | K99: K | L99: 578 | M99: =IF($K99<>"",IF($L99<>"",VLOOKUP($K99,Allocations!$A$5:$K$20,3,0)*$L99,""),"") -> 578 | N99: 606.9 | O99: 637.245 | Q99: =IF($K99<>"",IF($L99<>"",VLOOKUP($K99,Allocations!$A$5:$K$20,4,0)*$L99,""),"") -> 0 | R99: 0 | S99: 0 | U99: =IF($K99<>"",IF($L99<>"",VLOOKUP($K99,Allocations!$A$5:$K$20,5,0)*$L99,""),"") -> 0 | V99: 0 | W99: 0 | Y99: =IF($K99<>"",IF($L99<>"",VLOOKUP($K99,Allocations!$A$5:$K$20,6,0)*$L99,""),"") -> 0 | Z99: 0 | AA99: 0 | AC99: =IF($K99<>"",IF($L99<>"",VLOOKUP($K99,Allocations!$A$5:$K$20,7,0)*$L99,""),"") -> 0 | AD99: 0 | AE99: 0 | AG99: =IF($K99<>"",IF($L99<>"",VLOOKUP($K99,Allocations!$A$5:$K$20,8,0)*$L99,""),"") -> 0 | AH99: 0 | AI99: 0
C100: Hosting and Registrations (IPD) | K100: L | L100: 650 | M100: =IF($K100<>"",IF($L100<>"",VLOOKUP($K100,Allocations!$A$5:$K$20,3,0)*$L100,""),"") -> 0 | N100: 0 | O100: 0 | Q100: =IF($K100<>"",IF($L100<>"",VLOOKUP($K100,Allocations!$A$5:$K$20,4,0)*$L100,""),"") -> 650 | R100: 682.5 | S100: 716.625 | U100: =IF($K100<>"",IF($L100<>"",VLOOKUP($K100,Allocations!$A$5:$K$20,5,0)*$L100,""),"") -> 0 | V100: 0 | W100: 0 | Y100: =IF($K100<>"",IF($L100<>"",VLOOKUP($K100,Allocations!$A$5:$K$20,6,0)*$L100,""),"") -> 0 | Z100: 0 | AA100: 0 | AC100: =IF($K100<>"",IF($L100<>"",VLOOKUP($K100,Allocations!$A$5:$K$20,7,0)*$L100,""),"") -> 0 | AD100: 0 | AE100: 0 | AG100: =IF($K100<>"",IF($L100<>"",VLOOKUP($K100,Allocations!$A$5:$K$20,8,0)*$L100,""),"") -> 0 | AH100: 0 | AI100: 0
C101: Hosting and Registrations (SMG) | K101: M | L101: 450 | M101: =IF($K101<>"",IF($L101<>"",VLOOKUP($K101,Allocations!$A$5:$K$20,3,0)*$L101,""),"") -> 0 | N101: 0 | O101: 0 | Q101: =IF($K101<>"",IF($L101<>"",VLOOKUP($K101,Allocations!$A$5:$K$20,4,0)*$L101,""),"") -> 0 | R101: 0 | S101: 0 | U101: =IF($K101<>"",IF($L101<>"",VLOOKUP($K101,Allocations!$A$5:$K$20,5,0)*$L101,""),"") -> 450 | V101: 472.5 | W101: 496.125 | Y101: =IF($K101<>"",IF($L101<>"",VLOOKUP($K101,Allocations!$A$5:$K$20,6,0)*$L101,""),"") -> 0 | Z101: 0 | AA101: 0 | AC101: =IF($K101<>"",IF($L101<>"",VLOOKUP($K101,Allocations!$A$5:$K$20,7,0)*$L101,""),"") -> 0 | AD101: 0 | AE101: 0 | AG101: =IF($K101<>"",IF($L101<>"",VLOOKUP($K101,Allocations!$A$5:$K$20,8,0)*$L101,""),"") -> 0 | AH101: 0 | AI101: 0
C102: Hosting and Registrations (SP/SWD) | K102: N | L102: 450 | M102: =IF($K102<>"",IF($L102<>"",VLOOKUP($K102,Allocations!$A$5:$K$20,3,0)*$L102,""),"") -> 0 | N102: 0 | O102: 0 | Q102: =IF($K102<>"",IF($L102<>"",VLOOKUP($K102,Allocations!$A$5:$K$20,4,0)*$L102,""),"") -> 0 | R102: 0 | S102: 0 | U102: =IF($K102<>"",IF($L102<>"",VLOOKUP($K102,Allocations!$A$5:$K$20,5,0)*$L102,""),"") -> 0 | V102: 0 | W102: 0 | Y102: =IF($K102<>"",IF($L102<>"",VLOOKUP($K102,Allocations!$A$5:$K$20,6,0)*$L102,""),"") -> 450 | Z102: 472.5 | AA102: 496.125 | AC102: =IF($K102<>"",IF($L102<>"",VLOOKUP($K102,Allocations!$A$5:$K$20,7,0)*$L102,""),"") -> 0 | AD102: 0 | AE102: 0 | AG102: =IF($K102<>"",IF($L102<>"",VLOOKUP($K102,Allocations!$A$5:$K$20,8,0)*$L102,""),"") -> 0 | AH102: 0 | AI102: 0
C103: Hosting and Registrations (RVR) | K103: P | L103: 100 | M103: =IF($K103<>"",IF($L103<>"",VLOOKUP($K103,Allocations!$A$5:$K$20,3,0)*$L103,""),"") -> 0 | N103: 0 | O103: 0 | Q103: =IF($K103<>"",IF($L103<>"",VLOOKUP($K103,Allocations!$A$5:$K$20,4,0)*$L103,""),"") -> 0 | R103: 0 | S103: 0 | U103: =IF($K103<>"",IF($L103<>"",VLOOKUP($K103,Allocations!$A$5:$K$20,5,0)*$L103,""),"") -> 0 | V103: 0 | W103: 0 | Y103: =IF($K103<>"",IF($L103<>"",VLOOKUP($K103,Allocations!$A$5:$K$20,6,0)*$L103,""),"") -> 0 | Z103: 0 | AA103: 0 | AC103: =IF($K103<>"",IF($L103<>"",VLOOKUP($K103,Allocations!$A$5:$K$20,7,0)*$L103,""),"") -> 0 | AD103: 0 | AE103: 0 | AG103: =IF($K103<>"",IF($L103<>"",VLOOKUP($K103,Allocations!$A$5:$K$20,8,0)*$L103,""),"") -> 100 | AH103: 105 | AI103: 110.25
C104: Ratification Adjustment | K104: K | L104: 12286 | M104: =IF($K104<>"",IF($L104<>"",VLOOKUP($K104,Allocations!$A$5:$K$20,3,0)*$L104,""),"") -> 12286 | N104: =IF(K104<>"",IF(M104<>"",+M104+(M104*0.05),""),"") -> 12900.3 | O104: =IF(K104<>"",IF(N104<>"",+N104+(N104*0.05),""),"") -> 13545.315 | Q104: =IF($K104<>"",IF($L104<>"",VLOOKUP($K104,Allocations!$A$5:$K$20,4,0)*$L104,""),"") -> 0 | R104: =IF(K104<>"",IF(Q104<>"",+Q104+(Q104*0.05),""),"") -> 0 | S104: 0 | U104: =IF($K104<>"",IF($L104<>"",VLOOKUP($K104,Allocations!$A$5:$K$20,5,0)*$L104,""),"") -> 0 | V104: 0 | W104: 0 | Y104: =IF($K104<>"",IF($L104<>"",VLOOKUP($K104,Allocations!$A$5:$K$20,6,0)*$L104,""),"") -> 0 | Z104: 0 | AA104: 0 | AC104: =IF($K104<>"",IF($L104<>"",VLOOKUP($K104,Allocations!$A$5:$K$20,7,0)*$L104,""),"") -> 0 | AD104: 0 | AE104: 0 | AG104: =IF($K104<>"",IF($L104<>"",VLOOKUP($K104,Allocations!$A$5:$K$20,8,0)*$L104,""),"") -> 0 | AH104: 0 | AI104: 0
H105: =IF(F105<>0,IF(G105<>0,(+F105-G105)/G105,""),"") ->  | M105: =IF($K105<>"",IF($L105<>"",VLOOKUP($K105,Allocations!$A$5:$K$20,3,0)*$L105,""),"") ->  | Q105: =IF($K105<>"",IF($L105<>"",VLOOKUP($K105,Allocations!$A$5:$K$20,4,0)*$L105,""),"") ->  | U105: =IF($K105<>"",IF($L105<>"",VLOOKUP($K105,Allocations!$A$5:$K$20,5,0)*$L105,""),"") ->  | Y105: =IF($K105<>"",IF($L105<>"",VLOOKUP($K105,Allocations!$A$5:$K$20,6,0)*$L105,""),"") ->  | AC105: =IF($K105<>"",IF($L105<>"",VLOOKUP($K105,Allocations!$A$5:$K$20,7,0)*$L105,""),"") ->  | AG105: =IF($K105<>"",IF($L105<>"",VLOOKUP($K105,Allocations!$A$5:$K$20,8,0)*$L105,""),"") -> 
A106: 73500 | C106: Telephone | E106: 183170 | F106: =SUM(L106:L116) -> 171655 | G106: =(7000/7)*12 -> 12000 | H106: =IF(F106<>0,IF(G106<>0,(+F106-G106)/G106,"▲"),"") -> 13.30458333 | M106: =SUM(M107:M116) -> 13738.82609 | N106: =SUM(N107:N116) -> 14425.76739 | O106: =SUM(O107:O116) -> 15147.05576 | Q106: =SUM(Q107:Q116) -> 73158.08696 | R106: =SUM(R107:R116) -> 76815.9913 | S106: =SUM(S107:S116) -> 80656.79087 | U106: =SUM(U107:U116) -> 59621.21739 | V106: =SUM(V107:V116) -> 62602.27826 | W106: =SUM(W107:W116) -> 65732.39217 | Y106: =SUM(Y107:Y116) -> 23236.86957 | Z106: =SUM(Z107:Z116) -> 24398.71304 | AA106: =SUM(AA107:AA116) -> 25618.6487 | AC106: =SUM(AC107:AC116) -> 400 | AD106: =SUM(AD107:AD116) -> 420 | AE106: =SUM(AE107:AE116) -> 441 | AG106: =SUM(AG107:AG116) -> 1500 | AH106: =SUM(AH107:AH116) -> 1575 | AI106: =SUM(AI107:AI116) -> 1653.75
C107: MRC Infrastructure | H107: =IF(F107<>0,IF(G107<>0,(+F107-G107)/G107,""),"") ->  | K107: D | L107: =((155*27)*12)+(6800*12) -> 131820 | M107: =IF($K107<>"",IF($L107<>"",VLOOKUP($K107,Allocations!$A$5:$K$20,3,0)*$L107,""),"") -> 19486.43478 | N107: 20460.75652 | O107: 21483.79435 | Q107: =IF($K107<>"",IF($L107<>"",VLOOKUP($K107,Allocations!$A$5:$K$20,4,0)*$L107,""),"") -> 56166.78261 | R107: 58975.12174 | S107: 61923.87783 | U107: =IF($K107<>"",IF($L107<>"",VLOOKUP($K107,Allocations!$A$5:$K$20,5,0)*$L107,""),"") -> 48142.95652 | V107: 50550.10435 | W107: 53077.60957 | Y107: =IF($K107<>"",IF($L107<>"",VLOOKUP($K107,Allocations!$A$5:$K$20,6,0)*$L107,""),"") -> 8023.826087 | Z107: 8425.017391 | AA107: 8846.268261 | AC107: =IF($K107<>"",IF($L107<>"",VLOOKUP($K107,Allocations!$A$5:$K$20,7,0)*$L107,""),"") -> 0 | AD107: 0 | AE107: 0 | AG107: =IF($K107<>"",IF($L107<>"",VLOOKUP($K107,Allocations!$A$5:$K$20,8,0)*$L107,""),"") -> 0 | AH107: 0 | AI107: 0
C108: MRC - SMI | K108: K | L108: 5250 | M108: =IF($K108<>"",IF($L108<>"",VLOOKUP($K108,Allocations!$A$5:$K$20,3,0)*$L108,""),"") -> 5250 | N108: 5512.5 | O108: 5788.125 | Q108: =IF($K108<>"",IF($L108<>"",VLOOKUP($K108,Allocations!$A$5:$K$20,4,0)*$L108,""),"") -> 0 | R108: 0 | S108: 0 | U108: =IF($K108<>"",IF($L108<>"",VLOOKUP($K108,Allocations!$A$5:$K$20,5,0)*$L108,""),"") -> 0 | V108: 0 | W108: 0 | Y108: =IF($K108<>"",IF($L108<>"",VLOOKUP($K108,Allocations!$A$5:$K$20,6,0)*$L108,""),"") -> 0 | Z108: 0 | AA108: 0 | AC108: =IF($K108<>"",IF($L108<>"",VLOOKUP($K108,Allocations!$A$5:$K$20,7,0)*$L108,""),"") -> 0 | AD108: 0 | AE108: 0 | AG108: =IF($K108<>"",IF($L108<>"",VLOOKUP($K108,Allocations!$A$5:$K$20,8,0)*$L108,""),"") -> 0 | AH108: 0 | AI108: 0
C109: MRC - IPD | K109: L | L109: 15500 | M109: =IF($K109<>"",IF($L109<>"",VLOOKUP($K109,Allocations!$A$5:$K$20,3,0)*$L109,""),"") -> 0 | N109: 0 | O109: 0 | Q109: =IF($K109<>"",IF($L109<>"",VLOOKUP($K109,Allocations!$A$5:$K$20,4,0)*$L109,""),"") -> 15500 | R109: 16275 | S109: 17088.75 | U109: =IF($K109<>"",IF($L109<>"",VLOOKUP($K109,Allocations!$A$5:$K$20,5,0)*$L109,""),"") -> 0 | V109: 0 | W109: 0 | Y109: =IF($K109<>"",IF($L109<>"",VLOOKUP($K109,Allocations!$A$5:$K$20,6,0)*$L109,""),"") -> 0 | Z109: 0 | AA109: 0 | AC109: =IF($K109<>"",IF($L109<>"",VLOOKUP($K109,Allocations!$A$5:$K$20,7,0)*$L109,""),"") -> 0 | AD109: 0 | AE109: 0 | AG109: =IF($K109<>"",IF($L109<>"",VLOOKUP($K109,Allocations!$A$5:$K$20,8,0)*$L109,""),"") -> 0 | AH109: 0 | AI109: 0
C110: MRC - SMG | K110: M | L110: 10200 | M110: =IF($K110<>"",IF($L110<>"",VLOOKUP($K110,Allocations!$A$5:$K$20,3,0)*$L110,""),"") -> 0 | N110: 0 | O110: 0 | Q110: =IF($K110<>"",IF($L110<>"",VLOOKUP($K110,Allocations!$A$5:$K$20,4,0)*$L110,""),"") -> 0 | R110: 0 | S110: 0 | U110: =IF($K110<>"",IF($L110<>"",VLOOKUP($K110,Allocations!$A$5:$K$20,5,0)*$L110,""),"") -> 10200 | V110: 10710 | W110: 11245.5 | Y110: =IF($K110<>"",IF($L110<>"",VLOOKUP($K110,Allocations!$A$5:$K$20,6,0)*$L110,""),"") -> 0 | Z110: 0 | AA110: 0 | AC110: =IF($K110<>"",IF($L110<>"",VLOOKUP($K110,Allocations!$A$5:$K$20,7,0)*$L110,""),"") -> 0 | AD110: 0 | AE110: 0 | AG110: =IF($K110<>"",IF($L110<>"",VLOOKUP($K110,Allocations!$A$5:$K$20,8,0)*$L110,""),"") -> 0 | AH110: 0 | AI110: 0
C111: MRC - SP/SWD | K111: N | L111: 15000 | M111: =IF($K111<>"",IF($L111<>"",VLOOKUP($K111,Allocations!$A$5:$K$20,3,0)*$L111,""),"") -> 0 | N111: 0 | O111: 0 | Q111: =IF($K111<>"",IF($L111<>"",VLOOKUP($K111,Allocations!$A$5:$K$20,4,0)*$L111,""),"") -> 0 | R111: 0 | S111: 0 | U111: =IF($K111<>"",IF($L111<>"",VLOOKUP($K111,Allocations!$A$5:$K$20,5,0)*$L111,""),"") -> 0 | V111: 0 | W111: 0 | Y111: =IF($K111<>"",IF($L111<>"",VLOOKUP($K111,Allocations!$A$5:$K$20,6,0)*$L111,""),"") -> 15000 | Z111: 15750 | AA111: 16537.5 | AC111: =IF($K111<>"",IF($L111<>"",VLOOKUP($K111,Allocations!$A$5:$K$20,7,0)*$L111,""),"") -> 0 | AD111: 0 | AE111: 0 | AG111: =IF($K111<>"",IF($L111<>"",VLOOKUP($K111,Allocations!$A$5:$K$20,8,0)*$L111,""),"") -> 0 | AH111: 0 | AI111: 0
C112: MRC - SINV | K112: O | L112: 400 | M112: =IF($K112<>"",IF($L112<>"",VLOOKUP($K112,Allocations!$A$5:$K$20,3,0)*$L112,""),"") -> 0 | N112: 0 | O112: 0 | Q112: =IF($K112<>"",IF($L112<>"",VLOOKUP($K112,Allocations!$A$5:$K$20,4,0)*$L112,""),"") -> 0 | R112: 0 | S112: 0 | U112: =IF($K112<>"",IF($L112<>"",VLOOKUP($K112,Allocations!$A$5:$K$20,5,0)*$L112,""),"") -> 0 | V112: 0 | W112: 0 | Y112: =IF($K112<>"",IF($L112<>"",VLOOKUP($K112,Allocations!$A$5:$K$20,6,0)*$L112,""),"") -> 0 | Z112: 0 | AA112: 0 | AC112: =IF($K112<>"",IF($L112<>"",VLOOKUP($K112,Allocations!$A$5:$K$20,7,0)*$L112,""),"") -> 400 | AD112: 420 | AE112: 441 | AG112: =IF($K112<>"",IF($L112<>"",VLOOKUP($K112,Allocations!$A$5:$K$20,8,0)*$L112,""),"") -> 0 | AH112: 0 | AI112: 0
C113: MRC - RVR | K113: P | L113: =1188+312+0 -> 1500 | M113: =IF($K113<>"",IF($L113<>"",VLOOKUP($K113,Allocations!$A$5:$K$20,3,0)*$L113,""),"") -> 0 | N113: 0 | O113: 0 | Q113: =IF($K113<>"",IF($L113<>"",VLOOKUP($K113,Allocations!$A$5:$K$20,4,0)*$L113,""),"") -> 0 | R113: 0 | S113: 0 | U113: =IF($K113<>"",IF($L113<>"",VLOOKUP($K113,Allocations!$A$5:$K$20,5,0)*$L113,""),"") -> 0 | V113: 0 | W113: 0 | Y113: =IF($K113<>"",IF($L113<>"",VLOOKUP($K113,Allocations!$A$5:$K$20,6,0)*$L113,""),"") -> 0 | Z113: 0 | AA113: 0 | AC113: =IF($K113<>"",IF($L113<>"",VLOOKUP($K113,Allocations!$A$5:$K$20,7,0)*$L113,""),"") -> 0 | AD113: 0 | AE113: 0 | AG113: =IF($K113<>"",IF($L113<>"",VLOOKUP($K113,Allocations!$A$5:$K$20,8,0)*$L113,""),"") -> 1500 | AH113: 1575 | AI113: 1653.75
C114: Conferencing Calls | H114: =IF(F114<>0,IF(G114<>0,(+F114-G114)/G114,""),"") ->  | K114: D | L114: 3500 | M114: =IF($K114<>"",IF($L114<>"",VLOOKUP($K114,Allocations!$A$5:$K$20,3,0)*$L114,""),"") -> 517.3913043 | N114: 543.2608696 | O114: 570.423913 | Q114: =IF($K114<>"",IF($L114<>"",VLOOKUP($K114,Allocations!$A$5:$K$20,4,0)*$L114,""),"") -> 1491.304348 | R114: 1565.869565 | S114: 1644.163043 | U114: =IF($K114<>"",IF($L114<>"",VLOOKUP($K114,Allocations!$A$5:$K$20,5,0)*$L114,""),"") -> 1278.26087 | V114: 1342.173913 | W114: 1409.282609 | Y114: =IF($K114<>"",IF($L114<>"",VLOOKUP($K114,Allocations!$A$5:$K$20,6,0)*$L114,""),"") -> 213.0434783 | Z114: 223.6956522 | AA114: 234.8804348 | AC114: =IF($K114<>"",IF($L114<>"",VLOOKUP($K114,Allocations!$A$5:$K$20,7,0)*$L114,""),"") -> 0 | AD114: 0 | AE114: 0 | AG114: =IF($K114<>"",IF($L114<>"",VLOOKUP($K114,Allocations!$A$5:$K$20,8,0)*$L114,""),"") -> 0 | AH114: 0 | AI114: 0
C115: Ratification Adjustment | K115: K | L115: -11515 | M115: =IF($K115<>"",IF($L115<>"",VLOOKUP($K115,Allocations!$A$5:$K$20,3,0)*$L115,""),"") -> -11515 | N115: =IF(K115<>"",IF(M115<>"",+M115+(M115*0.05),""),"") -> -12090.75 | O115: =IF(K115<>"",IF(N115<>"",+N115+(N115*0.05),""),"") -> -12695.2875 | Q115: =IF($K115<>"",IF($L115<>"",VLOOKUP($K115,Allocations!$A$5:$K$20,4,0)*$L115,""),"") -> 0 | R115: =IF(K115<>"",IF(Q115<>"",+Q115+(Q115*0.05),""),"") -> 0 | S115: =IF($K115<>"",IF(R115<>"",+R115+(R115*0.05),""),"") -> 0 | U115: =IF($K115<>"",IF($L115<>"",VLOOKUP($K115,Allocations!$A$5:$K$20,5,0)*$L115,""),"") -> 0 | V115: =IF($K115<>"",IF($U115<>"",+U115+(U115*0.05),""),"") -> 0 | W115: =IF($K115<>"",IF($V115<>"",+V115+(V115*0.05),""),"") -> 0 | Y115: =IF($K115<>"",IF($L115<>"",VLOOKUP($K115,Allocations!$A$5:$K$20,6,0)*$L115,""),"") -> 0 | Z115: =IF($K115<>"",IF($Y115<>"",+Y115+(Y115*0.05),""),"") -> 0 | AA115: =IF($K115<>"",IF($Z115<>"",+Z115+(Z115*0.05),""),"") -> 0 | AC115: =IF($K115<>"",IF($L115<>"",VLOOKUP($K115,Allocations!$A$5:$K$20,7,0)*$L115,""),"") -> 0 | AD115: =IF($K115<>"",IF($AC115<>"",+AC115+(AC115*0.05),""),"") -> 0 | AE115: =IF($K115<>"",IF($AD115<>"",+AD115+(AD115*0.05),""),"") -> 0 | AG115: =IF($K115<>"",IF($L115<>"",VLOOKUP($K115,Allocations!$A$5:$K$20,8,0)*$L115,""),"") -> 0 | AH115: =IF($K115<>"",IF($AG115<>"",+AG115+(AG115*0.05),""),"") -> 0 | AI115: =IF($K115<>"",IF($AH115<>"",+AH115+(AH115*0.05),""),"") -> 0
H116: =IF(F116<>0,IF(G116<>0,(+F116-G116)/G116,""),"") ->  | M116: =IF($K116<>"",IF($L116<>"",VLOOKUP($K116,Allocations!$A$5:$K$20,3,0)*$L116,""),"") ->  | Q116: =IF($K116<>"",IF($L116<>"",VLOOKUP($K116,Allocations!$A$5:$K$20,4,0)*$L116,""),"") ->  | U116: =IF($K116<>"",IF($L116<>"",VLOOKUP($K116,Allocations!$A$5:$K$20,5,0)*$L116,""),"") ->  | Y116: =IF($K116<>"",IF($L116<>"",VLOOKUP($K116,Allocations!$A$5:$K$20,6,0)*$L116,""),"") ->  | AC116: =IF($K116<>"",IF($L116<>"",VLOOKUP($K116,Allocations!$A$5:$K$20,7,0)*$L116,""),"") ->  | AG116: =IF($K116<>"",IF($L116<>"",VLOOKUP($K116,Allocations!$A$5:$K$20,8,0)*$L116,""),"") -> 
A117: 73600 | C117: Cell Phone | E117: 86050 | F117: =SUM(L117:L125) -> 75550.001 | H117: =IF(F117<>0,IF(G117<>0,(+F117-G117)/G117,"▲"),"") -> ▲ | M117: =SUM(M118:M125) -> 0.001 | N117: =SUM(N118:N125) -> 0.001050000001 | O117: =SUM(O118:O125) -> 0.0011025 | Q117: =SUM(Q118:Q125) -> 22250 | R117: =SUM(R118:R125) -> 23362.5 | S117: =SUM(S118:S125) -> 24530.625 | U117: =SUM(U118:U125) -> 23000 | V117: =SUM(V118:V125) -> 24150 | W117: =SUM(W118:W125) -> 25357.5 | Y117: =SUM(Y118:Y125) -> 27600 | Z117: =SUM(Z118:Z125) -> 28980 | AA117: =SUM(AA118:AA125) -> 30429 | AC117: =SUM(AC118:AC125) -> 1300 | AD117: =SUM(AD118:AD125) -> 1365 | AE117: =SUM(AE118:AE125) -> 1433.25 | AG117: =SUM(AG118:AG125) -> 1400 | AH117: =SUM(AH118:AH125) -> 1470 | AI117: =SUM(AI118:AI125) -> 1543.5
C118: SMI | H118: =IF(F118<>0,IF(G118<>0,(+F118-G118)/G118,""),"") ->  | K118: K | L118: =8500+2000 -> 10500 | M118: =IF($K118<>"",IF($L118<>"",VLOOKUP($K118,Allocations!$A$5:$K$20,3,0)*$L118,""),"") -> 10500 | N118: 11025 | O118: 11576.25 | Q118: =IF($K118<>"",IF($L118<>"",VLOOKUP($K118,Allocations!$A$5:$K$20,4,0)*$L118,""),"") -> 0 | R118: 0 | S118: 0 | U118: =IF($K118<>"",IF($L118<>"",VLOOKUP($K118,Allocations!$A$5:$K$20,5,0)*$L118,""),"") -> 0 | V118: 0 | W118: 0 | Y118: =IF($K118<>"",IF($L118<>"",VLOOKUP($K118,Allocations!$A$5:$K$20,6,0)*$L118,""),"") -> 0 | Z118: 0 | AA118: 0 | AC118: =IF($K118<>"",IF($L118<>"",VLOOKUP($K118,Allocations!$A$5:$K$20,7,0)*$L118,""),"") -> 0 | AD118: 0 | AE118: 0 | AG118: =IF($K118<>"",IF($L118<>"",VLOOKUP($K118,Allocations!$A$5:$K$20,8,0)*$L118,""),"") -> 0 | AH118: 0 | AI118: 0
C119: IPD | K119: L | L119: 22250 | M119: =IF($K119<>"",IF($L119<>"",VLOOKUP($K119,Allocations!$A$5:$K$20,3,0)*$L119,""),"") -> 0 | N119: 0 | O119: 0 | Q119: =IF($K119<>"",IF($L119<>"",VLOOKUP($K119,Allocations!$A$5:$K$20,4,0)*$L119,""),"") -> 22250 | R119: 23362.5 | S119: 24530.625 | U119: =IF($K119<>"",IF($L119<>"",VLOOKUP($K119,Allocations!$A$5:$K$20,5,0)*$L119,""),"") -> 0 | V119: 0 | W119: 0 | Y119: =IF($K119<>"",IF($L119<>"",VLOOKUP($K119,Allocations!$A$5:$K$20,6,0)*$L119,""),"") -> 0 | Z119: 0 | AA119: 0 | AC119: =IF($K119<>"",IF($L119<>"",VLOOKUP($K119,Allocations!$A$5:$K$20,7,0)*$L119,""),"") -> 0 | AD119: 0 | AE119: 0 | AG119: =IF($K119<>"",IF($L119<>"",VLOOKUP($K119,Allocations!$A$5:$K$20,8,0)*$L119,""),"") -> 0 | AH119: 0 | AI119: 0
C120: SMG | K120: M | L120: 23000 | M120: =IF($K120<>"",IF($L120<>"",VLOOKUP($K120,Allocations!$A$5:$K$20,3,0)*$L120,""),"") -> 0 | N120: 0 | O120: 0 | Q120: =IF($K120<>"",IF($L120<>"",VLOOKUP($K120,Allocations!$A$5:$K$20,4,0)*$L120,""),"") -> 0 | R120: 0 | S120: 0 | U120: =IF($K120<>"",IF($L120<>"",VLOOKUP($K120,Allocations!$A$5:$K$20,5,0)*$L120,""),"") -> 23000 | V120: 24150 | W120: 25357.5 | Y120: =IF($K120<>"",IF($L120<>"",VLOOKUP($K120,Allocations!$A$5:$K$20,6,0)*$L120,""),"") -> 0 | Z120: 0 | AA120: 0 | AC120: =IF($K120<>"",IF($L120<>"",VLOOKUP($K120,Allocations!$A$5:$K$20,7,0)*$L120,""),"") -> 0 | AD120: 0 | AE120: 0 | AG120: =IF($K120<>"",IF($L120<>"",VLOOKUP($K120,Allocations!$A$5:$K$20,8,0)*$L120,""),"") -> 0 | AH120: 0 | AI120: 0
C121: SP/SWD | K121: N | L121: 27600 | M121: =IF($K121<>"",IF($L121<>"",VLOOKUP($K121,Allocations!$A$5:$K$20,3,0)*$L121,""),"") -> 0 | N121: 0 | O121: 0 | Q121: =IF($K121<>"",IF($L121<>"",VLOOKUP($K121,Allocations!$A$5:$K$20,4,0)*$L121,""),"") -> 0 | R121: 0 | S121: 0 | U121: =IF($K121<>"",IF($L121<>"",VLOOKUP($K121,Allocations!$A$5:$K$20,5,0)*$L121,""),"") -> 0 | V121: 0 | W121: 0 | Y121: =IF($K121<>"",IF($L121<>"",VLOOKUP($K121,Allocations!$A$5:$K$20,6,0)*$L121,""),"") -> 27600 | Z121: 28980 | AA121: 30429 | AC121: =IF($K121<>"",IF($L121<>"",VLOOKUP($K121,Allocations!$A$5:$K$20,7,0)*$L121,""),"") -> 0 | AD121: 0 | AE121: 0 | AG121: =IF($K121<>"",IF($L121<>"",VLOOKUP($K121,Allocations!$A$5:$K$20,8,0)*$L121,""),"") -> 0 | AH121: 0 | AI121: 0
C122: SINV | K122: O | L122: 1300 | M122: =IF($K122<>"",IF($L122<>"",VLOOKUP($K122,Allocations!$A$5:$K$20,3,0)*$L122,""),"") -> 0 | N122: 0 | O122: 0 | Q122: =IF($K122<>"",IF($L122<>"",VLOOKUP($K122,Allocations!$A$5:$K$20,4,0)*$L122,""),"") -> 0 | R122: 0 | S122: 0 | U122: =IF($K122<>"",IF($L122<>"",VLOOKUP($K122,Allocations!$A$5:$K$20,5,0)*$L122,""),"") -> 0 | V122: 0 | W122: 0 | Y122: =IF($K122<>"",IF($L122<>"",VLOOKUP($K122,Allocations!$A$5:$K$20,6,0)*$L122,""),"") -> 0 | Z122: 0 | AA122: 0 | AC122: =IF($K122<>"",IF($L122<>"",VLOOKUP($K122,Allocations!$A$5:$K$20,7,0)*$L122,""),"") -> 1300 | AD122: 1365 | AE122: 1433.25 | AG122: =IF($K122<>"",IF($L122<>"",VLOOKUP($K122,Allocations!$A$5:$K$20,8,0)*$L122,""),"") -> 0 | AH122: 0 | AI122: 0
C123: RVR | H123: =IF(F123<>0,IF(G123<>0,(+F123-G123)/G123,""),"") ->  | K123: P | L123: 1400 | M123: =IF($K123<>"",IF($L123<>"",VLOOKUP($K123,Allocations!$A$5:$K$20,3,0)*$L123,""),"") -> 0 | N123: 0 | O123: 0 | Q123: =IF($K123<>"",IF($L123<>"",VLOOKUP($K123,Allocations!$A$5:$K$20,4,0)*$L123,""),"") -> 0 | R123: 0 | S123: 0 | U123: =IF($K123<>"",IF($L123<>"",VLOOKUP($K123,Allocations!$A$5:$K$20,5,0)*$L123,""),"") -> 0 | V123: 0 | W123: 0 | Y123: =IF($K123<>"",IF($L123<>"",VLOOKUP($K123,Allocations!$A$5:$K$20,6,0)*$L123,""),"") -> 0 | Z123: 0 | AA123: 0 | AC123: =IF($K123<>"",IF($L123<>"",VLOOKUP($K123,Allocations!$A$5:$K$20,7,0)*$L123,""),"") -> 0 | AD123: 0 | AE123: 0 | AG123: =IF($K123<>"",IF($L123<>"",VLOOKUP($K123,Allocations!$A$5:$K$20,8,0)*$L123,""),"") -> 1400 | AH123: 1470 | AI123: 1543.5
C124: Ratification Adjustment | K124: K | L124: -10499.999 | M124: =IF($K124<>"",IF($L124<>"",VLOOKUP($K124,Allocations!$A$5:$K$20,3,0)*$L124,""),"") -> -10499.999 | N124: =IF(K124<>"",IF(M124<>"",+M124+(M124*0.05),""),"") -> -11024.99895 | O124: =IF(K124<>"",IF(N124<>"",+N124+(N124*0.05),""),"") -> -11576.2489 | Q124: =IF($K124<>"",IF($L124<>"",VLOOKUP($K124,Allocations!$A$5:$K$20,4,0)*$L124,""),"") -> 0 | R124: =IF(K124<>"",IF(Q124<>"",+Q124+(Q124*0.05),""),"") -> 0 | S124: 0 | U124: =IF($K124<>"",IF($L124<>"",VLOOKUP($K124,Allocations!$A$5:$K$20,5,0)*$L124,""),"") -> 0 | V124: 0 | W124: 0 | Y124: =IF($K124<>"",IF($L124<>"",VLOOKUP($K124,Allocations!$A$5:$K$20,6,0)*$L124,""),"") -> 0 | Z124: 0 | AA124: 0 | AC124: =IF($K124<>"",IF($L124<>"",VLOOKUP($K124,Allocations!$A$5:$K$20,7,0)*$L124,""),"") -> 0 | AD124: 0 | AE124: 0 | AG124: =IF($K124<>"",IF($L124<>"",VLOOKUP($K124,Allocations!$A$5:$K$20,8,0)*$L124,""),"") -> 0 | AH124: 0 | AI124: 0
H125: =IF(F125<>0,IF(G125<>0,(+F125-G125)/G125,""),"") ->  | M125: =IF($K125<>"",IF($L125<>"",VLOOKUP($K125,Allocations!$A$5:$K$20,3,0)*$L125,""),"") ->  | Q125: =IF($K125<>"",IF($L125<>"",VLOOKUP($K125,Allocations!$A$5:$K$20,4,0)*$L125,""),"") ->  | U125: =IF($K125<>"",IF($L125<>"",VLOOKUP($K125,Allocations!$A$5:$K$20,5,0)*$L125,""),"") ->  | Y125: =IF($K125<>"",IF($L125<>"",VLOOKUP($K125,Allocations!$A$5:$K$20,6,0)*$L125,""),"") ->  | AC125: =IF($K125<>"",IF($L125<>"",VLOOKUP($K125,Allocations!$A$5:$K$20,7,0)*$L125,""),"") ->  | AG125: =IF($K125<>"",IF($L125<>"",VLOOKUP($K125,Allocations!$A$5:$K$20,8,0)*$L125,""),"") -> 
A126: 73700 | C126: Data Line | E126: 42000 | F126: =SUM(L126:L134) -> 38545 | H126: =IF(F126<>0,IF(G126<>0,(+F126-G126)/G126,"▲"),"") -> ▲ | M126: =SUM(M127:M134) -> -807.9411765 | N126: =SUM(N127:N134) -> -848.3382353 | O126: =SUM(O127:O134) -> -890.7551471 | Q126: =SUM(Q127:Q134) -> 27882.35294 | R126: =SUM(R127:R134) -> 29276.47059 | S126: =SUM(S127:S134) -> 30740.29412 | U126: =SUM(U127:U134) -> 9705.882353 | V126: =SUM(V127:V134) -> 10191.17647 | W126: =SUM(W127:W134) -> 10700.73529 | Y126: =SUM(Y127:Y134) -> 1588.235294 | Z126: =SUM(Z127:Z134) -> 1667.647059 | AA126: =SUM(AA127:AA134) -> 1751.029412 | AC126: =SUM(AC127:AC134) -> 176.4705882 | AD126: =SUM(AD127:AD134) -> 185.2941176 | AE126: =SUM(AE127:AE134) -> 194.5588235 | AG126: =SUM(AG127:AG134) -> 0 | AH126: =SUM(AH127:AH134) -> 0 | AI126: =SUM(AI127:AI134) -> 0
C127: SMI | H127: =IF(F127<>0,IF(G127<>0,(+F127-G127)/G127,""),"") ->  | K127: B | L127: =2000*12 -> 24000 | M127: =IF($K127<>"",IF($L127<>"",VLOOKUP($K127,Allocations!$A$5:$K$20,3,0)*$L127,""),"") -> 2647.058824 | N127: 2779.411765 | O127: 2918.382353 | Q127: =IF($K127<>"",IF($L127<>"",VLOOKUP($K127,Allocations!$A$5:$K$20,4,0)*$L127,""),"") -> 9882.352941 | R127: 10376.47059 | S127: 10895.29412 | U127: =IF($K127<>"",IF($L127<>"",VLOOKUP($K127,Allocations!$A$5:$K$20,5,0)*$L127,""),"") -> 9705.882353 | V127: 10191.17647 | W127: 10700.73529 | Y127: =IF($K127<>"",IF($L127<>"",VLOOKUP($K127,Allocations!$A$5:$K$20,6,0)*$L127,""),"") -> 1588.235294 | Z127: 1667.647059 | AA127: 1751.029412 | AC127: =IF($K127<>"",IF($L127<>"",VLOOKUP($K127,Allocations!$A$5:$K$20,7,0)*$L127,""),"") -> 176.4705882 | AD127: 185.2941176 | AE127: 194.5588235 | AG127: =IF($K127<>"",IF($L127<>"",VLOOKUP($K127,Allocations!$A$5:$K$20,8,0)*$L127,""),"") -> 0 | AH127: 0 | AI127: 0
C128: IPD - Cleveland | K128: L | L128: =500*12 -> 6000 | M128: =IF($K128<>"",IF($L128<>"",VLOOKUP($K128,Allocations!$A$5:$K$20,3,0)*$L128,""),"") -> 0 | N128: 0 | O128: 0 | Q128: =IF($K128<>"",IF($L128<>"",VLOOKUP($K128,Allocations!$A$5:$K$20,4,0)*$L128,""),"") -> 6000 | R128: 6300 | S128: 6615 | U128: =IF($K128<>"",IF($L128<>"",VLOOKUP($K128,Allocations!$A$5:$K$20,5,0)*$L128,""),"") -> 0 | V128: 0 | W128: 0 | Y128: =IF($K128<>"",IF($L128<>"",VLOOKUP($K128,Allocations!$A$5:$K$20,6,0)*$L128,""),"") -> 0 | Z128: 0 | AA128: 0 | AC128: =IF($K128<>"",IF($L128<>"",VLOOKUP($K128,Allocations!$A$5:$K$20,7,0)*$L128,""),"") -> 0 | AD128: 0 | AE128: 0 | AG128: =IF($K128<>"",IF($L128<>"",VLOOKUP($K128,Allocations!$A$5:$K$20,8,0)*$L128,""),"") -> 0 | AH128: 0 | AI128: 0
C129: IPD - Houston | K129: L | L129: =500*12 -> 6000 | M129: =IF($K129<>"",IF($L129<>"",VLOOKUP($K129,Allocations!$A$5:$K$20,3,0)*$L129,""),"") -> 0 | N129: 0 | O129: 0 | Q129: =IF($K129<>"",IF($L129<>"",VLOOKUP($K129,Allocations!$A$5:$K$20,4,0)*$L129,""),"") -> 6000 | R129: 6300 | S129: 6615 | U129: =IF($K129<>"",IF($L129<>"",VLOOKUP($K129,Allocations!$A$5:$K$20,5,0)*$L129,""),"") -> 0 | V129: 0 | W129: 0 | Y129: =IF($K129<>"",IF($L129<>"",VLOOKUP($K129,Allocations!$A$5:$K$20,6,0)*$L129,""),"") -> 0 | Z129: 0 | AA129: 0 | AC129: =IF($K129<>"",IF($L129<>"",VLOOKUP($K129,Allocations!$A$5:$K$20,7,0)*$L129,""),"") -> 0 | AD129: 0 | AE129: 0 | AG129: =IF($K129<>"",IF($L129<>"",VLOOKUP($K129,Allocations!$A$5:$K$20,8,0)*$L129,""),"") -> 0 | AH129: 0 | AI129: 0
C130: IPD - Portland | K130: L | L130: =500*12 -> 6000 | M130: =IF($K130<>"",IF($L130<>"",VLOOKUP($K130,Allocations!$A$5:$K$20,3,0)*$L130,""),"") -> 0 | N130: 0 | O130: 0 | Q130: =IF($K130<>"",IF($L130<>"",VLOOKUP($K130,Allocations!$A$5:$K$20,4,0)*$L130,""),"") -> 6000 | R130: 6300 | S130: 6615 | U130: =IF($K130<>"",IF($L130<>"",VLOOKUP($K130,Allocations!$A$5:$K$20,5,0)*$L130,""),"") -> 0 | V130: 0 | W130: 0 | Y130: =IF($K130<>"",IF($L130<>"",VLOOKUP($K130,Allocations!$A$5:$K$20,6,0)*$L130,""),"") -> 0 | Z130: 0 | AA130: 0 | AC130: =IF($K130<>"",IF($L130<>"",VLOOKUP($K130,Allocations!$A$5:$K$20,7,0)*$L130,""),"") -> 0 | AD130: 0 | AE130: 0 | AG130: =IF($K130<>"",IF($L130<>"",VLOOKUP($K130,Allocations!$A$5:$K$20,8,0)*$L130,""),"") -> 0 | AH130: 0 | AI130: 0
C131: IPD Torrance | K131: L | L131: 0 | M131: =IF($K131<>"",IF($L131<>"",VLOOKUP($K131,Allocations!$A$5:$K$20,3,0)*$L131,""),"") -> 0 | N131: 0 | O131: 0 | Q131: =IF($K131<>"",IF($L131<>"",VLOOKUP($K131,Allocations!$A$5:$K$20,4,0)*$L131,""),"") -> 0 | R131: 0 | S131: 0 | U131: =IF($K131<>"",IF($L131<>"",VLOOKUP($K131,Allocations!$A$5:$K$20,5,0)*$L131,""),"") -> 0 | V131: 0 | W131: 0 | Y131: =IF($K131<>"",IF($L131<>"",VLOOKUP($K131,Allocations!$A$5:$K$20,6,0)*$L131,""),"") -> 0 | Z131: 0 | AA131: 0 | AC131: =IF($K131<>"",IF($L131<>"",VLOOKUP($K131,Allocations!$A$5:$K$20,7,0)*$L131,""),"") -> 0 | AD131: 0 | AE131: 0 | AG131: =IF($K131<>"",IF($L131<>"",VLOOKUP($K131,Allocations!$A$5:$K$20,8,0)*$L131,""),"") -> 0 | AH131: 0 | AI131: 0
C132: SMG Torrance | K132: M | L132: 0 | M132: =IF($K132<>"",IF($L132<>"",VLOOKUP($K132,Allocations!$A$5:$K$20,3,0)*$L132,""),"") -> 0 | N132: 0 | O132: 0 | Q132: =IF($K132<>"",IF($L132<>"",VLOOKUP($K132,Allocations!$A$5:$K$20,4,0)*$L132,""),"") -> 0 | R132: 0 | S132: 0 | U132: =IF($K132<>"",IF($L132<>"",VLOOKUP($K132,Allocations!$A$5:$K$20,5,0)*$L132,""),"") -> 0 | V132: 0 | W132: 0 | Y132: =IF($K132<>"",IF($L132<>"",VLOOKUP($K132,Allocations!$A$5:$K$20,6,0)*$L132,""),"") -> 0 | Z132: 0 | AA132: 0 | AC132: =IF($K132<>"",IF($L132<>"",VLOOKUP($K132,Allocations!$A$5:$K$20,7,0)*$L132,""),"") -> 0 | AD132: 0 | AE132: 0 | AG132: =IF($K132<>"",IF($L132<>"",VLOOKUP($K132,Allocations!$A$5:$K$20,8,0)*$L132,""),"") -> 0 | AH132: 0 | AI132: 0
C133: Ratification Adjustment | K133: K | L133: -3455 | M133: =IF($K133<>"",IF($L133<>"",VLOOKUP($K133,Allocations!$A$5:$K$20,3,0)*$L133,""),"") -> -3455 | N133: =IF(K133<>"",IF(M133<>"",+M133+(M133*0.05),""),"") -> -3627.75 | O133: =IF(K133<>"",IF(N133<>"",+N133+(N133*0.05),""),"") -> -3809.1375 | Q133: =IF($K133<>"",IF($L133<>"",VLOOKUP($K133,Allocations!$A$5:$K$20,4,0)*$L133,""),"") -> 0 | R133: =IF(K133<>"",IF(Q133<>"",+Q133+(Q133*0.05),""),"") -> 0 | S133: =IF($K133<>"",IF(R133<>"",+R133+(R133*0.05),""),"") -> 0 | U133: =IF($K133<>"",IF($L133<>"",VLOOKUP($K133,Allocations!$A$5:$K$20,5,0)*$L133,""),"") -> 0 | V133: =IF($K133<>"",IF($U133<>"",+U133+(U133*0.05),""),"") -> 0 | W133: =IF($K133<>"",IF($V133<>"",+V133+(V133*0.05),""),"") -> 0 | Y133: =IF($K133<>"",IF($L133<>"",VLOOKUP($K133,Allocations!$A$5:$K$20,6,0)*$L133,""),"") -> 0 | Z133: =IF($K133<>"",IF($Y133<>"",+Y133+(Y133*0.05),""),"") -> 0 | AA133: =IF($K133<>"",IF($Z133<>"",+Z133+(Z133*0.05),""),"") -> 0 | AC133: =IF($K133<>"",IF($L133<>"",VLOOKUP($K133,Allocations!$A$5:$K$20,7,0)*$L133,""),"") -> 0 | AD133: =IF($K133<>"",IF($AC133<>"",+AC133+(AC133*0.05),""),"") -> 0 | AE133: =IF($K133<>"",IF($AD133<>"",+AD133+(AD133*0.05),""),"") -> 0 | AG133: =IF($K133<>"",IF($L133<>"",VLOOKUP($K133,Allocations!$A$5:$K$20,8,0)*$L133,""),"") -> 0 | AH133: =IF($K133<>"",IF($AG133<>"",+AG133+(AG133*0.05),""),"") -> 0 | AI133: =IF($K133<>"",IF($AH133<>"",+AH133+(AH133*0.05),""),"") -> 0
M134: =IF($K134<>"",IF($L134<>"",VLOOKUP($K134,Allocations!$A$5:$K$20,3,0)*$L134,""),"") ->  | Q134: =IF($K134<>"",IF($L134<>"",VLOOKUP($K134,Allocations!$A$5:$K$20,4,0)*$L134,""),"") ->  | U134: =IF($K134<>"",IF($L134<>"",VLOOKUP($K134,Allocations!$A$5:$K$20,5,0)*$L134,""),"") ->  | Y134: =IF($K134<>"",IF($L134<>"",VLOOKUP($K134,Allocations!$A$5:$K$20,6,0)*$L134,""),"") ->  | AC134: =IF($K134<>"",IF($L134<>"",VLOOKUP($K134,Allocations!$A$5:$K$20,7,0)*$L134,""),"") ->  | AG134: =IF($K134<>"",IF($L134<>"",VLOOKUP($K134,Allocations!$A$5:$K$20,8,0)*$L134,""),"") -> 
A135: 73800 | C135: Telecom Equipment & Supplies | E135: 4500 | F135: =SUM(L135:L143) -> 3500 | H135: =IF(F135<>0,IF(G135<>0,(+F135-G135)/G135,"▲"),"") -> ▲ | M135: =SUM(M136:M143) -> 0 | N135: =SUM(N136:N143) -> 0 | O135: =SUM(O136:O143) -> 0 | Q135: =SUM(Q136:Q143) -> 1000 | R135: =SUM(R136:R143) -> 1050 | S135: =SUM(S136:S143) -> 1102.5 | U135: =SUM(U136:U143) -> 2000 | V135: =SUM(V136:V143) -> 2100 | W135: =SUM(W136:W143) -> 2205 | Y135: =SUM(Y136:Y143) -> 500 | Z135: =SUM(Z136:Z143) -> 525 | AA135: =SUM(AA136:AA143) -> 551.25 | AC135: =SUM(AC136:AC143) -> 0 | AD135: =SUM(AD136:AD143) -> 0 | AE135: =SUM(AE136:AE143) -> 0 | AG135: =SUM(AG136:AG143) -> 0 | AH135: =SUM(AH136:AH143) -> 0 | AI135: =SUM(AI136:AI143) -> 0
C136: SMI | H136: =IF(F136<>0,IF(G136<>0,(+F136-G136)/G136,""),"") ->  | K136: K | L136: 1000 | M136: =IF($K136<>"",IF($L136<>"",VLOOKUP($K136,Allocations!$A$5:$K$20,3,0)*$L136,""),"") -> 1000 | N136: 1050 | O136: 1102.5 | Q136: =IF($K136<>"",IF($L136<>"",VLOOKUP($K136,Allocations!$A$5:$K$20,4,0)*$L136,""),"") -> 0 | R136: 0 | S136: 0 | U136: =IF($K136<>"",IF($L136<>"",VLOOKUP($K136,Allocations!$A$5:$K$20,5,0)*$L136,""),"") -> 0 | V136: 0 | W136: 0 | Y136: =IF($K136<>"",IF($L136<>"",VLOOKUP($K136,Allocations!$A$5:$K$20,6,0)*$L136,""),"") -> 0 | Z136: 0 | AA136: 0 | AC136: =IF($K136<>"",IF($L136<>"",VLOOKUP($K136,Allocations!$A$5:$K$20,7,0)*$L136,""),"") -> 0 | AD136: 0 | AE136: 0 | AG136: =IF($K136<>"",IF($L136<>"",VLOOKUP($K136,Allocations!$A$5:$K$20,8,0)*$L136,""),"") -> 0 | AH136: 0 | AI136: 0
C137: IPD | K137: L | L137: 1000 | M137: =IF($K137<>"",IF($L137<>"",VLOOKUP($K137,Allocations!$A$5:$K$20,3,0)*$L137,""),"") -> 0 | N137: 0 | O137: 0 | Q137: =IF($K137<>"",IF($L137<>"",VLOOKUP($K137,Allocations!$A$5:$K$20,4,0)*$L137,""),"") -> 1000 | R137: 1050 | S137: 1102.5 | U137: =IF($K137<>"",IF($L137<>"",VLOOKUP($K137,Allocations!$A$5:$K$20,5,0)*$L137,""),"") -> 0 | V137: 0 | W137: 0 | Y137: =IF($K137<>"",IF($L137<>"",VLOOKUP($K137,Allocations!$A$5:$K$20,6,0)*$L137,""),"") -> 0 | Z137: 0 | AA137: 0 | AC137: =IF($K137<>"",IF($L137<>"",VLOOKUP($K137,Allocations!$A$5:$K$20,7,0)*$L137,""),"") -> 0 | AD137: 0 | AE137: 0 | AG137: =IF($K137<>"",IF($L137<>"",VLOOKUP($K137,Allocations!$A$5:$K$20,8,0)*$L137,""),"") -> 0 | AH137: 0 | AI137: 0
C138: SMG | K138: M | L138: 2000 | M138: =IF($K138<>"",IF($L138<>"",VLOOKUP($K138,Allocations!$A$5:$K$20,3,0)*$L138,""),"") -> 0 | N138: 0 | O138: 0 | Q138: =IF($K138<>"",IF($L138<>"",VLOOKUP($K138,Allocations!$A$5:$K$20,4,0)*$L138,""),"") -> 0 | R138: 0 | S138: 0 | U138: =IF($K138<>"",IF($L138<>"",VLOOKUP($K138,Allocations!$A$5:$K$20,5,0)*$L138,""),"") -> 2000 | V138: 2100 | W138: 2205 | Y138: =IF($K138<>"",IF($L138<>"",VLOOKUP($K138,Allocations!$A$5:$K$20,6,0)*$L138,""),"") -> 0 | Z138: 0 | AA138: 0 | AC138: =IF($K138<>"",IF($L138<>"",VLOOKUP($K138,Allocations!$A$5:$K$20,7,0)*$L138,""),"") -> 0 | AD138: 0 | AE138: 0 | AG138: =IF($K138<>"",IF($L138<>"",VLOOKUP($K138,Allocations!$A$5:$K$20,8,0)*$L138,""),"") -> 0 | AH138: 0 | AI138: 0
C139: SP/SWD | K139: N | L139: 500 | M139: =IF($K139<>"",IF($L139<>"",VLOOKUP($K139,Allocations!$A$5:$K$20,3,0)*$L139,""),"") -> 0 | N139: 0 | O139: 0 | Q139: =IF($K139<>"",IF($L139<>"",VLOOKUP($K139,Allocations!$A$5:$K$20,4,0)*$L139,""),"") -> 0 | R139: 0 | S139: 0 | U139: =IF($K139<>"",IF($L139<>"",VLOOKUP($K139,Allocations!$A$5:$K$20,5,0)*$L139,""),"") -> 0 | V139: 0 | W139: 0 | Y139: =IF($K139<>"",IF($L139<>"",VLOOKUP($K139,Allocations!$A$5:$K$20,6,0)*$L139,""),"") -> 500 | Z139: 525 | AA139: 551.25 | AC139: =IF($K139<>"",IF($L139<>"",VLOOKUP($K139,Allocations!$A$5:$K$20,7,0)*$L139,""),"") -> 0 | AD139: 0 | AE139: 0 | AG139: =IF($K139<>"",IF($L139<>"",VLOOKUP($K139,Allocations!$A$5:$K$20,8,0)*$L139,""),"") -> 0 | AH139: 0 | AI139: 0
C140: SINV | K140: O | L140: 0 | M140: =IF($K140<>"",IF($L140<>"",VLOOKUP($K140,Allocations!$A$5:$K$20,3,0)*$L140,""),"") -> 0 | N140: 0 | O140: 0 | Q140: =IF($K140<>"",IF($L140<>"",VLOOKUP($K140,Allocations!$A$5:$K$20,4,0)*$L140,""),"") -> 0 | R140: 0 | S140: 0 | U140: =IF($K140<>"",IF($L140<>"",VLOOKUP($K140,Allocations!$A$5:$K$20,5,0)*$L140,""),"") -> 0 | V140: 0 | W140: 0 | Y140: =IF($K140<>"",IF($L140<>"",VLOOKUP($K140,Allocations!$A$5:$K$20,6,0)*$L140,""),"") -> 0 | Z140: 0 | AA140: 0 | AC140: =IF($K140<>"",IF($L140<>"",VLOOKUP($K140,Allocations!$A$5:$K$20,7,0)*$L140,""),"") -> 0 | AD140: 0 | AE140: 0 | AG140: =IF($K140<>"",IF($L140<>"",VLOOKUP($K140,Allocations!$A$5:$K$20,8,0)*$L140,""),"") -> 0 | AH140: 0 | AI140: 0
C141: RVR | H141: =IF(F141<>0,IF(G141<>0,(+F141-G141)/G141,""),"") ->  | K141: P | L141: 0 | M141: =IF($K141<>"",IF($L141<>"",VLOOKUP($K141,Allocations!$A$5:$K$20,3,0)*$L141,""),"") -> 0 | N141: 0 | O141: 0 | Q141: =IF($K141<>"",IF($L141<>"",VLOOKUP($K141,Allocations!$A$5:$K$20,4,0)*$L141,""),"") -> 0 | R141: 0 | S141: 0 | U141: =IF($K141<>"",IF($L141<>"",VLOOKUP($K141,Allocations!$A$5:$K$20,5,0)*$L141,""),"") -> 0 | V141: 0 | W141: 0 | Y141: =IF($K141<>"",IF($L141<>"",VLOOKUP($K141,Allocations!$A$5:$K$20,6,0)*$L141,""),"") -> 0 | Z141: 0 | AA141: 0 | AC141: =IF($K141<>"",IF($L141<>"",VLOOKUP($K141,Allocations!$A$5:$K$20,7,0)*$L141,""),"") -> 0 | AD141: 0 | AE141: 0 | AG141: =IF($K141<>"",IF($L141<>"",VLOOKUP($K141,Allocations!$A$5:$K$20,8,0)*$L141,""),"") -> 0 | AH141: 0 | AI141: 0
C142: Ratification Adjustment | K142: K | L142: -1000 | M142: =IF($K142<>"",IF($L142<>"",VLOOKUP($K142,Allocations!$A$5:$K$20,3,0)*$L142,""),"") -> -1000 | N142: =IF(K142<>"",IF(M142<>"",+M142+(M142*0.05),""),"") -> -1050 | O142: =IF(K142<>"",IF(N142<>"",+N142+(N142*0.05),""),"") -> -1102.5 | Q142: =IF($K142<>"",IF($L142<>"",VLOOKUP($K142,Allocations!$A$5:$K$20,4,0)*$L142,""),"") -> 0 | R142: =IF(K142<>"",IF(Q142<>"",+Q142+(Q142*0.05),""),"") -> 0 | S142: 0 | U142: =IF($K142<>"",IF($L142<>"",VLOOKUP($K142,Allocations!$A$5:$K$20,5,0)*$L142,""),"") -> 0 | V142: 0 | W142: 0 | Y142: =IF($K142<>"",IF($L142<>"",VLOOKUP($K142,Allocations!$A$5:$K$20,6,0)*$L142,""),"") -> 0 | Z142: 0 | AA142: 0 | AC142: =IF($K142<>"",IF($L142<>"",VLOOKUP($K142,Allocations!$A$5:$K$20,7,0)*$L142,""),"") -> 0 | AD142: 0 | AE142: 0 | AG142: =IF($K142<>"",IF($L142<>"",VLOOKUP($K142,Allocations!$A$5:$K$20,8,0)*$L142,""),"") -> 0 | AH142: 0 | AI142: 0
H143: =IF(F143<>0,IF(G143<>0,(+F143-G143)/G143,""),"") ->  | M143: =IF($K143<>"",IF($L143<>"",VLOOKUP($K143,Allocations!$A$5:$K$20,3,0)*$L143,""),"") ->  | Q143: =IF($K143<>"",IF($L143<>"",VLOOKUP($K143,Allocations!$A$5:$K$20,4,0)*$L143,""),"") ->  | U143: =IF($K143<>"",IF($L143<>"",VLOOKUP($K143,Allocations!$A$5:$K$20,5,0)*$L143,""),"") ->  | Y143: =IF($K143<>"",IF($L143<>"",VLOOKUP($K143,Allocations!$A$5:$K$20,6,0)*$L143,""),"") ->  | AC143: =IF($K143<>"",IF($L143<>"",VLOOKUP($K143,Allocations!$A$5:$K$20,7,0)*$L143,""),"") ->  | AG143: =IF($K143<>"",IF($L143<>"",VLOOKUP($K143,Allocations!$A$5:$K$20,8,0)*$L143,""),"") -> 
A144: 73900 | C144: Telecom Repairs & Maintenance | E144: 0 | F144: =SUM(L144:L147) -> 0 | H144: =IF(F144<>0,IF(G144<>0,(+F144-G144)/G144,"▲"),"") ->  | M144: =SUM(M145:M147) -> 0 | N144: =SUM(N145:N147) -> 0 | O144: =SUM(O145:O147) -> 0 | Q144: =SUM(Q145:Q147) -> 0 | R144: =SUM(R145:R147) -> 0 | S144: =SUM(S145:S147) -> 0 | U144: =SUM(U145:U147) -> 0 | V144: =SUM(V145:V147) -> 0 | W144: =SUM(W145:W147) -> 0 | Y144: =SUM(Y145:Y147) -> 0 | Z144: =SUM(Z145:Z147) -> 0 | AA144: =SUM(AA145:AA147) -> 0 | AC144: =SUM(AC145:AC147) -> 0 | AD144: =SUM(AD145:AD147) -> 0 | AE144: =SUM(AE145:AE147) -> 0 | AG144: =SUM(AG145:AG147) -> 0 | AH144: =SUM(AH145:AH147) -> 0 | AI144: =SUM(AI145:AI147) -> 0
C145: Telecom Repairs | K145: D | M145: =IF($K145<>"",IF($L145<>"",VLOOKUP($K145,Allocations!$A$5:$K$20,3,0)*$L145,""),"") ->  | Q145: =IF($K145<>"",IF($L145<>"",VLOOKUP($K145,Allocations!$A$5:$K$20,4,0)*$L145,""),"") ->  | U145: =IF($K145<>"",IF($L145<>"",VLOOKUP($K145,Allocations!$A$5:$K$20,5,0)*$L145,""),"") ->  | Y145: =IF($K145<>"",IF($L145<>"",VLOOKUP($K145,Allocations!$A$5:$K$20,6,0)*$L145,""),"") ->  | AC145: =IF($K145<>"",IF($L145<>"",VLOOKUP($K145,Allocations!$A$5:$K$20,7,0)*$L145,""),"") ->  | AG145: =IF($K145<>"",IF($L145<>"",VLOOKUP($K145,Allocations!$A$5:$K$20,8,0)*$L145,""),"") -> 
C146: Ratification Adjustment | K146: K | M146: =IF($K146<>"",IF($L146<>"",VLOOKUP($K146,Allocations!$A$5:$K$20,3,0)*$L146,""),"") ->  | N146: =IF(K146<>"",IF(M146<>"",+M146+(M146*0.05),""),"") ->  | O146: =IF(K146<>"",IF(N146<>"",+N146+(N146*0.05),""),"") ->  | Q146: =IF($K146<>"",IF($L146<>"",VLOOKUP($K146,Allocations!$A$5:$K$20,4,0)*$L146,""),"") ->  | R146: =IF(K146<>"",IF(Q146<>"",+Q146+(Q146*0.05),""),"") ->  | S146: =IF($K146<>"",IF(R146<>"",+R146+(R146*0.05),""),"") ->  | U146: =IF($K146<>"",IF($L146<>"",VLOOKUP($K146,Allocations!$A$5:$K$20,5,0)*$L146,""),"") ->  | V146: =IF($K146<>"",IF($U146<>"",+U146+(U146*0.05),""),"") ->  | W146: =IF($K146<>"",IF($V146<>"",+V146+(V146*0.05),""),"") ->  | Y146: =IF($K146<>"",IF($L146<>"",VLOOKUP($K146,Allocations!$A$5:$K$20,6,0)*$L146,""),"") ->  | Z146: =IF($K146<>"",IF($Y146<>"",+Y146+(Y146*0.05),""),"") ->  | AA146: =IF($K146<>"",IF($Z146<>"",+Z146+(Z146*0.05),""),"") ->  | AC146: =IF($K146<>"",IF($L146<>"",VLOOKUP($K146,Allocations!$A$5:$K$20,7,0)*$L146,""),"") ->  | AD146: =IF($K146<>"",IF($AC146<>"",+AC146+(AC146*0.05),""),"") ->  | AE146: =IF($K146<>"",IF($AD146<>"",+AD146+(AD146*0.05),""),"") ->  | AG146: =IF($K146<>"",IF($L146<>"",VLOOKUP($K146,Allocations!$A$5:$K$20,8,0)*$L146,""),"") ->  | AH146: =IF($K146<>"",IF($AG146<>"",+AG146+(AG146*0.05),""),"") ->  | AI146: =IF($K146<>"",IF($AH146<>"",+AH146+(AH146*0.05),""),"") -> 
H147: =IF(F147<>0,IF(G147<>0,(+F147-G147)/G147,""),"") ->  | M147: =IF($K147<>"",IF($L147<>"",VLOOKUP($K147,Allocations!$A$5:$K$20,3,0)*$L147,""),"") ->  | Q147: =IF($K147<>"",IF($L147<>"",VLOOKUP($K147,Allocations!$A$5:$K$20,4,0)*$L147,""),"") ->  | U147: =IF($K147<>"",IF($L147<>"",VLOOKUP($K147,Allocations!$A$5:$K$20,5,0)*$L147,""),"") ->  | Y147: =IF($K147<>"",IF($L147<>"",VLOOKUP($K147,Allocations!$A$5:$K$20,6,0)*$L147,""),"") ->  | AC147: =IF($K147<>"",IF($L147<>"",VLOOKUP($K147,Allocations!$A$5:$K$20,7,0)*$L147,""),"") ->  | AG147: =IF($K147<>"",IF($L147<>"",VLOOKUP($K147,Allocations!$A$5:$K$20,8,0)*$L147,""),"") -> 
A148: 74100 | C148: Office Supplies | E148: 2500 | F148: =SUM(L148:L150) -> 1000 | H148: =IF(F148<>0,IF(G148<>0,(+F148-G148)/G148,"▲"),"") -> ▲ | M148: =SUM(M149:M150) -> 1000 | N148: =SUM(N149:N150) -> 1050 | O148: =SUM(O149:O150) -> 1102.5 | Q148: =SUM(Q149:Q150) -> 0 | R148: =SUM(R149:R150) -> 0 | S148: =SUM(S149:S150) -> 0 | U148: =SUM(U149:U150) -> 0 | V148: =SUM(V149:V150) -> 0 | W148: =SUM(W149:W150) -> 0 | Y148: =SUM(Y149:Y150) -> 0 | Z148: =SUM(Z149:Z150) -> 0 | AA148: =SUM(AA149:AA150) -> 0 | AC148: =SUM(AC149:AC150) -> 0 | AD148: =SUM(AD149:AD150) -> 0 | AE148: =SUM(AE149:AE150) -> 0 | AG148: =SUM(AG149:AG150) -> 0 | AH148: =SUM(AH149:AH150) -> 0 | AI148: =SUM(AI149:AI150) -> 0
C149: Miscellaneous Supplies | H149: =IF(F149<>0,IF(G149<>0,(+F149-G149)/G149,""),"") ->  | K149: K | L149: 1000 | M149: =IF($K149<>"",IF($L149<>"",VLOOKUP($K149,Allocations!$A$5:$K$20,3,0)*$L149,""),"") -> 1000 | N149: 1050 | O149: 1102.5 | Q149: =IF($K149<>"",IF($L149<>"",VLOOKUP($K149,Allocations!$A$5:$K$20,4,0)*$L149,""),"") -> 0 | R149: 0 | S149: =IF($K149<>"",IF(R149<>"",+R149+(R149*0.05),""),"") -> 0 | U149: =IF($K149<>"",IF($L149<>"",VLOOKUP($K149,Allocations!$A$5:$K$20,5,0)*$L149,""),"") -> 0 | V149: =IF($K149<>"",IF($U149<>"",+U149+(U149*0.05),""),"") -> 0 | W149: =IF($K149<>"",IF($V149<>"",+V149+(V149*0.05),""),"") -> 0 | Y149: =IF($K149<>"",IF($L149<>"",VLOOKUP($K149,Allocations!$A$5:$K$20,6,0)*$L149,""),"") -> 0 | Z149: =IF($K149<>"",IF($Y149<>"",+Y149+(Y149*0.05),""),"") -> 0 | AA149: =IF($K149<>"",IF($Z149<>"",+Z149+(Z149*0.05),""),"") -> 0 | AC149: =IF($K149<>"",IF($L149<>"",VLOOKUP($K149,Allocations!$A$5:$K$20,7,0)*$L149,""),"") -> 0 | AD149: 0 | AE149: 0 | AG149: =IF($K149<>"",IF($L149<>"",VLOOKUP($K149,Allocations!$A$5:$K$20,8,0)*$L149,""),"") -> 0 | AH149: =IF($K149<>"",IF($AG149<>"",+AG149+(AG149*0.05),""),"") -> 0 | AI149: =IF($K149<>"",IF($AH149<>"",+AH149+(AH149*0.05),""),"") -> 0
H150: =IF(F150<>0,IF(G150<>0,(+F150-G150)/G150,""),"") ->  | M150: =IF($K150<>"",IF($L150<>"",VLOOKUP($K150,Allocations!$A$5:$K$20,3,0)*$L150,""),"") ->  | Q150: =IF($K150<>"",IF($L150<>"",VLOOKUP($K150,Allocations!$A$5:$K$20,4,0)*$L150,""),"") ->  | U150: =IF($K150<>"",IF($L150<>"",VLOOKUP($K150,Allocations!$A$5:$K$20,5,0)*$L150,""),"") ->  | Y150: =IF($K150<>"",IF($L150<>"",VLOOKUP($K150,Allocations!$A$5:$K$20,6,0)*$L150,""),"") ->  | AC150: =IF($K150<>"",IF($L150<>"",VLOOKUP($K150,Allocations!$A$5:$K$20,7,0)*$L150,""),"") ->  | AG150: =IF($K150<>"",IF($L150<>"",VLOOKUP($K150,Allocations!$A$5:$K$20,8,0)*$L150,""),"") -> 
A151: 74800 | C151: Postage | E151: 300 | F151: =SUM(L151:L153) -> 0 | H151: =IF(F151<>0,IF(G151<>0,(+F151-G151)/G151,"▲"),"") ->  | M151: =SUM(M152:M153) -> 0 | N151: =SUM(N152:N153) -> 0 | O151: =SUM(O152:O153) -> 0 | Q151: =SUM(Q152:Q153) -> 0 | R151: =SUM(R152:R153) -> 0 | S151: =SUM(S152:S153) -> 0 | U151: =SUM(U152:U153) -> 0 | V151: =SUM(V152:V153) -> 0 | W151: =SUM(W152:W153) -> 0 | Y151: =SUM(Y152:Y153) -> 0 | Z151: =SUM(Z152:Z153) -> 0 | AA151: =SUM(AA152:AA153) -> 0 | AC151: =SUM(AC152:AC153) -> 0 | AD151: =SUM(AD152:AD153) -> 0 | AE151: =SUM(AE152:AE153) -> 0 | AG151: =SUM(AG152:AG153) -> 0 | AH151: =SUM(AH152:AH153) -> 0 | AI151: =SUM(AI152:AI153) -> 0
C152: Postage | K152: K | L152: 0 | M152: =IF($K152<>"",IF($L152<>"",VLOOKUP($K152,Allocations!$A$5:$K$20,3,0)*$L152,""),"") -> 0 | N152: 0 | O152: 0 | Q152: =IF($K152<>"",IF($L152<>"",VLOOKUP($K152,Allocations!$A$5:$K$20,4,0)*$L152,""),"") -> 0 | R152: 0 | S152: 0 | U152: =IF($K152<>"",IF($L152<>"",VLOOKUP($K152,Allocations!$A$5:$K$20,5,0)*$L152,""),"") -> 0 | V152: 0 | W152: 0 | Y152: =IF($K152<>"",IF($L152<>"",VLOOKUP($K152,Allocations!$A$5:$K$20,6,0)*$L152,""),"") -> 0 | Z152: 0 | AA152: 0 | AC152: =IF($K152<>"",IF($L152<>"",VLOOKUP($K152,Allocations!$A$5:$K$20,7,0)*$L152,""),"") -> 0 | AD152: =IF($K152<>"",IF($AC152<>"",+AC152+(AC152*0.05),""),"") -> 0 | AE152: =IF($K152<>"",IF($AD152<>"",+AD152+(AD152*0.05),""),"") -> 0 | AG152: =IF($K152<>"",IF($L152<>"",VLOOKUP($K152,Allocations!$A$5:$K$20,8,0)*$L152,""),"") -> 0 | AH152: 0 | AI152: 0
H153: =IF(F153<>0,IF(G153<>0,(+F153-G153)/G153,""),"") ->  | M153: =IF($K153<>"",IF($L153<>"",VLOOKUP($K153,Allocations!$A$5:$K$20,3,0)*$L153,""),"") ->  | Q153: =IF($K153<>"",IF($L153<>"",VLOOKUP($K153,Allocations!$A$5:$K$20,4,0)*$L153,""),"") ->  | U153: =IF($K153<>"",IF($L153<>"",VLOOKUP($K153,Allocations!$A$5:$K$20,5,0)*$L153,""),"") ->  | Y153: =IF($K153<>"",IF($L153<>"",VLOOKUP($K153,Allocations!$A$5:$K$20,6,0)*$L153,""),"") ->  | AC153: =IF($K153<>"",IF($L153<>"",VLOOKUP($K153,Allocations!$A$5:$K$20,7,0)*$L153,""),"") ->  | AG153: =IF($K153<>"",IF($L153<>"",VLOOKUP($K153,Allocations!$A$5:$K$20,8,0)*$L153,""),"") -> 
A154: 77400 | C154: Sales & Use Tax | E154: 0 | F154: =SUM(L154:L157) -> 0 | H154: =IF(F154<>0,IF(G154<>0,(+F154-G154)/G154,"▲"),"") ->  | M154: =SUM(M155:M157) -> 0 | N154: =SUM(N155:N157) -> 0 | O154: =SUM(O155:O157) -> 0 | Q154: =SUM(Q155:Q157) -> 0 | R154: =SUM(R155:R157) -> 0 | S154: =SUM(S155:S157) -> 0 | U154: =SUM(U155:U157) -> 0 | V154: =SUM(V155:V157) -> 0 | W154: =SUM(W155:W157) -> 0 | Y154: =SUM(Y155:Y157) -> 0 | Z154: =SUM(Z155:Z157) -> 0 | AA154: =SUM(AA155:AA157) -> 0 | AC154: =SUM(AC155:AC157) -> 0 | AD154: =SUM(AD155:AD157) -> 0 | AE154: =SUM(AE155:AE157) -> 0 | AG154: =SUM(AG155:AG157) -> 0 | AH154: =SUM(AH155:AH157) -> 0 | AI154: =SUM(AI155:AI157) -> 0
C155: Sales Tax | K155: K | M155: =IF($K155<>"",IF($L155<>"",VLOOKUP($K155,Allocations!$A$5:$K$20,3,0)*$L155,""),"") ->  | Q155: =IF($K155<>"",IF($L155<>"",VLOOKUP($K155,Allocations!$A$5:$K$20,4,0)*$L155,""),"") ->  | U155: =IF($K155<>"",IF($L155<>"",VLOOKUP($K155,Allocations!$A$5:$K$20,5,0)*$L155,""),"") ->  | Y155: =IF($K155<>"",IF($L155<>"",VLOOKUP($K155,Allocations!$A$5:$K$20,6,0)*$L155,""),"") ->  | AC155: =IF($K155<>"",IF($L155<>"",VLOOKUP($K155,Allocations!$A$5:$K$20,7,0)*$L155,""),"") ->  | AG155: =IF($K155<>"",IF($L155<>"",VLOOKUP($K155,Allocations!$A$5:$K$20,8,0)*$L155,""),"") -> 
C156: Use Tax | K156: K | M156: =IF($K156<>"",IF($L156<>"",VLOOKUP($K156,Allocations!$A$5:$K$20,3,0)*$L156,""),"") ->  | Q156: =IF($K156<>"",IF($L156<>"",VLOOKUP($K156,Allocations!$A$5:$K$20,4,0)*$L156,""),"") ->  | U156: =IF($K156<>"",IF($L156<>"",VLOOKUP($K156,Allocations!$A$5:$K$20,5,0)*$L156,""),"") ->  | Y156: =IF($K156<>"",IF($L156<>"",VLOOKUP($K156,Allocations!$A$5:$K$20,6,0)*$L156,""),"") ->  | AC156: =IF($K156<>"",IF($L156<>"",VLOOKUP($K156,Allocations!$A$5:$K$20,7,0)*$L156,""),"") ->  | AG156: =IF($K156<>"",IF($L156<>"",VLOOKUP($K156,Allocations!$A$5:$K$20,8,0)*$L156,""),"") -> 
H157: =IF(F157<>0,IF(G157<>0,(+F157-G157)/G157,""),"") ->  | M157: =IF($K157<>"",IF($L157<>"",VLOOKUP($K157,Allocations!$A$5:$K$20,3,0)*$L157,""),"") ->  | N157: =IF(K157<>"",IF(M157<>"",+M157+(M157*0.05),""),"") ->  | O157: =IF(K157<>"",IF(N157<>"",+N157+(N157*0.05),""),"") ->  | Q157: =IF($K157<>"",IF($L157<>"",VLOOKUP($K157,Allocations!$A$5:$K$20,4,0)*$L157,""),"") ->  | R157: =IF(K157<>"",IF(Q157<>"",+Q157+(Q157*0.05),""),"") ->  | U157: =IF($K157<>"",IF($L157<>"",VLOOKUP($K157,Allocations!$A$5:$K$20,5,0)*$L157,""),"") ->  | Y157: =IF($K157<>"",IF($L157<>"",VLOOKUP($K157,Allocations!$A$5:$K$20,6,0)*$L157,""),"") ->  | AC157: =IF($K157<>"",IF($L157<>"",VLOOKUP($K157,Allocations!$A$5:$K$20,7,0)*$L157,""),"") ->  | AG157: =IF($K157<>"",IF($L157<>"",VLOOKUP($K157,Allocations!$A$5:$K$20,8,0)*$L157,""),"") -> 
A158: 78400 | C158: Dues & Subscriptions | E158: 1600 | F158: =SUM(L158:L164) -> 1000 | H158: =IF(F158<>0,IF(G158<>0,(+F158-G158)/G158,"▲"),"") -> ▲ | M158: =SUM(M159:M164) -> 1000 | N158: =SUM(N159:N164) -> 1050 | O158: =SUM(O159:O164) -> 1102.5 | Q158: =SUM(Q159:Q164) -> 0 | R158: =SUM(R159:R164) -> 0 | S158: =SUM(S159:S164) -> 0 | U158: =SUM(U159:U164) -> 0 | V158: =SUM(V159:V164) -> 0 | W158: =SUM(W159:W164) -> 0 | Y158: =SUM(Y159:Y164) -> 0 | Z158: =SUM(Z159:Z164) -> 0 | AA158: =SUM(AA159:AA164) -> 0 | AC158: =SUM(AC159:AC164) -> 0 | AD158: =SUM(AD159:AD164) -> 0 | AE158: =SUM(AE159:AE164) -> 0 | AG158: =SUM(AG159:AG164) -> 0 | AH158: =SUM(AH159:AH164) -> 0 | AI158: =SUM(AI159:AI164) -> 0
C159: Periodicals | H159: =IF(F159<>0,IF(G159<>0,(+F159-G159)/G159,""),"") ->  | K159: K | L159: 200 | M159: =IF($K159<>"",IF($L159<>"",VLOOKUP($K159,Allocations!$A$5:$K$20,3,0)*$L159,""),"") -> 200 | N159: 210 | O159: 220.5 | Q159: =IF($K159<>"",IF($L159<>"",VLOOKUP($K159,Allocations!$A$5:$K$20,4,0)*$L159,""),"") -> 0 | R159: 0 | S159: 0 | U159: =IF($K159<>"",IF($L159<>"",VLOOKUP($K159,Allocations!$A$5:$K$20,5,0)*$L159,""),"") -> 0 | V159: 0 | W159: 0 | Y159: =IF($K159<>"",IF($L159<>"",VLOOKUP($K159,Allocations!$A$5:$K$20,6,0)*$L159,""),"") -> 0 | Z159: 0 | AA159: 0 | AC159: =IF($K159<>"",IF($L159<>"",VLOOKUP($K159,Allocations!$A$5:$K$20,7,0)*$L159,""),"") -> 0 | AD159: 0 | AE159: 0 | AG159: =IF($K159<>"",IF($L159<>"",VLOOKUP($K159,Allocations!$A$5:$K$20,8,0)*$L159,""),"") -> 0 | AH159: 0 | AI159: 0
C160: Professional Dues | H160: =IF(F160<>0,IF(G160<>0,(+F160-G160)/G160,""),"") ->  | K160: K | L160: 100 | M160: =IF($K160<>"",IF($L160<>"",VLOOKUP($K160,Allocations!$A$5:$K$20,3,0)*$L160,""),"") -> 100 | N160: 105 | O160: 110.25 | Q160: =IF($K160<>"",IF($L160<>"",VLOOKUP($K160,Allocations!$A$5:$K$20,4,0)*$L160,""),"") -> 0 | R160: 0 | S160: 0 | U160: =IF($K160<>"",IF($L160<>"",VLOOKUP($K160,Allocations!$A$5:$K$20,5,0)*$L160,""),"") -> 0 | V160: 0 | W160: 0 | Y160: =IF($K160<>"",IF($L160<>"",VLOOKUP($K160,Allocations!$A$5:$K$20,6,0)*$L160,""),"") -> 0 | Z160: 0 | AA160: 0 | AC160: =IF($K160<>"",IF($L160<>"",VLOOKUP($K160,Allocations!$A$5:$K$20,7,0)*$L160,""),"") -> 0 | AD160: 0 | AE160: 0 | AG160: =IF($K160<>"",IF($L160<>"",VLOOKUP($K160,Allocations!$A$5:$K$20,8,0)*$L160,""),"") -> 0 | AH160: 0 | AI160: 0
C161: TechNet Plus | H161: =IF(F161<>0,IF(G161<>0,(+F161-G161)/G161,""),"") ->  | K161: K | L161: 1300 | M161: =IF($K161<>"",IF($L161<>"",VLOOKUP($K161,Allocations!$A$5:$K$20,3,0)*$L161,""),"") -> 1300 | N161: 1365 | O161: 1433.25 | Q161: =IF($K161<>"",IF($L161<>"",VLOOKUP($K161,Allocations!$A$5:$K$20,4,0)*$L161,""),"") -> 0 | R161: 0 | S161: 0 | U161: =IF($K161<>"",IF($L161<>"",VLOOKUP($K161,Allocations!$A$5:$K$20,5,0)*$L161,""),"") -> 0 | V161: 0 | W161: 0 | Y161: =IF($K161<>"",IF($L161<>"",VLOOKUP($K161,Allocations!$A$5:$K$20,6,0)*$L161,""),"") -> 0 | Z161: 0 | AA161: 0 | AC161: =IF($K161<>"",IF($L161<>"",VLOOKUP($K161,Allocations!$A$5:$K$20,7,0)*$L161,""),"") -> 0 | AD161: 0 | AE161: 0 | AG161: =IF($K161<>"",IF($L161<>"",VLOOKUP($K161,Allocations!$A$5:$K$20,8,0)*$L161,""),"") -> 0 | AH161: 0 | AI161: 0
C162: Ratification Adjustment | H162: =IF(F162<>0,IF(G162<>0,(+F162-G162)/G162,""),"") ->  | K162: K | L162: -600 | M162: =IF($K162<>"",IF($L162<>"",VLOOKUP($K162,Allocations!$A$5:$K$20,3,0)*$L162,""),"") -> -600 | N162: -630 | O162: -661.5 | Q162: =IF($K162<>"",IF($L162<>"",VLOOKUP($K162,Allocations!$A$5:$K$20,4,0)*$L162,""),"") -> 0 | R162: 0 | S162: 0 | U162: =IF($K162<>"",IF($L162<>"",VLOOKUP($K162,Allocations!$A$5:$K$20,5,0)*$L162,""),"") -> 0 | V162: 0 | W162: 0 | Y162: =IF($K162<>"",IF($L162<>"",VLOOKUP($K162,Allocations!$A$5:$K$20,6,0)*$L162,""),"") -> 0 | Z162: 0 | AA162: 0 | AC162: =IF($K162<>"",IF($L162<>"",VLOOKUP($K162,Allocations!$A$5:$K$20,7,0)*$L162,""),"") -> 0 | AD162: 0 | AE162: 0 | AG162: =IF($K162<>"",IF($L162<>"",VLOOKUP($K162,Allocations!$A$5:$K$20,8,0)*$L162,""),"") -> 0 | AH162: 0 | AI162: 0
C163: Ratification Adjustment | K163: K | M163: =IF($K163<>"",IF($L163<>"",VLOOKUP($K163,Allocations!$A$5:$K$20,3,0)*$L163,""),"") ->  | N163: =IF(K163<>"",IF(M163<>"",+M163+(M163*0.05),""),"") ->  | O163: =IF(K163<>"",IF(N163<>"",+N163+(N163*0.05),""),"") ->  | Q163: =IF($K163<>"",IF($L163<>"",VLOOKUP($K163,Allocations!$A$5:$K$20,4,0)*$L163,""),"") ->  | R163: =IF(K163<>"",IF(Q163<>"",+Q163+(Q163*0.05),""),"") ->  | U163: =IF($K163<>"",IF($L163<>"",VLOOKUP($K163,Allocations!$A$5:$K$20,5,0)*$L163,""),"") ->  | Y163: =IF($K163<>"",IF($L163<>"",VLOOKUP($K163,Allocations!$A$5:$K$20,6,0)*$L163,""),"") ->  | AC163: =IF($K163<>"",IF($L163<>"",VLOOKUP($K163,Allocations!$A$5:$K$20,7,0)*$L163,""),"") ->  | AG163: =IF($K163<>"",IF($L163<>"",VLOOKUP($K163,Allocations!$A$5:$K$20,8,0)*$L163,""),"") -> 
A165: 84100 | C165: Other Income (Expense) | E165: 5000 | F165: =SUM(L165:L167) -> 0 | H165: =IF(F165<>0,IF(G165<>0,(+F165-G165)/G165,"▲"),"") ->  | M165: =SUM(M166:M168) -> 0 | N165: =SUM(N166:N168) -> 0 | O165: =SUM(O166:O168) -> 0 | Q165: =SUM(Q166:Q168) -> 0 | R165: =SUM(R166:R168) -> 0 | S165: =SUM(S166:S168) -> 0 | U165: =SUM(U166:U168) -> 0 | V165: =SUM(V166:V168) -> 0 | W165: =SUM(W166:W168) -> 0 | Y165: =SUM(Y166:Y168) -> 0 | Z165: =SUM(Z166:Z168) -> 0 | AA165: =SUM(AA166:AA168) -> 0 | AC165: =SUM(AC166:AC168) -> 0 | AD165: =SUM(AD166:AD168) -> 0 | AE165: =SUM(AE166:AE168) -> 0 | AG165: =SUM(AG166:AG168) -> 0 | AH165: =SUM(AH166:AH168) -> 0 | AI165: =SUM(AI166:AI168) -> 0
C166: Miscellaneous | K166: K | L166: 0 | M166: =IF($K166<>"",IF($L166<>"",VLOOKUP($K166,Allocations!$A$5:$K$20,3,0)*$L166,""),"") -> 0 | N166: 0 | O166: 0 | Q166: =IF($K166<>"",IF($L166<>"",VLOOKUP($K166,Allocations!$A$5:$K$20,4,0)*$L166,""),"") -> 0 | R166: 0 | S166: 0 | U166: =IF($K166<>"",IF($L166<>"",VLOOKUP($K166,Allocations!$A$5:$K$20,5,0)*$L166,""),"") -> 0 | V166: 0 | W166: 0 | Y166: =IF($K166<>"",IF($L166<>"",VLOOKUP($K166,Allocations!$A$5:$K$20,6,0)*$L166,""),"") -> 0 | Z166: 0 | AA166: 0 | AC166: =IF($K166<>"",IF($L166<>"",VLOOKUP($K166,Allocations!$A$5:$K$20,7,0)*$L166,""),"") -> 0 | AD166: 0 | AE166: 0 | AG166: =IF($K166<>"",IF($L166<>"",VLOOKUP($K166,Allocations!$A$5:$K$20,8,0)*$L166,""),"") -> 0 | AH166: 0 | AI166: 0
M167: =IF($K167<>"",IF($L167<>"",VLOOKUP($K167,Allocations!$A$5:$K$20,3,0)*$L167,""),"") ->  | Q167: =IF($K167<>"",IF($L167<>"",VLOOKUP($K167,Allocations!$A$5:$K$20,4,0)*$L167,""),"") ->  | U167: =IF($K167<>"",IF($L167<>"",VLOOKUP($K167,Allocations!$A$5:$K$20,5,0)*$L167,""),"") ->  | Y167: =IF($K167<>"",IF($L167<>"",VLOOKUP($K167,Allocations!$A$5:$K$20,6,0)*$L167,""),"") ->  | AC167: =IF($K167<>"",IF($L167<>"",VLOOKUP($K167,Allocations!$A$5:$K$20,7,0)*$L167,""),"") ->  | AG167: =IF($K167<>"",IF($L167<>"",VLOOKUP($K167,Allocations!$A$5:$K$20,8,0)*$L167,""),"") -> 
C169: Sub-Total Operational Budget: | E169: =SUM(E6:E167) -> 744260.12 | F169: =SUM(F6:F167) -> 724825.326 | G169: =SUM(G4:G165) -> 500485.7143 | H169: =IF(F169<>0,IF(G169<>0,(+F169-G169)/G169,""),"") -> 0.4482437867 | M169: =+M6+M15+M30+M34+M38+M42+M50+M54+M57+M67+M90+M94+M106+M117+M126+M135+M148+M151+M158+M165 -> 36751.15012 | N169: =SUM(N6:N167) -> 138898.3242 | O169: 145843.2404 | P169: 0 | Q169: =+Q6+Q15+Q30+Q34+Q38+Q42+Q50+Q54+Q57+Q67+Q90+Q94+Q106+Q117+Q126+Q135+Q148+Q151+Q158+Q165 -> 321518.5352 | R169: 675188.9239 | S169: 708948.3701 | T169: 0 | U169: =+U6+U15+U30+U34+U38+U42+U50+U54+U57+U67+U90+U94+U106+U117+U126+U135+U148+U151+U158+U165 -> 276826.5484 | V169: 581335.7516 | W169: 610402.5392 | X169: 0 | Y169: =+Y6+Y15+Y30+Y34+Y38+Y42+Y50+Y54+Y57+Y67+Y90+Y94+Y106+Y117+Y126+Y135+Y148+Y151+Y158+Y165 -> 78393.73935 | Z169: 164626.8526 | AA169: 172858.1953 | AB169: 0 | AC169: =+AC6+AC15+AC30+AC34+AC38+AC42+AC50+AC54+AC57+AC67+AC90+AC94+AC106+AC117+AC126+AC135+AC148+AC151+AC158+AC165 -> 5848.510873 | AD169: 12281.87283 | AE169: 12895.96647 | AF169: 0 | AG169: =+AG6+AG15+AG30+AG34+AG38+AG42+AG50+AG54+AG57+AG67+AG90+AG94+AG106+AG117+AG126+AG135+AG148+AG151+AG158+AG165 -> 3886.842105 | AH169: =SUM(AH4:AH165) -> 8079.473684 | AI169: =SUM(AI4:AI165) -> 8483.447368
C170: Corporate Allocation: | E170: =SUM(E4:E5) -> 518221 | F170: =SUM(F4:F5) -> 393800.9325 | I170: AA | M170: =DSUM($J$3:$AJ$165,4,$I$170:$I$171) -> 0 | N170: =DSUM($J$3:$AJ$165,5,$I$170:$I$171)+M194 -> 2235.799632 | O170: =DSUM($J$3:$AJ$165,6,$I$170:$I$171)+N194 -> 37743.24906 | Q170: =DSUM($J$3:$AJ$165,8,$I$170:$I$171) -> 0 | R170: =DSUM($J$3:$AJ$165,9,$I$170:$I$171)+Q194 -> 49978.09641 | S170: =DSUM($J$3:$AJ$165,10,$I$170:$I$171)+R194 -> 114676.0525 | U170: =DSUM($J$3:$AJ$165,12,$I$170:$I$171) -> 0 | V170: =DSUM($J$3:$AJ$165,13,$I$170:$I$171)+U194 -> 47069.0431 | W170: =DSUM($J$3:$AJ$165,14,$I$170:$I$171)+V194 -> 131465.5093 | Y170: =DSUM($J$3:$AJ$165,16,$I$170:$I$171) -> 0 | Z170: =DSUM($J$3:$AJ$165,17,$I$170:$I$171)+Y194 -> 1341.479779 | AA170: =DSUM($J$3:$AJ$165,18,$I$170:$I$171)+Z194 -> 29235.08973 | AC170: =DSUM($J$3:$AJ$165,20,$I$170:$I$171) -> 0 | AD170: =DSUM($J$3:$AJ$165,21,$I$170:$I$171)+AC194 -> 149.0533088 | AE170: =DSUM($J$3:$AJ$165,22,$I$170:$I$171)+AD194 -> 844.0332353 | AG170: =DSUM($J$3:$AJ$165,24,$I$170:$I$171) -> 0 | AH170: =DSUM($J$3:$AJ$165,24,$I$170:$I$171)+AG194 -> 0 | AI170: =DSUM($J$3:$AJ$165,24,$I$170:$I$171)+AH194 -> 0
C171: Total Operational Budget: | E171: =+E169+E170 -> 1262481.12 | F171: =+F169+F170 -> 1118626.259 | I171: A | M171: =+M169+M170 -> 36751.15012 | N171: 141134.1238 | O171: 183586.4894 | P171: 0 | Q171: 321518.5352 | R171: 725167.0203 | S171: 823624.4225 | T171: 0 | U171: 276826.5484 | V171: 628404.7947 | W171: 741868.0485 | X171: 0 | Y171: 78393.73935 | Z171: 165968.3324 | AA171: 202093.285 | AB171: 0 | AC171: 5848.510873 | AD171: 12430.92614 | AE171: 13739.99971 | AF171: 0 | AG171: 3886.842105 | AH171: =+AH169+AH170 -> 8079.473684 | AI171: =+AI169+AI170 -> 8483.447368
C173: ="Projects for " &$F$3 -> Projects for 2008 | L173: =IF(SUM(M169+Q169+U169+Y169+AC169+AG169)<>F169,"Out of Balance","") -> Out of Balance
A174: Month | C174: =IF(K175=TRUE,"CapEx","Project Cost") -> CapEx
A175: Cash | B175: Complete | C175: Project Summary | F175: Start Date | K175: TRUE | M175: SMI | N175: SMI | O175: SMI | Q175: IPD | R175: IPD | S175: IPD | U175: SMG | V175: SMG | W175: SMG | Y175: SWD/SP | Z175: SWD/SP | AA175: SWD/SP | AC175: Sinv | AD175: Sinv | AE175: Sinv | AG175: RVR | AH175: RVR | AI175: RVR
A176: 3 | B176: 4 | C176: Infrastructure | F176: 2008 | I176: =IF($K$175=TRUE,+Infrastructure!$F$30,+Infrastructure!$F$40) -> 0 | K176: =IF(F176=$F$3,+L176,"") -> 76355 | L176: =IF($K$175=TRUE,+Infrastructure!$E$30,+Infrastructure!$E$40) -> 76355 | M176: =IF(VALUE($F176)<=VALUE($M$3),IF($K$175=TRUE,+(Infrastructure!$G$30/36)*(13-$B$176),+(Infrastructure!$G$40/36)*(13-$B$176)),0) -> 1192.141544 | N176: =IF(VALUE($F176)<=VALUE($N$3),IF($K$175=TRUE,+Infrastructure!$G$30*0.3333,+Infrastructure!$G$40*0.3333),0) -> 1589.363107 | O176: =IF(VALUE($F176)<=VALUE($O$3),IF($K$175=TRUE,+Infrastructure!$G$30*0.3333,+Infrastructure!$G$40*0.3333),0) -> 1589.363107 | Q176: =IF(VALUE($F176)<=VALUE($Q$3),IF($K$175=TRUE,+(Infrastructure!$H$30/36)*(13-$B$176),+(Infrastructure!$H$40/36)*(13-$B$176)),0) -> 9970.661765 | R176: =IF(VALUE($F176)<=VALUE($R$3),IF($K$175=TRUE,+Infrastructure!$H$30*0.3333,+Infrastructure!$H$40*0.3333),0) -> 13292.88626 | S176: =IF(VALUE($F176)<=VALUE($S$3),IF($K$175=TRUE,+Infrastructure!$H$30*0.3333,+Infrastructure!$H$40*0.3333),0) -> 13292.88626 | U176: =IF(VALUE($F176)<=VALUE($U$3),IF($K$175=TRUE,+(Infrastructure!$I$30/36)*(13-$B$176),+(Infrastructure!$I$40/36)*(13-$B$176)),0) -> 7131.185662 | V176: =IF(VALUE($F176)<=VALUE($V$3),IF($K$175=TRUE,+Infrastructure!$I$30*0.3333,+Infrastructure!$I$40*0.3333),0) -> 9507.296724 | W176: =IF(VALUE($F176)<=VALUE($W$3),IF($K$175=TRUE,+Infrastructure!$I$30*0.3333,+Infrastructure!$I$40*0.3333),0) -> 9507.296724 | Y176: =IF(VALUE($F176)<=VALUE($Y$3),IF($K$175=TRUE,+(Infrastructure!$J$30/36)*(13-$B$176),+(Infrastructure!$J$40/36)*(13-$B$176)),0) -> 715.2849265 | Z176: =IF(VALUE($F176)<=VALUE($Z$3),IF($K$175=TRUE,+Infrastructure!$J$30*0.3333,+Infrastructure!$J$40*0.3333),0) -> 953.617864 | AA176: =IF(VALUE($F176)<=VALUE($AA$3),IF($K$175=TRUE,+Infrastructure!$J$30*0.3333,+Infrastructure!$J$40*0.3333),0) -> 953.617864 | AC176: =IF(VALUE($F176)<=VALUE($AC$3),IF($K$175=TRUE,+(Infrastructure!$K$30/36)*(13-$B$176),+(Infrastructure!$K$40/36)*(13-$B$176)),0) -> 79.47610294 | AD176: =IF(VALUE($F176)<=VALUE($AD$3),IF($K$175=TRUE,+Infrastructure!$K$30*0.3333,+Infrastructure!$K$40*0.3333),0) -> 105.9575404 | AE176: =IF(VALUE($F176)<=VALUE($AE$3),IF($K$175=TRUE,+Infrastructure!$K$30*0.3333,+Infrastructure!$K$40*0.3333),0) -> 105.9575404 | AG176: =IF(VALUE($F176)<=VALUE($AG$3),IF($K$175=TRUE,+(Infrastructure!$L$30/36)*(13-$B$176),+(Infrastructure!$L$40/36)*(13-$B$176)),0) -> 0 | AH176: =IF(VALUE($F176)<=VALUE($AH$3),IF($K$175=TRUE,+Infrastructure!$L$30*0.3333,+Infrastructure!$L$40*0.3333),0) -> 0 | AI176: =IF(VALUE($F176)<=VALUE($AI$3),IF($K$175=TRUE,+Infrastructure!$L$30*0.3333,+Infrastructure!$L$40*0.3333),0) -> 0
C177: SMG Relocation | F177: 2009 | I177: =IF($K$175=TRUE,+'SMG Relocation'!$F$30,+'SMG Relocation'!$F$40) -> 0 | L177: =IF($K$175=TRUE,+'SMG Relocation'!$E$30,+'SMG Relocation'!$E$40) -> 65467.5 | M177: =IF(VALUE($F$177)<=VALUE($M$3),IF($K$175=TRUE,+('SMG Relocation'!$G$30/36)*(13-$B177),+('SMG Relocation'!$G$40/36)*(13-$B17)),0) -> 0 | N177: =IF(VALUE($F177)<=VALUE($N$3),IF($K$175=TRUE,+'SMG Relocation'!$G$30*0.3333,+'SMG Relocation'!$G$40*0.3333),0) -> 0 | O177: =IF(VALUE($F177)<=VALUE($O$3),IF($K$175=TRUE,+'SMG Relocation'!$G$30*0.3333,+'SMG Relocation'!$G$40*0.3333),0) -> 0 | Q177: =IF(VALUE($F177)<=VALUE($Q$3),IF($K$175=TRUE,+('SMG Relocation'!$H$30/36)*(13-$B177),+('SMG Relocation'!$H$40/36)*(13-$B177)),0) -> 0 | R177: =IF(VALUE($F177)<=VALUE($R$3),IF($K$175=TRUE,+'SMG Relocation'!$H$30*0.3333,+'SMG Relocation'!$H$40*0.3333),0) -> 0 | S177: =IF(VALUE($F177)<=VALUE($S$3),IF($K$175=TRUE,+'SMG Relocation'!$H$30*0.3333,+'SMG Relocation'!$H$40*0.3333),0) -> 0 | U177: =IF(VALUE($F177)<=VALUE($U$3),IF($K$175=TRUE,+('SMG Relocation'!$I$30/36)*(13-$B177),+('SMG Relocation'!$I$40/36)*(13-$B177)),0) -> 0 | V177: =IF(VALUE($F177)<=VALUE($V$3),IF($K$175=TRUE,+'SMG Relocation'!$I$30*0.3333,+'SMG Relocation'!$I$40*0.3333),0) -> 21820.31775 | W177: =IF(VALUE($F177)<=VALUE($W$3),IF($K$175=TRUE,+'SMG Relocation'!$I$30*0.3333,+'SMG Relocation'!$I$40*0.3333),0) -> 21820.31775 | Y177: =IF(VALUE($F177)<=VALUE($Y$3),IF($K$175=TRUE,+('SMG Relocation'!$J$30/36)*(13-$B177),+('SMG Relocation'!$J$40/36)*(13-$B177)),0) -> 0 | Z177: =IF(VALUE($F177)<=VALUE($Z$3),IF($K$175=TRUE,+'SMG Relocation'!$J$30*0.3333,+'SMG Relocation'!$J$40*0.3333),0) -> 0 | AA177: =IF(VALUE($F177)<=VALUE($AA$3),IF($K$175=TRUE,+'SMG Relocation'!$J$30*0.3333,+'SMG Relocation'!$J$40*0.3333),0) -> 0 | AC177: =IF(VALUE($F177)<=VALUE($AC$3),IF($K$175=TRUE,+('SMG Relocation'!$K$30/36)*(13-$B177),+('SMG Relocation'!$K$40/36)*(13-$B177)),0) -> 0 | AD177: =IF(VALUE($F177)<=VALUE($AD$3),IF($K$175=TRUE,+'SMG Relocation'!$K$30*0.3333,+'SMG Relocation'!$K$40*0.3333),0) -> 0 | AE177: =IF(VALUE($F177)<=VALUE($AE$3),IF($K$175=TRUE,+'SMG Relocation'!$K$30*0.3333,+'SMG Relocation'!$K$40*0.3333),0) -> 0 | AG177: =IF(VALUE($F177)<=VALUE($AG$3),IF($K$175=TRUE,+('SMG Relocation'!$L$30/36)*(13-$B177),+('SMG Relocation'!$L$40/36)*(13-$B177)),0) -> 0 | AH177: =IF(VALUE($F177)<=VALUE($AH$3),IF($K$175=TRUE,+'SMG Relocation'!$L$30*0.3333,+'SMG Relocation'!$L$40*0.3333),0) -> 0 | AI177: =IF(VALUE($F177)<=VALUE($AI$3),IF($K$175=TRUE,+'SMG Relocation'!$L$30*0.3333,+'SMG Relocation'!$L$40*0.3333),0) -> 0
A178: 7 | B178: 8 | C178: Microsoft Office 2007 | F178: 2008 | I178: =IF($K$175=TRUE,+'Microsoft Office 2007'!$F$30,+'Microsoft Office 2007'!$F$40) -> 47885 | K178: 68130 | L178: =IF($K$175=TRUE,+'Microsoft Office 2007'!$E$30,+'Microsoft Office 2007'!$E$40) -> 68130 | M178: =IF(VALUE($F178)<=VALUE($M$3),IF($K$175=TRUE,+('Microsoft Office 2007'!$G$30/36)*(13-$B178),+('Microsoft Office 2007'!$G$40/36)*(13-$B178)),0) -> 1043.658088 | N178: =IF(VALUE($F178)<=VALUE($N$3),IF($K$175=TRUE,+'Microsoft Office 2007'!$G$30*0.3333,+'Microsoft Office 2007'!$G$40*0.3333),0) -> 2504.528934 | O178: =IF(VALUE($F178)<=VALUE($O$3),IF($K$175=TRUE,+'Microsoft Office 2007'!$G$30*0.3333,+'Microsoft Office 2007'!$G$40*0.3333),0) -> 2504.528934 | Q178: =IF(VALUE($F178)<=VALUE($Q$3),IF($K$175=TRUE,+('Microsoft Office 2007'!$H$30/36)*(13-$B178),+('Microsoft Office 2007'!$H$40/36)*(13-$B178)),0) -> 3896.323529 | R178: =IF(VALUE($F178)<=VALUE($R$3),IF($K$175=TRUE,+'Microsoft Office 2007'!$H$30*0.3333,+'Microsoft Office 2007'!$H$40*0.3333),0) -> 9350.241353 | S178: =IF(VALUE($F178)<=VALUE($S$3),IF($K$175=TRUE,+'Microsoft Office 2007'!$H$30*0.3333,+'Microsoft Office 2007'!$H$40*0.3333),0) -> 9350.241353 | U178: =IF(VALUE($F178)<=VALUE($U$3),IF($K$175=TRUE,+('Microsoft Office 2007'!$I$30/36)*(13-$B178),+('Microsoft Office 2007'!$I$40/36)*(13-$B178)),0) -> 3826.746324 | V178: =IF(VALUE($F178)<=VALUE($V$3),IF($K$175=TRUE,+'Microsoft Office 2007'!$I$30*0.3333,+'Microsoft Office 2007'!$I$40*0.3333),0) -> 9183.272757 | W178: =IF(VALUE($F178)<=VALUE($W$3),IF($K$175=TRUE,+'Microsoft Office 2007'!$I$30*0.3333,+'Microsoft Office 2007'!$I$40*0.3333),0) -> 9183.272757 | Y178: =IF(VALUE($F178)<=VALUE($Y$3),IF($K$175=TRUE,+('Microsoft Office 2007'!$J$30/36)*(13-$B178),+('Microsoft Office 2007'!$J$40/36)*(13-$B178)),0) -> 626.1948529 | Z178: =IF(VALUE($F178)<=VALUE($Z$3),IF($K$175=TRUE,+'Microsoft Office 2007'!$J$30*0.3333,+'Microsoft Office 2007'!$J$40*0.3333),0) -> 1502.71736 | AA178: =IF(VALUE($F178)<=VALUE($AA$3),IF($K$175=TRUE,+'Microsoft Office 2007'!$J$30*0.3333,+'Microsoft Office 2007'!$J$40*0.3333),0) -> 1502.71736 | AC178: =IF(VALUE($F178)<=VALUE($AC$3),IF($K$175=TRUE,+('Microsoft Office 2007'!$K$30/36)*(13-$B178),+('Microsoft Office 2007'!$K$40/36)*(13-$B178)),0) -> 69.57720588 | AD178: =IF(VALUE($F178)<=VALUE($AD$3),IF($K$175=TRUE,+'Microsoft Office 2007'!$K$30*0.3333,+'Microsoft Office 2007'!$K$40*0.3333),0) -> 166.9685956 | AE178: =IF(VALUE($F178)<=VALUE($AE$3),IF($K$175=TRUE,+'Microsoft Office 2007'!$K$30*0.3333,+'Microsoft Office 2007'!$K$40*0.3333),0) -> 166.9685956 | AG178: =IF(VALUE($F178)<=VALUE($AG$3),IF($K$175=TRUE,+('Microsoft Office 2007'!$L$30/36)*(13-$B178),+('Microsoft Office 2007'!$L$40/36)*(13-$B178)),0) -> 0 | AH178: =IF(VALUE($F178)<=VALUE($AH$3),IF($K$175=TRUE,+'Microsoft Office 2007'!$L$30*0.3333,+'Microsoft Office 2007'!$L$40*0.3333),0) -> 0 | AI178: =IF(VALUE($F178)<=VALUE($AI$3),IF($K$175=TRUE,+'Microsoft Office 2007'!$L$30*0.3333,+'Microsoft Office 2007'!$L$40*0.3333),0) -> 0
C179: Business Intelligence | F179: 2009 | I179: =IF($K$175=TRUE,+'Business Intelligence'!$F$30,+'Business Intelligence'!$F$40) -> 0 | L179: =IF($K$175=TRUE,+'Business Intelligence'!$E$30,+'Business Intelligence'!$E$40) -> 66352 | M179: =IF(VALUE($F179)<=VALUE($M$3),IF($K$175=TRUE,+('Business Intelligence'!$G$30/36)*(13-$B179),+('Business Intelligence'!$G$40/36)*(13-$B179)),0) -> 0 | N179: =IF(VALUE($F179)<=VALUE($N$3),IF($K$175=TRUE,+'Business Intelligence'!$G$30*0.3333,+'Business Intelligence'!$G$40*0.3333),0) -> 5528.7804 | O179: =IF(VALUE($F179)<=VALUE($O$3),IF($K$175=TRUE,+'Business Intelligence'!$G$30*0.3333,+'Business Intelligence'!$G$40*0.3333),0) -> 5528.7804 | Q179: =IF(VALUE($F179)<=VALUE($Q$3),IF($K$175=TRUE,+('Business Intelligence'!$H$30/36)*(13-$B179),+('Business Intelligence'!$H$40/36)*(13-$B179)),0) -> 0 | R179: =IF(VALUE($F179)<=VALUE($R$3),IF($K$175=TRUE,+'Business Intelligence'!$H$30*0.3333,+'Business Intelligence'!$H$40*0.3333),0) -> 5528.7804 | S179: =IF(VALUE($F179)<=VALUE($S$3),IF($K$175=TRUE,+'Business Intelligence'!$H$30*0.3333,+'Business Intelligence'!$H$40*0.3333),0) -> 5528.7804 | U179: =IF(VALUE($F179)<=VALUE($U$3),IF($K$175=TRUE,+('Business Intelligence'!$I$30/36)*(13-$B179),+('Business Intelligence'!$I$40/36)*(13-$B179)),0) -> 0 | V179: =IF(VALUE($F179)<=VALUE($V$3),IF($K$175=TRUE,+'Business Intelligence'!$I$30*0.3333,+'Business Intelligence'!$I$40*0.3333),0) -> 5528.7804 | W179: =IF(VALUE($F179)<=VALUE($W$3),IF($K$175=TRUE,+'Business Intelligence'!$I$30*0.3333,+'Business Intelligence'!$I$40*0.3333),0) -> 5528.7804 | Y179: =IF(VALUE($F179)<=VALUE($Y$3),IF($K$175=TRUE,+('Business Intelligence'!$J$30/36)*(13-$B179),+('Business Intelligence'!$J$40/36)*(13-$B179)),0) -> 0 | Z179: =IF(VALUE($F179)<=VALUE($Z$3),IF($K$175=TRUE,+'Business Intelligence'!$J$30*0.3333,+'Business Intelligence'!$J$40*0.3333),0) -> 5528.7804 | AA179: =IF(VALUE($F179)<=VALUE($AA$3),IF($K$175=TRUE,+'Business Intelligence'!$J$30*0.3333,+'Business Intelligence'!$J$40*0.3333),0) -> 5528.7804 | AC179: =IF(VALUE($F179)<=VALUE($AC$3),IF($K$175=TRUE,+('Business Intelligence'!$K$30/36)*(13-$B179),+('Business Intelligence'!$K$40/36)*(13-$B179)),0) -> 0 | AD179: =IF(VALUE($F179)<=VALUE($AD$3),IF($K$175=TRUE,+'Business Intelligence'!$K$30*0.3333,+'Business Intelligence'!$K$40*0.3333),0) -> 0 | AE179: =IF(VALUE($F179)<=VALUE($AE$3),IF($K$175=TRUE,+'Business Intelligence'!$K$30*0.3333,+'Business Intelligence'!$K$40*0.3333),0) -> 0 | AG179: =IF(VALUE($F179)<=VALUE($AG$3),IF($K$175=TRUE,+('Business Intelligence'!$L$30/36)*(13-$B179),+('Business Intelligence'!$L$40/36)*(13-$B179)),0) -> 0 | AH179: =IF(VALUE($F179)<=VALUE($AH$3),IF($K$175=TRUE,+'Business Intelligence'!$L$30*0.3333,+'Business Intelligence'!$L$40*0.3333),0) -> 0 | AI179: =IF(VALUE($F179)<=VALUE($AI$3),IF($K$175=TRUE,+'Business Intelligence'!$L$30*0.3333,+'Business Intelligence'!$L$40*0.3333),0) -> 0
C180: Document Management System | F180: 2009 | I180: =IF($K$175=TRUE,+'Document Management'!$F$30,+'Document Management'!$F$40) -> 0 | L180: =IF($K$175=TRUE,+'Document Management'!$E$30,+'Document Management'!$E$40) -> 233035 | M180: =IF(VALUE($F180)<=VALUE($M$3),IF($K$175=TRUE,+('Document Management'!$G$30/36)*(13-$B180),+('Document Management'!$G$40/36)*(13-$B180)),0) -> 0 | N180: =IF(VALUE($F180)<=VALUE($N$3),IF($K$175=TRUE,+'Document Management'!$G$30*0.3333,+'Document Management'!$G$40*0.3333),0) -> 8566.606489 | O180: =IF(VALUE($F180)<=VALUE($O$3),IF($K$175=TRUE,+'Document Management'!$G$30*0.3333,+'Document Management'!$G$40*0.3333),0) -> 8566.606489 | Q180: =IF(VALUE($F180)<=VALUE($Q$3),IF($K$175=TRUE,+('Document Management'!$H$30/36)*(13-$B180),+('Document Management'!$H$40/36)*(13-$B180)),0) -> 0 | R180: =IF(VALUE($F180)<=VALUE($R$3),IF($K$175=TRUE,+'Document Management'!$H$30*0.3333,+'Document Management'!$H$40*0.3333),0) -> 31981.99756 | S180: =IF(VALUE($F180)<=VALUE($S$3),IF($K$175=TRUE,+'Document Management'!$H$30*0.3333,+'Document Management'!$H$40*0.3333),0) -> 31981.99756 | U180: =IF(VALUE($F180)<=VALUE($U$3),IF($K$175=TRUE,+('Document Management'!$I$30/36)*(13-$B180),+('Document Management'!$I$40/36)*(13-$B180)),0) -> 0 | V180: =IF(VALUE($F180)<=VALUE($V$3),IF($K$175=TRUE,+'Document Management'!$I$30*0.3333,+'Document Management'!$I$40*0.3333),0) -> 31410.89046 | W180: =IF(VALUE($F180)<=VALUE($W$3),IF($K$175=TRUE,+'Document Management'!$I$30*0.3333,+'Document Management'!$I$40*0.3333),0) -> 31410.89046 | Y180: =IF(VALUE($F180)<=VALUE($Y$3),IF($K$175=TRUE,+('Document Management'!$J$30/36)*(13-$B180),+('Document Management'!$J$40/36)*(13-$B180)),0) -> 0 | Z180: =IF(VALUE($F180)<=VALUE($Z$3),IF($K$175=TRUE,+'Document Management'!$J$30*0.3333,+'Document Management'!$J$40*0.3333),0) -> 5139.963893 | AA180: =IF(VALUE($F180)<=VALUE($AA$3),IF($K$175=TRUE,+'Document Management'!$J$30*0.3333,+'Document Management'!$J$40*0.3333),0) -> 5139.963893 | AC180: =IF(VALUE($F180)<=VALUE($AC$3),IF($K$175=TRUE,+('Document Management'!$K$30/36)*(13-$B180),+('Document Management'!$K$40/36)*(13-$B180)),0) -> 0 | AD180: =IF(VALUE($F180)<=VALUE($AD$3),IF($K$175=TRUE,+'Document Management'!$K$30*0.3333,+'Document Management'!$K$40*0.3333),0) -> 571.1070993 | AE180: =IF(VALUE($F180)<=VALUE($AE$3),IF($K$175=TRUE,+'Document Management'!$K$30*0.3333,+'Document Management'!$K$40*0.3333),0) -> 571.1070993 | AG180: =IF(VALUE($F180)<=VALUE($AG$3),IF($K$175=TRUE,+('Document Management'!$L$30/36)*(13-$B180),+('Document Management'!$L$40/36)*(13-$B180)),0) -> 0 | AH180: =IF(VALUE($F180)<=VALUE($AH$3),IF($K$175=TRUE,+'Document Management'!$L$30*0.3333,+'Document Management'!$L$40*0.3333),0) -> 0 | AI180: =IF(VALUE($F180)<=VALUE($AI$3),IF($K$175=TRUE,+'Document Management'!$L$30*0.3333,+'Document Management'!$L$40*0.3333),0) -> 0
A181: 4 | B181: 5 | C181: Telephone System | F181: 2009 | I181: =IF($K$175=TRUE,+'Telephone System'!$F$30,+'Telephone System'!$F$40) -> 0 | L181: =IF($K$175=TRUE,+'Telephone System'!$E$30,+'Telephone System'!$E$40) -> 25000 | M181: =IF(VALUE($F181)<=VALUE($M$3),IF($K$175=TRUE,+('Telephone System'!$G$30/36)*(13-$B181),+('Telephone System'!$G$40/36)*(13-$B181)),0) -> 0 | N181: =IF(VALUE($F181)<=VALUE($N$3),IF($K$175=TRUE,+'Telephone System'!$G$30*0.3333,+'Telephone System'!$G$40*0.3333),0) -> 1231.76087 | O181: =IF(VALUE($F181)<=VALUE($O$3),IF($K$175=TRUE,+'Telephone System'!$G$30*0.3333,+'Telephone System'!$G$40*0.3333),0) -> 1231.76087 | Q181: =IF(VALUE($F181)<=VALUE($Q$3),IF($K$175=TRUE,+('Telephone System'!$H$30/36)*(13-$B181),+('Telephone System'!$H$40/36)*(13-$B181)),0) -> 0 | R181: =IF(VALUE($F181)<=VALUE($R$3),IF($K$175=TRUE,+'Telephone System'!$H$30*0.3333,+'Telephone System'!$H$40*0.3333),0) -> 3550.369565 | S181: =IF(VALUE($F181)<=VALUE($S$3),IF($K$175=TRUE,+'Telephone System'!$H$30*0.3333,+'Telephone System'!$H$40*0.3333),0) -> 3550.369565 | U181: =IF(VALUE($F181)<=VALUE($U$3),IF($K$175=TRUE,+('Telephone System'!$I$30/36)*(13-$B181),+('Telephone System'!$I$40/36)*(13-$B181)),0) -> 0 | V181: =IF(VALUE($F181)<=VALUE($V$3),IF($K$175=TRUE,+'Telephone System'!$I$30*0.3333,+'Telephone System'!$I$40*0.3333),0) -> 3043.173913 | W181: =IF(VALUE($F181)<=VALUE($W$3),IF($K$175=TRUE,+'Telephone System'!$I$30*0.3333,+'Telephone System'!$I$40*0.3333),0) -> 3043.173913 | Y181: =IF(VALUE($F181)<=VALUE($Y$3),IF($K$175=TRUE,+('Telephone System'!$J$30/36)*(13-$B181),+('Telephone System'!$J$40/36)*(13-$B181)),0) -> 0 | Z181: =IF(VALUE($F181)<=VALUE($Z$3),IF($K$175=TRUE,+'Telephone System'!$J$30*0.3333,+'Telephone System'!$J$40*0.3333),0) -> 507.1956522 | AA181: =IF(VALUE($F181)<=VALUE($AA$3),IF($K$175=TRUE,+'Telephone System'!$J$30*0.3333,+'Telephone System'!$J$40*0.3333),0) -> 507.1956522 | AC181: =IF(VALUE($F181)<=VALUE($AC$3),IF($K$175=TRUE,+('Telephone System'!$K$30/36)*(13-$B181),+('Telephone System'!$K$40/36)*(13-$B181)),0) -> 0 | AD181: =IF(VALUE($F181)<=VALUE($AD$3),IF($K$175=TRUE,+'Telephone System'!$K$30*0.3333,+'Telephone System'!$K$40*0.3333),0) -> 0 | AE181: =IF(VALUE($F181)<=VALUE($AE$3),IF($K$175=TRUE,+'Telephone System'!$K$30*0.3333,+'Telephone System'!$K$40*0.3333),0) -> 0 | AG181: =IF(VALUE($F181)<=VALUE($AG$3),IF($K$175=TRUE,+('Telephone System'!$L$30/36)*(13-$B181),+('Telephone System'!$L$40/36)*(13-$B181)),0) -> 0 | AH181: =IF(VALUE($F181)<=VALUE($AH$3),IF($K$175=TRUE,+'Telephone System'!$L$30*0.3333,+'Telephone System'!$L$40*0.3333),0) -> 0 | AI181: =IF(VALUE($F181)<=VALUE($AI$3),IF($K$175=TRUE,+'Telephone System'!$L$30*0.3333,+'Telephone System'!$L$40*0.3333),0) -> 0
C182: Video Conference System | F182: 2009 | I182: =IF($K$175=TRUE,+'Video Conferencing'!$F$30,+'Video Conferencing'!$F$40) -> 0 | L182: =IF($K$175=TRUE,+'Video Conferencing'!$E$30,+'Video Conferencing'!$E$40) -> 157646.5 | M182: =IF(VALUE($F182)<=VALUE($M$3),IF($K$175=TRUE,+('Video Conferencing'!$G$30/36)*(13-$B182),+('Video Conferencing'!$G$40/36)*(13-$B182)),0) -> 0 | N182: =IF(VALUE($F182)<=VALUE($N$3),IF($K$175=TRUE,+'Video Conferencing'!$G$30*0.3333,+'Video Conferencing'!$G$40*0.3333),0) -> 14155.95926 | O182: =IF(VALUE($F182)<=VALUE($O$3),IF($K$175=TRUE,+'Video Conferencing'!$G$30*0.3333,+'Video Conferencing'!$G$40*0.3333),0) -> 14155.95926 | Q182: =IF(VALUE($F182)<=VALUE($Q$3),IF($K$175=TRUE,+('Video Conferencing'!$H$30/36)*(13-$B182),+('Video Conferencing'!$H$40/36)*(13-$B182)),0) -> 0 | R182: =IF(VALUE($F182)<=VALUE($R$3),IF($K$175=TRUE,+'Video Conferencing'!$H$30*0.3333,+'Video Conferencing'!$H$40*0.3333),0) -> 13475.52731 | S182: =IF(VALUE($F182)<=VALUE($S$3),IF($K$175=TRUE,+'Video Conferencing'!$H$30*0.3333,+'Video Conferencing'!$H$40*0.3333),0) -> 13475.52731 | U182: =IF(VALUE($F182)<=VALUE($U$3),IF($K$175=TRUE,+('Video Conferencing'!$I$30/36)*(13-$B182),+('Video Conferencing'!$I$40/36)*(13-$B182)),0) -> 0 | V182: =IF(VALUE($F182)<=VALUE($V$3),IF($K$175=TRUE,+'Video Conferencing'!$I$30*0.3333,+'Video Conferencing'!$I$40*0.3333),0) -> 13475.52731 | W182: =IF(VALUE($F182)<=VALUE($W$3),IF($K$175=TRUE,+'Video Conferencing'!$I$30*0.3333,+'Video Conferencing'!$I$40*0.3333),0) -> 13475.52731 | Y182: =IF(VALUE($F182)<=VALUE($Y$3),IF($K$175=TRUE,+('Video Conferencing'!$J$30/36)*(13-$B182),+('Video Conferencing'!$J$40/36)*(13-$B182)),0) -> 0 | Z182: =IF(VALUE($F182)<=VALUE($Z$3),IF($K$175=TRUE,+'Video Conferencing'!$J$30*0.3333,+'Video Conferencing'!$J$40*0.3333),0) -> 11436.56456 | AA182: =IF(VALUE($F182)<=VALUE($AA$3),IF($K$175=TRUE,+'Video Conferencing'!$J$30*0.3333,+'Video Conferencing'!$J$40*0.3333),0) -> 11436.56456 | AC182: =IF(VALUE($F182)<=VALUE($AC$3),IF($K$175=TRUE,+('Video Conferencing'!$K$30/36)*(13-$B182),+('Video Conferencing'!$K$40/36)*(13-$B182)),0) -> 0 | AD182: =IF(VALUE($F182)<=VALUE($AD$3),IF($K$175=TRUE,+'Video Conferencing'!$K$30*0.3333,+'Video Conferencing'!$K$40*0.3333),0) -> 0 | AE182: =IF(VALUE($F182)<=VALUE($AE$3),IF($K$175=TRUE,+'Video Conferencing'!$K$30*0.3333,+'Video Conferencing'!$K$40*0.3333),0) -> 0 | AG182: =IF(VALUE($F182)<=VALUE($AG$3),IF($K$175=TRUE,+('Video Conferencing'!$L$30/36)*(13-$B182),+('Video Conferencing'!$L$40/36)*(13-$B182)),0) -> 0 | AH182: =IF(VALUE($F182)<=VALUE($AH$3),IF($K$175=TRUE,+'Video Conferencing'!$L$30*0.3333,+'Video Conferencing'!$L$40*0.3333),0) -> 0 | AI182: =IF(VALUE($F182)<=VALUE($AI$3),IF($K$175=TRUE,+'Video Conferencing'!$L$30*0.3333,+'Video Conferencing'!$L$40*0.3333),0) -> 0
C183: Warehouse Management System | F183: 2008 | I183: =IF($K$175=TRUE,+'Warehouse Management System'!$F$30,+'Warehouse Management System'!$F$40) -> 0 | K183: 200000 | L183: =IF($K$175=TRUE,+'Warehouse Management System'!$E$30,+'Warehouse Management System'!$E$40) -> 200000 | M183: =IF(VALUE($F183)<=VALUE($M$3),IF($K$175=TRUE,+('Warehouse Management System'!$G$30/36)*(13-$B183),+('Warehouse Management System'!$G$40/36)*(13-$B183)),0) -> 0 | N183: =IF(VALUE($F183)<=VALUE($N$3),IF($K$175=TRUE,+'Warehouse Management System'!$G$30*0.3333,+'Warehouse Management System'!$G$40*0.3333),0) -> 0 | O183: =IF(VALUE($F183)<=VALUE($O$3),IF($K$175=TRUE,+'Warehouse Management System'!$G$30*0.3333,+'Warehouse Management System'!$G$40*0.3333),0) -> 0 | Q183: =IF(VALUE($F183)<=VALUE($Q$3),IF($K$175=TRUE,+('Warehouse Management System'!$H$30/36)*(13-$B183),+('Warehouse Management System'!$H$40/36)*(13-$B183)),0) -> 36111.11111 | R183: =IF(VALUE($F183)<=VALUE($R$3),IF($K$175=TRUE,+'Warehouse Management System'!$H$30*0.3333,+'Warehouse Management System'!$H$40*0.3333),0) -> 33330 | S183: =IF(VALUE($F183)<=VALUE($S$3),IF($K$175=TRUE,+'Warehouse Management System'!$H$30*0.3333,+'Warehouse Management System'!$H$40*0.3333),0) -> 33330 | U183: =IF(VALUE($F183)<=VALUE($U$3),IF($K$175=TRUE,+('Warehouse Management System'!$I$30/36)*(13-$B183),+('Warehouse Management System'!$I$40/36)*(13-$B183)),0) -> 36111.11111 | V183: =IF(VALUE($F183)<=VALUE($V$3),IF($K$175=TRUE,+'Warehouse Management System'!$I$30*0.3333,+'Warehouse Management System'!$I$40*0.3333),0) -> 33330 | W183: =IF(VALUE($F183)<=VALUE($W$3),IF($K$175=TRUE,+'Warehouse Management System'!$I$30*0.3333,+'Warehouse Management System'!$I$40*0.3333),0) -> 33330 | Y183: =IF(VALUE($F183)<=VALUE($Y$3),IF($K$175=TRUE,+('Warehouse Management System'!$J$30/36)*(13-$B183),+('Warehouse Management System'!$J$40/36)*(13-$B183)),0) -> 0 | Z183: =IF(VALUE($F183)<=VALUE($Z$3),IF($K$175=TRUE,+'Warehouse Management System'!$J$30*0.3333,+'Warehouse Management System'!$J$40*0.3333),0) -> 0 | AA183: =IF(VALUE($F183)<=VALUE($AA$3),IF($K$175=TRUE,+'Warehouse Management System'!$J$30*0.3333,+'Warehouse Management System'!$J$40*0.3333),0) -> 0 | AC183: =IF(VALUE($F183)<=VALUE($AC$3),IF($K$175=TRUE,+('Warehouse Management System'!$K$30/36)*(13-$B183),+('Warehouse Management System'!$K$40/36)*(13-$B183)),0) -> 0 | AD183: =IF(VALUE($F183)<=VALUE($AD$3),IF($K$175=TRUE,+'Warehouse Management System'!$K$30*0.3333,+'Warehouse Management System'!$K$40*0.3333),0) -> 0 | AE183: =IF(VALUE($F183)<=VALUE($AE$3),IF($K$175=TRUE,+'Warehouse Management System'!$K$30*0.3333,+'Warehouse Management System'!$K$40*0.3333),0) -> 0 | AG183: =IF(VALUE($F183)<=VALUE($AG$3),IF($K$175=TRUE,+('Warehouse Management System'!$L$30/36)*(13-$B183),+('Warehouse Management System'!$L$40/36)*(13-$B183)),0) -> 0 | AH183: =IF(VALUE($F183)<=VALUE($AH$3),IF($K$175=TRUE,+'Warehouse Management System'!$L$30*0.3333,+'Warehouse Management System'!$L$40*0.3333),0) -> 0 | AI183: =IF(VALUE($F183)<=VALUE($AI$3),IF($K$175=TRUE,+'Warehouse Management System'!$L$30*0.3333,+'Warehouse Management System'!$L$40*0.3333),0) -> 0
C184: Extranet | F184: 2009 | I184: =IF($K$175=TRUE,+Extranet!$F$30,+Extranet!$F$40) -> 0 | L184: =IF($K$175=TRUE,+Extranet!$E$30,+Extranet!$E$40) -> 50000 | M184: =IF(VALUE($F184)<=VALUE($M$3),IF($K$175=TRUE,+(Extranet!$G$30/36)*(13-$B184),+(Extranet!$G$40/36)*(13-$B184)),0) -> 0 | N184: =IF(VALUE($F184)<=VALUE($N$3),IF($K$175=TRUE,+Extranet!$G$30*0.3333,+Extranet!$G$40*0.3333),0) -> 4166.25 | O184: =IF(VALUE($F184)<=VALUE($O$3),IF($K$175=TRUE,+Extranet!$G$30*0.3333,+Extranet!$G$40*0.3333),0) -> 4166.25 | Q184: =IF(VALUE($F184)<=VALUE($Q$3),IF($K$175=TRUE,+(Extranet!$H$30/36)*(13-$B184),+(Extranet!$H$40/36)*(13-$B184)),0) -> 0 | R184: =IF(VALUE($F184)<=VALUE($R$3),IF($K$175=TRUE,+Extranet!$H$30*0.3333,+Extranet!$H$40*0.3333),0) -> 4166.25 | S184: =IF(VALUE($F184)<=VALUE($S$3),IF($K$175=TRUE,+Extranet!$H$30*0.3333,+Extranet!$H$40*0.3333),0) -> 4166.25 | U184: =IF(VALUE($F184)<=VALUE($U$3),IF($K$175=TRUE,+(Extranet!$I$30/36)*(13-$B184),+(Extranet!$I$40/36)*(13-$B184)),0) -> 0 | V184: =IF(VALUE($F184)<=VALUE($V$3),IF($K$175=TRUE,+Extranet!$I$30*0.3333,+Extranet!$I$40*0.3333),0) -> 4166.25 | W184: =IF(VALUE($F184)<=VALUE($W$3),IF($K$175=TRUE,+Extranet!$I$30*0.3333,+Extranet!$I$40*0.3333),0) -> 4166.25 | Y184: =IF(VALUE($F184)<=VALUE($Y$3),IF($K$175=TRUE,+(Extranet!$J$30/36)*(13-$B184),+(Extranet!$J$40/36)*(13-$B184)),0) -> 0 | Z184: =IF(VALUE($F184)<=VALUE($Z$3),IF($K$175=TRUE,+Extranet!$J$30*0.3333,+Extranet!$J$40*0.3333),0) -> 4166.25 | AA184: =IF(VALUE($F184)<=VALUE($AA$3),IF($K$175=TRUE,+Extranet!$J$30*0.3333,+Extranet!$J$40*0.3333),0) -> 4166.25 | AC184: =IF(VALUE($F184)<=VALUE($AC$3),IF($K$175=TRUE,+(Extranet!$K$30/36)*(13-$B184),+(Extranet!$K$40/36)*(13-$B184)),0) -> 0 | AD184: =IF(VALUE($F184)<=VALUE($AD$3),IF($K$175=TRUE,+Extranet!$K$30*0.3333,+Extranet!$K$40*0.3333),0) -> 0 | AE184: =IF(VALUE($F184)<=VALUE($AE$3),IF($K$175=TRUE,+Extranet!$K$30*0.3333,+Extranet!$K$40*0.3333),0) -> 0 | AG184: =IF(VALUE($F184)<=VALUE($AG$3),IF($K$175=TRUE,+(Extranet!$L$30/36)*(13-$B184),+(Extranet!$L$40/36)*(13-$B184)),0) -> 0 | AH184: =IF(VALUE($F184)<=VALUE($AH$3),IF($K$175=TRUE,+Extranet!$L$30*0.3333,+Extranet!$L$40*0.3333),0) -> 0 | AI184: =IF(VALUE($F184)<=VALUE($AI$3),IF($K$175=TRUE,+Extranet!$L$30*0.3333,+Extranet!$L$40*0.3333),0) -> 0
C185: CRM | F185: 2008 | I185: =IF($K$175=TRUE,+CRM!$F$30,+CRM!$F$40) -> 0 | K185: 108000 | L185: =IF($K$175=TRUE,+CRM!$E$30,+CRM!$E$40) -> 108000 | M185: =IF(VALUE($F185)<=VALUE($M$3),IF($K$175=TRUE,+(CRM!$G$30/36)*(13-$B185),+(CRM!$G$40/36)*(13-$B185)),0) -> 4301.470588 | N185: =IF(VALUE($F185)<=VALUE($N$3),IF($K$175=TRUE,+CRM!$G$30*0.3333,+CRM!$G$40*0.3333),0) -> 3970.191176 | O185: =IF(VALUE($F185)<=VALUE($O$3),IF($K$175=TRUE,+CRM!$G$30*0.3333,+CRM!$G$40*0.3333),0) -> 3970.191176 | Q185: =IF(VALUE($F185)<=VALUE($Q$3),IF($K$175=TRUE,+(CRM!$H$30/36)*(13-$B185),+(CRM!$H$40/36)*(13-$B185)),0) -> 16058.82353 | R185: =IF(VALUE($F185)<=VALUE($R$3),IF($K$175=TRUE,+CRM!$H$30*0.3333,+CRM!$H$40*0.3333),0) -> 14822.04706 | S185: =IF(VALUE($F185)<=VALUE($S$3),IF($K$175=TRUE,+CRM!$H$30*0.3333,+CRM!$H$40*0.3333),0) -> 14822.04706 | U185: =IF(VALUE($F185)<=VALUE($U$3),IF($K$175=TRUE,+(CRM!$I$30/36)*(13-$B185),+(CRM!$I$40/36)*(13-$B185)),0) -> 15772.05882 | V185: =IF(VALUE($F185)<=VALUE($V$3),IF($K$175=TRUE,+CRM!$I$30*0.3333,+CRM!$I$40*0.3333),0) -> 14557.36765 | W185: =IF(VALUE($F185)<=VALUE($W$3),IF($K$175=TRUE,+CRM!$I$30*0.3333,+CRM!$I$40*0.3333),0) -> 14557.36765 | Y185: =IF(VALUE($F185)<=VALUE($Y$3),IF($K$175=TRUE,+(CRM!$J$30/36)*(13-$B185),+(CRM!$J$40/36)*(13-$B185)),0) -> 2580.882353 | Z185: =IF(VALUE($F185)<=VALUE($Z$3),IF($K$175=TRUE,+CRM!$J$30*0.3333,+CRM!$J$40*0.3333),0) -> 2382.114706 | AA185: =IF(VALUE($F185)<=VALUE($AA$3),IF($K$175=TRUE,+CRM!$J$30*0.3333,+CRM!$J$40*0.3333),0) -> 2382.114706 | AC185: =IF(VALUE($F185)<=VALUE($AC$3),IF($K$175=TRUE,+(CRM!$K$30/36)*(13-$B185),+(CRM!$K$40/36)*(13-$B185)),0) -> 286.7647059 | AD185: =IF(VALUE($F185)<=VALUE($AD$3),IF($K$175=TRUE,+CRM!$K$30*0.3333,+CRM!$K$40*0.3333),0) -> 264.6794118 | AE185: =IF(VALUE($F185)<=VALUE($AE$3),IF($K$175=TRUE,+CRM!$K$30*0.3333,+CRM!$K$40*0.3333),0) -> 264.6794118 | AG185: =IF(VALUE($F185)<=VALUE($AG$3),IF($K$175=TRUE,+(CRM!$L$30/36)*(13-$B185),+(CRM!$L$40/36)*(13-$B185)),0) -> 0 | AH185: =IF(VALUE($F185)<=VALUE($AH$3),IF($K$175=TRUE,+CRM!$L$30*0.3333,+CRM!$L$40*0.3333),0) -> 0 | AI185: =IF(VALUE($F185)<=VALUE($AI$3),IF($K$175=TRUE,+CRM!$L$30*0.3333,+CRM!$L$40*0.3333),0) -> 0
A186: 4 | B186: 5 | C186: Yardi In House | F186: 2008 | I186: =IF($K$175=TRUE,+Yardi!$F$30,+Yardi!$F$40) -> 0 | K186: 7500 | L186: =IF($K$175=TRUE,+Yardi!$E$30,+Yardi!$E$40) -> 7500 | M186: =IF(VALUE($F186)<=VALUE($M$3),IF($K$175=TRUE,+(Yardi!$G$30/36)*(13-$B186),+(Yardi!$G$40/36)*(13-$B186)),0) -> 0 | N186: =IF(VALUE($F186)<=VALUE($N$3),IF($K$175=TRUE,+Yardi!$G$30*0.3333,+Yardi!$G$40*0.3333),0) -> 0 | O186: =IF(VALUE($F186)<=VALUE($O$3),IF($K$175=TRUE,+Yardi!$G$30*0.3333,+Yardi!$G$40*0.3333),0) -> 0 | Q186: =IF(VALUE($F186)<=VALUE($Q$3),IF($K$175=TRUE,+(Yardi!$H$30/36)*(13-$B186),+(Yardi!$H$40/36)*(13-$B186)),0) -> 0 | R186: =IF(VALUE($F186)<=VALUE($R$3),IF($K$175=TRUE,+Yardi!$H$30*0.3333,+Yardi!$H$40*0.3333),0) -> 0 | S186: =IF(VALUE($F186)<=VALUE($S$3),IF($K$175=TRUE,+Yardi!$H$30*0.3333,+Yardi!$H$40*0.3333),0) -> 0 | U186: =IF(VALUE($F186)<=VALUE($U$3),IF($K$175=TRUE,+(Yardi!$I$30/36)*(13-$B186),+(Yardi!$I$40/36)*(13-$B186)),0) -> 0 | V186: =IF(VALUE($F186)<=VALUE($V$3),IF($K$175=TRUE,+Yardi!$I$30*0.3333,+Yardi!$I$40*0.3333),0) -> 0 | W186: =IF(VALUE($F186)<=VALUE($W$3),IF($K$175=TRUE,+Yardi!$I$30*0.3333,+Yardi!$I$40*0.3333),0) -> 0 | Y186: =IF(VALUE($F186)<=VALUE($Y$3),IF($K$175=TRUE,+(Yardi!$J$30/36)*(13-$B186),+(Yardi!$J$40/36)*(13-$B186)),0) -> 1666.666667 | Z186: =IF(VALUE($F186)<=VALUE($Z$3),IF($K$175=TRUE,+Yardi!$J$30*0.3333,+Yardi!$J$40*0.3333),0) -> 2499.75 | AA186: =IF(VALUE($F186)<=VALUE($AA$3),IF($K$175=TRUE,+Yardi!$J$30*0.3333,+Yardi!$J$40*0.3333),0) -> 2499.75 | AC186: =IF(VALUE($F186)<=VALUE($AC$3),IF($K$175=TRUE,+(Yardi!$K$30/36)*(13-$B186),+(Yardi!$K$40/36)*(13-$B186)),0) -> 0 | AD186: =IF(VALUE($F186)<=VALUE($AD$3),IF($K$175=TRUE,+Yardi!$K$30*0.3333,+Yardi!$K$40*0.3333),0) -> 0 | AE186: =IF(VALUE($F186)<=VALUE($AE$3),IF($K$175=TRUE,+Yardi!$K$30*0.3333,+Yardi!$K$40*0.3333),0) -> 0 | AG186: =IF(VALUE($F186)<=VALUE($AG$3),IF($K$175=TRUE,+(Yardi!$L$30/36)*(13-$B186),+(Yardi!$L$40/36)*(13-$B186)),0) -> 0 | AH186: =IF(VALUE($F186)<=VALUE($AH$3),IF($K$175=TRUE,+Yardi!$L$30*0.3333,+Yardi!$L$40*0.3333),0) -> 0 | AI186: =IF(VALUE($F186)<=VALUE($AI$3),IF($K$175=TRUE,+Yardi!$L$30*0.3333,+Yardi!$L$40*0.3333),0) -> 0
C187: Great Plains Upgrade | F187: 2008 | I187: =IF($K$175=TRUE,+'Great Plains Upgrade'!$F$30,+'Great Plains Upgrade'!$F$40) -> 0 | K187: 300000 | L187: =IF($K$175=TRUE,+'Great Plains Upgrade'!$E$30,+'Great Plains Upgrade'!$E$40) -> 300000 | M187: =IF(VALUE($F187)<=VALUE($M$3),IF($K$175=TRUE,+('Great Plains Upgrade'!$G$30/36)*(13-$B187),+('Great Plains Upgrade'!$G$40/36)*(13-$B187)),0) -> 285.0877193 | N187: =IF(VALUE($F187)<=VALUE($N$3),IF($K$175=TRUE,+'Great Plains Upgrade'!$G$30*0.3333,+'Great Plains Upgrade'!$G$40*0.3333),0) -> 263.1315789 | O187: =IF(VALUE($F187)<=VALUE($O$3),IF($K$175=TRUE,+'Great Plains Upgrade'!$G$30*0.3333,+'Great Plains Upgrade'!$G$40*0.3333),0) -> 263.1315789 | Q187: =IF(VALUE($F187)<=VALUE($Q$3),IF($K$175=TRUE,+('Great Plains Upgrade'!$H$30/36)*(13-$B187),+('Great Plains Upgrade'!$H$40/36)*(13-$B187)),0) -> 106337.7193 | R187: =IF(VALUE($F187)<=VALUE($R$3),IF($K$175=TRUE,+'Great Plains Upgrade'!$H$30*0.3333,+'Great Plains Upgrade'!$H$40*0.3333),0) -> 98148.07895 | S187: =IF(VALUE($F187)<=VALUE($S$3),IF($K$175=TRUE,+'Great Plains Upgrade'!$H$30*0.3333,+'Great Plains Upgrade'!$H$40*0.3333),0) -> 98148.07895 | U187: =IF(VALUE($F187)<=VALUE($U$3),IF($K$175=TRUE,+('Great Plains Upgrade'!$I$30/36)*(13-$B187),+('Great Plains Upgrade'!$I$40/36)*(13-$B187)),0) -> 1583.820663 | V187: =IF(VALUE($F187)<=VALUE($V$3),IF($K$175=TRUE,+'Great Plains Upgrade'!$I$30*0.3333,+'Great Plains Upgrade'!$I$40*0.3333),0) -> 1461.842105 | W187: =IF(VALUE($F187)<=VALUE($W$3),IF($K$175=TRUE,+'Great Plains Upgrade'!$I$30*0.3333,+'Great Plains Upgrade'!$I$40*0.3333),0) -> 1461.842105 | Y187: =IF(VALUE($F187)<=VALUE($Y$3),IF($K$175=TRUE,+('Great Plains Upgrade'!$J$30/36)*(13-$B187),+('Great Plains Upgrade'!$J$40/36)*(13-$B187)),0) -> 31.67641326 | Z187: =IF(VALUE($F187)<=VALUE($Z$3),IF($K$175=TRUE,+'Great Plains Upgrade'!$J$30*0.3333,+'Great Plains Upgrade'!$J$40*0.3333),0) -> 29.23684211 | AA187: =IF(VALUE($F187)<=VALUE($AA$3),IF($K$175=TRUE,+'Great Plains Upgrade'!$J$30*0.3333,+'Great Plains Upgrade'!$J$40*0.3333),0) -> 29.23684211 | AC187: =IF(VALUE($F187)<=VALUE($AC$3),IF($K$175=TRUE,+('Great Plains Upgrade'!$K$30/36)*(13-$B187),+('Great Plains Upgrade'!$K$40/36)*(13-$B187)),0) -> 63.35282651 | AD187: =IF(VALUE($F187)<=VALUE($AD$3),IF($K$175=TRUE,+'Great Plains Upgrade'!$K$30*0.3333,+'Great Plains Upgrade'!$K$40*0.3333),0) -> 58.47368421 | AE187: =IF(VALUE($F187)<=VALUE($AE$3),IF($K$175=TRUE,+'Great Plains Upgrade'!$K$30*0.3333,+'Great Plains Upgrade'!$K$40*0.3333),0) -> 58.47368421 | AG187: =IF(VALUE($F187)<=VALUE($AG$3),IF($K$175=TRUE,+('Great Plains Upgrade'!$L$30/36)*(13-$B187),+('Great Plains Upgrade'!$L$40/36)*(13-$B187)),0) -> 31.67641326 | AH187: =IF(VALUE($F187)<=VALUE($AH$3),IF($K$175=TRUE,+'Great Plains Upgrade'!$L$30*0.3333,+'Great Plains Upgrade'!$L$40*0.3333),0) -> 29.23684211 | AI187: =IF(VALUE($F187)<=VALUE($AI$3),IF($K$175=TRUE,+'Great Plains Upgrade'!$L$30*0.3333,+'Great Plains Upgrade'!$L$40*0.3333),0) -> 29.23684211
I193: Start Date
C194: =+F3&" Capital Expenditures: " -> 2008 Capital Expenditures: | I194: =+F3 -> 2008 | L194: =DSUM(F175:L192,6,I193:I194) -> 759985 | M194: =SUM(M175:M184) -> 2235.799632 | N194: 37743.24906 | O194: 37743.24906 | Q194: 49978.09641 | R194: 114676.0525 | S194: 114676.0525 | U194: 47069.0431 | V194: 131465.5093 | W194: 131465.5093 | Y194: 1341.479779 | Z194: 29235.08973 | AA194: 29235.08973 | AC194: 149.0533088 | AD194: 844.0332353 | AE194: 844.0332353 | AG194: 0 | AH194: 0 | AI194: 0
C196: Total Budget and Capital Expenditures: | L196: =+F171+L194 -> 1878611.259 | M196: =+M171+M194 -> 38986.94975 | N196: =+N169+N194 -> 176641.5732 | O196: =+O169+O194 -> 183586.4894 | Q196: =+Q171+Q194 -> 371496.6316 | R196: =+R169+R194 -> 789864.9763 | S196: =+S169+S194 -> 823624.4225 | U196: =+U171+U194 -> 323895.5915 | V196: =+V169+V194 -> 712801.261 | W196: =+W169+W194 -> 741868.0485 | Y196: =+Y171+Y194 -> 79735.21913 | Z196: =+Z169+Z194 -> 193861.9424 | AA196: =+AA169+AA194 -> 202093.285 | AC196: =+AC171+AC194 -> 5997.564182 | AD196: =+AD169+AD194 -> 13125.90607 | AE196: =+AE169+AE194 -> 13739.99971 | AG196: =+AG171+AG194 -> 3886.842105 | AH196: =+AH169+AH194 -> 8079.473684 | AI196: =+AI169+AI194 -> 8483.447368

Sheet Allocations
A1: I.S. & T. Allocation Matrix
A3: Back To Budget | B3: Allocation Calculation Worksheet
A4: Allocation Code | B4: Description | C4: SMI | D4: IPD | E4: SMG | F4: SP | G4: SINV | H4: RVR | K4: TOTAL
A5: A | B5: Great Plains Users | C5: =+[2]Allocation!$C$4 -> 0.07894736842 | D5: =+[2]Allocation!$D$4 -> 0.4473684211 | E5: =+[2]Allocation!$E$4 -> 0.4385964912 | F5: =+[2]Allocation!$F$4 -> 0.008771929825 | G5: =+[2]Allocation!$G$4 -> 0.01754385965 | H5: =+[2]Allocation!$H$4 -> 0.008771929825 | K5: =SUM(C5:H5) -> 1
A6: B | B6: Network Users | C6: =+[2]Allocation!$C$5 -> 0.1102941176 | D6: =+[2]Allocation!$D$5 -> 0.4117647059 | E6: =+[2]Allocation!$E$5 -> 0.4044117647 | F6: =+[2]Allocation!$F$5 -> 0.06617647059 | G6: =+[2]Allocation!$G$5 -> 0.007352941176 | H6: =+[2]Allocation!$H$5 -> 0 | K6: 1
A7: C | B7: Email Users | C7: =+[2]Allocation!$C$6 -> 0.132231405 | D7: =+[2]Allocation!$D$6 -> 0.3636363636 | E7: =+[2]Allocation!$E$6 -> 0.4214876033 | F7: =+[2]Allocation!$F$6 -> 0.07438016529 | G7: =+[2]Allocation!$G$6 -> 0.00826446281 | H7: =+[2]Allocation!$H$6 -> 0 | K7: 1
A8: D | B8: Telephone | C8: =+[2]Allocation!$C$7 -> 0.147826087 | D8: =+[2]Allocation!$D$7 -> 0.4260869565 | E8: =+[2]Allocation!$E$7 -> 0.3652173913 | F8: =+[2]Allocation!$F$7 -> 0.06086956522 | G8: =+[2]Allocation!$G$7 -> 0 | H8: =+[2]Allocation!$H$7 -> 0 | K8: 1
A9: E | B9: WAN | C9: =+[2]Allocation!$C$8 -> 0.1428571429 | D9: =+[2]Allocation!$D$8 -> 0.5714285714 | E9: =+[2]Allocation!$E$8 -> 0.1428571429 | F9: =+[2]Allocation!$F$8 -> 0.1428571429 | G9: =+[2]Allocation!$G$8 -> 0 | H9: =+[2]Allocation!$H$8 -> 0 | K9: 1
A10: F | B10: Canon Copiers | C10: =+[2]Allocation!$C$9 -> 0.1134020619 | D10: =+[2]Allocation!$D$9 -> 0.412371134 | E10: =+[2]Allocation!$E$9 -> 0.4226804124 | F10: =+[2]Allocation!$F$9 -> 0.05154639175 | G10: =+[2]Allocation!$G$9 -> 0 | H10: =+[2]Allocation!$H$9 -> 0 | K10: 1
A11: G | B11: Citrix Users | C11: =+[2]Allocation!$C$10 -> 0 | D11: =+[2]Allocation!$D$10 -> 0 | E11: =+[2]Allocation!$E$10 -> 0 | F11: =+[2]Allocation!$F$10 -> 0 | G11: =+[2]Allocation!$G$10 -> 0 | H11: =+[2]Allocation!$H$10 -> 0 | K11: 0
A12: H | K12: 0
A13: I | B13: Split | C13: 0.25 | D13: 0.25 | E13: 0.25 | F13: 0.25 | K13: 1
A14: J | B14: Manufacturing | D14: 0.5 | E14: 0.5 | K14: 1
A15: K | B15: SMI | C15: 1 | K15: 1
A16: L | B16: IPD | D16: 1 | K16: 1
A17: M | B17: SMG | E17: 1 | K17: 1
A18: N | B18: SWD/SP | F18: 1 | K18: 1
A19: O | B19: Sinv | G19: 1 | K19: 1
A20: P | B20: RVR | H20: 1 | K20: 1
A21: S | B21: SMI & SWD/SP | C21: 0.5 | F21: 0.5 | K21: 1
A22: T | K22: 0
A23: U | K23: 0
A24: V | K24: 0
A25: W | B25: Weighted Support (Codes A-E) | C25: =+[3]Allocation!$C$10 -> 0 | D25: =+[3]Allocation!$D$10 -> 0 | E25: =+[3]Allocation!$E$10 -> 0 | F25: =+[3]Allocation!$F$10 -> 0 | G25: =+[3]Allocation!$G$10 -> 0 | H25: =+[3]Allocation!$H$10 -> 0 | K25: =SUM(C25:H25) -> 0
H29: =1610.22/2 -> 805.11

Sheet Manpower Utilization
A1: Manpower Utilization
A2: ="Project Forecast "&'IT Budget'!F3 -> Project Forecast 2008
A3: Back To Budget
D4: Hours | F4: SMI | H4: IPD | J4: SMG | L4: SWD/SP | N4: SINV | P4: RVR
A5: Description | C5: Year | D5: Level 1 | E5: Level 2 | F5: Level 1 | G5: Level 2 | H5: Level 1 | I5: Level 2 | J5: Level 1 | K5: Level 2 | L5: Level 1 | M5: Level 2 | N5: Level 1 | O5: Level 2 | P5: Level 1 | Q5: Level 2
A6: IT Training | C6: =+'IT Budget'!$F$3 -> 2008 | D6: =IF($C$6<='IT Budget'!$F$3,+'IT Training'!$N$37,"") -> 0 | E6: =IF($C$6<='IT Budget'!$F$3,+'IT Training'!$O$37,"") -> 200 | F6: =IF($C$6<='IT Budget'!$F$3,+'IT Training'!$P$37,"") -> 0 | G6: =IF($C$6<='IT Budget'!$F$3,+'IT Training'!$Q$37,"") -> 13.13312693 | H6: =IF($C$6<='IT Budget'!$F$3,+'IT Training'!$R$37,"") -> 0 | I6: =IF($C$6<='IT Budget'!$F$3,+'IT Training'!$S$37,"") -> 71.00928793 | J6: =IF($C$6<='IT Budget'!$F$3,+'IT Training'!$T$37,"") -> 0 | K6: =IF($C$6<='IT Budget'!$F$3,+'IT Training'!$U$37,"") -> 69.62848297 | L6: =IF($C$6<='IT Budget'!$F$3,+'IT Training'!$V$37,"") -> 0 | M6: =IF($C$6<='IT Budget'!$F$3,+'IT Training'!$W$37,"") -> 42.32198142 | N6: =IF($C$6<='IT Budget'!$F$3,+'IT Training'!$X$37,"") -> 0 | O6: =IF($C$6<='IT Budget'!$F$3,+'IT Training'!$Y$37,"") -> 2.643962848 | P6: =IF($C$6<='IT Budget'!$F$3,+'IT Training'!$Z$37,"") -> 0 | Q6: =IF($C$6<='IT Budget'!$F$3,+'IT Training'!$AA$37,"") -> 0
A7: Employee Training Program | C7: =+'IT Budget'!$F$3 -> 2008 | D7: =IF($C$7<='IT Budget'!$F$3,+'Employee Training Program'!$N$36,"") -> 24 | E7: =IF($C$7<='IT Budget'!$F$3,+'Employee Training Program'!$O$36,"") -> 0 | F7: =IF($C$7<='IT Budget'!$F$3,+'Employee Training Program'!$P$36,"") -> 24 | G7: =IF($C$7<='IT Budget'!$F$3,+'Employee Training Program'!$Q$36,"") -> 0 | H7: =IF($C$7<='IT Budget'!$F$3,+'Employee Training Program'!$R$36,"") -> 0 | I7: =IF($C$7<='IT Budget'!$F$3,+'Employee Training Program'!$S$36,"") -> 0 | J7: =IF($C$7<='IT Budget'!$F$3,+'Employee Training Program'!$T$36,"") -> 0 | K7: =IF($C$7<='IT Budget'!$F$3,+'Employee Training Program'!$U$36,"") -> 0 | L7: =IF($C$7<='IT Budget'!$F$3,+'Employee Training Program'!$V$36,"") -> 0 | M7: =IF($C$7<='IT Budget'!$F$3,+'Employee Training Program'!$W$36,"") -> 0 | N7: =IF($C$7<='IT Budget'!$F$3,+'Employee Training Program'!$X$36,"") -> 0 | O7: =IF($C$7<='IT Budget'!$F$3,+'Employee Training Program'!$Y$36,"") -> 0 | P7: =IF($C$7<='IT Budget'!$F$3,+'Employee Training Program'!$Z$36,"") -> 0 | Q7: =IF($C$7<='IT Budget'!$F$3,+'Employee Training Program'!$AA$36,"") -> 0
A8: Great Plains Training | C8: =+'IT Budget'!$F$3 -> 2008 | D8: =IF($C$8<='IT Budget'!$F$3,+'Great Plains Training'!$N$36,"") -> 29.5 | E8: =IF($C$8<='IT Budget'!$F$3,+'Great Plains Training'!$O$36,"") -> 0 | F8: =IF($C$8<='IT Budget'!$F$3,+'Great Plains Training'!$P$36,"") -> 5.989473684 | G8: =IF($C$8<='IT Budget'!$F$3,+'Great Plains Training'!$Q$36,"") -> 0 | H8: =IF($C$8<='IT Budget'!$F$3,+'Great Plains Training'!$R$36,"") -> 9.473684211 | I8: =IF($C$8<='IT Budget'!$F$3,+'Great Plains Training'!$S$36,"") -> 0 | J8: =IF($C$8<='IT Budget'!$F$3,+'Great Plains Training'!$T$36,"") -> 13.58596491 | K8: =IF($C$8<='IT Budget'!$F$3,+'Great Plains Training'!$U$36,"") -> 0 | L8: =IF($C$8<='IT Budget'!$F$3,+'Great Plains Training'!$V$36,"") -> 0.1877192982 | M8: =IF($C$8<='IT Budget'!$F$3,+'Great Plains Training'!$W$36,"") -> 0 | N8: =IF($C$8<='IT Budget'!$F$3,+'Great Plains Training'!$X$36,"") -> 0.1754385965 | O8: =IF($C$8<='IT Budget'!$F$3,+'Great Plains Training'!$Y$36,"") -> 0 | P8: =IF($C$8<='IT Budget'!$F$3,+'Great Plains Training'!$Z$36,"") -> 0 | Q8: =IF($C$8<='IT Budget'!$F$3,+'Great Plains Training'!$AA$36,"") -> 0
A9: Non CapEx Projects | C9: =+'IT Budget'!$F$3 -> 2008 | D9: =+'Non CapEx Projects'!D36 -> 264 | E9: =+'Non CapEx Projects'!E36 -> 351 | F9: =IF($C$9<='IT Budget'!$F$3,+'Non CapEx Projects'!$F$36,"") -> 14.11764706 | G9: =IF($C$9<='IT Budget'!$F$3,+'Non CapEx Projects'!$G$36,"") -> 32.42160914 | H9: =IF($C$9<='IT Budget'!$F$3,+'Non CapEx Projects'!$H$36,"") -> 92.70588235 | I9: =IF($C$9<='IT Budget'!$F$3,+'Non CapEx Projects'!$I$36,"") -> 180.8395722 | J9: =IF($C$9<='IT Budget'!$F$3,+'Non CapEx Projects'!$J$36,"") -> 147.7647059 | K9: =IF($C$9<='IT Budget'!$F$3,+'Non CapEx Projects'!$K$36,"") -> 116.3447982 | L9: =IF($C$9<='IT Budget'!$F$3,+'Non CapEx Projects'!$L$36,"") -> 8.470588235 | M9: =IF($C$9<='IT Budget'!$F$3,+'Non CapEx Projects'!$M$36,"") -> 19.25461838 | N9: =IF($C$9<='IT Budget'!$F$3,+'Non CapEx Projects'!$N$36,"") -> 0.9411764706 | O9: =IF($C$9<='IT Budget'!$F$3,+'Non CapEx Projects'!$O$36,"") -> 2.139402042 | P9: =IF($C$9<='IT Budget'!$F$3,+'Non CapEx Projects'!$P$36,"") -> 0 | Q9: =IF($C$9<='IT Budget'!$F$3,+'Non CapEx Projects'!$Q$36,"") -> 0
K22: =IF(AND($B22<>"", $E22<>""),VLOOKUP($B22,Allocations!$A$5:$K$30,8,0)*$E22,"") -> 
A30: Total Hours: | D30: =SUM(D6:D17) -> 317.5 | E30: 551 | F30: 44.10712074 | G30: 45.55473607 | H30: 102.1795666 | I30: 251.8488601 | J30: 161.3506708 | K30: 185.9732812 | L30: 8.658307534 | M30: 61.5765998 | N30: 1.116615067 | O30: 4.78336489 | P30: 0 | Q30: 0
A32: ="Manpower Available For "&+'IT Budget'!$F$3&" Projects: " -> Manpower Available For 2008 Projects: | B32: W | D32: =+D41 -> 110 | E32: =+E41 -> -1308 | F32: =IF(AND($B32<>"", $D$41<>""),VLOOKUP($B32,Allocations!$A$5:$K$40,3,0)*$D$41,"") -> 0 | G32: =IF(AND($B32<>"", $E$41<>""),VLOOKUP($B32,Allocations!$A$5:$K$40,3,0)*$E$41,"") -> 0 | H32: =IF(AND($B32<>"", $D$41<>""),VLOOKUP($B32,Allocations!$A$5:$K$30,4,0)*$D$41,"") -> 0 | I32: =IF(AND($B32<>"", $E$41<>""),VLOOKUP($B32,Allocations!$A$5:$K$40,4,0)*$E$41,"") -> 0 | J32: =IF(AND($B32<>"", $D$41<>""),VLOOKUP($B32,Allocations!$A$5:$K$30,5,0)*$D$41,"") -> 0 | K32: =IF(AND($B32<>"", $E$41<>""),VLOOKUP($B32,Allocations!$A$5:$K$40,5,0)*$E$41,"") -> 0 | L32: =IF(AND($B32<>"", $D$41<>""),VLOOKUP($B32,Allocations!$A$5:$K$30,6,0)*$D$41,"") -> 0 | M32: =IF(AND($B32<>"", $E$41<>""),VLOOKUP($B32,Allocations!$A$5:$K$40,6,0)*$E$41,"") -> 0 | N32: =IF(AND($B32<>"", $D$41<>""),VLOOKUP($B32,Allocations!$A$5:$K$30,7,0)*$D$41,"") -> 0 | O32: =IF(AND($B32<>"", $E$41<>""),VLOOKUP($B32,Allocations!$A$5:$K$40,7,0)*$E$41,"") -> 0 | P32: =IF(AND($B32<>"", $D$41<>""),VLOOKUP($B32,Allocations!$A$5:$K$30,8,0)*$D$41,"") -> 0 | Q32: =IF(AND($B32<>"", $E$41<>""),VLOOKUP($B32,Allocations!$A$5:$K$40,8,0)*$E$41,"") -> 0
A33: Manpower Surplus: | F33: =+F32-F30 -> -44.10712074 | G33: -45.55473607 | H33: -102.1795666 | I33: -251.8488601 | J33: -161.3506708 | K33: -185.9732812 | L33: -8.658307534 | M33: -61.5765998 | N33: -1.116615067 | O33: -4.78336489 | P33: 0 | Q33: 0
A34: Outsourced Manpower: | F34: =IF(F33<0,-1*(F33)*65,0) -> 2866.962848 | G34: =IF(G33<0,-1*(G33)*150,0) -> 6833.210411 | H34: =IF(H33<0,-1*(H33)*65,0) -> 6641.671827 | I34: =IF(I33<0,-1*(I33)*150,0) -> 37777.32902 | J34: =IF(J33<0,-1*(J33)*65,0) -> 10487.7936 | K34: =IF(K33<0,-1*(K33)*150,0) -> 27895.99218 | L34: =IF(L33<0,-1*(L33)*65,0) -> 562.7899897 | M34: =IF(M33<0,-1*(M33)*150,0) -> 9236.48997 | N34: =IF(N33<0,-1*(N33)*65,0) -> 72.57997936 | O34: =IF(O33<0,-1*(O33)*150,0) -> 717.5047335 | P34: =IF(P33<0,-1*(P33)*65,0) -> 0 | Q34: =IF(Q33<0,-1*(Q33)*150,0) -> 0
A37: Level 1 Manpower (people x hours) | B37: 2 | C37: 2000 | D37: =+B37*C37 -> 4000
A38: Level 2 Manpower (people x hours) | B38: 1 | C38: 2000 | E38: =+B38*C38 -> 2000
A39: Level 1 Manpower Required for Operation | D39: 3890
A40: Level 2 Manpower Required for Operation | E40: 3308
A41: Discretionary Manpower | D41: =+D37-D39 -> 110 | E41: =+E38-E40 -> -1308

Sheet IT Training
A1: IT Training | N1: =+A1 -> IT Training
A2: ="Project Forecast "&'IT Budget'!F3 -> Project Forecast 2008 | N2: ="Manpower "&'IT Budget'!F3 -> Manpower 2008
A3: Back To Budget | N3: Hours | P3: SMI | R3: IPD | T3: SMG | V3: SWD/SP | X3: SINV
A4: Description | C4: Cost | D4: Qty | E4: Total | F4: Actual | G4: SMI | H4: IPD | I4: SMG | J4: SWD/SP | K4: SINV | L4: RVR | N4: Level 1 | O4: Level 2 | P4: Level 1 | Q4: Level 2 | R4: Level 1 | S4: Level 2 | T4: Level 1 | U4: Level 2 | V4: Level 1 | W4: Level 2 | X4: Level 1 | Y4: Level 2
A5: Director | E5: =IF(AND(D5<>0, C5<>0),+D5*C5,"") ->  | G5: =IF(AND($B5<>"", $E5<>""),VLOOKUP($B5,Allocations!$A$5:$K$30,3,0)*$E5,"") ->  | H5: =IF(AND($B5<>"", $E5<>""),VLOOKUP($B5,Allocations!$A$5:$K$30,4,0)*$E5,"") ->  | I5: =IF(AND($B5<>"", $E5<>""),VLOOKUP($B5,Allocations!$A$5:$K$30,5,0)*$E5,"") ->  | J5: =IF(AND($B5<>"", $E5<>""),VLOOKUP($B5,Allocations!$A$5:$K$30,6,0)*$E5,"") ->  | K5: =IF(AND($B5<>"", $E5<>""),VLOOKUP($B5,Allocations!$A$5:$K$30,7,0)*$E5,"") ->  | L5: =IF(AND($B5<>"", $E5<>""),VLOOKUP($B5,Allocations!$A$5:$K$30,8,0)*$E5,"") ->  | P5: =IF(AND($B5<>"", $N5<>""),VLOOKUP($B5,Allocations!$A$5:$K$30,3,0)*$N5,"") ->  | Q5: =IF(AND($B5<>"", $O5<>""),VLOOKUP($B5,Allocations!$A$5:$K$30,3,0)*$O5,"") ->  | R5: =IF(AND($B5<>"", $N5<>""),VLOOKUP($B5,Allocations!$A$5:$K$30,4,0)*$N5,"") ->  | S5: =IF(AND($B5<>"", $O5<>""),VLOOKUP($B5,Allocations!$A$5:$K$30,4,0)*$O5,"") ->  | T5: =IF(AND($B5<>"", $N5<>""),VLOOKUP($B5,Allocations!$A$5:$K$30,5,0)*$N5,"") ->  | U5: =IF(AND($B5<>"", $O5<>""),VLOOKUP($B5,Allocations!$A$5:$K$30,5,0)*$O5,"") ->  | V5: =IF(AND($B5<>"", $N5<>""),VLOOKUP($B5,Allocations!$A$5:$K$30,6,0)*$N5,"") ->  | W5: =IF(AND($B5<>"", $O5<>""),VLOOKUP($B5,Allocations!$A$5:$K$30,6,0)*$O5,"") ->  | X5: =IF(AND($B5<>"", $N5<>""),VLOOKUP($B5,Allocations!$A$5:$K$30,7,0)*$N5,"") ->  | Y5: =IF(AND($B5<>"", $O5<>""),VLOOKUP($B5,Allocations!$A$5:$K$30,7,0)*$O5,"") -> 
A6: Installation & Configuration GP v10.0 | B6: A | C6: 2695 | D6: 0 | G6: =IF(AND($B6<>"", $E6<>""),VLOOKUP($B6,Allocations!$A$5:$K$30,3,0)*$E6,"") ->  | H6: =IF(AND($B6<>"", $E6<>""),VLOOKUP($B6,Allocations!$A$5:$K$30,4,0)*$E6,"") ->  | I6: =IF(AND($B6<>"", $E6<>""),VLOOKUP($B6,Allocations!$A$5:$K$30,5,0)*$E6,"") ->  | J6: =IF(AND($B6<>"", $E6<>""),VLOOKUP($B6,Allocations!$A$5:$K$30,6,0)*$E6,"") ->  | K6: =IF(AND($B6<>"", $E6<>""),VLOOKUP($B6,Allocations!$A$5:$K$30,7,0)*$E6,"") ->  | L6: =IF(AND($B6<>"", $E6<>""),VLOOKUP($B6,Allocations!$A$5:$K$30,8,0)*$E6,"") ->  | P6: =IF(AND($B6<>"", $N6<>""),VLOOKUP($B6,Allocations!$A$5:$K$30,3,0)*$N6,"") ->  | Q6: =IF(AND($B6<>"", $O6<>""),VLOOKUP($B6,Allocations!$A$5:$K$30,3,0)*$O6,"") ->  | R6: =IF(AND($B6<>"", $N6<>""),VLOOKUP($B6,Allocations!$A$5:$K$30,4,0)*$N6,"") ->  | S6: =IF(AND($B6<>"", $O6<>""),VLOOKUP($B6,Allocations!$A$5:$K$30,4,0)*$O6,"") ->  | T6: =IF(AND($B6<>"", $N6<>""),VLOOKUP($B6,Allocations!$A$5:$K$30,5,0)*$N6,"") ->  | U6: =IF(AND($B6<>"", $O6<>""),VLOOKUP($B6,Allocations!$A$5:$K$30,5,0)*$O6,"") ->  | V6: =IF(AND($B6<>"", $N6<>""),VLOOKUP($B6,Allocations!$A$5:$K$30,6,0)*$N6,"") ->  | W6: =IF(AND($B6<>"", $O6<>""),VLOOKUP($B6,Allocations!$A$5:$K$30,6,0)*$O6,"") ->  | X6: =IF(AND($B6<>"", $N6<>""),VLOOKUP($B6,Allocations!$A$5:$K$30,7,0)*$N6,"") ->  | Y6: =IF(AND($B6<>"", $O6<>""),VLOOKUP($B6,Allocations!$A$5:$K$30,7,0)*$O6,"") -> 
A7: Report Writer GP v.10.0 | B7: A | C7: 2400 | D7: 0 | G7: =IF(AND($B7<>"", $E7<>""),VLOOKUP($B7,Allocations!$A$5:$K$30,3,0)*$E7,"") ->  | H7: =IF(AND($B7<>"", $E7<>""),VLOOKUP($B7,Allocations!$A$5:$K$30,4,0)*$E7,"") ->  | I7: =IF(AND($B7<>"", $E7<>""),VLOOKUP($B7,Allocations!$A$5:$K$30,5,0)*$E7,"") ->  | J7: =IF(AND($B7<>"", $E7<>""),VLOOKUP($B7,Allocations!$A$5:$K$30,6,0)*$E7,"") ->  | K7: =IF(AND($B7<>"", $E7<>""),VLOOKUP($B7,Allocations!$A$5:$K$30,7,0)*$E7,"") ->  | L7: =IF(AND($B7<>"", $E7<>""),VLOOKUP($B7,Allocations!$A$5:$K$30,8,0)*$E7,"") ->  | P7: =IF(AND($B7<>"", $N7<>""),VLOOKUP($B7,Allocations!$A$5:$K$30,3,0)*$N7,"") ->  | Q7: =IF(AND($B7<>"", $O7<>""),VLOOKUP($B7,Allocations!$A$5:$K$30,3,0)*$O7,"") ->  | R7: =IF(AND($B7<>"", $N7<>""),VLOOKUP($B7,Allocations!$A$5:$K$30,4,0)*$N7,"") ->  | S7: =IF(AND($B7<>"", $O7<>""),VLOOKUP($B7,Allocations!$A$5:$K$30,4,0)*$O7,"") ->  | T7: =IF(AND($B7<>"", $N7<>""),VLOOKUP($B7,Allocations!$A$5:$K$30,5,0)*$N7,"") ->  | U7: =IF(AND($B7<>"", $O7<>""),VLOOKUP($B7,Allocations!$A$5:$K$30,5,0)*$O7,"") ->  | V7: =IF(AND($B7<>"", $N7<>""),VLOOKUP($B7,Allocations!$A$5:$K$30,6,0)*$N7,"") ->  | W7: =IF(AND($B7<>"", $O7<>""),VLOOKUP($B7,Allocations!$A$5:$K$30,6,0)*$O7,"") ->  | X7: =IF(AND($B7<>"", $N7<>""),VLOOKUP($B7,Allocations!$A$5:$K$30,7,0)*$N7,"") ->  | Y7: =IF(AND($B7<>"", $O7<>""),VLOOKUP($B7,Allocations!$A$5:$K$30,7,0)*$O7,"") -> 
A8: Manufacturing Applications GP v.8.0 | B8: A | C8: 2695 | D8: 1 | E8: 2695 | G8: =IF(AND($B8<>"", $E8<>""),VLOOKUP($B8,Allocations!$A$5:$K$30,3,0)*$E8,"") -> 212.7631579 | H8: =IF(AND($B8<>"", $E8<>""),VLOOKUP($B8,Allocations!$A$5:$K$30,4,0)*$E8,"") -> 1205.657895 | I8: =IF(AND($B8<>"", $E8<>""),VLOOKUP($B8,Allocations!$A$5:$K$30,5,0)*$E8,"") -> 1182.017544 | J8: =IF(AND($B8<>"", $E8<>""),VLOOKUP($B8,Allocations!$A$5:$K$30,6,0)*$E8,"") -> 23.64035088 | K8: =IF(AND($B8<>"", $E8<>""),VLOOKUP($B8,Allocations!$A$5:$K$30,7,0)*$E8,"") -> 47.28070175 | L8: =IF(AND($B8<>"", $E8<>""),VLOOKUP($B8,Allocations!$A$5:$K$30,8,0)*$E8,"") -> 23.64035088 | P8: =IF(AND($B8<>"", $N8<>""),VLOOKUP($B8,Allocations!$A$5:$K$30,3,0)*$N8,"") ->  | Q8: =IF(AND($B8<>"", $O8<>""),VLOOKUP($B8,Allocations!$A$5:$K$30,3,0)*$O8,"") ->  | R8: =IF(AND($B8<>"", $N8<>""),VLOOKUP($B8,Allocations!$A$5:$K$30,4,0)*$N8,"") ->  | S8: =IF(AND($B8<>"", $O8<>""),VLOOKUP($B8,Allocations!$A$5:$K$30,4,0)*$O8,"") ->  | T8: =IF(AND($B8<>"", $N8<>""),VLOOKUP($B8,Allocations!$A$5:$K$30,5,0)*$N8,"") ->  | U8: =IF(AND($B8<>"", $O8<>""),VLOOKUP($B8,Allocations!$A$5:$K$30,5,0)*$O8,"") ->  | V8: =IF(AND($B8<>"", $N8<>""),VLOOKUP($B8,Allocations!$A$5:$K$30,6,0)*$N8,"") ->  | W8: =IF(AND($B8<>"", $O8<>""),VLOOKUP($B8,Allocations!$A$5:$K$30,6,0)*$O8,"") ->  | X8: =IF(AND($B8<>"", $N8<>""),VLOOKUP($B8,Allocations!$A$5:$K$30,7,0)*$N8,"") ->  | Y8: =IF(AND($B8<>"", $O8<>""),VLOOKUP($B8,Allocations!$A$5:$K$30,7,0)*$O8,"") -> 
A9: Integration Manager GP v.10.0 | B9: A | C9: 3295 | D9: 1 | E9: 3295 | G9: =IF(AND($B9<>"", $E9<>""),VLOOKUP($B9,Allocations!$A$5:$K$30,3,0)*$E9,"") -> 260.1315789 | H9: =IF(AND($B9<>"", $E9<>""),VLOOKUP($B9,Allocations!$A$5:$K$30,4,0)*$E9,"") -> 1474.078947 | I9: =IF(AND($B9<>"", $E9<>""),VLOOKUP($B9,Allocations!$A$5:$K$30,5,0)*$E9,"") -> 1445.175439 | J9: =IF(AND($B9<>"", $E9<>""),VLOOKUP($B9,Allocations!$A$5:$K$30,6,0)*$E9,"") -> 28.90350877 | K9: =IF(AND($B9<>"", $E9<>""),VLOOKUP($B9,Allocations!$A$5:$K$30,7,0)*$E9,"") -> 57.80701754 | L9: =IF(AND($B9<>"", $E9<>""),VLOOKUP($B9,Allocations!$A$5:$K$30,8,0)*$E9,"") -> 28.90350877 | P9: =IF(AND($B9<>"", $N9<>""),VLOOKUP($B9,Allocations!$A$5:$K$30,3,0)*$N9,"") ->  | Q9: =IF(AND($B9<>"", $O9<>""),VLOOKUP($B9,Allocations!$A$5:$K$30,3,0)*$O9,"") ->  | R9: =IF(AND($B9<>"", $N9<>""),VLOOKUP($B9,Allocations!$A$5:$K$30,4,0)*$N9,"") ->  | S9: =IF(AND($B9<>"", $O9<>""),VLOOKUP($B9,Allocations!$A$5:$K$30,4,0)*$O9,"") ->  | T9: =IF(AND($B9<>"", $N9<>""),VLOOKUP($B9,Allocations!$A$5:$K$30,5,0)*$N9,"") ->  | U9: =IF(AND($B9<>"", $O9<>""),VLOOKUP($B9,Allocations!$A$5:$K$30,5,0)*$O9,"") ->  | V9: =IF(AND($B9<>"", $N9<>""),VLOOKUP($B9,Allocations!$A$5:$K$30,6,0)*$N9,"") ->  | W9: =IF(AND($B9<>"", $O9<>""),VLOOKUP($B9,Allocations!$A$5:$K$30,6,0)*$O9,"") ->  | X9: =IF(AND($B9<>"", $N9<>""),VLOOKUP($B9,Allocations!$A$5:$K$30,7,0)*$N9,"") ->  | Y9: =IF(AND($B9<>"", $O9<>""),VLOOKUP($B9,Allocations!$A$5:$K$30,7,0)*$O9,"") -> 
A10: Business Portal GP v.10.0 | B10: A | C10: 2400 | D10: 1 | E10: 2400 | G10: =IF(AND($B10<>"", $E10<>""),VLOOKUP($B10,Allocations!$A$5:$K$30,3,0)*$E10,"") -> 189.4736842 | H10: =IF(AND($B10<>"", $E10<>""),VLOOKUP($B10,Allocations!$A$5:$K$30,4,0)*$E10,"") -> 1073.684211 | I10: =IF(AND($B10<>"", $E10<>""),VLOOKUP($B10,Allocations!$A$5:$K$30,5,0)*$E10,"") -> 1052.631579 | J10: =IF(AND($B10<>"", $E10<>""),VLOOKUP($B10,Allocations!$A$5:$K$30,6,0)*$E10,"") -> 21.05263158 | K10: =IF(AND($B10<>"", $E10<>""),VLOOKUP($B10,Allocations!$A$5:$K$30,7,0)*$E10,"") -> 42.10526316 | L10: =IF(AND($B10<>"", $E10<>""),VLOOKUP($B10,Allocations!$A$5:$K$30,8,0)*$E10,"") -> 21.05263158 | P10: =IF(AND($B10<>"", $N10<>""),VLOOKUP($B10,Allocations!$A$5:$K$30,3,0)*$N10,"") ->  | Q10: =IF(AND($B10<>"", $O10<>""),VLOOKUP($B10,Allocations!$A$5:$K$30,3,0)*$O10,"") ->  | R10: =IF(AND($B10<>"", $N10<>""),VLOOKUP($B10,Allocations!$A$5:$K$30,4,0)*$N10,"") ->  | S10: =IF(AND($B10<>"", $O10<>""),VLOOKUP($B10,Allocations!$A$5:$K$30,4,0)*$O10,"") ->  | T10: =IF(AND($B10<>"", $N10<>""),VLOOKUP($B10,Allocations!$A$5:$K$30,5,0)*$N10,"") ->  | U10: =IF(AND($B10<>"", $O10<>""),VLOOKUP($B10,Allocations!$A$5:$K$30,5,0)*$O10,"") ->  | V10: =IF(AND($B10<>"", $N10<>""),VLOOKUP($B10,Allocations!$A$5:$K$30,6,0)*$N10,"") ->  | W10: =IF(AND($B10<>"", $O10<>""),VLOOKUP($B10,Allocations!$A$5:$K$30,6,0)*$O10,"") ->  | X10: =IF(AND($B10<>"", $N10<>""),VLOOKUP($B10,Allocations!$A$5:$K$30,7,0)*$N10,"") ->  | Y10: =IF(AND($B10<>"", $O10<>""),VLOOKUP($B10,Allocations!$A$5:$K$30,7,0)*$O10,"") -> 
A11: BS / Business Management Program | B11: K | C11: 5250 | D11: 1 | E11: 5250 | G11: =IF(AND($B11<>"", $E11<>""),VLOOKUP($B11,Allocations!$A$5:$K$30,3,0)*$E11,"") -> 5250 | H11: =IF(AND($B11<>"", $E11<>""),VLOOKUP($B11,Allocations!$A$5:$K$30,4,0)*$E11,"") -> 0 | I11: =IF(AND($B11<>"", $E11<>""),VLOOKUP($B11,Allocations!$A$5:$K$30,5,0)*$E11,"") -> 0 | J11: =IF(AND($B11<>"", $E11<>""),VLOOKUP($B11,Allocations!$A$5:$K$30,6,0)*$E11,"") -> 0 | K11: =IF(AND($B11<>"", $E11<>""),VLOOKUP($B11,Allocations!$A$5:$K$30,7,0)*$E11,"") -> 0 | L11: =IF(AND($B11<>"", $E11<>""),VLOOKUP($B11,Allocations!$A$5:$K$30,8,0)*$E11,"") -> 0 | P11: =IF(AND($B11<>"", $N11<>""),VLOOKUP($B11,Allocations!$A$5:$K$30,3,0)*$N11,"") ->  | Q11: =IF(AND($B11<>"", $O11<>""),VLOOKUP($B11,Allocations!$A$5:$K$30,3,0)*$O11,"") ->  | R11: =IF(AND($B11<>"", $N11<>""),VLOOKUP($B11,Allocations!$A$5:$K$30,4,0)*$N11,"") ->  | S11: =IF(AND($B11<>"", $O11<>""),VLOOKUP($B11,Allocations!$A$5:$K$30,4,0)*$O11,"") ->  | T11: =IF(AND($B11<>"", $N11<>""),VLOOKUP($B11,Allocations!$A$5:$K$30,5,0)*$N11,"") ->  | U11: =IF(AND($B11<>"", $O11<>""),VLOOKUP($B11,Allocations!$A$5:$K$30,5,0)*$O11,"") ->  | V11: =IF(AND($B11<>"", $N11<>""),VLOOKUP($B11,Allocations!$A$5:$K$30,6,0)*$N11,"") ->  | W11: =IF(AND($B11<>"", $O11<>""),VLOOKUP($B11,Allocations!$A$5:$K$30,6,0)*$O11,"") ->  | X11: =IF(AND($B11<>"", $N11<>""),VLOOKUP($B11,Allocations!$A$5:$K$30,7,0)*$N11,"") ->  | Y11: =IF(AND($B11<>"", $O11<>""),VLOOKUP($B11,Allocations!$A$5:$K$30,7,0)*$O11,"") -> 
A12: Ratification Adjustment | B12: K | C12: -1225 | D12: 0 | G12: =IF(AND($B12<>"", $E12<>""),VLOOKUP($B12,Allocations!$A$5:$K$30,3,0)*$E12,"") ->  | H12: =IF(AND($B12<>"", $E12<>""),VLOOKUP($B12,Allocations!$A$5:$K$30,4,0)*$E12,"") ->  | I12: =IF(AND($B12<>"", $E12<>""),VLOOKUP($B12,Allocations!$A$5:$K$30,5,0)*$E12,"") ->  | J12: =IF(AND($B12<>"", $E12<>""),VLOOKUP($B12,Allocations!$A$5:$K$30,6,0)*$E12,"") ->  | K12: =IF(AND($B12<>"", $E12<>""),VLOOKUP($B12,Allocations!$A$5:$K$30,7,0)*$E12,"") ->  | L12: =IF(AND($B12<>"", $E12<>""),VLOOKUP($B12,Allocations!$A$5:$K$30,8,0)*$E12,"") ->  | P12: =IF(AND($B12<>"", $N12<>""),VLOOKUP($B12,Allocations!$A$5:$K$30,3,0)*$N12,"") ->  | Q12: =IF(AND($B12<>"", $O12<>""),VLOOKUP($B12,Allocations!$A$5:$K$30,3,0)*$O12,"") ->  | R12: =IF(AND($B12<>"", $N12<>""),VLOOKUP($B12,Allocations!$A$5:$K$30,4,0)*$N12,"") ->  | S12: =IF(AND($B12<>"", $O12<>""),VLOOKUP($B12,Allocations!$A$5:$K$30,4,0)*$O12,"") ->  | T12: =IF(AND($B12<>"", $N12<>""),VLOOKUP($B12,Allocations!$A$5:$K$30,5,0)*$N12,"") ->  | U12: =IF(AND($B12<>"", $O12<>""),VLOOKUP($B12,Allocations!$A$5:$K$30,5,0)*$O12,"") ->  | V12: =IF(AND($B12<>"", $N12<>""),VLOOKUP($B12,Allocations!$A$5:$K$30,6,0)*$N12,"") ->  | W12: =IF(AND($B12<>"", $O12<>""),VLOOKUP($B12,Allocations!$A$5:$K$30,6,0)*$O12,"") ->  | X12: =IF(AND($B12<>"", $N12<>""),VLOOKUP($B12,Allocations!$A$5:$K$30,7,0)*$N12,"") ->  | Y12: =IF(AND($B12<>"", $O12<>""),VLOOKUP($B12,Allocations!$A$5:$K$30,7,0)*$O12,"") -> 
G13: =IF(AND($B13<>"", $E13<>""),VLOOKUP($B13,Allocations!$A$5:$K$30,3,0)*$E13,"") ->  | H13: =IF(AND($B13<>"", $E13<>""),VLOOKUP($B13,Allocations!$A$5:$K$30,4,0)*$E13,"") ->  | I13: =IF(AND($B13<>"", $E13<>""),VLOOKUP($B13,Allocations!$A$5:$K$30,5,0)*$E13,"") ->  | J13: =IF(AND($B13<>"", $E13<>""),VLOOKUP($B13,Allocations!$A$5:$K$30,6,0)*$E13,"") ->  | K13: =IF(AND($B13<>"", $E13<>""),VLOOKUP($B13,Allocations!$A$5:$K$30,7,0)*$E13,"") ->  | L13: =IF(AND($B13<>"", $E13<>""),VLOOKUP($B13,Allocations!$A$5:$K$30,8,0)*$E13,"") ->  | P13: =IF(AND($B13<>"", $N13<>""),VLOOKUP($B13,Allocations!$A$5:$K$30,3,0)*$N13,"") ->  | Q13: =IF(AND($B13<>"", $O13<>""),VLOOKUP($B13,Allocations!$A$5:$K$30,3,0)*$O13,"") ->  | R13: =IF(AND($B13<>"", $N13<>""),VLOOKUP($B13,Allocations!$A$5:$K$30,4,0)*$N13,"") ->  | S13: =IF(AND($B13<>"", $O13<>""),VLOOKUP($B13,Allocations!$A$5:$K$30,4,0)*$O13,"") ->  | T13: =IF(AND($B13<>"", $N13<>""),VLOOKUP($B13,Allocations!$A$5:$K$30,5,0)*$N13,"") ->  | U13: =IF(AND($B13<>"", $O13<>""),VLOOKUP($B13,Allocations!$A$5:$K$30,5,0)*$O13,"") ->  | V13: =IF(AND($B13<>"", $N13<>""),VLOOKUP($B13,Allocations!$A$5:$K$30,6,0)*$N13,"") ->  | W13: =IF(AND($B13<>"", $O13<>""),VLOOKUP($B13,Allocations!$A$5:$K$30,6,0)*$O13,"") ->  | X13: =IF(AND($B13<>"", $N13<>""),VLOOKUP($B13,Allocations!$A$5:$K$30,7,0)*$N13,"") ->  | Y13: =IF(AND($B13<>"", $O13<>""),VLOOKUP($B13,Allocations!$A$5:$K$30,7,0)*$O13,"") -> 
A14: Database Administrator | G14: =IF(AND($B14<>"", $E14<>""),VLOOKUP($B14,Allocations!$A$5:$K$30,3,0)*$E14,"") ->  | H14: =IF(AND($B14<>"", $E14<>""),VLOOKUP($B14,Allocations!$A$5:$K$30,4,0)*$E14,"") ->  | I14: =IF(AND($B14<>"", $E14<>""),VLOOKUP($B14,Allocations!$A$5:$K$30,5,0)*$E14,"") ->  | J14: =IF(AND($B14<>"", $E14<>""),VLOOKUP($B14,Allocations!$A$5:$K$30,6,0)*$E14,"") ->  | K14: =IF(AND($B14<>"", $E14<>""),VLOOKUP($B14,Allocations!$A$5:$K$30,7,0)*$E14,"") ->  | L14: =IF(AND($B14<>"", $E14<>""),VLOOKUP($B14,Allocations!$A$5:$K$30,8,0)*$E14,"") ->  | P14: =IF(AND($B14<>"", $N14<>""),VLOOKUP($B14,Allocations!$A$5:$K$30,3,0)*$N14,"") ->  | Q14: =IF(AND($B14<>"", $O14<>""),VLOOKUP($B14,Allocations!$A$5:$K$30,3,0)*$O14,"") ->  | R14: =IF(AND($B14<>"", $N14<>""),VLOOKUP($B14,Allocations!$A$5:$K$30,4,0)*$N14,"") ->  | S14: =IF(AND($B14<>"", $O14<>""),VLOOKUP($B14,Allocations!$A$5:$K$30,4,0)*$O14,"") ->  | T14: =IF(AND($B14<>"", $N14<>""),VLOOKUP($B14,Allocations!$A$5:$K$30,5,0)*$N14,"") ->  | U14: =IF(AND($B14<>"", $O14<>""),VLOOKUP($B14,Allocations!$A$5:$K$30,5,0)*$O14,"") ->  | V14: =IF(AND($B14<>"", $N14<>""),VLOOKUP($B14,Allocations!$A$5:$K$30,6,0)*$N14,"") ->  | W14: =IF(AND($B14<>"", $O14<>""),VLOOKUP($B14,Allocations!$A$5:$K$30,6,0)*$O14,"") ->  | X14: =IF(AND($B14<>"", $N14<>""),VLOOKUP($B14,Allocations!$A$5:$K$30,7,0)*$N14,"") ->  | Y14: =IF(AND($B14<>"", $O14<>""),VLOOKUP($B14,Allocations!$A$5:$K$30,7,0)*$O14,"") -> 
A15: Installation & Configuration GP v.10.0 | B15: A | C15: 2695 | D15: 1 | E15: 2695 | G15: =IF(AND($B15<>"", $E15<>""),VLOOKUP($B15,Allocations!$A$5:$K$30,3,0)*$E15,"") -> 212.7631579 | H15: =IF(AND($B15<>"", $E15<>""),VLOOKUP($B15,Allocations!$A$5:$K$30,4,0)*$E15,"") -> 1205.657895 | I15: =IF(AND($B15<>"", $E15<>""),VLOOKUP($B15,Allocations!$A$5:$K$30,5,0)*$E15,"") -> 1182.017544 | J15: =IF(AND($B15<>"", $E15<>""),VLOOKUP($B15,Allocations!$A$5:$K$30,6,0)*$E15,"") -> 23.64035088 | K15: =IF(AND($B15<>"", $E15<>""),VLOOKUP($B15,Allocations!$A$5:$K$30,7,0)*$E15,"") -> 47.28070175 | L15: =IF(AND($B15<>"", $E15<>""),VLOOKUP($B15,Allocations!$A$5:$K$30,8,0)*$E15,"") -> 23.64035088 | O15: 24 | P15: =IF(AND($B15<>"", $N15<>""),VLOOKUP($B15,Allocations!$A$5:$K$30,3,0)*$N15,"") ->  | Q15: =IF(AND($B15<>"", $O15<>""),VLOOKUP($B15,Allocations!$A$5:$K$30,3,0)*$O15,"") -> 1.894736842 | R15: =IF(AND($B15<>"", $N15<>""),VLOOKUP($B15,Allocations!$A$5:$K$30,4,0)*$N15,"") ->  | S15: =IF(AND($B15<>"", $O15<>""),VLOOKUP($B15,Allocations!$A$5:$K$30,4,0)*$O15,"") -> 10.73684211 | T15: =IF(AND($B15<>"", $N15<>""),VLOOKUP($B15,Allocations!$A$5:$K$30,5,0)*$N15,"") ->  | U15: =IF(AND($B15<>"", $O15<>""),VLOOKUP($B15,Allocations!$A$5:$K$30,5,0)*$O15,"") -> 10.52631579 | V15: =IF(AND($B15<>"", $N15<>""),VLOOKUP($B15,Allocations!$A$5:$K$30,6,0)*$N15,"") ->  | W15: =IF(AND($B15<>"", $O15<>""),VLOOKUP($B15,Allocations!$A$5:$K$30,6,0)*$O15,"") -> 0.2105263158 | X15: =IF(AND($B15<>"", $N15<>""),VLOOKUP($B15,Allocations!$A$5:$K$30,7,0)*$N15,"") ->  | Y15: =IF(AND($B15<>"", $O15<>""),VLOOKUP($B15,Allocations!$A$5:$K$30,7,0)*$O15,"") -> 0.4210526316
A16: Report Writer GP v.10.0 | B16: A | C16: 2695 | D16: 1 | E16: 2695 | G16: =IF(AND($B16<>"", $E16<>""),VLOOKUP($B16,Allocations!$A$5:$K$30,3,0)*$E16,"") -> 212.7631579 | H16: =IF(AND($B16<>"", $E16<>""),VLOOKUP($B16,Allocations!$A$5:$K$30,4,0)*$E16,"") -> 1205.657895 | I16: =IF(AND($B16<>"", $E16<>""),VLOOKUP($B16,Allocations!$A$5:$K$30,5,0)*$E16,"") -> 1182.017544 | J16: =IF(AND($B16<>"", $E16<>""),VLOOKUP($B16,Allocations!$A$5:$K$30,6,0)*$E16,"") -> 23.64035088 | K16: =IF(AND($B16<>"", $E16<>""),VLOOKUP($B16,Allocations!$A$5:$K$30,7,0)*$E16,"") -> 47.28070175 | L16: =IF(AND($B16<>"", $E16<>""),VLOOKUP($B16,Allocations!$A$5:$K$30,8,0)*$E16,"") -> 23.64035088 | O16: 16 | P16: =IF(AND($B16<>"", $N16<>""),VLOOKUP($B16,Allocations!$A$5:$K$30,3,0)*$N16,"") ->  | Q16: =IF(AND($B16<>"", $O16<>""),VLOOKUP($B16,Allocations!$A$5:$K$30,3,0)*$O16,"") -> 1.263157895 | R16: =IF(AND($B16<>"", $N16<>""),VLOOKUP($B16,Allocations!$A$5:$K$30,4,0)*$N16,"") ->  | S16: =IF(AND($B16<>"", $O16<>""),VLOOKUP($B16,Allocations!$A$5:$K$30,4,0)*$O16,"") -> 7.157894737 | T16: =IF(AND($B16<>"", $N16<>""),VLOOKUP($B16,Allocations!$A$5:$K$30,5,0)*$N16,"") ->  | U16: =IF(AND($B16<>"", $O16<>""),VLOOKUP($B16,Allocations!$A$5:$K$30,5,0)*$O16,"") -> 7.01754386 | V16: =IF(AND($B16<>"", $N16<>""),VLOOKUP($B16,Allocations!$A$5:$K$30,6,0)*$N16,"") ->  | W16: =IF(AND($B16<>"", $O16<>""),VLOOKUP($B16,Allocations!$A$5:$K$30,6,0)*$O16,"") -> 0.1403508772 | X16: =IF(AND($B16<>"", $N16<>""),VLOOKUP($B16,Allocations!$A$5:$K$30,7,0)*$N16,"") ->  | Y16: =IF(AND($B16<>"", $O16<>""),VLOOKUP($B16,Allocations!$A$5:$K$30,7,0)*$O16,"") -> 0.2807017544
A17: Manufacturing Applications GP v.8.0 | B17: A | C17: 2400 | D17: 1 | E17: 2400 | G17: =IF(AND($B17<>"", $E17<>""),VLOOKUP($B17,Allocations!$A$5:$K$30,3,0)*$E17,"") -> 189.4736842 | H17: =IF(AND($B17<>"", $E17<>""),VLOOKUP($B17,Allocations!$A$5:$K$30,4,0)*$E17,"") -> 1073.684211 | I17: =IF(AND($B17<>"", $E17<>""),VLOOKUP($B17,Allocations!$A$5:$K$30,5,0)*$E17,"") -> 1052.631579 | J17: =IF(AND($B17<>"", $E17<>""),VLOOKUP($B17,Allocations!$A$5:$K$30,6,0)*$E17,"") -> 21.05263158 | K17: =IF(AND($B17<>"", $E17<>""),VLOOKUP($B17,Allocations!$A$5:$K$30,7,0)*$E17,"") -> 42.10526316 | L17: =IF(AND($B17<>"", $E17<>""),VLOOKUP($B17,Allocations!$A$5:$K$30,8,0)*$E17,"") -> 21.05263158 | O17: 16 | P17: =IF(AND($B17<>"", $N17<>""),VLOOKUP($B17,Allocations!$A$5:$K$30,3,0)*$N17,"") ->  | Q17: =IF(AND($B17<>"", $O17<>""),VLOOKUP($B17,Allocations!$A$5:$K$30,3,0)*$O17,"") -> 1.263157895 | R17: =IF(AND($B17<>"", $N17<>""),VLOOKUP($B17,Allocations!$A$5:$K$30,4,0)*$N17,"") ->  | S17: =IF(AND($B17<>"", $O17<>""),VLOOKUP($B17,Allocations!$A$5:$K$30,4,0)*$O17,"") -> 7.157894737 | T17: =IF(AND($B17<>"", $N17<>""),VLOOKUP($B17,Allocations!$A$5:$K$30,5,0)*$N17,"") ->  | U17: =IF(AND($B17<>"", $O17<>""),VLOOKUP($B17,Allocations!$A$5:$K$30,5,0)*$O17,"") -> 7.01754386 | V17: =IF(AND($B17<>"", $N17<>""),VLOOKUP($B17,Allocations!$A$5:$K$30,6,0)*$N17,"") ->  | W17: =IF(AND($B17<>"", $O17<>""),VLOOKUP($B17,Allocations!$A$5:$K$30,6,0)*$O17,"") -> 0.1403508772 | X17: =IF(AND($B17<>"", $N17<>""),VLOOKUP($B17,Allocations!$A$5:$K$30,7,0)*$N17,"") ->  | Y17: =IF(AND($B17<>"", $O17<>""),VLOOKUP($B17,Allocations!$A$5:$K$30,7,0)*$O17,"") -> 0.2807017544
A18: Modifier, VB Applications GP v.10.0 | B18: A | C18: 3295 | D18: 1 | E18: 3295 | G18: =IF(AND($B18<>"", $E18<>""),VLOOKUP($B18,Allocations!$A$5:$K$30,3,0)*$E18,"") -> 260.1315789 | H18: =IF(AND($B18<>"", $E18<>""),VLOOKUP($B18,Allocations!$A$5:$K$30,4,0)*$E18,"") -> 1474.078947 | I18: =IF(AND($B18<>"", $E18<>""),VLOOKUP($B18,Allocations!$A$5:$K$30,5,0)*$E18,"") -> 1445.175439 | J18: =IF(AND($B18<>"", $E18<>""),VLOOKUP($B18,Allocations!$A$5:$K$30,6,0)*$E18,"") -> 28.90350877 | K18: =IF(AND($B18<>"", $E18<>""),VLOOKUP($B18,Allocations!$A$5:$K$30,7,0)*$E18,"") -> 57.80701754 | L18: =IF(AND($B18<>"", $E18<>""),VLOOKUP($B18,Allocations!$A$5:$K$30,8,0)*$E18,"") -> 28.90350877 | O18: 24 | P18: =IF(AND($B18<>"", $N18<>""),VLOOKUP($B18,Allocations!$A$5:$K$30,3,0)*$N18,"") ->  | Q18: =IF(AND($B18<>"", $O18<>""),VLOOKUP($B18,Allocations!$A$5:$K$30,3,0)*$O18,"") -> 1.894736842 | R18: =IF(AND($B18<>"", $N18<>""),VLOOKUP($B18,Allocations!$A$5:$K$30,4,0)*$N18,"") ->  | S18: =IF(AND($B18<>"", $O18<>""),VLOOKUP($B18,Allocations!$A$5:$K$30,4,0)*$O18,"") -> 10.73684211 | T18: =IF(AND($B18<>"", $N18<>""),VLOOKUP($B18,Allocations!$A$5:$K$30,5,0)*$N18,"") ->  | U18: =IF(AND($B18<>"", $O18<>""),VLOOKUP($B18,Allocations!$A$5:$K$30,5,0)*$O18,"") -> 10.52631579 | V18: =IF(AND($B18<>"", $N18<>""),VLOOKUP($B18,Allocations!$A$5:$K$30,6,0)*$N18,"") ->  | W18: =IF(AND($B18<>"", $O18<>""),VLOOKUP($B18,Allocations!$A$5:$K$30,6,0)*$O18,"") -> 0.2105263158 | X18: =IF(AND($B18<>"", $N18<>""),VLOOKUP($B18,Allocations!$A$5:$K$30,7,0)*$N18,"") ->  | Y18: =IF(AND($B18<>"", $O18<>""),VLOOKUP($B18,Allocations!$A$5:$K$30,7,0)*$O18,"") -> 0.4210526316
A19: Integration Manager GP v.10.0 | B19: A | C19: 2400 | D19: 1 | E19: 2400 | G19: =IF(AND($B19<>"", $E19<>""),VLOOKUP($B19,Allocations!$A$5:$K$30,3,0)*$E19,"") -> 189.4736842 | H19: =IF(AND($B19<>"", $E19<>""),VLOOKUP($B19,Allocations!$A$5:$K$30,4,0)*$E19,"") -> 1073.684211 | I19: =IF(AND($B19<>"", $E19<>""),VLOOKUP($B19,Allocations!$A$5:$K$30,5,0)*$E19,"") -> 1052.631579 | J19: =IF(AND($B19<>"", $E19<>""),VLOOKUP($B19,Allocations!$A$5:$K$30,6,0)*$E19,"") -> 21.05263158 | K19: =IF(AND($B19<>"", $E19<>""),VLOOKUP($B19,Allocations!$A$5:$K$30,7,0)*$E19,"") -> 42.10526316 | L19: =IF(AND($B19<>"", $E19<>""),VLOOKUP($B19,Allocations!$A$5:$K$30,8,0)*$E19,"") -> 21.05263158 | O19: 24 | P19: =IF(AND($B19<>"", $N19<>""),VLOOKUP($B19,Allocations!$A$5:$K$30,3,0)*$N19,"") ->  | Q19: =IF(AND($B19<>"", $O19<>""),VLOOKUP($B19,Allocations!$A$5:$K$30,3,0)*$O19,"") -> 1.894736842 | R19: =IF(AND($B19<>"", $N19<>""),VLOOKUP($B19,Allocations!$A$5:$K$30,4,0)*$N19,"") ->  | S19: =IF(AND($B19<>"", $O19<>""),VLOOKUP($B19,Allocations!$A$5:$K$30,4,0)*$O19,"") -> 10.73684211 | T19: =IF(AND($B19<>"", $N19<>""),VLOOKUP($B19,Allocations!$A$5:$K$30,5,0)*$N19,"") ->  | U19: =IF(AND($B19<>"", $O19<>""),VLOOKUP($B19,Allocations!$A$5:$K$30,5,0)*$O19,"") -> 10.52631579 | V19: =IF(AND($B19<>"", $N19<>""),VLOOKUP($B19,Allocations!$A$5:$K$30,6,0)*$N19,"") ->  | W19: =IF(AND($B19<>"", $O19<>""),VLOOKUP($B19,Allocations!$A$5:$K$30,6,0)*$O19,"") -> 0.2105263158 | X19: =IF(AND($B19<>"", $N19<>""),VLOOKUP($B19,Allocations!$A$5:$K$30,7,0)*$N19,"") ->  | Y19: =IF(AND($B19<>"", $O19<>""),VLOOKUP($B19,Allocations!$A$5:$K$30,7,0)*$O19,"") -> 0.4210526316
A20: SQL 2005 Certification Program | B20: A | C20: 2400 | D20: 1 | E20: 2400 | G20: =IF(AND($B20<>"", $E20<>""),VLOOKUP($B20,Allocations!$A$5:$K$30,3,0)*$E20,"") -> 189.4736842 | H20: =IF(AND($B20<>"", $E20<>""),VLOOKUP($B20,Allocations!$A$5:$K$30,4,0)*$E20,"") -> 1073.684211 | I20: =IF(AND($B20<>"", $E20<>""),VLOOKUP($B20,Allocations!$A$5:$K$30,5,0)*$E20,"") -> 1052.631579 | J20: =IF(AND($B20<>"", $E20<>""),VLOOKUP($B20,Allocations!$A$5:$K$30,6,0)*$E20,"") -> 21.05263158 | K20: =IF(AND($B20<>"", $E20<>""),VLOOKUP($B20,Allocations!$A$5:$K$30,7,0)*$E20,"") -> 42.10526316 | L20: =IF(AND($B20<>"", $E20<>""),VLOOKUP($B20,Allocations!$A$5:$K$30,8,0)*$E20,"") -> 21.05263158 | P20: =IF(AND($B20<>"", $N20<>""),VLOOKUP($B20,Allocations!$A$5:$K$30,3,0)*$N20,"") ->  | Q20: =IF(AND($B20<>"", $O20<>""),VLOOKUP($B20,Allocations!$A$5:$K$30,3,0)*$O20,"") ->  | R20: =IF(AND($B20<>"", $N20<>""),VLOOKUP($B20,Allocations!$A$5:$K$30,4,0)*$N20,"") ->  | S20: =IF(AND($B20<>"", $O20<>""),VLOOKUP($B20,Allocations!$A$5:$K$30,4,0)*$O20,"") ->  | T20: =IF(AND($B20<>"", $N20<>""),VLOOKUP($B20,Allocations!$A$5:$K$30,5,0)*$N20,"") ->  | U20: =IF(AND($B20<>"", $O20<>""),VLOOKUP($B20,Allocations!$A$5:$K$30,5,0)*$O20,"") ->  | V20: =IF(AND($B20<>"", $N20<>""),VLOOKUP($B20,Allocations!$A$5:$K$30,6,0)*$N20,"") ->  | W20: =IF(AND($B20<>"", $O20<>""),VLOOKUP($B20,Allocations!$A$5:$K$30,6,0)*$O20,"") ->  | X20: =IF(AND($B20<>"", $N20<>""),VLOOKUP($B20,Allocations!$A$5:$K$30,7,0)*$N20,"") ->  | Y20: =IF(AND($B20<>"", $O20<>""),VLOOKUP($B20,Allocations!$A$5:$K$30,7,0)*$O20,"") -> 
A21: Yardi Training | B21: N | C21: =295*4 -> 1180 | D21: 1 | E21: 1180 | G21: =IF(AND($B21<>"", $E21<>""),VLOOKUP($B21,Allocations!$A$5:$K$30,3,0)*$E21,"") -> 0 | H21: =IF(AND($B21<>"", $E21<>""),VLOOKUP($B21,Allocations!$A$5:$K$30,4,0)*$E21,"") -> 0 | I21: =IF(AND($B21<>"", $E21<>""),VLOOKUP($B21,Allocations!$A$5:$K$30,5,0)*$E21,"") -> 0 | J21: =IF(AND($B21<>"", $E21<>""),VLOOKUP($B21,Allocations!$A$5:$K$30,6,0)*$E21,"") -> 1180 | K21: =IF(AND($B21<>"", $E21<>""),VLOOKUP($B21,Allocations!$A$5:$K$30,7,0)*$E21,"") -> 0 | L21: =IF(AND($B21<>"", $E21<>""),VLOOKUP($B21,Allocations!$A$5:$K$30,8,0)*$E21,"") -> 0 | O21: 24 | P21: =IF(AND($B21<>"", $N21<>""),VLOOKUP($B21,Allocations!$A$5:$K$30,3,0)*$N21,"") ->  | Q21: =IF(AND($B21<>"", $O21<>""),VLOOKUP($B21,Allocations!$A$5:$K$30,3,0)*$O21,"") -> 0 | R21: =IF(AND($B21<>"", $N21<>""),VLOOKUP($B21,Allocations!$A$5:$K$30,4,0)*$N21,"") ->  | S21: =IF(AND($B21<>"", $O21<>""),VLOOKUP($B21,Allocations!$A$5:$K$30,4,0)*$O21,"") -> 0 | T21: =IF(AND($B21<>"", $N21<>""),VLOOKUP($B21,Allocations!$A$5:$K$30,5,0)*$N21,"") ->  | U21: =IF(AND($B21<>"", $O21<>""),VLOOKUP($B21,Allocations!$A$5:$K$30,5,0)*$O21,"") -> 0 | V21: =IF(AND($B21<>"", $N21<>""),VLOOKUP($B21,Allocations!$A$5:$K$30,6,0)*$N21,"") ->  | W21: =IF(AND($B21<>"", $O21<>""),VLOOKUP($B21,Allocations!$A$5:$K$30,6,0)*$O21,"") -> 24 | X21: =IF(AND($B21<>"", $N21<>""),VLOOKUP($B21,Allocations!$A$5:$K$30,7,0)*$N21,"") ->  | Y21: =IF(AND($B21<>"", $O21<>""),VLOOKUP($B21,Allocations!$A$5:$K$30,7,0)*$O21,"") -> 0
E22: =IF(AND(D22<>0, C22<>0),+D22*C22,"") ->  | G22: =IF(AND($B22<>"", $E22<>""),VLOOKUP($B22,Allocations!$A$5:$K$30,3,0)*$E22,"") ->  | H22: =IF(AND($B22<>"", $E22<>""),VLOOKUP($B22,Allocations!$A$5:$K$30,4,0)*$E22,"") ->  | I22: =IF(AND($B22<>"", $E22<>""),VLOOKUP($B22,Allocations!$A$5:$K$30,5,0)*$E22,"") ->  | J22: =IF(AND($B22<>"", $E22<>""),VLOOKUP($B22,Allocations!$A$5:$K$30,6,0)*$E22,"") ->  | K22: =IF(AND($B22<>"", $E22<>""),VLOOKUP($B22,Allocations!$A$5:$K$30,7,0)*$E22,"") ->  | L22: =IF(AND($B22<>"", $E22<>""),VLOOKUP($B22,Allocations!$A$5:$K$30,8,0)*$E22,"") ->  | P22: =IF(AND($B22<>"", $N22<>""),VLOOKUP($B22,Allocations!$A$5:$K$30,3,0)*$N22,"") ->  | Q22: =IF(AND($B22<>"", $O22<>""),VLOOKUP($B22,Allocations!$A$5:$K$30,3,0)*$O22,"") ->  | R22: =IF(AND($B22<>"", $N22<>""),VLOOKUP($B22,Allocations!$A$5:$K$30,4,0)*$N22,"") ->  | S22: =IF(AND($B22<>"", $O22<>""),VLOOKUP($B22,Allocations!$A$5:$K$30,4,0)*$O22,"") ->  | T22: =IF(AND($B22<>"", $N22<>""),VLOOKUP($B22,Allocations!$A$5:$K$30,5,0)*$N22,"") ->  | U22: =IF(AND($B22<>"", $O22<>""),VLOOKUP($B22,Allocations!$A$5:$K$30,5,0)*$O22,"") ->  | V22: =IF(AND($B22<>"", $N22<>""),VLOOKUP($B22,Allocations!$A$5:$K$30,6,0)*$N22,"") ->  | W22: =IF(AND($B22<>"", $O22<>""),VLOOKUP($B22,Allocations!$A$5:$K$30,6,0)*$O22,"") ->  | X22: =IF(AND($B22<>"", $N22<>""),VLOOKUP($B22,Allocations!$A$5:$K$30,7,0)*$N22,"") ->  | Y22: =IF(AND($B22<>"", $O22<>""),VLOOKUP($B22,Allocations!$A$5:$K$30,7,0)*$O22,"") -> 
A23: Network Administrator | E23: =IF(AND(D23<>0, C23<>0),+D23*C23,"") ->  | G23: =IF(AND($B23<>"", $E23<>""),VLOOKUP($B23,Allocations!$A$5:$K$30,3,0)*$E23,"") ->  | H23: =IF(AND($B23<>"", $E23<>""),VLOOKUP($B23,Allocations!$A$5:$K$30,4,0)*$E23,"") ->  | I23: =IF(AND($B23<>"", $E23<>""),VLOOKUP($B23,Allocations!$A$5:$K$30,5,0)*$E23,"") ->  | J23: =IF(AND($B23<>"", $E23<>""),VLOOKUP($B23,Allocations!$A$5:$K$30,6,0)*$E23,"") ->  | K23: =IF(AND($B23<>"", $E23<>""),VLOOKUP($B23,Allocations!$A$5:$K$30,7,0)*$E23,"") ->  | L23: =IF(AND($B23<>"", $E23<>""),VLOOKUP($B23,Allocations!$A$5:$K$30,8,0)*$E23,"") ->  | P23: =IF(AND($B23<>"", $N23<>""),VLOOKUP($B23,Allocations!$A$5:$K$30,3,0)*$N23,"") ->  | Q23: =IF(AND($B23<>"", $O23<>""),VLOOKUP($B23,Allocations!$A$5:$K$30,3,0)*$O23,"") ->  | R23: =IF(AND($B23<>"", $N23<>""),VLOOKUP($B23,Allocations!$A$5:$K$30,4,0)*$N23,"") ->  | S23: =IF(AND($B23<>"", $O23<>""),VLOOKUP($B23,Allocations!$A$5:$K$30,4,0)*$O23,"") ->  | T23: =IF(AND($B23<>"", $N23<>""),VLOOKUP($B23,Allocations!$A$5:$K$30,5,0)*$N23,"") ->  | U23: =IF(AND($B23<>"", $O23<>""),VLOOKUP($B23,Allocations!$A$5:$K$30,5,0)*$O23,"") ->  | V23: =IF(AND($B23<>"", $N23<>""),VLOOKUP($B23,Allocations!$A$5:$K$30,6,0)*$N23,"") ->  | W23: =IF(AND($B23<>"", $O23<>""),VLOOKUP($B23,Allocations!$A$5:$K$30,6,0)*$O23,"") ->  | X23: =IF(AND($B23<>"", $N23<>""),VLOOKUP($B23,Allocations!$A$5:$K$30,7,0)*$N23,"") ->  | Y23: =IF(AND($B23<>"", $O23<>""),VLOOKUP($B23,Allocations!$A$5:$K$30,7,0)*$O23,"") -> 
B24: B | D24: 1 | G24: =IF(AND($B24<>"", $E24<>""),VLOOKUP($B24,Allocations!$A$5:$K$30,3,0)*$E24,"") ->  | H24: =IF(AND($B24<>"", $E24<>""),VLOOKUP($B24,Allocations!$A$5:$K$30,4,0)*$E24,"") ->  | I24: =IF(AND($B24<>"", $E24<>""),VLOOKUP($B24,Allocations!$A$5:$K$30,5,0)*$E24,"") ->  | J24: =IF(AND($B24<>"", $E24<>""),VLOOKUP($B24,Allocations!$A$5:$K$30,6,0)*$E24,"") ->  | K24: =IF(AND($B24<>"", $E24<>""),VLOOKUP($B24,Allocations!$A$5:$K$30,7,0)*$E24,"") ->  | L24: =IF(AND($B24<>"", $E24<>""),VLOOKUP($B24,Allocations!$A$5:$K$30,8,0)*$E24,"") ->  | P24: =IF(AND($B24<>"", $N24<>""),VLOOKUP($B24,Allocations!$A$5:$K$30,3,0)*$N24,"") ->  | Q24: =IF(AND($B24<>"", $O24<>""),VLOOKUP($B24,Allocations!$A$5:$K$30,3,0)*$O24,"") ->  | R24: =IF(AND($B24<>"", $N24<>""),VLOOKUP($B24,Allocations!$A$5:$K$30,4,0)*$N24,"") ->  | S24: =IF(AND($B24<>"", $O24<>""),VLOOKUP($B24,Allocations!$A$5:$K$30,4,0)*$O24,"") ->  | T24: =IF(AND($B24<>"", $N24<>""),VLOOKUP($B24,Allocations!$A$5:$K$30,5,0)*$N24,"") ->  | U24: =IF(AND($B24<>"", $O24<>""),VLOOKUP($B24,Allocations!$A$5:$K$30,5,0)*$O24,"") ->  | V24: =IF(AND($B24<>"", $N24<>""),VLOOKUP($B24,Allocations!$A$5:$K$30,6,0)*$N24,"") ->  | W24: =IF(AND($B24<>"", $O24<>""),VLOOKUP($B24,Allocations!$A$5:$K$30,6,0)*$O24,"") ->  | X24: =IF(AND($B24<>"", $N24<>""),VLOOKUP($B24,Allocations!$A$5:$K$30,7,0)*$N24,"") ->  | Y24: =IF(AND($B24<>"", $O24<>""),VLOOKUP($B24,Allocations!$A$5:$K$30,7,0)*$O24,"") -> 
G25: =IF(AND($B25<>"", $E25<>""),VLOOKUP($B25,Allocations!$A$5:$K$30,3,0)*$E25,"") ->  | H25: =IF(AND($B25<>"", $E25<>""),VLOOKUP($B25,Allocations!$A$5:$K$30,4,0)*$E25,"") ->  | I25: =IF(AND($B25<>"", $E25<>""),VLOOKUP($B25,Allocations!$A$5:$K$30,5,0)*$E25,"") ->  | J25: =IF(AND($B25<>"", $E25<>""),VLOOKUP($B25,Allocations!$A$5:$K$30,6,0)*$E25,"") ->  | K25: =IF(AND($B25<>"", $E25<>""),VLOOKUP($B25,Allocations!$A$5:$K$30,7,0)*$E25,"") ->  | L25: =IF(AND($B25<>"", $E25<>""),VLOOKUP($B25,Allocations!$A$5:$K$30,8,0)*$E25,"") ->  | P25: =IF(AND($B25<>"", $N25<>""),VLOOKUP($B25,Allocations!$A$5:$K$30,3,0)*$N25,"") ->  | Q25: =IF(AND($B25<>"", $O25<>""),VLOOKUP($B25,Allocations!$A$5:$K$30,3,0)*$O25,"") ->  | R25: =IF(AND($B25<>"", $N25<>""),VLOOKUP($B25,Allocations!$A$5:$K$30,4,0)*$N25,"") ->  | S25: =IF(AND($B25<>"", $O25<>""),VLOOKUP($B25,Allocations!$A$5:$K$30,4,0)*$O25,"") ->  | T25: =IF(AND($B25<>"", $N25<>""),VLOOKUP($B25,Allocations!$A$5:$K$30,5,0)*$N25,"") ->  | U25: =IF(AND($B25<>"", $O25<>""),VLOOKUP($B25,Allocations!$A$5:$K$30,5,0)*$O25,"") ->  | V25: =IF(AND($B25<>"", $N25<>""),VLOOKUP($B25,Allocations!$A$5:$K$30,6,0)*$N25,"") ->  | W25: =IF(AND($B25<>"", $O25<>""),VLOOKUP($B25,Allocations!$A$5:$K$30,6,0)*$O25,"") ->  | X25: =IF(AND($B25<>"", $N25<>""),VLOOKUP($B25,Allocations!$A$5:$K$30,7,0)*$N25,"") ->  | Y25: =IF(AND($B25<>"", $O25<>""),VLOOKUP($B25,Allocations!$A$5:$K$30,7,0)*$O25,"") -> 
A26: IT Administrator | G26: =IF(AND($B26<>"", $E26<>""),VLOOKUP($B26,Allocations!$A$5:$K$30,3,0)*$E26,"") ->  | H26: =IF(AND($B26<>"", $E26<>""),VLOOKUP($B26,Allocations!$A$5:$K$30,4,0)*$E26,"") ->  | I26: =IF(AND($B26<>"", $E26<>""),VLOOKUP($B26,Allocations!$A$5:$K$30,5,0)*$E26,"") ->  | J26: =IF(AND($B26<>"", $E26<>""),VLOOKUP($B26,Allocations!$A$5:$K$30,6,0)*$E26,"") ->  | K26: =IF(AND($B26<>"", $E26<>""),VLOOKUP($B26,Allocations!$A$5:$K$30,7,0)*$E26,"") ->  | L26: =IF(AND($B26<>"", $E26<>""),VLOOKUP($B26,Allocations!$A$5:$K$30,8,0)*$E26,"") ->  | P26: =IF(AND($B26<>"", $N26<>""),VLOOKUP($B26,Allocations!$A$5:$K$30,3,0)*$N26,"") ->  | Q26: =IF(AND($B26<>"", $O26<>""),VLOOKUP($B26,Allocations!$A$5:$K$30,3,0)*$O26,"") ->  | R26: =IF(AND($B26<>"", $N26<>""),VLOOKUP($B26,Allocations!$A$5:$K$30,4,0)*$N26,"") ->  | S26: =IF(AND($B26<>"", $O26<>""),VLOOKUP($B26,Allocations!$A$5:$K$30,4,0)*$O26,"") ->  | T26: =IF(AND($B26<>"", $N26<>""),VLOOKUP($B26,Allocations!$A$5:$K$30,5,0)*$N26,"") ->  | U26: =IF(AND($B26<>"", $O26<>""),VLOOKUP($B26,Allocations!$A$5:$K$30,5,0)*$O26,"") ->  | V26: =IF(AND($B26<>"", $N26<>""),VLOOKUP($B26,Allocations!$A$5:$K$30,6,0)*$N26,"") ->  | W26: =IF(AND($B26<>"", $O26<>""),VLOOKUP($B26,Allocations!$A$5:$K$30,6,0)*$O26,"") ->  | X26: =IF(AND($B26<>"", $N26<>""),VLOOKUP($B26,Allocations!$A$5:$K$30,7,0)*$N26,"") ->  | Y26: =IF(AND($B26<>"", $O26<>""),VLOOKUP($B26,Allocations!$A$5:$K$30,7,0)*$O26,"") -> 
A27: Crystal Report | B27: A | D27: 1 | G27: =IF(AND($B27<>"", $E27<>""),VLOOKUP($B27,Allocations!$A$5:$K$30,3,0)*$E27,"") ->  | H27: =IF(AND($B27<>"", $E27<>""),VLOOKUP($B27,Allocations!$A$5:$K$30,4,0)*$E27,"") ->  | I27: =IF(AND($B27<>"", $E27<>""),VLOOKUP($B27,Allocations!$A$5:$K$30,5,0)*$E27,"") ->  | J27: =IF(AND($B27<>"", $E27<>""),VLOOKUP($B27,Allocations!$A$5:$K$30,6,0)*$E27,"") ->  | K27: =IF(AND($B27<>"", $E27<>""),VLOOKUP($B27,Allocations!$A$5:$K$30,7,0)*$E27,"") ->  | L27: =IF(AND($B27<>"", $E27<>""),VLOOKUP($B27,Allocations!$A$5:$K$30,8,0)*$E27,"") ->  | P27: =IF(AND($B27<>"", $N27<>""),VLOOKUP($B27,Allocations!$A$5:$K$30,3,0)*$N27,"") ->  | Q27: =IF(AND($B27<>"", $O27<>""),VLOOKUP($B27,Allocations!$A$5:$K$30,3,0)*$O27,"") ->  | R27: =IF(AND($B27<>"", $N27<>""),VLOOKUP($B27,Allocations!$A$5:$K$30,4,0)*$N27,"") ->  | S27: =IF(AND($B27<>"", $O27<>""),VLOOKUP($B27,Allocations!$A$5:$K$30,4,0)*$O27,"") ->  | T27: =IF(AND($B27<>"", $N27<>""),VLOOKUP($B27,Allocations!$A$5:$K$30,5,0)*$N27,"") ->  | U27: =IF(AND($B27<>"", $O27<>""),VLOOKUP($B27,Allocations!$A$5:$K$30,5,0)*$O27,"") ->  | V27: =IF(AND($B27<>"", $N27<>""),VLOOKUP($B27,Allocations!$A$5:$K$30,6,0)*$N27,"") ->  | W27: =IF(AND($B27<>"", $O27<>""),VLOOKUP($B27,Allocations!$A$5:$K$30,6,0)*$O27,"") ->  | X27: =IF(AND($B27<>"", $N27<>""),VLOOKUP($B27,Allocations!$A$5:$K$30,7,0)*$N27,"") ->  | Y27: =IF(AND($B27<>"", $O27<>""),VLOOKUP($B27,Allocations!$A$5:$K$30,7,0)*$O27,"") -> 
A28: Continuing College Education | B28: K | C28: 5250 | D28: 1
G29: =IF(AND($B29<>"", $E29<>""),VLOOKUP($B29,Allocations!$A$5:$K$30,3,0)*$E29,"") ->  | H29: =IF(AND($B29<>"", $E29<>""),VLOOKUP($B29,Allocations!$A$5:$K$30,4,0)*$E29,"") ->  | I29: =IF(AND($B29<>"", $E29<>""),VLOOKUP($B29,Allocations!$A$5:$K$30,5,0)*$E29,"") ->  | J29: =IF(AND($B29<>"", $E29<>""),VLOOKUP($B29,Allocations!$A$5:$K$30,6,0)*$E29,"") ->  | K29: =IF(AND($B29<>"", $E29<>""),VLOOKUP($B29,Allocations!$A$5:$K$30,7,0)*$E29,"") ->  | L29: =IF(AND($B29<>"", $E29<>""),VLOOKUP($B29,Allocations!$A$5:$K$30,8,0)*$E29,"") ->  | P29: =IF(AND($B29<>"", $N29<>""),VLOOKUP($B29,Allocations!$A$5:$K$30,3,0)*$N29,"") ->  | Q29: =IF(AND($B29<>"", $O29<>""),VLOOKUP($B29,Allocations!$A$5:$K$30,3,0)*$O29,"") ->  | R29: =IF(AND($B29<>"", $N29<>""),VLOOKUP($B29,Allocations!$A$5:$K$30,4,0)*$N29,"") ->  | S29: =IF(AND($B29<>"", $O29<>""),VLOOKUP($B29,Allocations!$A$5:$K$30,4,0)*$O29,"") ->  | T29: =IF(AND($B29<>"", $N29<>""),VLOOKUP($B29,Allocations!$A$5:$K$30,5,0)*$N29,"") ->  | U29: =IF(AND($B29<>"", $O29<>""),VLOOKUP($B29,Allocations!$A$5:$K$30,5,0)*$O29,"") ->  | V29: =IF(AND($B29<>"", $N29<>""),VLOOKUP($B29,Allocations!$A$5:$K$30,6,0)*$N29,"") ->  | W29: =IF(AND($B29<>"", $O29<>""),VLOOKUP($B29,Allocations!$A$5:$K$30,6,0)*$O29,"") ->  | X29: =IF(AND($B29<>"", $N29<>""),VLOOKUP($B29,Allocations!$A$5:$K$30,7,0)*$N29,"") ->  | Y29: =IF(AND($B29<>"", $O29<>""),VLOOKUP($B29,Allocations!$A$5:$K$30,7,0)*$O29,"") -> 
A30: Helpdesk | G30: =IF(AND($B30<>"", $E30<>""),VLOOKUP($B30,Allocations!$A$5:$K$30,3,0)*$E30,"") ->  | H30: =IF(AND($B30<>"", $E30<>""),VLOOKUP($B30,Allocations!$A$5:$K$30,4,0)*$E30,"") ->  | I30: =IF(AND($B30<>"", $E30<>""),VLOOKUP($B30,Allocations!$A$5:$K$30,5,0)*$E30,"") ->  | J30: =IF(AND($B30<>"", $E30<>""),VLOOKUP($B30,Allocations!$A$5:$K$30,6,0)*$E30,"") ->  | K30: =IF(AND($B30<>"", $E30<>""),VLOOKUP($B30,Allocations!$A$5:$K$30,7,0)*$E30,"") ->  | L30: =IF(AND($B30<>"", $E30<>""),VLOOKUP($B30,Allocations!$A$5:$K$30,8,0)*$E30,"") ->  | P30: =IF(AND($B30<>"", $N30<>""),VLOOKUP($B30,Allocations!$A$5:$K$30,3,0)*$N30,"") ->  | Q30: =IF(AND($B30<>"", $O30<>""),VLOOKUP($B30,Allocations!$A$5:$K$30,3,0)*$O30,"") ->  | R30: =IF(AND($B30<>"", $N30<>""),VLOOKUP($B30,Allocations!$A$5:$K$30,4,0)*$N30,"") ->  | S30: =IF(AND($B30<>"", $O30<>""),VLOOKUP($B30,Allocations!$A$5:$K$30,4,0)*$O30,"") ->  | T30: =IF(AND($B30<>"", $N30<>""),VLOOKUP($B30,Allocations!$A$5:$K$30,5,0)*$N30,"") ->  | U30: =IF(AND($B30<>"", $O30<>""),VLOOKUP($B30,Allocations!$A$5:$K$30,5,0)*$O30,"") ->  | V30: =IF(AND($B30<>"", $N30<>""),VLOOKUP($B30,Allocations!$A$5:$K$30,6,0)*$N30,"") ->  | W30: =IF(AND($B30<>"", $O30<>""),VLOOKUP($B30,Allocations!$A$5:$K$30,6,0)*$O30,"") ->  | X30: =IF(AND($B30<>"", $N30<>""),VLOOKUP($B30,Allocations!$A$5:$K$30,7,0)*$N30,"") ->  | Y30: =IF(AND($B30<>"", $O30<>""),VLOOKUP($B30,Allocations!$A$5:$K$30,7,0)*$O30,"") -> 
A31: SQL Training - MCDBA | B31: A | D31: 1 | G31: =IF(AND($B31<>"", $E31<>""),VLOOKUP($B31,Allocations!$A$5:$K$30,3,0)*$E31,"") ->  | H31: =IF(AND($B31<>"", $E31<>""),VLOOKUP($B31,Allocations!$A$5:$K$30,4,0)*$E31,"") ->  | I31: =IF(AND($B31<>"", $E31<>""),VLOOKUP($B31,Allocations!$A$5:$K$30,5,0)*$E31,"") ->  | J31: =IF(AND($B31<>"", $E31<>""),VLOOKUP($B31,Allocations!$A$5:$K$30,6,0)*$E31,"") ->  | K31: =IF(AND($B31<>"", $E31<>""),VLOOKUP($B31,Allocations!$A$5:$K$30,7,0)*$E31,"") ->  | L31: =IF(AND($B31<>"", $E31<>""),VLOOKUP($B31,Allocations!$A$5:$K$30,8,0)*$E31,"") ->  | P31: =IF(AND($B31<>"", $N31<>""),VLOOKUP($B31,Allocations!$A$5:$K$30,3,0)*$N31,"") ->  | Q31: =IF(AND($B31<>"", $O31<>""),VLOOKUP($B31,Allocations!$A$5:$K$30,3,0)*$O31,"") ->  | R31: =IF(AND($B31<>"", $N31<>""),VLOOKUP($B31,Allocations!$A$5:$K$30,4,0)*$N31,"") ->  | S31: =IF(AND($B31<>"", $O31<>""),VLOOKUP($B31,Allocations!$A$5:$K$30,4,0)*$O31,"") ->  | T31: =IF(AND($B31<>"", $N31<>""),VLOOKUP($B31,Allocations!$A$5:$K$30,5,0)*$N31,"") ->  | U31: =IF(AND($B31<>"", $O31<>""),VLOOKUP($B31,Allocations!$A$5:$K$30,5,0)*$O31,"") ->  | V31: =IF(AND($B31<>"", $N31<>""),VLOOKUP($B31,Allocations!$A$5:$K$30,6,0)*$N31,"") ->  | W31: =IF(AND($B31<>"", $O31<>""),VLOOKUP($B31,Allocations!$A$5:$K$30,6,0)*$O31,"") ->  | X31: =IF(AND($B31<>"", $N31<>""),VLOOKUP($B31,Allocations!$A$5:$K$30,7,0)*$N31,"") ->  | Y31: =IF(AND($B31<>"", $O31<>""),VLOOKUP($B31,Allocations!$A$5:$K$30,7,0)*$O31,"") -> 
A32: SharePoint | B32: B | C32: 200 | D32: 1 | E32: 200 | G32: =IF(AND($B32<>"", $E32<>""),VLOOKUP($B32,Allocations!$A$5:$K$30,3,0)*$E32,"") -> 22.05882353 | H32: =IF(AND($B32<>"", $E32<>""),VLOOKUP($B32,Allocations!$A$5:$K$30,4,0)*$E32,"") -> 82.35294118 | I32: =IF(AND($B32<>"", $E32<>""),VLOOKUP($B32,Allocations!$A$5:$K$30,5,0)*$E32,"") -> 80.88235294 | J32: =IF(AND($B32<>"", $E32<>""),VLOOKUP($B32,Allocations!$A$5:$K$30,6,0)*$E32,"") -> 13.23529412 | K32: =IF(AND($B32<>"", $E32<>""),VLOOKUP($B32,Allocations!$A$5:$K$30,7,0)*$E32,"") -> 1.470588235 | L32: =IF(AND($B32<>"", $E32<>""),VLOOKUP($B32,Allocations!$A$5:$K$30,8,0)*$E32,"") -> 0 | O32: 16 | P32: =IF(AND($B32<>"", $N32<>""),VLOOKUP($B32,Allocations!$A$5:$K$30,3,0)*$N32,"") ->  | Q32: =IF(AND($B32<>"", $O32<>""),VLOOKUP($B32,Allocations!$A$5:$K$30,3,0)*$O32,"") -> 1.764705882 | R32: =IF(AND($B32<>"", $N32<>""),VLOOKUP($B32,Allocations!$A$5:$K$30,4,0)*$N32,"") ->  | S32: =IF(AND($B32<>"", $O32<>""),VLOOKUP($B32,Allocations!$A$5:$K$30,4,0)*$O32,"") -> 6.588235294 | T32: =IF(AND($B32<>"", $N32<>""),VLOOKUP($B32,Allocations!$A$5:$K$30,5,0)*$N32,"") ->  | U32: =IF(AND($B32<>"", $O32<>""),VLOOKUP($B32,Allocations!$A$5:$K$30,5,0)*$O32,"") -> 6.470588235 | V32: =IF(AND($B32<>"", $N32<>""),VLOOKUP($B32,Allocations!$A$5:$K$30,6,0)*$N32,"") ->  | W32: =IF(AND($B32<>"", $O32<>""),VLOOKUP($B32,Allocations!$A$5:$K$30,6,0)*$O32,"") -> 1.058823529 | X32: =IF(AND($B32<>"", $N32<>""),VLOOKUP($B32,Allocations!$A$5:$K$30,7,0)*$N32,"") ->  | Y32: =IF(AND($B32<>"", $O32<>""),VLOOKUP($B32,Allocations!$A$5:$K$30,7,0)*$O32,"") -> 0.1176470588
A33: Yardi Training | B33: N | C33: 2695 | D33: 1 | E33: 2695 | G33: =IF(AND($B33<>"", $E33<>""),VLOOKUP($B33,Allocations!$A$5:$K$30,3,0)*$E33,"") -> 0 | H33: =IF(AND($B33<>"", $E33<>""),VLOOKUP($B33,Allocations!$A$5:$K$30,4,0)*$E33,"") -> 0 | I33: =IF(AND($B33<>"", $E33<>""),VLOOKUP($B33,Allocations!$A$5:$K$30,5,0)*$E33,"") -> 0 | J33: =IF(AND($B33<>"", $E33<>""),VLOOKUP($B33,Allocations!$A$5:$K$30,6,0)*$E33,"") -> 2695 | K33: =IF(AND($B33<>"", $E33<>""),VLOOKUP($B33,Allocations!$A$5:$K$30,7,0)*$E33,"") -> 0 | L33: =IF(AND($B33<>"", $E33<>""),VLOOKUP($B33,Allocations!$A$5:$K$30,8,0)*$E33,"") -> 0 | O33: 16 | P33: =IF(AND($B33<>"", $N33<>""),VLOOKUP($B33,Allocations!$A$5:$K$30,3,0)*$N33,"") ->  | Q33: =IF(AND($B33<>"", $O33<>""),VLOOKUP($B33,Allocations!$A$5:$K$30,3,0)*$O33,"") -> 0 | R33: =IF(AND($B33<>"", $N33<>""),VLOOKUP($B33,Allocations!$A$5:$K$30,4,0)*$N33,"") ->  | S33: =IF(AND($B33<>"", $O33<>""),VLOOKUP($B33,Allocations!$A$5:$K$30,4,0)*$O33,"") -> 0 | T33: =IF(AND($B33<>"", $N33<>""),VLOOKUP($B33,Allocations!$A$5:$K$30,5,0)*$N33,"") ->  | U33: =IF(AND($B33<>"", $O33<>""),VLOOKUP($B33,Allocations!$A$5:$K$30,5,0)*$O33,"") -> 0 | V33: =IF(AND($B33<>"", $N33<>""),VLOOKUP($B33,Allocations!$A$5:$K$30,6,0)*$N33,"") ->  | W33: =IF(AND($B33<>"", $O33<>""),VLOOKUP($B33,Allocations!$A$5:$K$30,6,0)*$O33,"") -> 16 | X33: =IF(AND($B33<>"", $N33<>""),VLOOKUP($B33,Allocations!$A$5:$K$30,7,0)*$N33,"") ->  | Y33: =IF(AND($B33<>"", $O33<>""),VLOOKUP($B33,Allocations!$A$5:$K$30,7,0)*$O33,"") -> 0
A34: Business Portal GP v.10.0 | B34: A | C34: 1000 | D34: 1 | E34: 1000 | G34: =IF(AND($B34<>"", $E34<>""),VLOOKUP($B34,Allocations!$A$5:$K$30,3,0)*$E34,"") -> 78.94736842 | H34: =IF(AND($B34<>"", $E34<>""),VLOOKUP($B34,Allocations!$A$5:$K$30,4,0)*$E34,"") -> 447.3684211 | I34: =IF(AND($B34<>"", $E34<>""),VLOOKUP($B34,Allocations!$A$5:$K$30,5,0)*$E34,"") -> 438.5964912 | J34: =IF(AND($B34<>"", $E34<>""),VLOOKUP($B34,Allocations!$A$5:$K$30,6,0)*$E34,"") -> 8.771929825 | K34: =IF(AND($B34<>"", $E34<>""),VLOOKUP($B34,Allocations!$A$5:$K$30,7,0)*$E34,"") -> 17.54385965 | L34: =IF(AND($B34<>"", $E34<>""),VLOOKUP($B34,Allocations!$A$5:$K$30,8,0)*$E34,"") -> 8.771929825 | O34: 16 | P34: =IF(AND($B34<>"", $N34<>""),VLOOKUP($B34,Allocations!$A$5:$K$30,3,0)*$N34,"") ->  | Q34: =IF(AND($B34<>"", $O34<>""),VLOOKUP($B34,Allocations!$A$5:$K$30,3,0)*$O34,"") -> 1.263157895 | R34: =IF(AND($B34<>"", $N34<>""),VLOOKUP($B34,Allocations!$A$5:$K$30,4,0)*$N34,"") ->  | S34: =IF(AND($B34<>"", $O34<>""),VLOOKUP($B34,Allocations!$A$5:$K$30,4,0)*$O34,"") -> 7.157894737 | T34: =IF(AND($B34<>"", $N34<>""),VLOOKUP($B34,Allocations!$A$5:$K$30,5,0)*$N34,"") ->  | U34: =IF(AND($B34<>"", $O34<>""),VLOOKUP($B34,Allocations!$A$5:$K$30,5,0)*$O34,"") -> 7.01754386 | V34: =IF(AND($B34<>"", $N34<>""),VLOOKUP($B34,Allocations!$A$5:$K$30,6,0)*$N34,"") ->  | W34: =IF(AND($B34<>"", $O34<>""),VLOOKUP($B34,Allocations!$A$5:$K$30,6,0)*$O34,"") -> 0.1403508772 | X34: =IF(AND($B34<>"", $N34<>""),VLOOKUP($B34,Allocations!$A$5:$K$30,7,0)*$N34,"") ->  | Y34: =IF(AND($B34<>"", $O34<>""),VLOOKUP($B34,Allocations!$A$5:$K$30,7,0)*$O34,"") -> 0.2807017544
A35: Modifier, VB Applications GP v.10.0 | B35: A | C35: 1200 | D35: 0 | G35: =IF(AND($B35<>"", $E35<>""),VLOOKUP($B35,Allocations!$A$5:$K$30,3,0)*$E35,"") ->  | H35: =IF(AND($B35<>"", $E35<>""),VLOOKUP($B35,Allocations!$A$5:$K$30,4,0)*$E35,"") ->  | I35: =IF(AND($B35<>"", $E35<>""),VLOOKUP($B35,Allocations!$A$5:$K$30,5,0)*$E35,"") ->  | J35: =IF(AND($B35<>"", $E35<>""),VLOOKUP($B35,Allocations!$A$5:$K$30,6,0)*$E35,"") ->  | K35: =IF(AND($B35<>"", $E35<>""),VLOOKUP($B35,Allocations!$A$5:$K$30,7,0)*$E35,"") ->  | L35: =IF(AND($B35<>"", $E35<>""),VLOOKUP($B35,Allocations!$A$5:$K$30,8,0)*$E35,"") ->  | O35: 24 | P35: =IF(AND($B35<>"", $N35<>""),VLOOKUP($B35,Allocations!$A$5:$K$30,3,0)*$N35,"") ->  | Q35: =IF(AND($B35<>"", $O35<>""),VLOOKUP($B35,Allocations!$A$5:$K$30,3,0)*$O35,"") -> 1.894736842 | R35: =IF(AND($B35<>"", $N35<>""),VLOOKUP($B35,Allocations!$A$5:$K$30,4,0)*$N35,"") ->  | S35: =IF(AND($B35<>"", $O35<>""),VLOOKUP($B35,Allocations!$A$5:$K$30,4,0)*$O35,"") -> 10.73684211 | T35: =IF(AND($B35<>"", $N35<>""),VLOOKUP($B35,Allocations!$A$5:$K$30,5,0)*$N35,"") ->  | U35: =IF(AND($B35<>"", $O35<>""),VLOOKUP($B35,Allocations!$A$5:$K$30,5,0)*$O35,"") -> 10.52631579 | V35: =IF(AND($B35<>"", $N35<>""),VLOOKUP($B35,Allocations!$A$5:$K$30,6,0)*$N35,"") ->  | W35: =IF(AND($B35<>"", $O35<>""),VLOOKUP($B35,Allocations!$A$5:$K$30,6,0)*$O35,"") -> 0.2105263158 | X35: =IF(AND($B35<>"", $N35<>""),VLOOKUP($B35,Allocations!$A$5:$K$30,7,0)*$N35,"") ->  | Y35: =IF(AND($B35<>"", $O35<>""),VLOOKUP($B35,Allocations!$A$5:$K$30,7,0)*$O35,"") -> 0.4210526316
G36: =IF(AND($B36<>"", $E36<>""),VLOOKUP($B36,Allocations!$A$5:$K$30,3,0)*$E36,"") ->  | H36: =IF(AND($B36<>"", $E36<>""),VLOOKUP($B36,Allocations!$A$5:$K$30,4,0)*$E36,"") ->  | I36: =IF(AND($B36<>"", $E36<>""),VLOOKUP($B36,Allocations!$A$5:$K$30,5,0)*$E36,"") ->  | J36: =IF(AND($B36<>"", $E36<>""),VLOOKUP($B36,Allocations!$A$5:$K$30,6,0)*$E36,"") ->  | K36: =IF(AND($B36<>"", $E36<>""),VLOOKUP($B36,Allocations!$A$5:$K$30,7,0)*$E36,"") ->  | L36: =IF(AND($B36<>"", $E36<>""),VLOOKUP($B36,Allocations!$A$5:$K$30,8,0)*$E36,"") ->  | P36: =IF(AND($B36<>"", $N36<>""),VLOOKUP($B36,Allocations!$A$5:$K$30,3,0)*$N36,"") ->  | Q36: =IF(AND($B36<>"", $O36<>""),VLOOKUP($B36,Allocations!$A$5:$K$30,3,0)*$O36,"") ->  | R36: =IF(AND($B36<>"", $N36<>""),VLOOKUP($B36,Allocations!$A$5:$K$30,4,0)*$N36,"") ->  | S36: =IF(AND($B36<>"", $O36<>""),VLOOKUP($B36,Allocations!$A$5:$K$30,4,0)*$O36,"") ->  | T36: =IF(AND($B36<>"", $N36<>""),VLOOKUP($B36,Allocations!$A$5:$K$30,5,0)*$N36,"") ->  | U36: =IF(AND($B36<>"", $O36<>""),VLOOKUP($B36,Allocations!$A$5:$K$30,5,0)*$O36,"") ->  | V36: =IF(AND($B36<>"", $N36<>""),VLOOKUP($B36,Allocations!$A$5:$K$30,6,0)*$N36,"") ->  | W36: =IF(AND($B36<>"", $O36<>""),VLOOKUP($B36,Allocations!$A$5:$K$30,6,0)*$O36,"") ->  | X36: =IF(AND($B36<>"", $N36<>""),VLOOKUP($B36,Allocations!$A$5:$K$30,7,0)*$N36,"") ->  | Y36: =IF(AND($B36<>"", $O36<>""),VLOOKUP($B36,Allocations!$A$5:$K$30,7,0)*$O36,"") -> 
A37: Total | E37: =SUM(E5:E36) -> 34600 | F37: 0 | G37: 7267.45356 | H37: 11389.58978 | I37: 11166.40867 | J37: 4109.94582 | K37: 444.8916409 | L37: 221.7105263 | N37: =SUM(N5:N36) -> 0 | O37: 200 | P37: 0 | Q37: 13.13312693 | R37: 0 | S37: 71.00928793 | T37: 0 | U37: 69.62848297 | V37: 0 | W37: 42.32198142 | X37: 0 | Y37: 2.643962848

Sheet Employee Training Program
A1: Employee Training Program | N1: =+A1 -> Employee Training Program
A2: ="Project Forecast "&'IT Budget'!$F$3 -> Project Forecast 2008 | N2: ="Manpower "&'IT Budget'!$F$3 -> Manpower 2008
A3: Back To Budget | N3: Hours | P3: SMI | R3: IPD | T3: SMG | V3: SWD/SP | X3: SINV
A4: Description | B4: Back To Budget | C4: Cost | D4: Qty | E4: Total | F4: Actual | G4: SMI | H4: IPD | I4: SMG | J4: SWD/SP | K4: SINV | L4: RVR | N4: Level 1 | O4: Level 2 | P4: Level 1 | Q4: Level 2 | R4: Level 1 | S4: Level 2 | T4: Level 1 | U4: Level 2 | V4: Level 1 | W4: Level 2 | X4: Level 1 | Y4: Level 2
A5: Microsoft Office 2007 Training | B5: K | C5: 695 | D5: 24 | E5: =IF(D5<>0,+C5*D5,"") -> 16680 | F5: 20046 | G5: =IF($B5<>"",IF(D5<>0,VLOOKUP($B5,Allocations!$A$5:$K$20,3,0)*$E5,""),"") -> 16680 | H5: =IF($B5<>"",IF(D5<>0,VLOOKUP($B5,Allocations!$A$5:$K$20,4,0)*$E5,""),"") -> 0 | I5: =IF($B5<>"",IF(D5<>0,VLOOKUP($B5,Allocations!$A$5:$K$20,5,0)*$E5,""),"") -> 0 | J5: =IF($B5<>"",IF(D5<>0,VLOOKUP($B5,Allocations!$A$5:$K$20,6,0)*$E5,""),"") -> 0 | K5: =IF($B5<>"",IF(D5<>0,VLOOKUP($B5,Allocations!$A$5:$K$20,7,0)*$E5,""),"") -> 0 | L5: =IF($B5<>"",IF(D5<>0,VLOOKUP($B5,Allocations!$A$5:$K$20,8,0)*$E5,""),"") -> 0 | N5: 24 | P5: =IF(AND($B5<>"", $N5<>""),VLOOKUP($B5,Allocations!$A$5:$K$30,3,0)*$N5,"") -> 24 | Q5: =IF(AND($B5<>"", $O5<>""),VLOOKUP($B5,Allocations!$A$5:$K$30,3,0)*$O5,"") ->  | R5: =IF(AND($B5<>"", $N5<>""),VLOOKUP($B5,Allocations!$A$5:$K$30,4,0)*$N5,"") -> 0 | S5: =IF(AND($B5<>"", $O5<>""),VLOOKUP($B5,Allocations!$A$5:$K$30,4,0)*$O5,"") ->  | T5: =IF(AND($B5<>"", $N5<>""),VLOOKUP($B5,Allocations!$A$5:$K$30,5,0)*$N5,"") -> 0 | U5: =IF(AND($B5<>"", $O5<>""),VLOOKUP($B5,Allocations!$A$5:$K$30,5,0)*$O5,"") ->  | V5: =IF(AND($B5<>"", $N5<>""),VLOOKUP($B5,Allocations!$A$5:$K$30,6,0)*$N5,"") -> 0 | W5: =IF(AND($B5<>"", $O5<>""),VLOOKUP($B5,Allocations!$A$5:$K$30,6,0)*$O5,"") ->  | X5: =IF(AND($B5<>"", $N5<>""),VLOOKUP($B5,Allocations!$A$5:$K$30,7,0)*$N5,"") -> 0 | Y5: =IF(AND($B5<>"", $O5<>""),VLOOKUP($B5,Allocations!$A$5:$K$30,7,0)*$O5,"") -> 
G6: =IF($B6<>"",IF(D6<>0,VLOOKUP($B6,Allocations!$A$5:$K$20,3,0)*$E6,""),"") ->  | H6: =IF($B6<>"",IF(D6<>0,VLOOKUP($B6,Allocations!$A$5:$K$20,4,0)*$E6,""),"") ->  | I6: =IF($B6<>"",IF(D6<>0,VLOOKUP($B6,Allocations!$A$5:$K$20,5,0)*$E6,""),"") ->  | J6: =IF($B6<>"",IF(D6<>0,VLOOKUP($B6,Allocations!$A$5:$K$20,6,0)*$E6,""),"") ->  | K6: =IF($B6<>"",IF(D6<>0,VLOOKUP($B6,Allocations!$A$5:$K$20,7,0)*$E6,""),"") ->  | L6: =IF($B6<>"",IF(D6<>0,VLOOKUP($B6,Allocations!$A$5:$K$20,8,0)*$E6,""),"") ->  | P6: =IF(AND($B6<>"", $N6<>""),VLOOKUP($B6,Allocations!$A$5:$K$30,3,0)*$N6,"") ->  | Q6: =IF(AND($B6<>"", $O6<>""),VLOOKUP($B6,Allocations!$A$5:$K$30,3,0)*$O6,"") ->  | R6: =IF(AND($B6<>"", $N6<>""),VLOOKUP($B6,Allocations!$A$5:$K$30,4,0)*$N6,"") ->  | S6: =IF(AND($B6<>"", $O6<>""),VLOOKUP($B6,Allocations!$A$5:$K$30,4,0)*$O6,"") ->  | T6: =IF(AND($B6<>"", $N6<>""),VLOOKUP($B6,Allocations!$A$5:$K$30,5,0)*$N6,"") ->  | U6: =IF(AND($B6<>"", $O6<>""),VLOOKUP($B6,Allocations!$A$5:$K$30,5,0)*$O6,"") ->  | V6: =IF(AND($B6<>"", $N6<>""),VLOOKUP($B6,Allocations!$A$5:$K$30,6,0)*$N6,"") ->  | W6: =IF(AND($B6<>"", $O6<>""),VLOOKUP($B6,Allocations!$A$5:$K$30,6,0)*$O6,"") ->  | X6: =IF(AND($B6<>"", $N6<>""),VLOOKUP($B6,Allocations!$A$5:$K$30,7,0)*$N6,"") ->  | Y6: =IF(AND($B6<>"", $O6<>""),VLOOKUP($B6,Allocations!$A$5:$K$30,7,0)*$O6,"") -> 
G7: =IF($B7<>"",IF(D7<>0,VLOOKUP($B7,Allocations!$A$5:$K$20,3,0)*$E7,""),"") ->  | H7: =IF($B7<>"",IF(D7<>0,VLOOKUP($B7,Allocations!$A$5:$K$20,4,0)*$E7,""),"") ->  | I7: =IF($B7<>"",IF(D7<>0,VLOOKUP($B7,Allocations!$A$5:$K$20,5,0)*$E7,""),"") ->  | J7: =IF($B7<>"",IF(D7<>0,VLOOKUP($B7,Allocations!$A$5:$K$20,6,0)*$E7,""),"") ->  | K7: =IF($B7<>"",IF(D7<>0,VLOOKUP($B7,Allocations!$A$5:$K$20,7,0)*$E7,""),"") ->  | L7: =IF($B7<>"",IF(D7<>0,VLOOKUP($B7,Allocations!$A$5:$K$20,8,0)*$E7,""),"") ->  | P7: =IF(AND($B7<>"", $N7<>""),VLOOKUP($B7,Allocations!$A$5:$K$30,3,0)*$N7,"") ->  | Q7: =IF(AND($B7<>"", $O7<>""),VLOOKUP($B7,Allocations!$A$5:$K$30,3,0)*$O7,"") ->  | R7: =IF(AND($B7<>"", $N7<>""),VLOOKUP($B7,Allocations!$A$5:$K$30,4,0)*$N7,"") ->  | S7: =IF(AND($B7<>"", $O7<>""),VLOOKUP($B7,Allocations!$A$5:$K$30,4,0)*$O7,"") ->  | T7: =IF(AND($B7<>"", $N7<>""),VLOOKUP($B7,Allocations!$A$5:$K$30,5,0)*$N7,"") ->  | U7: =IF(AND($B7<>"", $O7<>""),VLOOKUP($B7,Allocations!$A$5:$K$30,5,0)*$O7,"") ->  | V7: =IF(AND($B7<>"", $N7<>""),VLOOKUP($B7,Allocations!$A$5:$K$30,6,0)*$N7,"") ->  | W7: =IF(AND($B7<>"", $O7<>""),VLOOKUP($B7,Allocations!$A$5:$K$30,6,0)*$O7,"") ->  | X7: =IF(AND($B7<>"", $N7<>""),VLOOKUP($B7,Allocations!$A$5:$K$30,7,0)*$N7,"") ->  | Y7: =IF(AND($B7<>"", $O7<>""),VLOOKUP($B7,Allocations!$A$5:$K$30,7,0)*$O7,"") -> 
G8: =IF($B8<>"",IF(D8<>0,VLOOKUP($B8,Allocations!$A$5:$K$20,3,0)*$E8,""),"") ->  | H8: =IF($B8<>"",IF(D8<>0,VLOOKUP($B8,Allocations!$A$5:$K$20,4,0)*$E8,""),"") ->  | I8: =IF($B8<>"",IF(D8<>0,VLOOKUP($B8,Allocations!$A$5:$K$20,5,0)*$E8,""),"") ->  | J8: =IF($B8<>"",IF(D8<>0,VLOOKUP($B8,Allocations!$A$5:$K$20,6,0)*$E8,""),"") ->  | K8: =IF($B8<>"",IF(D8<>0,VLOOKUP($B8,Allocations!$A$5:$K$20,7,0)*$E8,""),"") ->  | L8: =IF($B8<>"",IF(D8<>0,VLOOKUP($B8,Allocations!$A$5:$K$20,8,0)*$E8,""),"") ->  | P8: =IF(AND($B8<>"", $N8<>""),VLOOKUP($B8,Allocations!$A$5:$K$30,3,0)*$N8,"") ->  | Q8: =IF(AND($B8<>"", $O8<>""),VLOOKUP($B8,Allocations!$A$5:$K$30,3,0)*$O8,"") ->  | R8: =IF(AND($B8<>"", $N8<>""),VLOOKUP($B8,Allocations!$A$5:$K$30,4,0)*$N8,"") ->  | S8: =IF(AND($B8<>"", $O8<>""),VLOOKUP($B8,Allocations!$A$5:$K$30,4,0)*$O8,"") ->  | T8: =IF(AND($B8<>"", $N8<>""),VLOOKUP($B8,Allocations!$A$5:$K$30,5,0)*$N8,"") ->  | U8: =IF(AND($B8<>"", $O8<>""),VLOOKUP($B8,Allocations!$A$5:$K$30,5,0)*$O8,"") ->  | V8: =IF(AND($B8<>"", $N8<>""),VLOOKUP($B8,Allocations!$A$5:$K$30,6,0)*$N8,"") ->  | W8: =IF(AND($B8<>"", $O8<>""),VLOOKUP($B8,Allocations!$A$5:$K$30,6,0)*$O8,"") ->  | X8: =IF(AND($B8<>"", $N8<>""),VLOOKUP($B8,Allocations!$A$5:$K$30,7,0)*$N8,"") ->  | Y8: =IF(AND($B8<>"", $O8<>""),VLOOKUP($B8,Allocations!$A$5:$K$30,7,0)*$O8,"") -> 
G9: =IF($B9<>"",IF(D9<>0,VLOOKUP($B9,Allocations!$A$5:$K$20,3,0)*$E9,""),"") ->  | H9: =IF($B9<>"",IF(D9<>0,VLOOKUP($B9,Allocations!$A$5:$K$20,4,0)*$E9,""),"") ->  | I9: =IF($B9<>"",IF(D9<>0,VLOOKUP($B9,Allocations!$A$5:$K$20,5,0)*$E9,""),"") ->  | J9: =IF($B9<>"",IF(D9<>0,VLOOKUP($B9,Allocations!$A$5:$K$20,6,0)*$E9,""),"") ->  | K9: =IF($B9<>"",IF(D9<>0,VLOOKUP($B9,Allocations!$A$5:$K$20,7,0)*$E9,""),"") ->  | L9: =IF($B9<>"",IF(D9<>0,VLOOKUP($B9,Allocations!$A$5:$K$20,8,0)*$E9,""),"") ->  | P9: =IF(AND($B9<>"", $N9<>""),VLOOKUP($B9,Allocations!$A$5:$K$30,3,0)*$N9,"") ->  | Q9: =IF(AND($B9<>"", $O9<>""),VLOOKUP($B9,Allocations!$A$5:$K$30,3,0)*$O9,"") ->  | R9: =IF(AND($B9<>"", $N9<>""),VLOOKUP($B9,Allocations!$A$5:$K$30,4,0)*$N9,"") ->  | S9: =IF(AND($B9<>"", $O9<>""),VLOOKUP($B9,Allocations!$A$5:$K$30,4,0)*$O9,"") ->  | T9: =IF(AND($B9<>"", $N9<>""),VLOOKUP($B9,Allocations!$A$5:$K$30,5,0)*$N9,"") ->  | U9: =IF(AND($B9<>"", $O9<>""),VLOOKUP($B9,Allocations!$A$5:$K$30,5,0)*$O9,"") ->  | V9: =IF(AND($B9<>"", $N9<>""),VLOOKUP($B9,Allocations!$A$5:$K$30,6,0)*$N9,"") ->  | W9: =IF(AND($B9<>"", $O9<>""),VLOOKUP($B9,Allocations!$A$5:$K$30,6,0)*$O9,"") ->  | X9: =IF(AND($B9<>"", $N9<>""),VLOOKUP($B9,Allocations!$A$5:$K$30,7,0)*$N9,"") ->  | Y9: =IF(AND($B9<>"", $O9<>""),VLOOKUP($B9,Allocations!$A$5:$K$30,7,0)*$O9,"") -> 
G10: =IF($B10<>"",IF(D10<>0,VLOOKUP($B10,Allocations!$A$5:$K$20,3,0)*$E10,""),"") ->  | H10: =IF($B10<>"",IF(D10<>0,VLOOKUP($B10,Allocations!$A$5:$K$20,4,0)*$E10,""),"") ->  | I10: =IF($B10<>"",IF(D10<>0,VLOOKUP($B10,Allocations!$A$5:$K$20,5,0)*$E10,""),"") ->  | J10: =IF($B10<>"",IF(D10<>0,VLOOKUP($B10,Allocations!$A$5:$K$20,6,0)*$E10,""),"") ->  | K10: =IF($B10<>"",IF(D10<>0,VLOOKUP($B10,Allocations!$A$5:$K$20,7,0)*$E10,""),"") ->  | L10: =IF($B10<>"",IF(D10<>0,VLOOKUP($B10,Allocations!$A$5:$K$20,8,0)*$E10,""),"") ->  | P10: =IF(AND($B10<>"", $N10<>""),VLOOKUP($B10,Allocations!$A$5:$K$30,3,0)*$N10,"") ->  | Q10: =IF(AND($B10<>"", $O10<>""),VLOOKUP($B10,Allocations!$A$5:$K$30,3,0)*$O10,"") ->  | R10: =IF(AND($B10<>"", $N10<>""),VLOOKUP($B10,Allocations!$A$5:$K$30,4,0)*$N10,"") ->  | S10: =IF(AND($B10<>"", $O10<>""),VLOOKUP($B10,Allocations!$A$5:$K$30,4,0)*$O10,"") ->  | T10: =IF(AND($B10<>"", $N10<>""),VLOOKUP($B10,Allocations!$A$5:$K$30,5,0)*$N10,"") ->  | U10: =IF(AND($B10<>"", $O10<>""),VLOOKUP($B10,Allocations!$A$5:$K$30,5,0)*$O10,"") ->  | V10: =IF(AND($B10<>"", $N10<>""),VLOOKUP($B10,Allocations!$A$5:$K$30,6,0)*$N10,"") ->  | W10: =IF(AND($B10<>"", $O10<>""),VLOOKUP($B10,Allocations!$A$5:$K$30,6,0)*$O10,"") ->  | X10: =IF(AND($B10<>"", $N10<>""),VLOOKUP($B10,Allocations!$A$5:$K$30,7,0)*$N10,"") ->  | Y10: =IF(AND($B10<>"", $O10<>""),VLOOKUP($B10,Allocations!$A$5:$K$30,7,0)*$O10,"") -> 
E11: =IF(D11<>0,+C11*D11,"") ->  | G11: =IF($B11<>"",IF(D11<>0,VLOOKUP($B11,Allocations!$A$5:$K$20,3,0)*$E11,""),"") ->  | H11: =IF($B11<>"",IF(D11<>0,VLOOKUP($B11,Allocations!$A$5:$K$20,4,0)*$E11,""),"") ->  | I11: =IF($B11<>"",IF(D11<>0,VLOOKUP($B11,Allocations!$A$5:$K$20,5,0)*$E11,""),"") ->  | J11: =IF($B11<>"",IF(D11<>0,VLOOKUP($B11,Allocations!$A$5:$K$20,6,0)*$E11,""),"") ->  | K11: =IF($B11<>"",IF(D11<>0,VLOOKUP($B11,Allocations!$A$5:$K$20,7,0)*$E11,""),"") ->  | L11: =IF($B11<>"",IF(D11<>0,VLOOKUP($B11,Allocations!$A$5:$K$20,8,0)*$E11,""),"") ->  | P11: =IF(AND($B11<>"", $N11<>""),VLOOKUP($B11,Allocations!$A$5:$K$30,3,0)*$N11,"") ->  | Q11: =IF(AND($B11<>"", $O11<>""),VLOOKUP($B11,Allocations!$A$5:$K$30,3,0)*$O11,"") ->  | R11: =IF(AND($B11<>"", $N11<>""),VLOOKUP($B11,Allocations!$A$5:$K$30,4,0)*$N11,"") ->  | S11: =IF(AND($B11<>"", $O11<>""),VLOOKUP($B11,Allocations!$A$5:$K$30,4,0)*$O11,"") ->  | T11: =IF(AND($B11<>"", $N11<>""),VLOOKUP($B11,Allocations!$A$5:$K$30,5,0)*$N11,"") ->  | U11: =IF(AND($B11<>"", $O11<>""),VLOOKUP($B11,Allocations!$A$5:$K$30,5,0)*$O11,"") ->  | V11: =IF(AND($B11<>"", $N11<>""),VLOOKUP($B11,Allocations!$A$5:$K$30,6,0)*$N11,"") ->  | W11: =IF(AND($B11<>"", $O11<>""),VLOOKUP($B11,Allocations!$A$5:$K$30,6,0)*$O11,"") ->  | X11: =IF(AND($B11<>"", $N11<>""),VLOOKUP($B11,Allocations!$A$5:$K$30,7,0)*$N11,"") ->  | Y11: =IF(AND($B11<>"", $O11<>""),VLOOKUP($B11,Allocations!$A$5:$K$30,7,0)*$O11,"") -> 
G12: =IF($B12<>"",IF(D12<>0,VLOOKUP($B12,Allocations!$A$5:$K$20,3,0)*$E12,""),"") ->  | H12: =IF($B12<>"",IF(D12<>0,VLOOKUP($B12,Allocations!$A$5:$K$20,4,0)*$E12,""),"") ->  | I12: =IF($B12<>"",IF(D12<>0,VLOOKUP($B12,Allocations!$A$5:$K$20,5,0)*$E12,""),"") ->  | J12: =IF($B12<>"",IF(D12<>0,VLOOKUP($B12,Allocations!$A$5:$K$20,6,0)*$E12,""),"") ->  | K12: =IF($B12<>"",IF(D12<>0,VLOOKUP($B12,Allocations!$A$5:$K$20,7,0)*$E12,""),"") ->  | L12: =IF($B12<>"",IF(D12<>0,VLOOKUP($B12,Allocations!$A$5:$K$20,8,0)*$E12,""),"") ->  | P12: =IF(AND($B12<>"", $N12<>""),VLOOKUP($B12,Allocations!$A$5:$K$30,3,0)*$N12,"") ->  | Q12: =IF(AND($B12<>"", $O12<>""),VLOOKUP($B12,Allocations!$A$5:$K$30,3,0)*$O12,"") ->  | R12: =IF(AND($B12<>"", $N12<>""),VLOOKUP($B12,Allocations!$A$5:$K$30,4,0)*$N12,"") ->  | S12: =IF(AND($B12<>"", $O12<>""),VLOOKUP($B12,Allocations!$A$5:$K$30,4,0)*$O12,"") ->  | T12: =IF(AND($B12<>"", $N12<>""),VLOOKUP($B12,Allocations!$A$5:$K$30,5,0)*$N12,"") ->  | U12: =IF(AND($B12<>"", $O12<>""),VLOOKUP($B12,Allocations!$A$5:$K$30,5,0)*$O12,"") ->  | V12: =IF(AND($B12<>"", $N12<>""),VLOOKUP($B12,Allocations!$A$5:$K$30,6,0)*$N12,"") ->  | W12: =IF(AND($B12<>"", $O12<>""),VLOOKUP($B12,Allocations!$A$5:$K$30,6,0)*$O12,"") ->  | X12: =IF(AND($B12<>"", $N12<>""),VLOOKUP($B12,Allocations!$A$5:$K$30,7,0)*$N12,"") ->  | Y12: =IF(AND($B12<>"", $O12<>""),VLOOKUP($B12,Allocations!$A$5:$K$30,7,0)*$O12,"") -> 
G13: =IF($B13<>"",IF(D13<>0,VLOOKUP($B13,Allocations!$A$5:$K$20,3,0)*$E13,""),"") ->  | H13: =IF($B13<>"",IF(D13<>0,VLOOKUP($B13,Allocations!$A$5:$K$20,4,0)*$E13,""),"") ->  | I13: =IF($B13<>"",IF(D13<>0,VLOOKUP($B13,Allocations!$A$5:$K$20,5,0)*$E13,""),"") ->  | J13: =IF($B13<>"",IF(D13<>0,VLOOKUP($B13,Allocations!$A$5:$K$20,6,0)*$E13,""),"") ->  | K13: =IF($B13<>"",IF(D13<>0,VLOOKUP($B13,Allocations!$A$5:$K$20,7,0)*$E13,""),"") ->  | L13: =IF($B13<>"",IF(D13<>0,VLOOKUP($B13,Allocations!$A$5:$K$20,8,0)*$E13,""),"") ->  | P13: =IF(AND($B13<>"", $N13<>""),VLOOKUP($B13,Allocations!$A$5:$K$30,3,0)*$N13,"") ->  | Q13: =IF(AND($B13<>"", $O13<>""),VLOOKUP($B13,Allocations!$A$5:$K$30,3,0)*$O13,"") ->  | R13: =IF(AND($B13<>"", $N13<>""),VLOOKUP($B13,Allocations!$A$5:$K$30,4,0)*$N13,"") ->  | S13: =IF(AND($B13<>"", $O13<>""),VLOOKUP($B13,Allocations!$A$5:$K$30,4,0)*$O13,"") ->  | T13: =IF(AND($B13<>"", $N13<>""),VLOOKUP($B13,Allocations!$A$5:$K$30,5,0)*$N13,"") ->  | U13: =IF(AND($B13<>"", $O13<>""),VLOOKUP($B13,Allocations!$A$5:$K$30,5,0)*$O13,"") ->  | V13: =IF(AND($B13<>"", $N13<>""),VLOOKUP($B13,Allocations!$A$5:$K$30,6,0)*$N13,"") ->  | W13: =IF(AND($B13<>"", $O13<>""),VLOOKUP($B13,Allocations!$A$5:$K$30,6,0)*$O13,"") ->  | X13: =IF(AND($B13<>"", $N13<>""),VLOOKUP($B13,Allocations!$A$5:$K$30,7,0)*$N13,"") ->  | Y13: =IF(AND($B13<>"", $O13<>""),VLOOKUP($B13,Allocations!$A$5:$K$30,7,0)*$O13,"") -> 
G14: =IF($B14<>"",IF(D14<>0,VLOOKUP($B14,Allocations!$A$5:$K$20,3,0)*$E14,""),"") ->  | H14: =IF($B14<>"",IF(D14<>0,VLOOKUP($B14,Allocations!$A$5:$K$20,4,0)*$E14,""),"") ->  | I14: =IF($B14<>"",IF(D14<>0,VLOOKUP($B14,Allocations!$A$5:$K$20,5,0)*$E14,""),"") ->  | J14: =IF($B14<>"",IF(D14<>0,VLOOKUP($B14,Allocations!$A$5:$K$20,6,0)*$E14,""),"") ->  | K14: =IF($B14<>"",IF(D14<>0,VLOOKUP($B14,Allocations!$A$5:$K$20,7,0)*$E14,""),"") ->  | L14: =IF($B14<>"",IF(D14<>0,VLOOKUP($B14,Allocations!$A$5:$K$20,8,0)*$E14,""),"") ->  | P14: =IF(AND($B14<>"", $N14<>""),VLOOKUP($B14,Allocations!$A$5:$K$30,3,0)*$N14,"") ->  | Q14: =IF(AND($B14<>"", $O14<>""),VLOOKUP($B14,Allocations!$A$5:$K$30,3,0)*$O14,"") ->  | R14: =IF(AND($B14<>"", $N14<>""),VLOOKUP($B14,Allocations!$A$5:$K$30,4,0)*$N14,"") ->  | S14: =IF(AND($B14<>"", $O14<>""),VLOOKUP($B14,Allocations!$A$5:$K$30,4,0)*$O14,"") ->  | T14: =IF(AND($B14<>"", $N14<>""),VLOOKUP($B14,Allocations!$A$5:$K$30,5,0)*$N14,"") ->  | U14: =IF(AND($B14<>"", $O14<>""),VLOOKUP($B14,Allocations!$A$5:$K$30,5,0)*$O14,"") ->  | V14: =IF(AND($B14<>"", $N14<>""),VLOOKUP($B14,Allocations!$A$5:$K$30,6,0)*$N14,"") ->  | W14: =IF(AND($B14<>"", $O14<>""),VLOOKUP($B14,Allocations!$A$5:$K$30,6,0)*$O14,"") ->  | X14: =IF(AND($B14<>"", $N14<>""),VLOOKUP($B14,Allocations!$A$5:$K$30,7,0)*$N14,"") ->  | Y14: =IF(AND($B14<>"", $O14<>""),VLOOKUP($B14,Allocations!$A$5:$K$30,7,0)*$O14,"") -> 
G15: =IF($B15<>"",IF(D15<>0,VLOOKUP($B15,Allocations!$A$5:$K$20,3,0)*$E15,""),"") ->  | H15: =IF($B15<>"",IF(D15<>0,VLOOKUP($B15,Allocations!$A$5:$K$20,4,0)*$E15,""),"") ->  | I15: =IF($B15<>"",IF(D15<>0,VLOOKUP($B15,Allocations!$A$5:$K$20,5,0)*$E15,""),"") ->  | J15: =IF($B15<>"",IF(D15<>0,VLOOKUP($B15,Allocations!$A$5:$K$20,6,0)*$E15,""),"") ->  | K15: =IF($B15<>"",IF(D15<>0,VLOOKUP($B15,Allocations!$A$5:$K$20,7,0)*$E15,""),"") ->  | L15: =IF($B15<>"",IF(D15<>0,VLOOKUP($B15,Allocations!$A$5:$K$20,8,0)*$E15,""),"") ->  | P15: =IF(AND($B15<>"", $N15<>""),VLOOKUP($B15,Allocations!$A$5:$K$30,3,0)*$N15,"") ->  | Q15: =IF(AND($B15<>"", $O15<>""),VLOOKUP($B15,Allocations!$A$5:$K$30,3,0)*$O15,"") ->  | R15: =IF(AND($B15<>"", $N15<>""),VLOOKUP($B15,Allocations!$A$5:$K$30,4,0)*$N15,"") ->  | S15: =IF(AND($B15<>"", $O15<>""),VLOOKUP($B15,Allocations!$A$5:$K$30,4,0)*$O15,"") ->  | T15: =IF(AND($B15<>"", $N15<>""),VLOOKUP($B15,Allocations!$A$5:$K$30,5,0)*$N15,"") ->  | U15: =IF(AND($B15<>"", $O15<>""),VLOOKUP($B15,Allocations!$A$5:$K$30,5,0)*$O15,"") ->  | V15: =IF(AND($B15<>"", $N15<>""),VLOOKUP($B15,Allocations!$A$5:$K$30,6,0)*$N15,"") ->  | W15: =IF(AND($B15<>"", $O15<>""),VLOOKUP($B15,Allocations!$A$5:$K$30,6,0)*$O15,"") ->  | X15: =IF(AND($B15<>"", $N15<>""),VLOOKUP($B15,Allocations!$A$5:$K$30,7,0)*$N15,"") ->  | Y15: =IF(AND($B15<>"", $O15<>""),VLOOKUP($B15,Allocations!$A$5:$K$30,7,0)*$O15,"") -> 
G16: =IF($B16<>"",IF(D16<>0,VLOOKUP($B16,Allocations!$A$5:$K$20,3,0)*$E16,""),"") ->  | H16: =IF($B16<>"",IF(D16<>0,VLOOKUP($B16,Allocations!$A$5:$K$20,4,0)*$E16,""),"") ->  | I16: =IF($B16<>"",IF(D16<>0,VLOOKUP($B16,Allocations!$A$5:$K$20,5,0)*$E16,""),"") ->  | J16: =IF($B16<>"",IF(D16<>0,VLOOKUP($B16,Allocations!$A$5:$K$20,6,0)*$E16,""),"") ->  | K16: =IF($B16<>"",IF(D16<>0,VLOOKUP($B16,Allocations!$A$5:$K$20,7,0)*$E16,""),"") ->  | L16: =IF($B16<>"",IF(D16<>0,VLOOKUP($B16,Allocations!$A$5:$K$20,8,0)*$E16,""),"") ->  | P16: =IF(AND($B16<>"", $N16<>""),VLOOKUP($B16,Allocations!$A$5:$K$30,3,0)*$N16,"") ->  | Q16: =IF(AND($B16<>"", $O16<>""),VLOOKUP($B16,Allocations!$A$5:$K$30,3,0)*$O16,"") ->  | R16: =IF(AND($B16<>"", $N16<>""),VLOOKUP($B16,Allocations!$A$5:$K$30,4,0)*$N16,"") ->  | S16: =IF(AND($B16<>"", $O16<>""),VLOOKUP($B16,Allocations!$A$5:$K$30,4,0)*$O16,"") ->  | T16: =IF(AND($B16<>"", $N16<>""),VLOOKUP($B16,Allocations!$A$5:$K$30,5,0)*$N16,"") ->  | U16: =IF(AND($B16<>"", $O16<>""),VLOOKUP($B16,Allocations!$A$5:$K$30,5,0)*$O16,"") ->  | V16: =IF(AND($B16<>"", $N16<>""),VLOOKUP($B16,Allocations!$A$5:$K$30,6,0)*$N16,"") ->  | W16: =IF(AND($B16<>"", $O16<>""),VLOOKUP($B16,Allocations!$A$5:$K$30,6,0)*$O16,"") ->  | X16: =IF(AND($B16<>"", $N16<>""),VLOOKUP($B16,Allocations!$A$5:$K$30,7,0)*$N16,"") ->  | Y16: =IF(AND($B16<>"", $O16<>""),VLOOKUP($B16,Allocations!$A$5:$K$30,7,0)*$O16,"") -> 
G17: =IF($B17<>"",IF(D17<>0,VLOOKUP($B17,Allocations!$A$5:$K$20,3,0)*$E17,""),"") ->  | H17: =IF($B17<>"",IF(D17<>0,VLOOKUP($B17,Allocations!$A$5:$K$20,4,0)*$E17,""),"") ->  | I17: =IF($B17<>"",IF(D17<>0,VLOOKUP($B17,Allocations!$A$5:$K$20,5,0)*$E17,""),"") ->  | J17: =IF($B17<>"",IF(D17<>0,VLOOKUP($B17,Allocations!$A$5:$K$20,6,0)*$E17,""),"") ->  | K17: =IF($B17<>"",IF(D17<>0,VLOOKUP($B17,Allocations!$A$5:$K$20,7,0)*$E17,""),"") ->  | L17: =IF($B17<>"",IF(D17<>0,VLOOKUP($B17,Allocations!$A$5:$K$20,8,0)*$E17,""),"") ->  | P17: =IF(AND($B17<>"", $N17<>""),VLOOKUP($B17,Allocations!$A$5:$K$30,3,0)*$N17,"") ->  | Q17: =IF(AND($B17<>"", $O17<>""),VLOOKUP($B17,Allocations!$A$5:$K$30,3,0)*$O17,"") ->  | R17: =IF(AND($B17<>"", $N17<>""),VLOOKUP($B17,Allocations!$A$5:$K$30,4,0)*$N17,"") ->  | S17: =IF(AND($B17<>"", $O17<>""),VLOOKUP($B17,Allocations!$A$5:$K$30,4,0)*$O17,"") ->  | T17: =IF(AND($B17<>"", $N17<>""),VLOOKUP($B17,Allocations!$A$5:$K$30,5,0)*$N17,"") ->  | U17: =IF(AND($B17<>"", $O17<>""),VLOOKUP($B17,Allocations!$A$5:$K$30,5,0)*$O17,"") ->  | V17: =IF(AND($B17<>"", $N17<>""),VLOOKUP($B17,Allocations!$A$5:$K$30,6,0)*$N17,"") ->  | W17: =IF(AND($B17<>"", $O17<>""),VLOOKUP($B17,Allocations!$A$5:$K$30,6,0)*$O17,"") ->  | X17: =IF(AND($B17<>"", $N17<>""),VLOOKUP($B17,Allocations!$A$5:$K$30,7,0)*$N17,"") ->  | Y17: =IF(AND($B17<>"", $O17<>""),VLOOKUP($B17,Allocations!$A$5:$K$30,7,0)*$O17,"") -> 
G18: =IF($B18<>"",IF(D18<>0,VLOOKUP($B18,Allocations!$A$5:$K$20,3,0)*$E18,""),"") ->  | H18: =IF($B18<>"",IF(D18<>0,VLOOKUP($B18,Allocations!$A$5:$K$20,4,0)*$E18,""),"") ->  | I18: =IF($B18<>"",IF(D18<>0,VLOOKUP($B18,Allocations!$A$5:$K$20,5,0)*$E18,""),"") ->  | J18: =IF($B18<>"",IF(D18<>0,VLOOKUP($B18,Allocations!$A$5:$K$20,6,0)*$E18,""),"") ->  | K18: =IF($B18<>"",IF(D18<>0,VLOOKUP($B18,Allocations!$A$5:$K$20,7,0)*$E18,""),"") ->  | L18: =IF($B18<>"",IF(D18<>0,VLOOKUP($B18,Allocations!$A$5:$K$20,8,0)*$E18,""),"") ->  | P18: =IF(AND($B18<>"", $N18<>""),VLOOKUP($B18,Allocations!$A$5:$K$30,3,0)*$N18,"") ->  | Q18: =IF(AND($B18<>"", $O18<>""),VLOOKUP($B18,Allocations!$A$5:$K$30,3,0)*$O18,"") ->  | R18: =IF(AND($B18<>"", $N18<>""),VLOOKUP($B18,Allocations!$A$5:$K$30,4,0)*$N18,"") ->  | S18: =IF(AND($B18<>"", $O18<>""),VLOOKUP($B18,Allocations!$A$5:$K$30,4,0)*$O18,"") ->  | T18: =IF(AND($B18<>"", $N18<>""),VLOOKUP($B18,Allocations!$A$5:$K$30,5,0)*$N18,"") ->  | U18: =IF(AND($B18<>"", $O18<>""),VLOOKUP($B18,Allocations!$A$5:$K$30,5,0)*$O18,"") ->  | V18: =IF(AND($B18<>"", $N18<>""),VLOOKUP($B18,Allocations!$A$5:$K$30,6,0)*$N18,"") ->  | W18: =IF(AND($B18<>"", $O18<>""),VLOOKUP($B18,Allocations!$A$5:$K$30,6,0)*$O18,"") ->  | X18: =IF(AND($B18<>"", $N18<>""),VLOOKUP($B18,Allocations!$A$5:$K$30,7,0)*$N18,"") ->  | Y18: =IF(AND($B18<>"", $O18<>""),VLOOKUP($B18,Allocations!$A$5:$K$30,7,0)*$O18,"") -> 
G19: =IF($B19<>"",IF(D19<>0,VLOOKUP($B19,Allocations!$A$5:$K$20,3,0)*$E19,""),"") ->  | H19: =IF($B19<>"",IF(D19<>0,VLOOKUP($B19,Allocations!$A$5:$K$20,4,0)*$E19,""),"") ->  | I19: =IF($B19<>"",IF(D19<>0,VLOOKUP($B19,Allocations!$A$5:$K$20,5,0)*$E19,""),"") ->  | J19: =IF($B19<>"",IF(D19<>0,VLOOKUP($B19,Allocations!$A$5:$K$20,6,0)*$E19,""),"") ->  | K19: =IF($B19<>"",IF(D19<>0,VLOOKUP($B19,Allocations!$A$5:$K$20,7,0)*$E19,""),"") ->  | L19: =IF($B19<>"",IF(D19<>0,VLOOKUP($B19,Allocations!$A$5:$K$20,8,0)*$E19,""),"") ->  | P19: =IF(AND($B36<>"", $N19<>""),VLOOKUP($B36,Allocations!$A$5:$K$30,3,0)*$N19,"") ->  | Q19: =IF(AND($B36<>"", $O19<>""),VLOOKUP($B36,Allocations!$A$5:$K$30,3,0)*$O19,"") ->  | R19: =IF(AND($B36<>"", $N19<>""),VLOOKUP($B36,Allocations!$A$5:$K$30,4,0)*$N19,"") ->  | S19: =IF(AND($B36<>"", $O19<>""),VLOOKUP($B36,Allocations!$A$5:$K$30,4,0)*$O19,"") ->  | T19: =IF(AND($B36<>"", $N19<>""),VLOOKUP($B36,Allocations!$A$5:$K$30,5,0)*$N19,"") ->  | U19: =IF(AND($B36<>"", $O19<>""),VLOOKUP($B36,Allocations!$A$5:$K$30,5,0)*$O19,"") ->  | V19: =IF(AND($B36<>"", $N19<>""),VLOOKUP($B36,Allocations!$A$5:$K$30,6,0)*$N19,"") ->  | W19: =IF(AND($B36<>"", $O19<>""),VLOOKUP($B36,Allocations!$A$5:$K$30,6,0)*$O19,"") ->  | X19: =IF(AND($B36<>"", $N19<>""),VLOOKUP($B36,Allocations!$A$5:$K$30,7,0)*$N19,"") ->  | Y19: =IF(AND($B36<>"", $O19<>""),VLOOKUP($B36,Allocations!$A$5:$K$30,7,0)*$O19,"") -> 
G20: =IF($B20<>"",IF(D20<>0,VLOOKUP($B20,Allocations!$A$5:$K$20,3,0)*$E20,""),"") ->  | H20: =IF($B20<>"",IF(D20<>0,VLOOKUP($B20,Allocations!$A$5:$K$20,4,0)*$E20,""),"") ->  | I20: =IF($B20<>"",IF(D20<>0,VLOOKUP($B20,Allocations!$A$5:$K$20,5,0)*$E20,""),"") ->  | J20: =IF($B20<>"",IF(D20<>0,VLOOKUP($B20,Allocations!$A$5:$K$20,6,0)*$E20,""),"") ->  | K20: =IF($B20<>"",IF(D20<>0,VLOOKUP($B20,Allocations!$A$5:$K$20,7,0)*$E20,""),"") ->  | L20: =IF($B20<>"",IF(D20<>0,VLOOKUP($B20,Allocations!$A$5:$K$20,8,0)*$E20,""),"") ->  | P20: =IF(AND($B20<>"", $N20<>""),VLOOKUP($B20,Allocations!$A$5:$K$30,3,0)*$N20,"") ->  | Q20: =IF(AND($B20<>"", $O20<>""),VLOOKUP($B20,Allocations!$A$5:$K$30,3,0)*$O20,"") ->  | R20: =IF(AND($B20<>"", $N20<>""),VLOOKUP($B20,Allocations!$A$5:$K$30,4,0)*$N20,"") ->  | S20: =IF(AND($B20<>"", $O20<>""),VLOOKUP($B20,Allocations!$A$5:$K$30,4,0)*$O20,"") ->  | T20: =IF(AND($B20<>"", $N20<>""),VLOOKUP($B20,Allocations!$A$5:$K$30,5,0)*$N20,"") ->  | U20: =IF(AND($B20<>"", $O20<>""),VLOOKUP($B20,Allocations!$A$5:$K$30,5,0)*$O20,"") ->  | V20: =IF(AND($B20<>"", $N20<>""),VLOOKUP($B20,Allocations!$A$5:$K$30,6,0)*$N20,"") ->  | W20: =IF(AND($B20<>"", $O20<>""),VLOOKUP($B20,Allocations!$A$5:$K$30,6,0)*$O20,"") ->  | X20: =IF(AND($B20<>"", $N20<>""),VLOOKUP($B20,Allocations!$A$5:$K$30,7,0)*$N20,"") ->  | Y20: =IF(AND($B20<>"", $O20<>""),VLOOKUP($B20,Allocations!$A$5:$K$30,7,0)*$O20,"") -> 
G21: =IF($B21<>"",IF(D21<>0,VLOOKUP($B21,Allocations!$A$5:$K$20,3,0)*$E21,""),"") ->  | H21: =IF($B21<>"",IF(D21<>0,VLOOKUP($B21,Allocations!$A$5:$K$20,4,0)*$E21,""),"") ->  | I21: =IF($B21<>"",IF(D21<>0,VLOOKUP($B21,Allocations!$A$5:$K$20,5,0)*$E21,""),"") ->  | J21: =IF($B21<>"",IF(D21<>0,VLOOKUP($B21,Allocations!$A$5:$K$20,6,0)*$E21,""),"") ->  | K21: =IF($B21<>"",IF(D21<>0,VLOOKUP($B21,Allocations!$A$5:$K$20,7,0)*$E21,""),"") ->  | L21: =IF($B21<>"",IF(D21<>0,VLOOKUP($B21,Allocations!$A$5:$K$20,8,0)*$E21,""),"") ->  | P21: =IF(AND($B21<>"", $N21<>""),VLOOKUP($B21,Allocations!$A$5:$K$30,3,0)*$N21,"") ->  | Q21: =IF(AND($B21<>"", $O21<>""),VLOOKUP($B21,Allocations!$A$5:$K$30,3,0)*$O21,"") ->  | R21: =IF(AND($B21<>"", $N21<>""),VLOOKUP($B21,Allocations!$A$5:$K$30,4,0)*$N21,"") ->  | S21: =IF(AND($B21<>"", $O21<>""),VLOOKUP($B21,Allocations!$A$5:$K$30,4,0)*$O21,"") ->  | T21: =IF(AND($B21<>"", $N21<>""),VLOOKUP($B21,Allocations!$A$5:$K$30,5,0)*$N21,"") ->  | U21: =IF(AND($B21<>"", $O21<>""),VLOOKUP($B21,Allocations!$A$5:$K$30,5,0)*$O21,"") ->  | V21: =IF(AND($B21<>"", $N21<>""),VLOOKUP($B21,Allocations!$A$5:$K$30,6,0)*$N21,"") ->  | W21: =IF(AND($B21<>"", $O21<>""),VLOOKUP($B21,Allocations!$A$5:$K$30,6,0)*$O21,"") ->  | X21: =IF(AND($B21<>"", $N21<>""),VLOOKUP($B21,Allocations!$A$5:$K$30,7,0)*$N21,"") ->  | Y21: =IF(AND($B21<>"", $O21<>""),VLOOKUP($B21,Allocations!$A$5:$K$30,7,0)*$O21,"") -> 
G22: =IF($B22<>"",IF(D22<>0,VLOOKUP($B22,Allocations!$A$5:$K$20,3,0)*$E22,""),"") ->  | H22: =IF($B22<>"",IF(D22<>0,VLOOKUP($B22,Allocations!$A$5:$K$20,4,0)*$E22,""),"") ->  | I22: =IF($B22<>"",IF(D22<>0,VLOOKUP($B22,Allocations!$A$5:$K$20,5,0)*$E22,""),"") ->  | J22: =IF($B22<>"",IF(D22<>0,VLOOKUP($B22,Allocations!$A$5:$K$20,6,0)*$E22,""),"") ->  | K22: =IF($B22<>"",IF(D22<>0,VLOOKUP($B22,Allocations!$A$5:$K$20,7,0)*$E22,""),"") ->  | L22: =IF($B22<>"",IF(D22<>0,VLOOKUP($B22,Allocations!$A$5:$K$20,8,0)*$E22,""),"") ->  | P22: =IF(AND($B22<>"", $N22<>""),VLOOKUP($B22,Allocations!$A$5:$K$30,3,0)*$N22,"") ->  | Q22: =IF(AND($B22<>"", $O22<>""),VLOOKUP($B22,Allocations!$A$5:$K$30,3,0)*$O22,"") ->  | R22: =IF(AND($B22<>"", $N22<>""),VLOOKUP($B22,Allocations!$A$5:$K$30,4,0)*$N22,"") ->  | S22: =IF(AND($B22<>"", $O22<>""),VLOOKUP($B22,Allocations!$A$5:$K$30,4,0)*$O22,"") ->  | T22: =IF(AND($B22<>"", $N22<>""),VLOOKUP($B22,Allocations!$A$5:$K$30,5,0)*$N22,"") ->  | U22: =IF(AND($B22<>"", $O22<>""),VLOOKUP($B22,Allocations!$A$5:$K$30,5,0)*$O22,"") ->  | V22: =IF(AND($B22<>"", $N22<>""),VLOOKUP($B22,Allocations!$A$5:$K$30,6,0)*$N22,"") ->  | W22: =IF(AND($B22<>"", $O22<>""),VLOOKUP($B22,Allocations!$A$5:$K$30,6,0)*$O22,"") ->  | X22: =IF(AND($B22<>"", $N22<>""),VLOOKUP($B22,Allocations!$A$5:$K$30,7,0)*$N22,"") ->  | Y22: =IF(AND($B22<>"", $O22<>""),VLOOKUP($B22,Allocations!$A$5:$K$30,7,0)*$O22,"") -> 
G23: =IF($B23<>"",IF(D23<>0,VLOOKUP($B23,Allocations!$A$5:$K$20,3,0)*$E23,""),"") ->  | H23: =IF($B23<>"",IF(D23<>0,VLOOKUP($B23,Allocations!$A$5:$K$20,4,0)*$E23,""),"") ->  | I23: =IF($B23<>"",IF(D23<>0,VLOOKUP($B23,Allocations!$A$5:$K$20,5,0)*$E23,""),"") ->  | J23: =IF($B23<>"",IF(D23<>0,VLOOKUP($B23,Allocations!$A$5:$K$20,6,0)*$E23,""),"") ->  | K23: =IF($B23<>"",IF(D23<>0,VLOOKUP($B23,Allocations!$A$5:$K$20,7,0)*$E23,""),"") ->  | L23: =IF($B23<>"",IF(D23<>0,VLOOKUP($B23,Allocations!$A$5:$K$20,8,0)*$E23,""),"") ->  | P23: =IF(AND($B23<>"", $N23<>""),VLOOKUP($B23,Allocations!$A$5:$K$30,3,0)*$N23,"") ->  | Q23: =IF(AND($B23<>"", $O23<>""),VLOOKUP($B23,Allocations!$A$5:$K$30,3,0)*$O23,"") ->  | R23: =IF(AND($B23<>"", $N23<>""),VLOOKUP($B23,Allocations!$A$5:$K$30,4,0)*$N23,"") ->  | S23: =IF(AND($B23<>"", $O23<>""),VLOOKUP($B23,Allocations!$A$5:$K$30,4,0)*$O23,"") ->  | T23: =IF(AND($B23<>"", $N23<>""),VLOOKUP($B23,Allocations!$A$5:$K$30,5,0)*$N23,"") ->  | U23: =IF(AND($B23<>"", $O23<>""),VLOOKUP($B23,Allocations!$A$5:$K$30,5,0)*$O23,"") ->  | V23: =IF(AND($B23<>"", $N23<>""),VLOOKUP($B23,Allocations!$A$5:$K$30,6,0)*$N23,"") ->  | W23: =IF(AND($B23<>"", $O23<>""),VLOOKUP($B23,Allocations!$A$5:$K$30,6,0)*$O23,"") ->  | X23: =IF(AND($B23<>"", $N23<>""),VLOOKUP($B23,Allocations!$A$5:$K$30,7,0)*$N23,"") ->  | Y23: =IF(AND($B23<>"", $O23<>""),VLOOKUP($B23,Allocations!$A$5:$K$30,7,0)*$O23,"") -> 
G24: =IF($B24<>"",IF(D24<>0,VLOOKUP($B24,Allocations!$A$5:$K$20,3,0)*$E24,""),"") ->  | H24: =IF($B24<>"",IF(D24<>0,VLOOKUP($B24,Allocations!$A$5:$K$20,4,0)*$E24,""),"") ->  | I24: =IF($B24<>"",IF(D24<>0,VLOOKUP($B24,Allocations!$A$5:$K$20,5,0)*$E24,""),"") ->  | J24: =IF($B24<>"",IF(D24<>0,VLOOKUP($B24,Allocations!$A$5:$K$20,6,0)*$E24,""),"") ->  | K24: =IF($B24<>"",IF(D24<>0,VLOOKUP($B24,Allocations!$A$5:$K$20,7,0)*$E24,""),"") ->  | L24: =IF($B24<>"",IF(D24<>0,VLOOKUP($B24,Allocations!$A$5:$K$20,8,0)*$E24,""),"") ->  | P24: =IF(AND($B24<>"", $N24<>""),VLOOKUP($B24,Allocations!$A$5:$K$30,3,0)*$N24,"") ->  | Q24: =IF(AND($B24<>"", $O24<>""),VLOOKUP($B24,Allocations!$A$5:$K$30,3,0)*$O24,"") ->  | R24: =IF(AND($B24<>"", $N24<>""),VLOOKUP($B24,Allocations!$A$5:$K$30,4,0)*$N24,"") ->  | S24: =IF(AND($B24<>"", $O24<>""),VLOOKUP($B24,Allocations!$A$5:$K$30,4,0)*$O24,"") ->  | T24: =IF(AND($B24<>"", $N24<>""),VLOOKUP($B24,Allocations!$A$5:$K$30,5,0)*$N24,"") ->  | U24: =IF(AND($B24<>"", $O24<>""),VLOOKUP($B24,Allocations!$A$5:$K$30,5,0)*$O24,"") ->  | V24: =IF(AND($B24<>"", $N24<>""),VLOOKUP($B24,Allocations!$A$5:$K$30,6,0)*$N24,"") ->  | W24: =IF(AND($B24<>"", $O24<>""),VLOOKUP($B24,Allocations!$A$5:$K$30,6,0)*$O24,"") ->  | X24: =IF(AND($B24<>"", $N24<>""),VLOOKUP($B24,Allocations!$A$5:$K$30,7,0)*$N24,"") ->  | Y24: =IF(AND($B24<>"", $O24<>""),VLOOKUP($B24,Allocations!$A$5:$K$30,7,0)*$O24,"") -> 
G25: =IF($B25<>"",IF(D25<>0,VLOOKUP($B25,Allocations!$A$5:$K$20,3,0)*$E25,""),"") ->  | H25: =IF($B25<>"",IF(D25<>0,VLOOKUP($B25,Allocations!$A$5:$K$20,4,0)*$E25,""),"") ->  | I25: =IF($B25<>"",IF(D25<>0,VLOOKUP($B25,Allocations!$A$5:$K$20,5,0)*$E25,""),"") ->  | J25: =IF($B25<>"",IF(D25<>0,VLOOKUP($B25,Allocations!$A$5:$K$20,6,0)*$E25,""),"") ->  | K25: =IF($B25<>"",IF(D25<>0,VLOOKUP($B25,Allocations!$A$5:$K$20,7,0)*$E25,""),"") ->  | L25: =IF($B25<>"",IF(D25<>0,VLOOKUP($B25,Allocations!$A$5:$K$20,8,0)*$E25,""),"") ->  | P25: =IF(AND($B25<>"", $N25<>""),VLOOKUP($B25,Allocations!$A$5:$K$30,3,0)*$N25,"") ->  | Q25: =IF(AND($B25<>"", $O25<>""),VLOOKUP($B25,Allocations!$A$5:$K$30,3,0)*$O25,"") ->  | R25: =IF(AND($B25<>"", $N25<>""),VLOOKUP($B25,Allocations!$A$5:$K$30,4,0)*$N25,"") ->  | S25: =IF(AND($B25<>"", $O25<>""),VLOOKUP($B25,Allocations!$A$5:$K$30,4,0)*$O25,"") ->  | T25: =IF(AND($B25<>"", $N25<>""),VLOOKUP($B25,Allocations!$A$5:$K$30,5,0)*$N25,"") ->  | U25: =IF(AND($B25<>"", $O25<>""),VLOOKUP($B25,Allocations!$A$5:$K$30,5,0)*$O25,"") ->  | V25: =IF(AND($B25<>"", $N25<>""),VLOOKUP($B25,Allocations!$A$5:$K$30,6,0)*$N25,"") ->  | W25: =IF(AND($B25<>"", $O25<>""),VLOOKUP($B25,Allocations!$A$5:$K$30,6,0)*$O25,"") ->  | X25: =IF(AND($B25<>"", $N25<>""),VLOOKUP($B25,Allocations!$A$5:$K$30,7,0)*$N25,"") ->  | Y25: =IF(AND($B25<>"", $O25<>""),VLOOKUP($B25,Allocations!$A$5:$K$30,7,0)*$O25,"") -> 
G26: =IF($B26<>"",IF(D26<>0,VLOOKUP($B26,Allocations!$A$5:$K$20,3,0)*$E26,""),"") ->  | H26: =IF($B26<>"",IF(D26<>0,VLOOKUP($B26,Allocations!$A$5:$K$20,4,0)*$E26,""),"") ->  | I26: =IF($B26<>"",IF(D26<>0,VLOOKUP($B26,Allocations!$A$5:$K$20,5,0)*$E26,""),"") ->  | J26: =IF($B26<>"",IF(D26<>0,VLOOKUP($B26,Allocations!$A$5:$K$20,6,0)*$E26,""),"") ->  | K26: =IF($B26<>"",IF(D26<>0,VLOOKUP($B26,Allocations!$A$5:$K$20,7,0)*$E26,""),"") ->  | L26: =IF($B26<>"",IF(D26<>0,VLOOKUP($B26,Allocations!$A$5:$K$20,8,0)*$E26,""),"") ->  | P26: =IF(AND($B26<>"", $N26<>""),VLOOKUP($B26,Allocations!$A$5:$K$30,3,0)*$N26,"") ->  | Q26: =IF(AND($B26<>"", $O26<>""),VLOOKUP($B26,Allocations!$A$5:$K$30,3,0)*$O26,"") ->  | R26: =IF(AND($B26<>"", $N26<>""),VLOOKUP($B26,Allocations!$A$5:$K$30,4,0)*$N26,"") ->  | S26: =IF(AND($B26<>"", $O26<>""),VLOOKUP($B26,Allocations!$A$5:$K$30,4,0)*$O26,"") ->  | T26: =IF(AND($B26<>"", $N26<>""),VLOOKUP($B26,Allocations!$A$5:$K$30,5,0)*$N26,"") ->  | U26: =IF(AND($B26<>"", $O26<>""),VLOOKUP($B26,Allocations!$A$5:$K$30,5,0)*$O26,"") ->  | V26: =IF(AND($B26<>"", $N26<>""),VLOOKUP($B26,Allocations!$A$5:$K$30,6,0)*$N26,"") ->  | W26: =IF(AND($B26<>"", $O26<>""),VLOOKUP($B26,Allocations!$A$5:$K$30,6,0)*$O26,"") ->  | X26: =IF(AND($B26<>"", $N26<>""),VLOOKUP($B26,Allocations!$A$5:$K$30,7,0)*$N26,"") ->  | Y26: =IF(AND($B26<>"", $O26<>""),VLOOKUP($B26,Allocations!$A$5:$K$30,7,0)*$O26,"") -> 
G27: =IF($B27<>"",IF(D27<>0,VLOOKUP($B27,Allocations!$A$5:$K$20,3,0)*$E27,""),"") ->  | H27: =IF($B27<>"",IF(D27<>0,VLOOKUP($B27,Allocations!$A$5:$K$20,4,0)*$E27,""),"") ->  | I27: =IF($B27<>"",IF(D27<>0,VLOOKUP($B27,Allocations!$A$5:$K$20,5,0)*$E27,""),"") ->  | J27: =IF($B27<>"",IF(D27<>0,VLOOKUP($B27,Allocations!$A$5:$K$20,6,0)*$E27,""),"") ->  | K27: =IF($B27<>"",IF(D27<>0,VLOOKUP($B27,Allocations!$A$5:$K$20,7,0)*$E27,""),"") ->  | L27: =IF($B27<>"",IF(D27<>0,VLOOKUP($B27,Allocations!$A$5:$K$20,8,0)*$E27,""),"") ->  | P27: =IF(AND($B27<>"", $N27<>""),VLOOKUP($B27,Allocations!$A$5:$K$30,3,0)*$N27,"") ->  | Q27: =IF(AND($B27<>"", $O27<>""),VLOOKUP($B27,Allocations!$A$5:$K$30,3,0)*$O27,"") ->  | R27: =IF(AND($B27<>"", $N27<>""),VLOOKUP($B27,Allocations!$A$5:$K$30,4,0)*$N27,"") ->  | S27: =IF(AND($B27<>"", $O27<>""),VLOOKUP($B27,Allocations!$A$5:$K$30,4,0)*$O27,"") ->  | T27: =IF(AND($B27<>"", $N27<>""),VLOOKUP($B27,Allocations!$A$5:$K$30,5,0)*$N27,"") ->  | U27: =IF(AND($B27<>"", $O27<>""),VLOOKUP($B27,Allocations!$A$5:$K$30,5,0)*$O27,"") ->  | V27: =IF(AND($B27<>"", $N27<>""),VLOOKUP($B27,Allocations!$A$5:$K$30,6,0)*$N27,"") ->  | W27: =IF(AND($B27<>"", $O27<>""),VLOOKUP($B27,Allocations!$A$5:$K$30,6,0)*$O27,"") ->  | X27: =IF(AND($B27<>"", $N27<>""),VLOOKUP($B27,Allocations!$A$5:$K$30,7,0)*$N27,"") ->  | Y27: =IF(AND($B27<>"", $O27<>""),VLOOKUP($B27,Allocations!$A$5:$K$30,7,0)*$O27,"") -> 
G28: =IF($B28<>"",IF(D28<>0,VLOOKUP($B28,Allocations!$A$5:$K$20,3,0)*$E28,""),"") ->  | H28: =IF($B28<>"",IF(D28<>0,VLOOKUP($B28,Allocations!$A$5:$K$20,4,0)*$E28,""),"") ->  | I28: =IF($B28<>"",IF(D28<>0,VLOOKUP($B28,Allocations!$A$5:$K$20,5,0)*$E28,""),"") ->  | J28: =IF($B28<>"",IF(D28<>0,VLOOKUP($B28,Allocations!$A$5:$K$20,6,0)*$E28,""),"") ->  | K28: =IF($B28<>"",IF(D28<>0,VLOOKUP($B28,Allocations!$A$5:$K$20,7,0)*$E28,""),"") ->  | L28: =IF($B28<>"",IF(D28<>0,VLOOKUP($B28,Allocations!$A$5:$K$20,8,0)*$E28,""),"") ->  | P28: =IF(AND($B28<>"", $N28<>""),VLOOKUP($B28,Allocations!$A$5:$K$30,3,0)*$N28,"") ->  | Q28: =IF(AND($B28<>"", $O28<>""),VLOOKUP($B28,Allocations!$A$5:$K$30,3,0)*$O28,"") ->  | R28: =IF(AND($B28<>"", $N28<>""),VLOOKUP($B28,Allocations!$A$5:$K$30,4,0)*$N28,"") ->  | S28: =IF(AND($B28<>"", $O28<>""),VLOOKUP($B28,Allocations!$A$5:$K$30,4,0)*$O28,"") ->  | T28: =IF(AND($B28<>"", $N28<>""),VLOOKUP($B28,Allocations!$A$5:$K$30,5,0)*$N28,"") ->  | U28: =IF(AND($B28<>"", $O28<>""),VLOOKUP($B28,Allocations!$A$5:$K$30,5,0)*$O28,"") ->  | V28: =IF(AND($B28<>"", $N28<>""),VLOOKUP($B28,Allocations!$A$5:$K$30,6,0)*$N28,"") ->  | W28: =IF(AND($B28<>"", $O28<>""),VLOOKUP($B28,Allocations!$A$5:$K$30,6,0)*$O28,"") ->  | X28: =IF(AND($B28<>"", $N28<>""),VLOOKUP($B28,Allocations!$A$5:$K$30,7,0)*$N28,"") ->  | Y28: =IF(AND($B28<>"", $O28<>""),VLOOKUP($B28,Allocations!$A$5:$K$30,7,0)*$O28,"") -> 
G29: =IF($B29<>"",IF(D29<>0,VLOOKUP($B29,Allocations!$A$5:$K$20,3,0)*$E29,""),"") ->  | H29: =IF($B29<>"",IF(D29<>0,VLOOKUP($B29,Allocations!$A$5:$K$20,4,0)*$E29,""),"") ->  | I29: =IF($B29<>"",IF(D29<>0,VLOOKUP($B29,Allocations!$A$5:$K$20,5,0)*$E29,""),"") ->  | J29: =IF($B29<>"",IF(D29<>0,VLOOKUP($B29,Allocations!$A$5:$K$20,6,0)*$E29,""),"") ->  | K29: =IF($B29<>"",IF(D29<>0,VLOOKUP($B29,Allocations!$A$5:$K$20,7,0)*$E29,""),"") ->  | L29: =IF($B29<>"",IF(D29<>0,VLOOKUP($B29,Allocations!$A$5:$K$20,8,0)*$E29,""),"") ->  | P29: =IF(AND($B29<>"", $N29<>""),VLOOKUP($B29,Allocations!$A$5:$K$30,3,0)*$N29,"") ->  | Q29: =IF(AND($B29<>"", $O29<>""),VLOOKUP($B29,Allocations!$A$5:$K$30,3,0)*$O29,"") ->  | R29: =IF(AND($B29<>"", $N29<>""),VLOOKUP($B29,Allocations!$A$5:$K$30,4,0)*$N29,"") ->  | S29: =IF(AND($B29<>"", $O29<>""),VLOOKUP($B29,Allocations!$A$5:$K$30,4,0)*$O29,"") ->  | T29: =IF(AND($B29<>"", $N29<>""),VLOOKUP($B29,Allocations!$A$5:$K$30,5,0)*$N29,"") ->  | U29: =IF(AND($B29<>"", $O29<>""),VLOOKUP($B29,Allocations!$A$5:$K$30,5,0)*$O29,"") ->  | V29: =IF(AND($B29<>"", $N29<>""),VLOOKUP($B29,Allocations!$A$5:$K$30,6,0)*$N29,"") ->  | W29: =IF(AND($B29<>"", $O29<>""),VLOOKUP($B29,Allocations!$A$5:$K$30,6,0)*$O29,"") ->  | X29: =IF(AND($B29<>"", $N29<>""),VLOOKUP($B29,Allocations!$A$5:$K$30,7,0)*$N29,"") ->  | Y29: =IF(AND($B29<>"", $O29<>""),VLOOKUP($B29,Allocations!$A$5:$K$30,7,0)*$O29,"") -> 
G30: =IF($B30<>"",IF(D30<>0,VLOOKUP($B30,Allocations!$A$5:$K$20,3,0)*$E30,""),"") ->  | H30: =IF($B30<>"",IF(D30<>0,VLOOKUP($B30,Allocations!$A$5:$K$20,4,0)*$E30,""),"") ->  | I30: =IF($B30<>"",IF(D30<>0,VLOOKUP($B30,Allocations!$A$5:$K$20,5,0)*$E30,""),"") ->  | J30: =IF($B30<>"",IF(D30<>0,VLOOKUP($B30,Allocations!$A$5:$K$20,6,0)*$E30,""),"") ->  | K30: =IF($B30<>"",IF(D30<>0,VLOOKUP($B30,Allocations!$A$5:$K$20,7,0)*$E30,""),"") ->  | L30: =IF($B30<>"",IF(D30<>0,VLOOKUP($B30,Allocations!$A$5:$K$20,8,0)*$E30,""),"") ->  | P30: =IF(AND($B30<>"", $N30<>""),VLOOKUP($B30,Allocations!$A$5:$K$30,3,0)*$N30,"") ->  | Q30: =IF(AND($B30<>"", $O30<>""),VLOOKUP($B30,Allocations!$A$5:$K$30,3,0)*$O30,"") ->  | R30: =IF(AND($B30<>"", $N30<>""),VLOOKUP($B30,Allocations!$A$5:$K$30,4,0)*$N30,"") ->  | S30: =IF(AND($B30<>"", $O30<>""),VLOOKUP($B30,Allocations!$A$5:$K$30,4,0)*$O30,"") ->  | T30: =IF(AND($B30<>"", $N30<>""),VLOOKUP($B30,Allocations!$A$5:$K$30,5,0)*$N30,"") ->  | U30: =IF(AND($B30<>"", $O30<>""),VLOOKUP($B30,Allocations!$A$5:$K$30,5,0)*$O30,"") ->  | V30: =IF(AND($B30<>"", $N30<>""),VLOOKUP($B30,Allocations!$A$5:$K$30,6,0)*$N30,"") ->  | W30: =IF(AND($B30<>"", $O30<>""),VLOOKUP($B30,Allocations!$A$5:$K$30,6,0)*$O30,"") ->  | X30: =IF(AND($B30<>"", $N30<>""),VLOOKUP($B30,Allocations!$A$5:$K$30,7,0)*$N30,"") ->  | Y30: =IF(AND($B30<>"", $O30<>""),VLOOKUP($B30,Allocations!$A$5:$K$30,7,0)*$O30,"") -> 
G31: =IF($B31<>"",IF(D31<>0,VLOOKUP($B31,Allocations!$A$5:$K$20,3,0)*$E31,""),"") ->  | H31: =IF($B31<>"",IF(D31<>0,VLOOKUP($B31,Allocations!$A$5:$K$20,4,0)*$E31,""),"") ->  | I31: =IF($B31<>"",IF(D31<>0,VLOOKUP($B31,Allocations!$A$5:$K$20,5,0)*$E31,""),"") ->  | J31: =IF($B31<>"",IF(D31<>0,VLOOKUP($B31,Allocations!$A$5:$K$20,6,0)*$E31,""),"") ->  | K31: =IF($B31<>"",IF(D31<>0,VLOOKUP($B31,Allocations!$A$5:$K$20,7,0)*$E31,""),"") ->  | L31: =IF($B31<>"",IF(D31<>0,VLOOKUP($B31,Allocations!$A$5:$K$20,8,0)*$E31,""),"") ->  | P31: =IF(AND($B31<>"", $N31<>""),VLOOKUP($B31,Allocations!$A$5:$K$30,3,0)*$N31,"") ->  | Q31: =IF(AND($B31<>"", $O31<>""),VLOOKUP($B31,Allocations!$A$5:$K$30,3,0)*$O31,"") ->  | R31: =IF(AND($B31<>"", $N31<>""),VLOOKUP($B31,Allocations!$A$5:$K$30,4,0)*$N31,"") ->  | S31: =IF(AND($B31<>"", $O31<>""),VLOOKUP($B31,Allocations!$A$5:$K$30,4,0)*$O31,"") ->  | T31: =IF(AND($B31<>"", $N31<>""),VLOOKUP($B31,Allocations!$A$5:$K$30,5,0)*$N31,"") ->  | U31: =IF(AND($B31<>"", $O31<>""),VLOOKUP($B31,Allocations!$A$5:$K$30,5,0)*$O31,"") ->  | V31: =IF(AND($B31<>"", $N31<>""),VLOOKUP($B31,Allocations!$A$5:$K$30,6,0)*$N31,"") ->  | W31: =IF(AND($B31<>"", $O31<>""),VLOOKUP($B31,Allocations!$A$5:$K$30,6,0)*$O31,"") ->  | X31: =IF(AND($B31<>"", $N31<>""),VLOOKUP($B31,Allocations!$A$5:$K$30,7,0)*$N31,"") ->  | Y31: =IF(AND($B31<>"", $O31<>""),VLOOKUP($B31,Allocations!$A$5:$K$30,7,0)*$O31,"") -> 
G32: =IF($B32<>"",IF(D32<>0,VLOOKUP($B32,Allocations!$A$5:$K$20,3,0)*$E32,""),"") ->  | H32: =IF($B32<>"",IF(D32<>0,VLOOKUP($B32,Allocations!$A$5:$K$20,4,0)*$E32,""),"") ->  | I32: =IF($B32<>"",IF(D32<>0,VLOOKUP($B32,Allocations!$A$5:$K$20,5,0)*$E32,""),"") ->  | J32: =IF($B32<>"",IF(D32<>0,VLOOKUP($B32,Allocations!$A$5:$K$20,6,0)*$E32,""),"") ->  | K32: =IF($B32<>"",IF(D32<>0,VLOOKUP($B32,Allocations!$A$5:$K$20,7,0)*$E32,""),"") ->  | L32: =IF($B32<>"",IF(D32<>0,VLOOKUP($B32,Allocations!$A$5:$K$20,8,0)*$E32,""),"") ->  | P32: =IF(AND($B32<>"", $N32<>""),VLOOKUP($B32,Allocations!$A$5:$K$30,3,0)*$N32,"") ->  | Q32: =IF(AND($B32<>"", $O32<>""),VLOOKUP($B32,Allocations!$A$5:$K$30,3,0)*$O32,"") ->  | R32: =IF(AND($B32<>"", $N32<>""),VLOOKUP($B32,Allocations!$A$5:$K$30,4,0)*$N32,"") ->  | S32: =IF(AND($B32<>"", $O32<>""),VLOOKUP($B32,Allocations!$A$5:$K$30,4,0)*$O32,"") ->  | T32: =IF(AND($B32<>"", $N32<>""),VLOOKUP($B32,Allocations!$A$5:$K$30,5,0)*$N32,"") ->  | U32: =IF(AND($B32<>"", $O32<>""),VLOOKUP($B32,Allocations!$A$5:$K$30,5,0)*$O32,"") ->  | V32: =IF(AND($B32<>"", $N32<>""),VLOOKUP($B32,Allocations!$A$5:$K$30,6,0)*$N32,"") ->  | W32: =IF(AND($B32<>"", $O32<>""),VLOOKUP($B32,Allocations!$A$5:$K$30,6,0)*$O32,"") ->  | X32: =IF(AND($B32<>"", $N32<>""),VLOOKUP($B32,Allocations!$A$5:$K$30,7,0)*$N32,"") ->  | Y32: =IF(AND($B32<>"", $O32<>""),VLOOKUP($B32,Allocations!$A$5:$K$30,7,0)*$O32,"") -> 
G33: =IF($B33<>"",IF(D33<>0,VLOOKUP($B33,Allocations!$A$5:$K$20,3,0)*$E33,""),"") ->  | H33: =IF($B33<>"",IF(D33<>0,VLOOKUP($B33,Allocations!$A$5:$K$20,4,0)*$E33,""),"") ->  | I33: =IF($B33<>"",IF(D33<>0,VLOOKUP($B33,Allocations!$A$5:$K$20,5,0)*$E33,""),"") ->  | J33: =IF($B33<>"",IF(D33<>0,VLOOKUP($B33,Allocations!$A$5:$K$20,6,0)*$E33,""),"") ->  | K33: =IF($B33<>"",IF(D33<>0,VLOOKUP($B33,Allocations!$A$5:$K$20,7,0)*$E33,""),"") ->  | L33: =IF($B33<>"",IF(D33<>0,VLOOKUP($B33,Allocations!$A$5:$K$20,8,0)*$E33,""),"") ->  | P33: =IF(AND($B33<>"", $N33<>""),VLOOKUP($B33,Allocations!$A$5:$K$30,3,0)*$N33,"") ->  | Q33: =IF(AND($B33<>"", $O33<>""),VLOOKUP($B33,Allocations!$A$5:$K$30,3,0)*$O33,"") ->  | R33: =IF(AND($B33<>"", $N33<>""),VLOOKUP($B33,Allocations!$A$5:$K$30,4,0)*$N33,"") ->  | S33: =IF(AND($B33<>"", $O33<>""),VLOOKUP($B33,Allocations!$A$5:$K$30,4,0)*$O33,"") ->  | T33: =IF(AND($B33<>"", $N33<>""),VLOOKUP($B33,Allocations!$A$5:$K$30,5,0)*$N33,"") ->  | U33: =IF(AND($B33<>"", $O33<>""),VLOOKUP($B33,Allocations!$A$5:$K$30,5,0)*$O33,"") ->  | V33: =IF(AND($B33<>"", $N33<>""),VLOOKUP($B33,Allocations!$A$5:$K$30,6,0)*$N33,"") ->  | W33: =IF(AND($B33<>"", $O33<>""),VLOOKUP($B33,Allocations!$A$5:$K$30,6,0)*$O33,"") ->  | X33: =IF(AND($B33<>"", $N33<>""),VLOOKUP($B33,Allocations!$A$5:$K$30,7,0)*$N33,"") ->  | Y33: =IF(AND($B33<>"", $O33<>""),VLOOKUP($B33,Allocations!$A$5:$K$30,7,0)*$O33,"") -> 
G34: =IF($B34<>"",IF(D34<>0,VLOOKUP($B34,Allocations!$A$5:$K$20,3,0)*$E34,""),"") ->  | H34: =IF($B34<>"",IF(D34<>0,VLOOKUP($B34,Allocations!$A$5:$K$20,4,0)*$E34,""),"") ->  | I34: =IF($B34<>"",IF(D34<>0,VLOOKUP($B34,Allocations!$A$5:$K$20,5,0)*$E34,""),"") ->  | J34: =IF($B34<>"",IF(D34<>0,VLOOKUP($B34,Allocations!$A$5:$K$20,6,0)*$E34,""),"") ->  | K34: =IF($B34<>"",IF(D34<>0,VLOOKUP($B34,Allocations!$A$5:$K$20,7,0)*$E34,""),"") ->  | L34: =IF($B34<>"",IF(D34<>0,VLOOKUP($B34,Allocations!$A$5:$K$20,8,0)*$E34,""),"") ->  | P34: =IF(AND($B34<>"", $N34<>""),VLOOKUP($B34,Allocations!$A$5:$K$30,3,0)*$N34,"") ->  | Q34: =IF(AND($B34<>"", $O34<>""),VLOOKUP($B34,Allocations!$A$5:$K$30,3,0)*$O34,"") ->  | R34: =IF(AND($B34<>"", $N34<>""),VLOOKUP($B34,Allocations!$A$5:$K$30,4,0)*$N34,"") ->  | S34: =IF(AND($B34<>"", $O34<>""),VLOOKUP($B34,Allocations!$A$5:$K$30,4,0)*$O34,"") ->  | T34: =IF(AND($B34<>"", $N34<>""),VLOOKUP($B34,Allocations!$A$5:$K$30,5,0)*$N34,"") ->  | U34: =IF(AND($B34<>"", $O34<>""),VLOOKUP($B34,Allocations!$A$5:$K$30,5,0)*$O34,"") ->  | V34: =IF(AND($B34<>"", $N34<>""),VLOOKUP($B34,Allocations!$A$5:$K$30,6,0)*$N34,"") ->  | W34: =IF(AND($B34<>"", $O34<>""),VLOOKUP($B34,Allocations!$A$5:$K$30,6,0)*$O34,"") ->  | X34: =IF(AND($B34<>"", $N34<>""),VLOOKUP($B34,Allocations!$A$5:$K$30,7,0)*$N34,"") ->  | Y34: =IF(AND($B34<>"", $O34<>""),VLOOKUP($B34,Allocations!$A$5:$K$30,7,0)*$O34,"") -> 
G35: =IF($B35<>"",IF(D35<>0,VLOOKUP($B35,Allocations!$A$5:$K$20,3,0)*$E35,""),"") ->  | H35: =IF($B35<>"",IF(D35<>0,VLOOKUP($B35,Allocations!$A$5:$K$20,4,0)*$E35,""),"") ->  | I35: =IF($B35<>"",IF(D35<>0,VLOOKUP($B35,Allocations!$A$5:$K$20,5,0)*$E35,""),"") ->  | J35: =IF($B35<>"",IF(D35<>0,VLOOKUP($B35,Allocations!$A$5:$K$20,6,0)*$E35,""),"") ->  | K35: =IF($B35<>"",IF(D35<>0,VLOOKUP($B35,Allocations!$A$5:$K$20,7,0)*$E35,""),"") ->  | L35: =IF($B35<>"",IF(D35<>0,VLOOKUP($B35,Allocations!$A$5:$K$20,8,0)*$E35,""),"") ->  | P35: =IF(AND($B35<>"", $N35<>""),VLOOKUP($B35,Allocations!$A$5:$K$30,3,0)*$N35,"") ->  | Q35: =IF(AND($B35<>"", $O35<>""),VLOOKUP($B35,Allocations!$A$5:$K$30,3,0)*$O35,"") ->  | R35: =IF(AND($B35<>"", $N35<>""),VLOOKUP($B35,Allocations!$A$5:$K$30,4,0)*$N35,"") ->  | S35: =IF(AND($B35<>"", $O35<>""),VLOOKUP($B35,Allocations!$A$5:$K$30,4,0)*$O35,"") ->  | T35: =IF(AND($B35<>"", $N35<>""),VLOOKUP($B35,Allocations!$A$5:$K$30,5,0)*$N35,"") ->  | U35: =IF(AND($B35<>"", $O35<>""),VLOOKUP($B35,Allocations!$A$5:$K$30,5,0)*$O35,"") ->  | V35: =IF(AND($B35<>"", $N35<>""),VLOOKUP($B35,Allocations!$A$5:$K$30,6,0)*$N35,"") ->  | W35: =IF(AND($B35<>"", $O35<>""),VLOOKUP($B35,Allocations!$A$5:$K$30,6,0)*$O35,"") ->  | X35: =IF(AND($B35<>"", $N35<>""),VLOOKUP($B35,Allocations!$A$5:$K$30,7,0)*$N35,"") ->  | Y35: =IF(AND($B35<>"", $O35<>""),VLOOKUP($B35,Allocations!$A$5:$K$30,7,0)*$O35,"") -> 
A36: Total | E36: =SUM(E5:E35) -> 16680 | F36: =SUM(F5:F35) -> 20046 | G36: =SUM(G5:G35) -> 16680 | H36: 0 | I36: 0 | J36: 0 | K36: 0 | L36: 0 | N36: =SUM(N5:N35) -> 24 | O36: 0 | P36: 24 | Q36: 0 | R36: 0 | S36: 0 | T36: 0 | U36: 0 | V36: 0 | W36: 0 | X36: 0 | Y36: 0

Sheet Great Plains Training
A1: Great Plains Training | N1: =+A1 -> Great Plains Training
A2: ="Project Forecast "&'IT Budget'!$F$3 -> Project Forecast 2008 | N2: ="Manpower "&'IT Budget'!$F$3 -> Manpower 2008
A3: Back To Budget | N3: Hours | P3: SMI | R3: IPD | T3: SMG | V3: SWD/SP | X3: SINV
A4: Description | C4: Cost | D4: Qty | E4: Total | F4: Actual | G4: SMI | H4: IPD | I4: SMG | J4: SWD/SP | K4: SINV | L4: RVR | N4: Level 1 | O4: Level 2 | P4: Level 1 | Q4: Level 2 | R4: Level 1 | S4: Level 2 | T4: Level 1 | U4: Level 2 | V4: Level 1 | W4: Level 2 | X4: Level 1 | Y4: Level 2
E5: =IF(D5<>0,+C5*D5,"") ->  | G5: =IF($B5<>"",IF(D5<>0,VLOOKUP($B5,Allocations!$A$5:$K$20,3,0)*$E5,""),"") ->  | H5: =IF($B5<>"",IF(D5<>0,VLOOKUP($B5,Allocations!$A$5:$K$20,4,0)*$E5,""),"") ->  | I5: =IF($B5<>"",IF(D5<>0,VLOOKUP($B5,Allocations!$A$5:$K$20,5,0)*$E5,""),"") ->  | J5: =IF($B5<>"",IF(D5<>0,VLOOKUP($B5,Allocations!$A$5:$K$20,6,0)*$E5,""),"") ->  | K5: =IF($B5<>"",IF(D5<>0,VLOOKUP($B5,Allocations!$A$5:$K$20,7,0)*$E5,""),"") ->  | L5: =IF($B5<>"",IF(D5<>0,VLOOKUP($B5,Allocations!$A$5:$K$20,8,0)*$E5,""),"") ->  | P5: =IF(AND($B5<>"", $N5<>""),VLOOKUP($B5,Allocations!$A$5:$K$30,3,0)*$N5,"") ->  | Q5: =IF(AND($B5<>"", $O5<>""),VLOOKUP($B5,Allocations!$A$5:$K$30,3,0)*$O5,"") ->  | R5: =IF(AND($B5<>"", $N5<>""),VLOOKUP($B5,Allocations!$A$5:$K$30,4,0)*$N5,"") ->  | S5: =IF(AND($B5<>"", $O5<>""),VLOOKUP($B5,Allocations!$A$5:$K$30,4,0)*$O5,"") ->  | T5: =IF(AND($B5<>"", $N5<>""),VLOOKUP($B5,Allocations!$A$5:$K$30,5,0)*$N5,"") ->  | U5: =IF(AND($B5<>"", $O5<>""),VLOOKUP($B5,Allocations!$A$5:$K$30,5,0)*$O5,"") ->  | V5: =IF(AND($B5<>"", $N5<>""),VLOOKUP($B5,Allocations!$A$5:$K$30,6,0)*$N5,"") ->  | W5: =IF(AND($B5<>"", $O5<>""),VLOOKUP($B5,Allocations!$A$5:$K$30,6,0)*$O5,"") ->  | X5: =IF(AND($B5<>"", $N5<>""),VLOOKUP($B5,Allocations!$A$5:$K$30,7,0)*$N5,"") ->  | Y5: =IF(AND($B5<>"", $O5<>""),VLOOKUP($B5,Allocations!$A$5:$K$30,7,0)*$O5,"") -> 
